Workbook

Sheet CAPA
C1: Ver. | R1: DF | S1: Sudeste/Centro Oeste
C2: 0.93 | M2: =C23 -> 140 | N2: 6611
C3: Macro Ver.
C4: 74.37
B6: EBO | C6: =VLOOKUP(B6,TabEmpresas[#Data],5,FALSE) -> NÃO SUPRIDA | M6: Empresa | N6: Nome Completo | O6: IdSgtAg | P6: CodigoSamp | Q6: Supridora/suprida | R6: Financeiro 243 (TUSD) | S6: Databse Fin. 243
B7: =VLOOKUP(B6,TabEmpresas[#Data],2,FALSE) -> EBO - Energisa Borborema – Distribuidora de Energia S.A. | C7: Reajuste | G7: Últ. Atualização | M7: AES SUL | N7: AES-SUL - AES SUL Distribuidora Gaúcha de Energia S/A. | O7: 101 | P7: 396 | Q7: NÃO SUPRIDA
B8: CÓDIGO DA EMPRESA | C8: ="D" & TEXT(C23-100,"00") -> D40 | F8: Info iniciais | G8: 2020-01-07T09:21:00 | M8: AME | N8: Amazonas Distribuidora de Energia S/A | O8: 102 | P8: 7019 | Q8: NÃO SUPRIDA
B9: Data do Reajuste/Revisão Anterior | C9: 43500 | F9: Energia do ano anterior (CM compra, MWh Mercado, R$ Mercado) | M9: AMPLA | N9: AMPLA - Ampla Energia e Serviços S/A | O9: 103 | P9: 383 | Q9: NÃO SUPRIDA
B10: Data de Reajuste/Revisão em Processamento | C10: 43865 | F10: Perda de RB /Perdas Regulatórias /TUSDgONS-RB | M10: BANDEIRANTE | N10: BANDEIRANTE - Bandeirante Energia S/A. | O10: 104 | P10: 391 | Q10: NÃO SUPRIDA
F11: Financeiros ano anterior (CVA 5º dia útil, RTE restante) | M11: BOAVISTA | N11: Boa Vista - Boa Vista Energia S/A | O11: 105 | P11: 370 | Q11: NÃO SUPRIDA
F12: Encargos ano anterior (não RTE) | M12: BRAGANTINA | N12: BRAGANTINA- Empresa Elétrica Bragantina S/A. | O12: 142 | P12: 386 | Q12: NÃO SUPRIDA
F13: Dados da Revisão, Fator X e DecFec | M13: CAIUA | N13: CAIUÁ-D - Caiuá Distribuição de Energia S/A | O13: 106 | P13: 5216 | Q13: NÃO SUPRIDA
F14: Previsão de Subsidios dos Processos Anteriores | M14: CEA | N14: CEA - Companhia de Eletricidade do Amapá | O14: 107 | P14: 31 | Q14: NÃO SUPRIDA
B15: Período de Referencia final | C15: =DATE(YEAR($C$10),MONTH($C$10)-1,1) -> 43831 | F15: Conexão ano anterior | M15: CEAL | N15: CEAL - Companhia Energética de Alagoas | O15: 108 | P15: 44 | Q15: NÃO SUPRIDA
B16: Período de Referencia inicial | C16: =DATE(YEAR($C$10)-1,MONTH($C$10),1) -> 43497 | F16: Energia (CCEAR, Bil., Itaipu) | G16: 2020-01-15T16:26:47 | M16: CEB | N16: CEB-DIS - CEB Distribuição S/A | O16: 109 | P16: 5160 | Q16: NÃO SUPRIDA
B17: Índice IGPM na data Revisão/Reajuste | C17: =VLOOKUP(C15,Índices!$B$7:$F$500,2,FALSE) -> 763.3630272 | F17: CCEAR | M17: CEEE | N17: CEEE-D - Companhia Estadual de Distribuição de Energia Elétrica | O17: 110 | P17: 5707 | Q17: NÃO SUPRIDA
B18: Índice IPCA na data Revisão/Reajuste | C18: =VLOOKUP(C15,Índices!$B$7:$F$500,3,FALSE) -> 5322.513039 | F18: Bilateral | M18: CELESC | N18: CELESC-DIS - Celesc Distribuição S.A. | O18: 111 | P18: 5697 | Q18: NÃO SUPRIDA
B19: IGPM para o período de Referência | C19: =VLOOKUP(DATE(YEAR($C$10),MONTH($C$10)-1,1),Índices!$B$7:$F$500,2,FALSE)/VLOOKUP(DATE(YEAR($C$9),MONTH($C$9)-1,1),Índices!$B$7:$F$500,2,FALSE)-1 -> 0.078976643 | F19: Itaipu (Energia, Transporte, MUST) | M19: CELG | N19: CELG-D - Celg Distribuição S.A. | O19: 112 | P19: 6072 | Q19: NÃO SUPRIDA
B20: IPCA para o período de Referência | C20: =VLOOKUP(DATE(YEAR(C10),MONTH(C10)-1,1),Índices!$B$7:$F$500,3,FALSE)/VLOOKUP(DATE(YEAR($C$9),MONTH($C$9)-1,1),Índices!$B$7:$F$500,3,FALSE)-1 -> 0.04017702791 | F20: Cotas Lei/Angra | M20: CELPA | N20: CELPA - Centrais Elétricas do Pará S/A. | O20: 113 | P20: 371 | Q20: NÃO SUPRIDA
B21: Dados Gerenciais | F21: Encargos DRP | G21: 2020-01-07T09:21:01 | M21: CELPE | N21: CELPE - Companhia Energética de Pernambuco | O21: 114 | P21: 43 | Q21: NÃO SUPRIDA
B22: IdAgente | C22: =VLOOKUP(B6,TabEmpresas[#Data],4,FALSE) -> 6611 | F22: Indicadores Econômicos / Dólar | G22: 2020-01-17T08:29:57 | M22: CELTINS | N22: CELTINS - Companhia de Energia Elétrica do Estado do Tocantins | O22: 115 | P22: 32 | Q22: NÃO SUPRIDA
B23: ID Concessão | C23: =VLOOKUP(B6,TabEmpresas[#Data],3,FALSE) -> 140 | F23: Tudo de Mercado | G23: 2020-01-17T17:25:00 | M23: CEMAR | N23: CEMAR - Companhia Energética do Maranhão | O23: 116 | P23: 37 | Q23: NÃO SUPRIDA
F24: Rede Básica e Conexão | G24: 2020-01-07T09:22:19 | M24: CEMAT | N24: CEMAT - Centrais Elétricas Matogrossenses S/A. | O24: 117 | P24: 405 | Q24: NÃO SUPRIDA
B25: Quadro para vínculos | F25: Histórico de Tarifas B1 Residencial | G25: 2020-01-17T08:29:58 | M25: CEMIG | N25: CEMIG-D - CEMIG Distribuição S/A | O25: 118 | P25: 4950 | Q25: NÃO SUPRIDA
B26: Descrição | C26: valor | F26: CVA | G26: 2020-01-16T10:25:33 | M26: CEPISA | N26: CEPISA - Companhia Energética do Piauí | O26: 119 | P26: 38 | Q26: NÃO SUPRIDA
B27: (Exemplo) Efeito Consumidor Geral | C27: =LnkTxtEfeito -> -0.01778058019 | M27: CERON | N27: CERON - Centrais Elétricas de Rondônia S/A. | O27: 120 | P27: 369 | Q27: NÃO SUPRIDA
B28: Contrato de concessão | C28: 08/2000 | M28: CERR | N28: CERR - Companhia Energética de Roraima | O28: 121 | P28: 28 | Q28: NÃO SUPRIDA
C29: 48500.006737/2019-40 | M29: CHESP | N29: CHESP - Companhia Hidroelétrica São Patrício | O29: 123 | P29: 103 | Q29: SUPRIDA
B30: Período de Referencia | C30: =TEXT(C16,"mmmm/aaaa")& " a "&TEXT(C15,"mmmm/aaaa") -> fevereiro/2019 a janeiro/2020 | M30: CNEE | N30: CNEE - Companhia Nacional de Energia Elétrica | O30: 127 | P30: 75 | Q30: NÃO SUPRIDA
B31: Neutralidade Total | C31: =SUM(Financeiros!D28:D35) -> -1844416.678 | M31: COCEL | N31: COCEL - Companhia Campolarguense de Energia | O31: 128 | P31: 82 | Q31: SUPRIDA
B32: CVA Saldo a Compensar | C32: =SUM(Financeiros!D19:D27) -> 6703809.187 | M32: COELBA | N32: COELBA - Companhia de Eletricidade do Estado da Bahia | O32: 129 | P32: 47 | Q32: NÃO SUPRIDA
B33: Reversão CDE | C33: =SUM(Financeiros!D79:D80) -> -57939.71484 | M33: COELCE | N33: COELCE - Companhia Energética do Ceará | O33: 130 | P33: 39 | Q33: NÃO SUPRIDA
M34: COOPERALIANÇA | N34: COOPERALIANÇA - Cooperativa Aliança | O34: 131 | P34: 2904 | Q34: SUPRIDA
M35: COPEL | N35: COPEL-DIS - Copel Distribuição S/A | O35: 132 | P35: 2866 | Q35: NÃO SUPRIDA
M36: COSERN | N36: COSERN - Companhia Energética do Rio Grande do Norte | O36: 133 | P36: 40 | Q36: NÃO SUPRIDA
M37: CPFL Jaguari | N37: CPFL Jaguari - Companhia Jaguari de Energia | O37: 124 | P37: 69 | Q37: NÃO SUPRIDA
M38: CPFL Leste Paulista | N38: =TabEmpresas[[#This Row],[Empresa]]&" - Companhia Leste Paulista de Energia " -> CPFL Leste Paulista - Companhia Leste Paulista de Energia | O38: 134 | P38: 71 | Q38: NÃO SUPRIDA
M39: CPFL Mococa | N39: =TabEmpresas[[#This Row],[Empresa]]&" - Companhia Luz e Força de Mococa " -> CPFL Mococa - Companhia Luz e Força de Mococa | O39: 125 | P39: 70 | Q39: NÃO SUPRIDA
M40: CPFL Santa Cruz | N40: =TabEmpresas[[#This Row],[Empresa]]&" - Companhia Luz e Força Santa Cruz " -> CPFL Santa Cruz - Companhia Luz e Força Santa Cruz | O40: 126 | P40: 72 | Q40: NÃO SUPRIDA
M41: CPFL Sul Paulista | N41: =TabEmpresas[[#This Row],[Empresa]]&" - Companhia Sul Paulista de Energia " -> CPFL Sul Paulista - Companhia Sul Paulista de Energia | O41: 137 | P41: 73 | Q41: NÃO SUPRIDA
M42: CPFL Paulista | N42: CPFL-Paulista - Companhia Paulista de Força e Luz | O42: 136 | P42: 63 | Q42: NÃO SUPRIDA
M43: CPFL Piratininga | N43: CPFL- Piratininga - Companhia Piratininga de Força e Luz | O43: 135 | P43: 2937 | Q43: NÃO SUPRIDA
M44: DEMEI | N44: DEMEI - Departamento Municipal de Energia de Ijuí | O44: 138 | P44: 95 | Q44: SUPRIDA
M45: DMED | N45: =TabEmpresas[[#This Row],[Empresa]]&" - DME Distribuição S.A" -> DMED - DME Distribuição S.A | O45: 139 | P45: 51 | Q45: NÃO SUPRIDA
M46: EBO | N46: EBO - Energisa Borborema – Distribuidora de Energia S.A. | O46: 140 | P46: 6611 | Q46: NÃO SUPRIDA
M47: EDEVP | N47: EDEVP - Empresa de Distribuição de Energia Vale Paranapanema S/A | O47: 141 | P47: 5217 | Q47: NÃO SUPRIDA
M48: ELEKTRO | N48: ELEKTRO - Elektro Eletricidade e Serviços S/A. | O48: 145 | P48: 385 | Q48: NÃO SUPRIDA
M49: ELETROACRE | N49: ELETROACRE - Companhia de Eletricidade do Acre | O49: 146 | P49: 26 | Q49: NÃO SUPRIDA
M50: ELETROCAR | N50: ELETROCAR - Centrais Elétricas de Carazinho S/A. | O50: 147 | P50: 398 | Q50: SUPRIDA
M51: ELETROPAULO | N51: ELETROPAULO - Eletropaulo Metropolitana Eletricidade de São Paulo S/A | O51: 148 | P51: 390 | Q51: NÃO SUPRIDA
M52: EMG | N52: EMG - Energisa Minas Gerais - Distribuidora de Energia S.A. | O52: 150 | P52: 6585 | Q52: NÃO SUPRIDA
M53: ENERSUL | N53: ENERSUL - Empresa Energética de Mato Grosso do Sul S/A. | O53: 151 | P53: 404 | Q53: NÃO SUPRIDA
M54: ENF | N54: ENF - Energisa Nova Friburgo - Distribuidora de Energia S.A. | O54: 152 | P54: 6612 | Q54: SUPRIDA
M55: EPB | N55: EPB - Energisa Paraíba - Distribuidora de Energia | O55: 153 | P55: 6600 | Q55: NÃO SUPRIDA
M56: ESCELSA | N56: ESCELSA - Espírito Santo Centrais Elétricas S/A. | O56: 154 | P56: 380 | Q56: NÃO SUPRIDA
M57: ESE | N57: ESE - Energisa Sergipe - Distribuidora de Energia S.A. | O57: 155 | P57: 6587 | Q57: NÃO SUPRIDA
M58: FORCEL | N58: FORCEL - Força e Luz Coronel Vivida Ltda | O58: 156 | P58: 83 | Q58: SUPRIDA
M59: HIDROPAN | N59: HIDROPAN - Hidroelétrica Panambi S/A. | O59: 157 | P59: 399 | Q59: SUPRIDA
M60: IENERGIA | N60: IENERGIA - Iguaçu Distribuidora de Energia Elétrica Ltda | O60: 158 | P60: 87 | Q60: NÃO SUPRIDA
M61: JARI | N61: JARI - Jari Celulose S/A | O61: 159 | P61: 213 | Q61: NÃO SUPRIDA
M62: JOÃO CESA | N62: JOÃO CESA - Empresa Força e Luz João Cesa Ltda | O62: 143 | P62: 88 | Q62: SUPRIDA
M63: LIGHT | N63: LIGHT - Light Serviços de Eletricidade S/A. | O63: 160 | P63: 382 | Q63: NÃO SUPRIDA
M64: MUX Energia | N64: MUX Energia - Muxfeldt Marin & Cia. Ltda | O64: 161 | P64: 401 | Q64: SUPRIDA
M65: OESTE | N65: CFLO - Companhia Força e Luz do Oeste | O65: 122 | P65: 84 | Q65: SUPRIDA
M66: RGE | N66: RGE - Rio Grande Energia S/A. | O66: 162 | P66: 397 | Q66: NÃO SUPRIDA
M67: SANTA MARIA | N67: SANTA MARIA - Empresa Luz e Força Santa Maria S/A. | O67: 149 | P67: 381 | Q67: SUPRIDA
M68: SULGIPE | N68: SULGIPE - Companhia Sul Sergipana de Eletricidade | O68: 163 | P68: 46 | Q68: SUPRIDA
M69: UHENPAL | N69: UHENPAL - Usina Hidroelétrica Nova Palma Ltda. | O69: 164 | P69: 400 | Q69: SUPRIDA
M70: URUSSANGA | N70: URUSSANGA - Empresa Força e Luz Urussanga Ltda | O70: 144 | P70: 86 | Q70: SUPRIDA
M71: ENERGISA Sul Sudeste | N71: ENERGISA SUL SUDESTE | O71: 165 | P71: 1000040 | Q71: NÃO SUPRIDA
M72: NOVA SANTA CRUZ | N72: NOVA SANTA CRUZ | O72: 166 | P72: 1000041 | Q72: NÃO SUPRIDA

Sheet SPARTA ADMIN (hidden)
A1: ABA RESERVADA AO DESENVOLVEDORES DO SPARTA Sabemos que você ia aparecer por aqui. Saciou sua curiosidade? Melhor não fuçar mais, ou poderá prejudicar seriamente sua análise. Então, oculte essa aba e volte a trabalhar!! | AD1: Matrix Alternativa
AD2: Matrix Oficial
A4: O que deseja??
A5: Matrix Oficial
A6: Endereço da Matrix Alternativa
A7: \\corporativo\SGT\Gestão da Informação\Sistemas\SPARTA\Matrix
A8: Nome da Matrix Alternativa
A9: SPARTAMatrix DEV
A10: Estado do Direcionamento

Sheet Entrada
A1: Entrada de parâmetros para cálculo tarifário
B4: Energia | D4: Últ. Atulização | F4: Parâmetros para Revisão
D6: 43271 | F6: CAPEX - Ativos de Distribuição | J6: Custo Operacional Real do(s) último(s) ano(s) | P6: Outras Receitas
B7: Montante de Geração Própria | D7: 43271 | F7: (1) Ativo Imobilizado em Serviço (Valor Novo de Reposição) | H7: 43271 | J7: Ano do Custo Operacional | P7: Tipo de Receita | Q7: ='VPB e Fator X'!G163 -> 2019-11-01 | R7: ='VPB e Fator X'!H163 -> 2019-10-01 | S7: ='VPB e Fator X'!I163 -> 2019-09-01 | T7: ='VPB e Fator X'!J163 -> 2019-08-01 | U7: ='VPB e Fator X'!K163 -> 2019-07-01 | V7: ='VPB e Fator X'!L163 -> 2019-06-01 | W7: ='VPB e Fator X'!M163 -> 2019-05-01 | X7: ='VPB e Fator X'!N163 -> 2019-04-01 | Y7: ='VPB e Fator X'!O163 -> 2019-03-01 | Z7: ='VPB e Fator X'!P163 -> 2019-02-01 | AA7: ='VPB e Fator X'!Q163 -> 2019-01-01 | AB7: ='VPB e Fator X'!R163 -> 2018-12-01 | AC7: ='VPB e Fator X'!S163 -> 2018-11-01 | AD7: ='VPB e Fator X'!T163 -> 2018-10-01 | AE7: ='VPB e Fator X'!U163 -> 2018-09-01 | AF7: ='VPB e Fator X'!V163 -> 2018-08-01 | AG7: ='VPB e Fator X'!W163 -> 2018-07-01 | AH7: ='VPB e Fator X'!X163 -> 2018-06-01 | AI7: ='VPB e Fator X'!Y163 -> 2018-05-01 | AJ7: ='VPB e Fator X'!Z163 -> 2018-04-01 | AK7: ='VPB e Fator X'!AA163 -> 2018-03-01 | AL7: ='VPB e Fator X'!AB163 -> 2018-02-01 | AM7: ='VPB e Fator X'!AC163 -> 2018-01-01 | AN7: ='VPB e Fator X'!AD163 -> 2017-12-01 | AO7: ='VPB e Fator X'!AE163 -> 2017-11-01 | AP7: ='VPB e Fator X'!AF163 -> 2017-10-01 | AQ7: ='VPB e Fator X'!AG163 -> 2017-09-01 | AR7: ='VPB e Fator X'!AH163 -> 2017-08-01 | AS7: ='VPB e Fator X'!AI163 -> 2017-07-01 | AT7: ='VPB e Fator X'!AJ163 -> 2017-06-01 | AU7: ='VPB e Fator X'!AK163 -> 2017-05-01 | AV7: ='VPB e Fator X'!AL163 -> 2017-04-01 | AW7: ='VPB e Fator X'!AM163 -> 2017-03-01 | AX7: ='VPB e Fator X'!AN163 -> 2017-02-01 | AY7: ='VPB e Fator X'!AO163 -> 2017-01-01 | AZ7: ='VPB e Fator X'!AP163 -> 2016-12-01 | BA7: ='VPB e Fator X'!AQ163 -> 42675 | BB7: ='VPB e Fator X'!AR163 -> 42644 | BC7: ='VPB e Fator X'!AS163 -> 42614 | BD7: ='VPB e Fator X'!AT163 -> 42583
B8: Custo médio da Geração Própria | D8: 43271 | F8: (2) Índice de Aproveitamento Integral | H8: 43271 | J8: CONTA PESSOAL | P8: Serviços Cobráveis
D9: 43271 | F9: (3) Obrigações Especiais Bruta | H9: 43271 | J9: BMP - 610530501; 610550501; 610532501; 610552501 | K9: Remuneração | P9: Arrecadação de convênios ou valores pela fatura
D10: 43271 | F10: (4) Bens Totalmente Depreciados | H10: 43271 | J10: BMP - 610530502; 610550502; 610532502; 610552502 | K10: Encargos | P10: Arrecadação de faturas de terceiros por estrutura própria
F11: (5) Base de Remuneração Bruta = (1)-(2)-(3)-(4) | H11: 43271 | J11: BMP - 610530503; 610550503; 610532503; 610552503 | K11: Previdência Privada - Corrente | P11: Veiculação de publicidade
F12: (6) Depreciação Acumulada | H12: 43271 | J12: BMP - 610530508; 610550508; 610532508; 610552508 | K12: Outros Benefícios | P12: Aluguel ou cessão onerosa de imóveis e espaços físicos
F13: (7) AIS Líquido (Valor de Mercado em Uso) | H13: 43271 | J13: BMP - 610530506; 610550506; 610532506; 610552506 | K13: Despesas Rescisórias | P13: Compartilhamento de infraestrutura
F14: (8) Índice de Aproveitamento Depreciado | H14: 43271 | J14: BMP - 610530507; 610550507; 610532507; 610552507 | K14: Participação nos Lucros e Resultados - PLR | P14: Serviços de avaliação técnica e aferição de medidores.
F15: (9) Valor da Base de Remuneração (VBR) | H15: 43271 | J15: BMP - 610530599; 610550599; 610532599; 610552599 | K15: Outros | P15: Operacionalização de serviço de créditos tributários
F16: (10) Almoxarifado em Operação | H16: 43271 | J16: BMP - 610530510; 610550510; 610532510; 610552510 | K16: (-) Créditos de Tributos Recuperáveis | P16: Elaboração de projeto, construção, operação, manutenção ou reforma de:
F17: (11) Ativo Diferido | H17: 43271 | J17: BMP - 6105306; 6105506; 6105326; 6105526 | K17: Administradores | P17: (1) redes de distribuição de energia elétrica destinadas à regularização fundiária de interesse específico e ao atendimento dos empreendimentos de múltiplas unidades consumidoras;
F18: (12) Obrigações Especiais Líquida | H18: 43271 | K18: Subtotal | P18: (2) redes de energia elétrica destinadas ao acesso dos sistemas de distribuição ou transmissão;
F19: (13) Terrenos e Servidões | H19: 43271 | J19: CONTA MATERIAIS | P19: (3) subestações de energia;
F20: (14) Base de Rem. Líquida Total = (1)-(6)-(8)+(10)+(11)-(12)+(13) | H20: 43271 | J20: BMP - 610530701; 610550701; 610532701; 610552701 | K20: Materiais | P20: (4) instalações elétricas internas de unidades consumidoras;
F21: (15) Saldo RGR PLPT | H21: 43271 | J21: BMP - 610530799; 610550799; 610532799; 610552799 | K21: Outros | P21: (5) banco de capacitores:
F22: (16) Saldo RGR Demais Investimentos | H22: 43271 | J22: BMP - 610530710; 610550710; 610532710; 610552710 | K22: (-) Créditos de Tributos Recuperáveis | P22: (6) padrões de entrada de unidades consumidoras atendidas em baixa tensão;
F23: (17) Taxa de Depreciação | H23: 43271 | K23: Subtotal | P23: (7) sistemas de medição de energia elétrica;
F24: (18) Quota de Reintegração Regulatória = (5) * (17) | H24: 43271 | J24: CONTA TERCEIROS | P24: (8) geradores, incluindo-se unidades de microgeração e minigeração distribuída;
J25: RIT - RP 800 - Célula F20 | K25: Manut. e Conserv. Bens e Instalações vinculadas ao Serviço Concedido | P25: (9) sistemas de iluminação pública.
F26: Gasto do Conselho de Consumidores | J26: RIT - RP 800 - Célula F21 | K26: Auditoria e Consultoria | P26: Eficientização do consumo de energia elétrica e instalação de cogeração qualificada, desde que não enquadráveis nos projetos de Pesquisa e Desenvolvimento (P&D) ou de Eficiência Energética estabelecidos em lei
F27: =Indexador!D132 -> Despesa 2019 | J27: RIT - RP 800 - Célula F22 | K27: Serviços Jurídicos | P27: Serviços de comunicação de dados
F28: =Indexador!E132 -> Despesa 2018 | J28: RIT - RP 800 - Célula F23 | K28: Serviços de Informática | P28: Serviços de consultoria
F29: =Indexador!F132 -> Despesa 2017 | J29: RIT - RP 800 - Célula F26 | K29: Viagens (Passagens Aéreas, etc) | P29: Receita proveniente da comercialização de resultados de projetos de P&D
F30: =Indexador!G132 -> Despesa 2016 | J30: RIT - RP 800 - Célula F27 | K30: Transportes (inclui Fretes)
J31: RIT - RP 800 - Célula F28 | K31: Propaganda e Publicidade (exceto Publicações Oficiais) | P31: Ultrapassagem de demanda e Excedente de reativos
F32: Perdas Regulatórias | J32: RIT - RP 800 - Célula F29 | K32: Publicações Oficiais | P32: Tipo de Receita | Q32: ='[20]VPB e Fator X'!G191 -> 2019-01-01 | R32: ='[20]VPB e Fator X'!H191 -> 2018-12-01 | S32: ='[20]VPB e Fator X'!I191 -> 2018-11-01 | T32: ='[20]VPB e Fator X'!J191 -> 2018-10-01 | U32: ='[20]VPB e Fator X'!K191 -> 2018-09-01 | V32: ='[20]VPB e Fator X'!L191 -> 2018-08-01 | W32: ='[20]VPB e Fator X'!M191 -> 2018-07-01 | X32: ='[20]VPB e Fator X'!N191 -> 2018-06-01 | Y32: ='[20]VPB e Fator X'!O191 -> 2018-05-01 | Z32: ='[20]VPB e Fator X'!P191 -> 2018-04-01 | AA32: ='[20]VPB e Fator X'!Q191 -> 2018-03-01 | AB32: ='[20]VPB e Fator X'!R191 -> 2018-02-01 | AC32: ='[20]VPB e Fator X'!S191 -> 2018-01-01 | AD32: ='[20]VPB e Fator X'!T191 -> 2017-12-01 | AE32: ='[20]VPB e Fator X'!U191 -> 2017-11-01 | AF32: ='[20]VPB e Fator X'!V191 -> 2017-10-01 | AG32: ='[20]VPB e Fator X'!W191 -> 2017-09-01 | AH32: ='[20]VPB e Fator X'!X191 -> 2017-08-01 | AI32: ='[20]VPB e Fator X'!Y191 -> 2017-07-01 | AJ32: ='[20]VPB e Fator X'!Z191 -> 2017-06-01 | AK32: ='[20]VPB e Fator X'!AA191 -> 2017-05-01 | AL32: ='[20]VPB e Fator X'!AB191 -> 2017-04-01 | AM32: ='[20]VPB e Fator X'!AC191 -> 2017-03-01 | AN32: ='[20]VPB e Fator X'!AD191 -> 2017-02-01 | AO32: ='[20]VPB e Fator X'!AE191 -> 2017-01-01 | AP32: ='[20]VPB e Fator X'!AF191 -> 2016-12-01 | AQ32: ='[20]VPB e Fator X'!AG191 -> 2016-11-01 | AR32: ='[20]VPB e Fator X'!AH191 -> 2016-10-01 | AS32: ='[20]VPB e Fator X'!AI191 -> 2016-09-01 | AT32: ='[20]VPB e Fator X'!AJ191 -> 2016-08-01 | AU32: ='[20]VPB e Fator X'!AK191 -> 2016-07-01 | AV32: ='[20]VPB e Fator X'!AL191 -> 2016-06-01 | AW32: ='[20]VPB e Fator X'!AM191 -> 2016-05-01 | AX32: ='[20]VPB e Fator X'!AN191 -> 2016-04-01 | AY32: ='[20]VPB e Fator X'!AO191 -> 2016-03-01 | AZ32: ='[20]VPB e Fator X'!AP191 -> 2016-02-01 | BA32: ='[20]VPB e Fator X'!AQ191 -> 2016-01-01 | BB32: ='[20]VPB e Fator X'!AR191 -> 2015-12-01 | BC32: ='[20]VPB e Fator X'!AS191 -> 2015-11-01 | BD32: ='[20]VPB e Fator X'!AT191 -> 2015-10-01 | BE32: ='[20]VPB e Fator X'!AU191 -> 2015-09-01 | BF32: ='[20]VPB e Fator X'!AV191 -> 2015-08-01 | BG32: ='[20]VPB e Fator X'!AW191 -> 2015-07-01 | BH32: ='[20]VPB e Fator X'!AX191 -> 2015-06-01 | BI32: ='[20]VPB e Fator X'!AY191 -> 2015-05-01 | BJ32: ='[20]VPB e Fator X'!AZ191 -> 2015-04-01 | BK32: ='[20]VPB e Fator X'!BA191 -> 2015-03-01 | BL32: ='[20]VPB e Fator X'!BB191 -> 2015-02-01
F33: Perdas Não Técnicas | J33: RIT - RP 800 - Célula F30 | K33: Serviço de Engenharia e Supervisão de Obras | P33: Ultrapassagem de demanda | Q33: =Q62 -> 0 | R33: 0 | S33: 0 | T33: 0 | U33: 0 | V33: 0 | W33: 0 | X33: 0 | Y33: 0 | Z33: 0 | AA33: 0 | AB33: 0 | AC33: 0 | AD33: 0 | AE33: 0 | AF33: 0 | AG33: 0 | AH33: 0 | AI33: 0 | AJ33: 0 | AK33: 0 | AL33: 0 | AM33: 0 | AN33: 0 | AO33: 0 | AP33: 0 | AQ33: =AQ63 -> 0 | AR33: 0 | AS33: 0 | AT33: 0 | AU33: 0 | AV33: 0 | AW33: 0 | AX33: 0 | AY33: 0 | AZ33: 0 | BA33: 0 | BB33: 0 | BC33: 0 | BD33: 0 | BE33: 0 | BF33: 0 | BG33: 0 | BH33: 0 | BI33: 0 | BJ33: 0 | BK33: 0 | BL33: 0
F34: Perdas Técnicas | J34: RIT - RP 800 - Célula F31 | K34: Gestão Comercial | P34: Excedente de reativos | Q34: =Q63 -> 0 | R34: 0 | S34: 0 | T34: 0 | U34: 0 | V34: 0 | W34: 0 | X34: 0 | Y34: 0 | Z34: 0 | AA34: 0 | AB34: 0 | AC34: 0 | AD34: 0 | AE34: 0 | AF34: 0 | AG34: 0 | AH34: 0 | AI34: 0 | AJ34: 0 | AK34: 0 | AL34: 0 | AM34: 0 | AN34: 0 | AO34: 0 | AP34: 0 | AQ34: =AQ64 -> 0 | AR34: 0 | AS34: 0 | AT34: 0 | AU34: 0 | AV34: 0 | AW34: 0 | AX34: 0 | AY34: 0 | AZ34: 0 | BA34: 0 | BB34: 0 | BC34: 0 | BD34: 0 | BE34: 0 | BF34: 0 | BG34: 0 | BH34: 0 | BI34: 0 | BJ34: 0 | BK34: 0 | BL34: 0
J35: RIT - RP 800 - Célula F32 | K35: Outros Serviços Terceirizados
F36: Dados da Revisão Anterior - Componente Pd | J36: RIT - RP 800 - Célula F33 | K36: (-) Créditos de Tributos Recuperáveis | P36: Receitas Irrecuperáveis | Q36: Meses
F37: Data Base Ativos e Consumidores | J37: RIT - RP 800 - Célula F34 | K37: Transferências da Administração Central | P37: Faturamento Total | Q37: 49 | R37: 50 | S37: 51 | T37: 52 | U37: 53 | V37: 54 | W37: 55 | X37: 56 | Y37: 57 | Z37: 58 | AA37: 59 | AB37: 60
F38: Mercado AT (MWh) | K38: Subtotal | P38: 1.Residencial
F39: Mercado MT (MWh) | J39: CONTA SEGUROS | P39: 2.Industrial
F40: Mercado BT (MWh) | J40: BMP - 610531001; 610551001; 610533001; 610553001 | K40: Seguros | P40: 3.Comercial
F41: Número de unidades consumidoras | J41: BMP - 610531099; 610551099; 610533099; 610553099 | K41: Outros | P41: 4.Rural
J42: BMP - 610531010; 610551010; 610533010; 610553010 | K42: (-) Créditos de Tributos Recuperáveis | P42: 5.Poder Público
F43: OPEX | K43: Subtotal | P43: 6.Iluminação Pública
F44: Extensão de redes subterrâneas (Km) | J44: CONTA TRIBUTOS | P44: 7.Serviço Público
F45: Extensão de rede de distribuição aérea (Km) | J45: BMP - 6105316; 6105516; 6105336; 6105536 | K45: Tributos
F46: Extensão de rede de alta tensão (Km) | K46: (+) Créditos de Tributos Recuperáveis | P46: Receitas Irrecuperáveis | Q46: Meses
F47: ="% PNT / BT Real de "&IF(MONTH(LnkTxtDRPData)>6,YEAR(LnkTxtDRPData)-1,YEAR(LnkTxtDRPData)-2) & " (Medido)" -> % PNT / BT Real de 2018 (Medido) | J47: CONTA OUTROS | P47: Faturamento não recebido até dez do ano anterior | Q47: 49 | R47: 50 | S47: 51 | T47: 52 | U47: 53 | V47: 54 | W47: 55 | X47: 56 | Y47: 57 | Z47: 58 | AA47: 59 | AB47: 60
F48: ="% PNT / BT Real de "&IF(MONTH(LnkTxtDRPData)>6,YEAR(LnkTxtDRPData)-1,YEAR(LnkTxtDRPData)-2)-1 & " (Medido)" -> % PNT / BT Real de 2017 (Medido) | J48: BMP - 610531901; 610551901; 610533901; 610553901 | K48: Indenização por Perdas e Danos | P48: 1.Residencial
F49: ="% PNT / BT Real de "&IF(MONTH(LnkTxtDRPData)>6,YEAR(LnkTxtDRPData)-1,YEAR(LnkTxtDRPData)-2)-2 & " (Medido)" -> % PNT / BT Real de 2016 (Medido) | J49: BMP - 610531902; 610551902; 610533902; 610553902 | K49: Consumo Próprio de Energia | P49: 2.Industrial
F50: ="DEC Apurado "&IF(MONTH(LnkTxtDRPData)>3,YEAR(LnkTxtDRPData)-1,YEAR(LnkTxtDRPData)-2) -> DEC Apurado 2018 | J50: BMP - 610531905 | K50: Despesas com Conselho de Consumidores | P50: 3.Comercial
F51: ="DEC Apurado "&IF(MONTH(LnkTxtDRPData)>3,YEAR(LnkTxtDRPData)-1,YEAR(LnkTxtDRPData)-2)-1 -> DEC Apurado 2017 | J51: BMP - 610531903; 610551903; 610533903; 610553903 | K51: Taxa de Arrecadação | P51: 4.Rural
F52: ="DEC Apurado "&IF(MONTH(LnkTxtDRPData)>3,YEAR(LnkTxtDRPData)-1,YEAR(LnkTxtDRPData)-2)-2 -> DEC Apurado 2016 | J52: BMP - 610531904; 610551904; 610533904; 610553904 | K52: Taxas Bancárias | P52: 5.Poder Público
F53: Meta de % PNT / BT (Medido) | J53: BMP - 610531910; 610551910; 610533910; 610553910 | K53: (-) Créditos de Tributos Recuperáveis | P53: 6.Iluminação Pública
F54: DEC 8 anos (Limite V8) | K54: Subtotal | P54: 7.Serviço Público
J55: Demais
K56: Condenações Trabalhistas | P56: Previsão CCEE | Q56: =DATE(YEAR(LnkTxtDRPData),MONTH(LnkTxtDRPData),DAY(1)) -> 2020-02-01 | R56: =DATE(YEAR(Q56),MONTH(Q56)+1,DAY(1)) -> 2020-03-01 | S56: =DATE(YEAR(R56),MONTH(R56)+1,DAY(1)) -> 2020-04-01 | T56: 2020-05-01 | U56: 2020-06-01 | V56: 2020-07-01 | W56: 2020-08-01 | X56: 2020-09-01 | Y56: 2020-10-01 | Z56: 2020-11-01 | AA56: 2020-12-01 | AB56: 2021-01-01
F57: Dados da última Revisão Tarifária | K57: Gastos com CCEE | P57: GSF
F58: Custos Operacionais (CO3) | J58: BMP - 611511401 | K58: Perdas na Alienação e Desativação | P58: PLD
F59: Receitas Irrecuperáveis - Encargos Setoriais (Vi) | J59: BMP - 611112103 | K59: Ganhos na Alienação de Materiais
F60: Demais Receitas Irrecuperáveis (Vse)
F61: Remuneração do Capital (RC)
F62: Quota de Reintegração Regulatória (QRR)
F63: Custo anual das instalações móveis e imóveis (CAIMI)
F64: Ajuste em função dos investimentos realizados (valor negativo)
F65: Índice de Produtividade da Parcela B
F66: Outras Receitas (OR) (inserir o valor positivo)
F67: Componente T - Última Revisão

Sheet Resultado
B2: Resultado | F2: Parâmetros a serem considerados para os Reajustes subsequentes
B4: RA1 | D4: =D39+D44 -> 262058377 | F4: FATOR X | K4: Última versão enviada: | L4: 20
B5: RA0 | D5: =Mercado!D24 -> 269196946.6 | F5: Componente T do Fator X | G5: ='VPB e Fator X'!C36 ->  | K5: Data de envio | L5: 2020-01-22T14:52:52
B6: Índice de Reposição/Reajuste (Anexo II) | D6: =D4/D5-1 -> -0.02651801848 | E6: 3.11 | F6: Componente Pd do Fator X | G6: ='VPB e Fator X'!C33 -> 0.010146
B7: Componentes Financeiros | D7: =Financeiros!E8 -> 0.03876872552 | E7: 4.17 | K7: Efeito Consumidor
B8: Índice de Reposição/Reajuste com Financeiros (Anexo I) | D8: =D6+D7 -> 0.01225070704 | E8: 7.28 | F8: PERDAS | K8: Efeito Grupo A - Alta tensão | L8: -0.02167310971
F9: Perdas Não Técnicas | G9: =Entrada!G33 -> 0 | K9: Efeito Grupo B - Baixa tensão | L9: -0.01625514844
C10: DRA | D10: DRP | F10: Perdas Técnicas | G10: =Entrada!G34 -> 0 | K10: Efeito tarifário médio AT+BT | L10: -0.01778058019
B11: TOTAL (Parcela A + Parcela B) | C11: =C44+C39 -> 269196946.6 | D11: =D44+D39 -> 262058377 | K11: Tarifa B1 - Residencial (R$) | L11: 497.6506032
K13: Subvenção da CDE para descontos tarifários (Valores anuais)
K14: Subsídio Carga Fonte Incentivada | L14: 4718378.627
K15: Subsídio Geração Fonte Incentivada | L15: 0
B16: Parcela A | F16: Formação da Parcela B e Reposicionamento (Resumo) | K16: Subsídio Distribuição | L16: 0
K17: Subsídio Água, Esgoto e Saneamento | L17: 421864.5306
C18: DRA | D18: DRP | K18: Subsídio Rural | L18: 1905100.59
B19: ENCARGOS | C19: =SUM(C20:C28) -> 40072267.72 | D19: =SUM(D20:D28) -> 24252991.31 | F19: Custo de Administração, Operação e Manutenção (CAOM) | G19: =SUM(G20:G22) ->  | K19: Subsídio Irrigante/Aquicultor | L19: 617432.7181
B20: Reserva Global de Reversão – RGR | C20: 0 | D20: =Encargos!C16 -> 0 | F20: Custos Operacionais (CO) | G20: ='VPB e Fator X'!C121 -> 
B21: Conta de Consumo de Combustíveis – CCC | C21: 0 | D21: =Encargos!C9 -> 0 | F21: Receitas Irrecuperáveis - Encargos Setoriais (Vi) | G21: ='VPB e Fator X'!C193 -> 0 | K21: Versão de Mercado
B22: Taxa de Fisc. de Serviços de E.E. – TFSEE | C22: =Mercado!I66 -> 377862.9183 | D22: =Encargos!C17 -> 396410.0239 | F22: Demais Receitas Irrecuperáveis (Vse) | G22: ='VPB e Fator X'!C197 -> 0 | K22: Status de Sincronização de BDL | L22: Trabalha na pasta de rede
B23: Conta de Desenvolvimento Energético – CDE | C23: =Mercado!H66+Mercado!AA66+Mercado!AB66 -> 25180695.97 | D23: =Encargos!C10 -> 11439727.38 | F23: Custo Anual dos Ativos (CAA) | G23: =SUM(G24:G26) ->  | K23: Última Sincronização
B24: Compensação financeira - CFURH | C24: =Mercado!J66 -> 0 | D24: =Encargos!C11 -> 0 | F24: Remuneração do Capital (RC) | G24: ='VPB e Fator X'!C95 -> 
B25: Encargos Serv. Sist. - ESS e Energ. Reserv. - EER | C25: =Mercado!F66 -> 6279885.504 | D25: =Encargos!C12 -> 5363525.163 | F25: Quota de Reintegração Regulatória (QRR) | G25: ='VPB e Fator X'!C77 -> 0
B26: PROINFA | C26: =Mercado!G66 -> 5592953.923 | D26: =Encargos!C13 -> 4443791.635 | F26: Custo anual das instalações móveis e imóveis (CAIMI) | G26: ='VPB e Fator X'!C67 -> 0
B27: P&D e Eficiência Energética | C27: =Mercado!D66 -> 2612305.575 | D27: =Encargos!C15 -> 2581158.037 | F27: Parcela B (VPB) | G27: =SUM(G23,G19) -> 
B28: Contribuição ONS | C28: =Mercado!E66 -> 28563.83332 | D28: =Encargos!C14 -> 28379.07143 | F28: Índice de Produtividade da Parcela B | G28: ='VPB e Fator X'!C33 -> 0.010146
B29: TRANSPORTE | C29: =SUM(C30:C37) -> 24616311.23 | D29: =SUM(D30:D37) -> 26811123.97 | F29: Mecanismo de Incentivo à Qualidade | G29: ='VPB1'!F42 -> 0.0001920909675
B30: Rede Básica | C30: ='RB e Conexão'!D6 -> 8665208.52 | D30: ='RB e Conexão'!E6 -> 10363863.96 | F30: Parcela B com ajustes | G30: =(1-G28-G29)*G27 -> 
B31: Rede Básica Fronteira | C31: ='RB e Conexão'!D7 -> 3802100.4 | D31: ='RB e Conexão'!E7 -> 4037007.24 | F31: 2. Outras Receitas (OR) | G31: ='VPB e Fator X'!D186 -> 0
B32: Rede Básica ONS (A2) | C32: =VLOOKUP("TUSDg ONS DRA",TUSDG[],2,FALSE) -> 0 | D32: =VLOOKUP("TUSDg ONS DRP",TUSDG[],2,FALSE) -> 0 | F32: Parcela B deduzidas as outras receitas | G32: =G30-G31 -> 
B33: Rede Básica Export. (A2) | C33: =IFERROR(VLOOKUP("TUSDg Export DRA",TUSDG[],2,FALSE),0) -> 0 | D33: =VLOOKUP("TUSDg Export DRP",TUSDG[],2,FALSE) -> 0
B34: MUST Itaipu | C34: ='RB e Conexão'!D8 -> 0 | D34: ='RB e Conexão'!E8 -> 0 | F34: 1. Receita Requerida (RR) | G34: =G30+D39 -> 
B35: Transporte de Itaipu | C35: =SUMPRODUCT(itaiputransporte[Potência],itaiputransporte[Tarifa DRA]) -> 0 | D35: =SUMPRODUCT(itaiputransporte[Potência],itaiputransporte[Tarifa DRP]) -> 0 | F35: 2. Outras Receitas (OR) | G35: =G31 -> 0
B36: Conexão | C36: =IF(YEAR(CAPA!C10)=2013,Entrada!C46,BD!C40) -> 328102.2475 | D36: ='RB e Conexão'!E9 -> 329932.0659 | F36: 3. Receita Verificada (RV) | G36: =Mercado!D24 -> 269196946.6
B37: Uso do sistema de distribuição e CCD | C37: =CUSD!C14 -> 11820900.07 | D37: =CUSD!D14+CUSD!E14 -> 12080320.7
B38: ENERGIA | C38: =Energia!C15 -> 119688902.4 | D38: =Energia!D15 -> 120935635.7
B39: VPA (ENCARGO + TRANSPORTE + ENERGIA) | C39: =C38+C29+C19 -> 184377481.3 | D39: =D19+D29+D38 -> 171999751
B41: Parcela B
C43: VPB0 | D43: VPB1
B44: ="Parcela B "&IF(CAPA!C7="Revisão","(menos Outras Receitas)",) -> Parcela B | C44: ='VPB1'!C10 -> 84819465.21 | D44: ='VPB1'!C12 -> 90058625.94

Sheet BD
B1: Banco de Dados | M1: Anexo II | N1: =Resultado!$D$6 -> -0.02651801848
B2: =CAPA!B6 -> EBO | M2: Anexo I | N2: =Resultado!$D$8 -> 0.01225070704
B5: Informações do ano anterior | G5: Dados de abertura (Neutralidade e CVA saldo a compensar) | L5: Dados de Energia | S5: Dados para Revisão
B7: Encargos | G7: Encargo | H7: Valor | I7: Norma | L7: Cotas | M7: Valor da "Cota" | N7: Ano | O7: Custo Médio da Cota | S7: item | T7: Descrição | U7: Detalhe | V7: Valor
B8: CDE Energia: Conta ACR | C8: 16140024.84 | G8: CCC | L8: Angra | M8: 0.002012271157 | N8: 2020 | O8: 269.75
B9: CDE Energia: Decreto | C9: 645121.77 | G9: CDE | H9: 11439727.38 | I9: ReH 2.664/2019
B10: TFSEE | C10: 366813.5654 | G10: CFURH
B11: CDE | C11: 8300840.67 | G11: ESS/EER | H11: 5363525.163 | I11: Desp 3.654/2019 | L11: Ano | M11: Cota Itaipu
G12: PROINFA | H12: 4443791.635 | I12: ReH 2.653/2019
B13: ESS/ERR | C13: 6310934.057 | G13: ONS | H13: 28379.07143 | I13: Contribuição 2019
B14: PROINFA | C14: 5476684.46 | G14: TFSEE
B15: P&D | C15: 2603037.737 | G15: EER | H15: 5227900.358 | I15: Desp 3.654/2019
B16: ONS | C16: 27796.21429 | G16: CDE Conta ACR | H16: =16140024.84*0 -> 0 | I16: término
B17: Energia | G17: TFSEE Fator de Carga | H17: 0.8280816482
C18: 192.3856029
C19: 0.0259
B20: % Não Técnica (s/ Baixa Tensão) | C20: 0.0259 | D20: REH 2.200/2017
B21: % Técnica (s/ merc. injetado) | C21: 0 | G21: Informações de Postergação
C22: 0.0184655277 | L22: Mês | M22: Potência | N22: Tarifa | O22: Perdas | P22: Energia
G23: Tipo | H23: Valor
B24: CVA RB | C24: 1208424.549 | G24: Data Postergada | H24: 43865
B25: CVA CCC | C25: 0 | G25: Data Anterior | H25: 43865
B26: CVA CDE | C26: 603664.4505 | G26: Diferença de Dias | H26: 0
B27: CVA CFURH | G27: MesesAdin | H27: 0
B28: CVA ESS/ERR | C28: -9270166.198 | G28: Reversão Subvenção CDE
B29: CVA PROINFA | C29: 59660.7409 | G29: Data 4CRT | H29: 42770
B30: CVA TRANS. ITAIPU | C30: 0
B31: CVA ENERGIA | C31: 28429827.53
B32: CVA CDE E | C32: -704941.8486
G35: Nome | H35: Valor
G36: TUSDg Export DRP | H36: 0 | L36: Mês | M36: Potência | N36: Tarifa DRA | O36: Tarifa DRP | P36: Colunas1
G37: TUSDg ONS DRP | H37: 0
G38: TUSDg ONS DRA | H38: 0
B39: Rede Básica
C40: 328102.2475
G42: Fator X | H42: Valor
G43: fatorx_t | H43: 0.005549907037
B44: Mercado | G44: fatorx_pd | H44: 0.01146626778
C45: 684441.585
C46: 268346052 | G46: DecFec Processo Anterior | H46: Valor
G47: DEC A-2 | H47: 0
B48: 2020 | C48: 13525.46323 | G48: DEC A-1 | H48: 0
B49: Detalhamento de Encargos ESS e CDE | G49: FEC A-2 | H49: 0
G50: FEC A-1 | H50: 0 | L50: Dado | M50: Valor | N50: Início | O50: Fim
L51: MUST | M51: 5313 | N51: 43282 | O51: 43646
G52: Dados de dólar | H52: Valor | L52: MUST | M52: 6496 | N52: 43282 | O52: 43646
G53: Dólar médio | H53: 4.085816667 | L53: Potência Max | M53: 11215 | N53: 43466 | O53: 43830
G54: Data Inicial | H54: 43822 | L54: Potência Max | M54: 11215 | N54: 43831 | O54: 44196
G55: Data Final | H55: 43847
G56: Último Dado Diponível | H56: 43846 | L56: Dados de perda | M56: Valor | O56: Agente | P56: Ressarcimento P&D
B57: Subsídios Concedidos (sem ajuste) | L57: Perdas RB | M57: 12207.9607
B58: Mês de Início | C58: Carga Fonte | D58: Geração | E58: Distribuição | F58: Água, Esgoto e Saneamento | G58: Rural | H58: Irrigante/Aquicultor | L58: Perdas DITs | M58: 0
B59: 2019-02-01 | C59: 454923.2386 | D59: 0 | E59: 0 | F59: 47881.43599 | G59: 221341.5449 | H59: 42787.61795
O60: DthEfetivaPagamento | P60: VlrGarantiaFinanceira
O61: 43466 | P61: 36585.02
O62: 43497 | P62: 38253.51
O63: 43525 | P63: 38253.51
O64: 43556 | P64: 38253.51
B65: Data | C65: Tipo | D65: Valor | E65: Valor IGPM | F65: Valor IPCA | G65: EixoRef | O65: 43586 | P65: 39034.63
B66: =DATE(YEAR(CAPA!C10),MONTH(CAPA!C10),1) -> 2020-02-01 | C66: =IF(CAPA!C7="Revisão",1,0) -> 0 | D66: =Resultado!L11 -> 497.6506032 | E66: =VLOOKUP(EDATE(TabB1[[#This Row],[Data]],-1),Índices!B70:F689,2,FALSE)/VLOOKUP(EDATE($B$67,-1),Índices!B70:F689,2,FALSE)*$E$67 -> 569.2740924 | F66: =VLOOKUP(EDATE(TabB1[[#This Row],[Data]],-1),Índices!B70:F689,3,FALSE)/VLOOKUP(EDATE($B$67,-1),Índices!B70:F689,3,FALSE)*$F$67 -> 548.5773972 | G66: =150+1 -> 151 | O66: 43617 | P66: 39034.62
B67: 2019-04-01 | C67: RTE | D67: 507.38 | E67: 538.9550671 | F67: 533.6281932 | G67: =150+1 -> 151 | O67: 43647 | P67: 40853.03
B68: 2019-02-01 | C68: 0 | D68: 520.2882106 | E68: 538.9550671 | F68: 533.6281932 | G68: =150+1 -> 151 | O68: 43678 | P68: 40853.01
B69: 2018-02-01 | C69: 0 | D69: 498.85 | E69: 538.9550671 | F69: 533.6281932 | G69: =150+1 -> 151 | O69: 43709 | P69: 40853.01
B70: 2017-04-01 | C70: Ajuste EER | D70: 427.08 | E70: 541.6960844 | F70: 521.8283989 | G70: 151 | O70: 43739 | P70: 40853.01
B71: 2017-02-01 | C71: Revisão | D71: 428.37 | E71: 541.1634927 | F71: 518.8154091 | G71: 151 | O71: 43770 | P71: 40853.01
B72: 2016-02-01 | C72: 0 | D72: 436.68 | E72: 507.4337747 | F72: 492.4495842 | G72: 151 | O72: 43800 | P72: 40853.01
B73: 2015-04-01 | C73: RTE | D73: 407.03 | E73: 463.0993852 | F73: 456.1973865 | G73: 151
B74: 2015-02-01 | C74: 0 | D74: 404.88 | E74: 457.3636581 | F74: 444.8272463 | G74: 151 | O74: iddet1 | P74: valor
B75: 2014-02-01 | C75: 0 | D75: 289.8 | E75: 439.8629416 | F75: 415.1930201 | G75: 151 | O75: 56 | P75: 43843
B76: 2013-02-01 | C76: Revisão | D76: 274.55 | E76: 416.2971856 | F76: 393.2297965 | G76: 151 | O76: 57 | P76: 43815
B77: 2013-01-01 | C77: -1 | D77: 264.77 | E77: 414.8945589 | F77: 389.8769796 | G77: 151 | O77: 58 | P77: 43770
B78: 2012-02-01 | C78: 0 | D78: 322.89 | E78: 385.7662697 | F78: 370.4321567 | G78: 151
B79: 2011-02-01 | C79: 0 | D79: 295.99 | E79: 369.0534636 | F79: 348.7470719 | G79: 151
B80: 2010-02-01 | C80: Reajuste | D80: 257.57 | E80: 330.9784485 | F80: 329.0284392 | G80: 151
B84: Tabela de Resumo de Montante DRP ano anterior/ Montante Apurado pelo Mercado
B85: detalhe_grupo | C85: GrupoTarifa | D85: tipoBase | E85: tipofatura | F85: ValorCTAnterior_Sum | G85: ValorAnt_Sum | L85: Prcesso Anterior | N85: RTE
D86: Base | E86: Econômico | F86: 0 | G86: 0 | L86: MWh | M86: R$ | N86: MWh | O86: R$
B87: CCC | C87: ENCARGO | D87: Base | E87: Econômico | F87: 0 | G87: 0 | I87: BILATERAL | K87: valor | L87: 89176.8 | M87: 25318185.29
B88: CDE | C88: ENCARGO | D88: Base | E88: Econômico | F88: 8300840.67 | G88: 8478128.972 | I88: CCEAR-DISP | J88: Alternativa | K88: valor | L88: 15508.78782 | M88: 3452789.829
B89: CDE | C89: ENCARGO | D89: Base | E89: RTE 2015 | F89: 0 | G89: 0 | I89: CCEAR-DISP | J89: Existente | K89: valor | L89: 17355.691 | M89: 6650526.582
B90: CDE Energia | C90: ENCARGO | D90: Base | E90: Econômico | F90: 0 | G90: 16702566.99 | I90: CCEAR-DISP | J90: Nova | K90: valor | L90: 110535.8442 | M90: 29345701.07
B91: CDE Energia | C91: ENCARGO | D91: Base | E91: RTE 2015 | F91: 0 | G91: 0 | I91: CCEAR-QTD | J91: belo monte | K91: valor | L91: 68650.06197 | M91: 8814353.98
B92: CDE Energia: Conta ACR | C92: ENCARGO | D92: Base | E92: Econômico | F92: 16140024.84 | G92: 0 | I92: CCEAR-QTD | J92: Alternativa | K92: valor | L92: 1135.968895 | M92: 273641.5448 | P92: =SUM(L91:L95) -> 235744.545
B93: CDE Energia: Decreto | C93: ENCARGO | D93: Base | E93: Econômico | F93: 645121.77 | G93: 0 | I93: CCEAR-QTD | J93: Existente | K93: valor | L93: 31949.02073 | M93: 11244960.91 | P93: =SUM('[21]Votos e NTs'!$BU$442:$BU$444) -> 203795.5243
B94: CFURH | C94: ENCARGO | D94: Base | E94: Econômico | F94: 0 | G94: 0 | I94: CCEAR-QTD | J94: Madeira | K94: valor | L94: 45666.958 | M94: 6319711.159 | P94: =P92-P63 -> 197491.035
B95: ESS/ERR | C95: ENCARGO | D95: Base | E95: Econômico | F95: 6310934.057 | G95: 6279885.504 | I95: CCEAR-QTD | J95: Nova | K95: valor | L95: 88342.53542 | M95: 17604571.54 | P95: =L94-'[21]Votos e NTs'!$BU$444 -> -68650.06197
B96: ONS | C96: ENCARGO | D96: Base | E96: Econômico | F96: 27796.21429 | G96: 28563.83332 | I96: CCEN | K96: valor | L96: 28212.91197 | M96: 6981849.326
B97: P&D | C97: ENCARGO | D97: Base | E97: Econômico | F97: 2603037.737 | G97: 2612305.575 | I97: CCGF | K97: valor | L97: 191580.5332 | M97: 19328410.61
B98: P&D | C98: ENCARGO | D98: Base | E98: RTE 2015 | F98: 0 | G98: 0 | I98: PROINFA | K98: valor | L98: 13590.78286
B99: PROINFA | C99: ENCARGO | D99: Base | E99: Econômico | F99: 5476684.46 | G99: 5592953.923 | I99: SOBRA/EXPOSIÇÃO | K99: valor | L99: -78479.21786 | M99: -15434861.62
B100: RGR | C100: ENCARGO | D100: Base | E100: Econômico | F100: 0 | G100: 0
B101: TFSEE | C101: ENCARGO | D101: Base | E101: Econômico | F101: 366813.5654 | G101: 377862.9183
C102: ENERGIA | D102: Base | E102: Econômico | F102: 119899840.2 | G102: 119496204.2
C103: ENERGIA | D103: Base | E103: RTE 2015 | F103: 0 | G103: 0
B104: CDE Energia: Conta ACR | C104: ENERGIA | D104: Base | E104: Econômico | F104: 0 | G104: 0
C105: Parcela B | D105: Base | E105: Econômico | F105: 83266822.26 | G105: 83898998.44
B106: CONEXÃO D | C106: TRANSPORTE TERCEIROS | D106: Base | E106: Econômico | F106: 0 | G106: 0
B107: CONEXÃO T | C107: TRANSPORTE TERCEIROS | D107: Base | E107: Econômico | F107: 328102.2475 | G107: 334360.395
B108: EUSD | C108: TRANSPORTE TERCEIROS | D108: Base | E108: Econômico | F108: 12147682.12 | G108: 12315996
B109: EUSD | C109: TRANSPORTE TERCEIROS | D109: Base | E109: RTE 2015 | F109: 0 | G109: 0
B110: EUST - CI | C110: TRANSPORTE TERCEIROS | D110: Base | E110: Econômico | F110: 1e-06 | G110: 9.950801969e-07
B111: EUST - FR | C111: TRANSPORTE TERCEIROS | D111: Base | E111: Econômico | F111: 3913491.9 | G111: 3987503.016 | I111: Agente | J111: idagente | K111: indexador | L111: database | M111: RAP do ciclo | N111: Colunas1 | O111: RAP atualizada
B112: EUST - ITAIPU | C112: TRANSPORTE TERCEIROS | D112: Base | E112: Econômico | F112: 0 | G112: 0 | O112: =M112*VLOOKUP(CAPA!C15,Índices!$B$6:$F$626,IF(BD!K112="IPCA",3,2),FALSE)/VLOOKUP(L112,Índices!$B$6:$F$626,IF(BD!K112="IPCA",3,2),FALSE) -> 
B113: EUST - RB | C113: TRANSPORTE TERCEIROS | D113: Base | E113: Econômico | F113: 8918859.97 | G113: 9086389.16 | O113: =M113*VLOOKUP(CAPA!C16,Índices!$B$6:$F$626,IF(BD!K113="IPCA",3,2),FALSE)/VLOOKUP(L113,Índices!$B$6:$F$626,IF(BD!K113="IPCA",3,2),FALSE) -> 
B114: TRANSPORTE ITAIPU | C114: TRANSPORTE TERCEIROS | D114: Base | E114: Econômico | F114: 0 | G114: 0 | O114: =M114*VLOOKUP(CAPA!C17,Índices!$B$6:$F$626,IF(BD!K114="IPCA",3,2),FALSE)/VLOOKUP(L114,Índices!$B$6:$F$626,IF(BD!K114="IPCA",3,2),FALSE) -> 
B115: TUSDg EXPORTADORAS (A2) | C115: TRANSPORTE TERCEIROS | D115: Base | E115: Econômico | F115: 0 | G115: 0 | O115: =M115*VLOOKUP(CAPA!C18,Índices!$B$6:$F$626,IF(BD!K115="IPCA",3,2),FALSE)/VLOOKUP(L115,Índices!$B$6:$F$626,IF(BD!K115="IPCA",3,2),FALSE) -> 
B116: TUSDg ONS (A2) | C116: TRANSPORTE TERCEIROS | D116: Base | E116: Econômico | F116: 0 | G116: 0 | O116: =M116*VLOOKUP(CAPA!C19,Índices!$B$6:$F$626,IF(BD!K116="IPCA",3,2),FALSE)/VLOOKUP(L116,Índices!$B$6:$F$626,IF(BD!K116="IPCA",3,2),FALSE) -> 
B117: TUSDg T (A2) | C117: TRANSPORTE TERCEIROS | D117: Base | E117: Econômico | F117: 0 | G117: 0 | O117: =M117*VLOOKUP(CAPA!C20,Índices!$B$6:$F$626,IF(BD!K117="IPCA",3,2),FALSE)/VLOOKUP(L117,Índices!$B$6:$F$626,IF(BD!K117="IPCA",3,2),FALSE) -> 
B118: CVA/APURAÇÃO/ENCARGO - Financeiro de RTE - Supridora (ESS/EER) | C118: Financeiro | D118: Financeiros não RTE | E118: Financeiro | F118: -126515.8236 | G118: -126852.7868 | O118: =M118*VLOOKUP(CAPA!C21,Índices!$B$6:$F$626,IF(BD!K118="IPCA",3,2),FALSE)/VLOOKUP(L118,Índices!$B$6:$F$626,IF(BD!K118="IPCA",3,2),FALSE) -> 
B119: CVA/APURAÇÃO/ENCARGO - outros | C119: Financeiro | D119: Financeiros não RTE | E119: Financeiro | F119: -16164748.53 | G119: -16207801.85 | O119: =M119*VLOOKUP(CAPA!C22,Índices!$B$6:$F$626,IF(BD!K119="IPCA",3,2),FALSE)/VLOOKUP(L119,Índices!$B$6:$F$626,IF(BD!K119="IPCA",3,2),FALSE) -> 
B120: CVA/APURAÇÃO/ENERGIA - outros | C120: Financeiro | D120: Financeiros não RTE | E120: Financeiro | F120: 28010291.8 | G120: 28084894.64 | O120: =M120*VLOOKUP(CAPA!C23,Índices!$B$6:$F$626,IF(BD!K120="IPCA",3,2),FALSE)/VLOOKUP(L120,Índices!$B$6:$F$626,IF(BD!K120="IPCA",3,2),FALSE) -> 
B121: CVA/APURAÇÃO/TRANSPORTE TERCEIROS - outros | C121: Financeiro | D121: Financeiros não RTE | E121: Financeiro | F121: 1190591.966 | G121: 1193762.998 | O121: =M121*VLOOKUP(CAPA!C24,Índices!$B$6:$F$626,IF(BD!K121="IPCA",3,2),FALSE)/VLOOKUP(L121,Índices!$B$6:$F$626,IF(BD!K121="IPCA",3,2),FALSE) -> 
B122: CVA/SALDO A COMPENSAR/ENCARGO - outros | C122: Financeiro | D122: Financeiros não RTE | E122: Financeiro | F122: 554898.156 | G122: 556376.0762 | O122: =M122*VLOOKUP(CAPA!C25,Índices!$B$6:$F$626,IF(BD!K122="IPCA",3,2),FALSE)/VLOOKUP(L122,Índices!$B$6:$F$626,IF(BD!K122="IPCA",3,2),FALSE) -> 
B123: CVA/SALDO A COMPENSAR/ENERGIA - outros | C123: Financeiro | D123: Financeiros não RTE | E123: Financeiro | F123: -393200.0625 | G123: -394247.3147 | O123: =M123*VLOOKUP(CAPA!C26,Índices!$B$6:$F$626,IF(BD!K123="IPCA",3,2),FALSE)/VLOOKUP(L123,Índices!$B$6:$F$626,IF(BD!K123="IPCA",3,2),FALSE) -> 
B124: CVA/SALDO A COMPENSAR/TRANSPORTE TERCEIROS - outros | C124: Financeiro | D124: Financeiros não RTE | E124: Financeiro | F124: 10660.32829 | G124: 10688.72109 | O124: =M124*VLOOKUP(CAPA!C27,Índices!$B$6:$F$626,IF(BD!K124="IPCA",3,2),FALSE)/VLOOKUP(L124,Índices!$B$6:$F$626,IF(BD!K124="IPCA",3,2),FALSE) -> 
B125: DCF/APURAÇÃO/ENCARGO - Ressarcimento P&D 0,3% | C125: Financeiro | D125: Financeiros não RTE | E125: Financeiro | F125: -2103407.442 | G125: -2109009.675 | O125: =M125*VLOOKUP(CAPA!C28,Índices!$B$6:$F$626,IF(BD!K125="IPCA",3,2),FALSE)/VLOOKUP(L125,Índices!$B$6:$F$626,IF(BD!K125="IPCA",3,2),FALSE) -> 
B126: DCF/APURAÇÃO/ENERGIA - Efeito de Acordo Bilateral com geradores | C126: Financeiro | D126: Financeiros não RTE | E126: Financeiro | F126: 269684.3482 | G126: 270402.6276 | O126: =M126*VLOOKUP(CAPA!C29,Índices!$B$6:$F$626,IF(BD!K126="IPCA",3,2),FALSE)/VLOOKUP(L126,Índices!$B$6:$F$626,IF(BD!K126="IPCA",3,2),FALSE) -> 
B127: DCF/APURAÇÃO/ENERGIA - Garantias financeiras na contratação regulada de energia (CCEAR) | C127: Financeiro | D127: Financeiros não RTE | E127: Financeiro | F127: 411128.5807 | G127: 412223.5839 | O127: =M127*VLOOKUP(CAPA!C30,Índices!$B$6:$F$626,IF(BD!K127="IPCA",3,2),FALSE)/VLOOKUP(L127,Índices!$B$6:$F$626,IF(BD!K127="IPCA",3,2),FALSE) -> 
B128: DCF/APURAÇÃO/ENERGIA - Previsão de Risco Hidrológico | C128: Financeiro | D128: Financeiros não RTE | E128: Financeiro | F128: 5008686.067 | G128: 5022026.243 | O128: =M128*VLOOKUP(CAPA!C31,Índices!$B$6:$F$626,IF(BD!K128="IPCA",3,2),FALSE)/VLOOKUP(L128,Índices!$B$6:$F$626,IF(BD!K128="IPCA",3,2),FALSE) -> 
B129: DCF/APURAÇÃO/ENERGIA - SOBRECONTRATAÇÃO | C129: Financeiro | D129: Financeiros não RTE | E129: Financeiro | F129: -2957213.531 | G129: -2965089.797 | O129: =M129*VLOOKUP(CAPA!C32,Índices!$B$6:$F$626,IF(BD!K129="IPCA",3,2),FALSE)/VLOOKUP(L129,Índices!$B$6:$F$626,IF(BD!K129="IPCA",3,2),FALSE) -> 
B130: DCF/APURAÇÃO/TRANSPORTE TERCEIROS - Concatenação dos CUSDs | C130: Financeiro | D130: Financeiros não RTE | E130: Financeiro | F130: 501019.1007 | G130: 502353.519 | O130: =M130*VLOOKUP(CAPA!C33,Índices!$B$6:$F$626,IF(BD!K130="IPCA",3,2),FALSE)/VLOOKUP(L130,Índices!$B$6:$F$626,IF(BD!K130="IPCA",3,2),FALSE) -> 
B131: DCF/REVERSÃO/ENERGIA - Previsão de Risco Hidrológico | C131: Financeiro | D131: Financeiros não RTE | E131: Financeiro | F131: -4118436.494 | G131: -4129405.571 | O131: =M131*VLOOKUP(CAPA!C34,Índices!$B$6:$F$626,IF(BD!K131="IPCA",3,2),FALSE)/VLOOKUP(L131,Índices!$B$6:$F$626,IF(BD!K131="IPCA",3,2),FALSE) -> 
B132: NEUTRALIDADE/APURAÇÃO/ENCARGO - outros | C132: Financeiro | D132: Financeiros não RTE | E132: Financeiro | F132: -699676.4659 | G132: -701539.9899 | O132: =M132*VLOOKUP(CAPA!C35,Índices!$B$6:$F$626,IF(BD!K132="IPCA",3,2),FALSE)/VLOOKUP(L132,Índices!$B$6:$F$626,IF(BD!K132="IPCA",3,2),FALSE) -> 
B133: NEUTRALIDADE/CDE Energia: Conta ACR/ENCARGO - outros | C133: Financeiro | D133: Financeiros não RTE | E133: Financeiro | F133: -644032.5299 | G133: -645747.8514
A140: NumBar | B140: Nome Conexão | C140: Tensão | D140: Posto Tarifário | E140: Tarifas Fronteiras - DRA | F140: Tarifa Fronteira - DRP | G140: Tarifas RB - DRA | H140: Tarifa RB - DRP | I140: M01 | J140: M02 | K140: M03 | L140: M04 | M140: M05 | N140: M06 | O140: M07 | P140: M08 | Q140: M09 | R140: M10 | S140: M11 | T140: M12
A141: 5226 | B141: C.GRANDE II – 69 kV (A) | C141: 69 | D141: Ponta | E141: 3591 | F141: 4329 | G141: 1570 | H141: 1667 | I141: 97.85 | J141: 97.85 | K141: 97.85 | L141: 97.85 | M141: 97.85 | N141: 97.85 | O141: 97.85 | P141: 97.85 | Q141: 97.85 | R141: 97.85 | S141: 97.85 | T141: 97.85
A142: 5226 | B142: C.GRANDE II – 69 kV (A) | C142: 69 | D142: Fora Ponta | E142: 3566 | F142: 4233 | G142: 1570 | H142: 1667 | I142: 103.96 | J142: 103.96 | K142: 103.96 | L142: 103.96 | M142: 103.96 | N142: 103.96 | O142: 103.96 | P142: 103.96 | Q142: 103.96 | R142: 103.96 | S142: 103.96 | T142: 103.96
B441: Transmissora | C441: Indice de atualização | D441: ENCARGO DE CONEXÃO repassável | E441: Instalações com Estabelecimento de RAP que entraram em operação | F441: PA para repasse a tarifa | G441: PA Qualidade DIT | H441: ENCARGO DE CONEXÃO ou PA não rapassável a tarifa (REN 67/2004 ou 68/2004) | I441: PA Empreendimento Autorizado sem estabelecimento prévio de RAP | J441: Estimativa | K441: Estimativa Total do Encargo de Conexão
B442: CHESF | C442: IPCA | D442: 320744.58 | E442: 0 | F442: 2445.48 | G442: 0 | H442: 0 | I442: 0 | J442: 061/2001
B452: Empresa | C452: idsgtag | D452: dtConv | E452: VlrMontante | F452: VlrTarOutros | G452: VlrTarB4a | H452: VlrTarB4b
B453: EBO - ENERGISA Borborema | C453: 140 | D453: 20488 | E453: 0

Sheet Mercado
B2: DADOS DE MERCADO DE ENERGIA E RECEITA VERIFICADA | G2: Anexo II | H2: =Resultado!$D$6 -> -0.02651801848
G3: Anexo I | H3: =Resultado!$D$8 -> 0.01225070704
M5: TipoMercado | R5: AnoMes
B6: Dados de Mercado | M6: Regular | R6: =DATE(YEAR(R8),MONTH(R8)-1,1) -> 43497
R7: AnoMes
B8: Descrição | C8: MERCADO (MWh) | D8: RECEITA (R$) | F8: DESCRIÇÃO | G8: POR DENTRO | J8: Critérios | L8: Para º de consumidores | R8: =DATE(YEAR(R10),MONTH(R10)-1,1) -> 43525
B9: FORNECIMENTO | C9: =SUM(C10:C16) -> 554479.724 | D9: =SUM(D10:D16) -> 251013240.1 | F9: ICMS | G9: =SUM(INDIRECT("DADOS_MercadoBase[ICMS]"))/SUM(INDIRECT("DADOS_MercadoBase[ICMS]"),INDIRECT("DADOS_MercadoBase[PisPasep]"),INDIRECT("DADOS_MercadoBase[Cofins]"),INDIRECT("DADOS_MercadoBase[FinTotAj]")) -> 0.2540015624 | J9: Subgrupo | K9: OPÇÃO | M9: AnoMes | N9: Subgrupo | O9: OPÇÃO | R9: AnoMes
B10: A1 | C10: =DSUM(Mercado_Receita!A:AAA,"TUSD_E",J9:K10) -> 0 | D10: =DSUM(Mercado_Receita!A:AAA,"total",J9:K10) -> 0 | F10: PIS/COFINS | G10: =SUM( INDIRECT("DADOS_MercadoBase[Cofins]"), INDIRECT("DADOS_MercadoBase[PisPasep]"))/SUM( INDIRECT("DADOS_MercadoBase[ICMS]"), INDIRECT("DADOS_MercadoBase[PisPasep]"), INDIRECT("DADOS_MercadoBase[Cofins]"), INDIRECT("DADOS_MercadoBase[FinTotAj]")) -> 0.05781588259 | J10: A1 | K10: Cativo | M10: =DMAX(MercadoBase,"AnoMes",M5:M6) -> 43800 | N10: A1 | O10: Suprimento | R10: =DATE(YEAR(R12),MONTH(R12)-1,1) -> 43556
B11: A2 | C11: =DSUM(Mercado_Receita!A:AAA,"TUSD_E",J11:K12) -> 0 | D11: =DSUM(Mercado_Receita!A:AAA,"total",J11:K12) -> 0 | J11: Subgrupo | K11: OPÇÃO | M11: AnoMes | N11: Subgrupo | O11: OPÇÃO | P11: Subgrupo | R11: AnoMes
B12: A3 | C12: =DSUM(Mercado_Receita!A:AAA,"TUSD_E",J13:K14) -> 0 | D12: =DSUM(Mercado_Receita!A:AAA,"total",J13:K14) -> 0 | F12: MWh Ano Anterior | G12: =BD!C45 -> 684441.585 | J12: A2 | K12: Cativo | M12: =$M$10 -> 43800 | N12: A2 | O12: Livre | P12: A1 | R12: =DATE(YEAR(R14),MONTH(R14)-1,1) -> 43586
B13: A3a | C13: =DSUM(Mercado_Receita!A:AAA,"TUSD_E",J15:K16) -> 0 | D13: =DSUM(Mercado_Receita!A:AAA,"total",J15:K16) -> 0 | F13: Variação | G13: =C24/G12-1 -> 0.02864536789 | J13: Subgrupo | K13: OPÇÃO | M13: AnoMes | N13: Subgrupo | O13: OPÇÃO | R13: AnoMes
B14: A4 | C14: =DSUM(Mercado_Receita!A:AAA,"TUSD_E",J17:K18) -> 142522.536 | D14: =DSUM(Mercado_Receita!A:AAA,"total",J17:K18) -> 57255632.96 | F14: R$ Ano Anterior | G14: =BD!C46 -> 268346052 | J14: ="=A3" -> =A3 | K14: Cativo | M14: =$M$10 -> 43800 | N14: ="=A3" -> =A3 | O14: Distribuição | R14: =DATE(YEAR(R16),MONTH(R16)-1,1) -> 43617
B15: As | C15: =DSUM(Mercado_Receita!A:AAA,"TUSD_E",J19:K20) -> 0 | D15: =DSUM(Mercado_Receita!A:AAA,"total",J19:K20) -> 0 | F15: Variação | G15: =D24/G14-1 -> 0.003170885204 | J15: Subgrupo | K15: OPÇÃO | M15: AnoMes | N15: Subgrupo | O15: OPÇÃO | R15: AnoMes
B16: BT | C16: =DSUM(Mercado_Receita!A:AAA,"TUSD_E",J21:K22) -> 411957.188 | D16: =DSUM(Mercado_Receita!A:AAA,"total",J21:K22) -> 193757607.1 | J16: ="=A3a" -> =A3a | K16: Cativo | M16: =$M$10 -> 43800 | N16: ="=A3a" -> =A3a | O16: Geração | R16: =DATE(YEAR(R18),MONTH(R18)-1,1) -> 43647
B17: SUPRIMENTO (Mercado TE) | C17: =DSUM(Mercado_Receita!A:AAA,"TE_E",O9:P10) -> 0 | D17: =DSUM(Mercado_Receita!A:AAA,"total",O9:P10) -> 0 | F17: Itens RTE (Anualizado) | H17: =[22]CUSTOS!$F$52/H18 -> 0 | J17: Subgrupo | K17: OPÇÃO | M17: AnoMes | N17: Subgrupo | O17: OPÇÃO | R17: AnoMes
B18: LIVRES A1 | C18: =DSUM(Mercado_Receita!A:AAA,"TUSD_E",O11:P12) -> 0 | D18: =DSUM(Mercado_Receita!A:AAA,"total",O11:P12) -> 0 | F18: Energia | H18: =1+G13 -> 1.028645368 | J18: A4 | K18: Cativo | M18: =$M$10 -> 43800 | N18: A4 | O18: Livre | R18: =DATE(YEAR(R20),MONTH(R20)-1,1) -> 43678
B19: DEMAIS LIVRES | C19: =DSUM(Mercado_Receita!A:AAA,"TUSD_E",O19:P20)+DSUM(Mercado_Receita!A:AAA,"TUSD_E",O17:P18)-C18 -> 111697.468 | D19: =DSUM(Mercado_Receita!A:AAA,"total",O19:P20)+DSUM(Mercado_Receita!A:AAA,"TOTAL",O17:P18)-D18 -> 14442383.13 | F19: CDE Uso | J19: Subgrupo | K19: OPÇÃO | M19: AnoMes | N19: Subgrupo | O19: OPÇÃO | R19: AnoMes
B20: DISTRIBUIÇÃO | C20: =DSUM(Mercado_Receita!A:AAA,"TUSD_E",O13:P14) -> 37870.474 | D20: =DSUM(Mercado_Receita!A:AAA,"total",O13:P14) -> 3741323.352 | F20: CDE Energia | J20: AS | K20: Cativo | M20: =$M$10 -> 43800 | N20: AS | O20: erc | R20: =DATE(YEAR(R22),MONTH(R22)-1,1) -> 43709
B21: GERADOR | D21: =DSUM(Mercado_Receita!A:AAA,"total",O15:P16) -> 0 | F21: CUSD | J21: Subgrupo | K21: OPÇÃO | M21: AnoMes | N21: Subgrupo | R21: AnoMes
B22: CDE Baixa Renda | F22: P&D | J22: ="=B*" -> =B* | K22: Cativo | M22: =$M$10 -> 43800 | N22: ="=B*" -> =B* | R22: =DATE(YEAR(R24),MONTH(R24)-1,1) -> 43739
B23: AJUSTE ECONÔMICO - BOLHA | J23: Subclasse | K23: OPÇÃO | R23: AnoMes
B24: TOTAL | C24: =SUM(C10:C23) -> 704047.666 | D24: =SUM(D10:D23) -> 269196946.6 | J24: ="=Residencial baixa renda*" -> =Residencial baixa renda* | K24: Cativo | R24: =DATE(YEAR(R26),MONTH(R26)-1,1) -> 43770
B25: ENERGIA DESTINADA APE/PIE | J25: Classe | L25: AnoMes | R25: AnoMes
B26: MERCADO TOTAL BAIXA RENDA | C26: =DSUM(Mercado_Receita!A:AAA,"TUSD_E",J23:K24) -> 49474.056 | J26: Residencial | L26: =$M$10 -> 43800 | R26: =DATE(YEAR(R28),MONTH(R28)-1,1) -> 43800
J27: Classe | L27: AnoMes | R27: AnoMes
J28: Industrial | L28: 43800 | R28: =B65 -> 43831
B29: DESCRIÇÃO - Tipo | C29: RECEITA (R$) | D29: % Total | J29: Classe | L29: AnoMes
B30: Residencial | C30: =DSUM(Mercado_Receita!A:AAA,"total",J25:K26) -> 124260402 | D30: =IFERROR(C30/$C$38,0) -> 0.4615966252 | J30: Comercial | L30: 43800
B31: Industrial | C31: =DSUM(Mercado_Receita!A:AAA,"total",J27:K28) -> 37119968.59 | D31: =IFERROR(C31/$C$38,0) -> 0.137891492 | J31: Classe | L31: AnoMes
B32: Comercial | C32: =DSUM(Mercado_Receita!A:AAA,"total",J29:K30) -> 62520176.12 | D32: 0.2322469735 | J32: Rural | L32: 43800
B33: Rural | C33: =DSUM(Mercado_Receita!A:AAA,"total",J31:K32) -> 11619787.86 | D33: 0.04316463471 | J33: Classe | L33: AnoMes
B34: Iluminação Pública | C34: =DSUM(Mercado_Receita!A:AAA,"total",J33:K34) -> 9483155.886 | D34: 0.03522757597 | J34: Iluminação Pública | L34: 43800
B35: Poder Público | C35: =DSUM(Mercado_Receita!A:AAA,"total",J35:K36) -> 15608605.71 | D35: 0.05798210532 | J35: Classe | L35: AnoMes
B36: Serviço Público | C36: =DSUM(Mercado_Receita!A:AAA,"total",J37:K38) -> 4720470.75 | D36: 0.01753537999 | J36: Poder Público | L36: 43800
B37: Demais | C37: =D24-SUM(C30:C36) -> 3864379.6 | D37: 0.01435521335 | J37: Classe | L37: AnoMes
B38: TOTAL | C38: =SUM(C30:C37) -> 269196946.6 | D38: =SUM(D30:D37) -> 1 | J38: Serviço público | L38: 43800
J39: Classe | L39: AnoMes
B40: nº de consumidores | E40: Classe | F40: nº de consumidores | G40: MWh mensal | J40: * | L40: 43800
B41: A1 | C41: =DSUM(Mercado_Receita!A:AAA,"UC",L9:N10) -> 0 | E41: Residencial | F41: =DSUM(Mercado_Receita!$A:$AAA,"UC",$J$25:$L$26) -> 187174 | G41: =DSUM(Mercado_Receita!$A:$AAA,"TUSD_E",$J$25:$L$26) -> 22802.037
B42: A2 | C42: =DSUM(Mercado_Receita!A:AAA,"UC",L11:N12) -> 0 | E42: Industrial | F42: =DSUM(Mercado_Receita!$A:$AAA,"UC",$J$27:$L$28) -> 554 | G42: =DSUM(Mercado_Receita!$A:$AAA,"TUSD_E",$J$27:$L$28) -> 13817.479
B43: A3 | C43: =DSUM(Mercado_Receita!A:AAA,"UC",L13:N14) -> 1 | E43: Comercial | F43: =DSUM(Mercado_Receita!$A:$AAA,"UC",$J$29:$L$30) -> 15286 | G43: =DSUM(Mercado_Receita!$A:$AAA,"TUSD_E",$J$29:$L$30) -> 12277.579
B44: A3a | C44: =DSUM(Mercado_Receita!A:AAA,"UC",L15:N16) -> 0 | E44: Rural | F44: =DSUM(Mercado_Receita!$A:$AAA,"UC",$J$31:$L$32) -> 14909 | G44: =DSUM(Mercado_Receita!$A:$AAA,"TUSD_E",$J$31:$L$32) -> 2253.138
B45: A4 | C45: =DSUM(Mercado_Receita!A:AAA,"UC",L17:N18) -> 406 | E45: Iluminação Pública | F45: =DSUM(Mercado_Receita!$A:$AAA,"UC",$J$33:$L$34) -> 73 | G45: =DSUM(Mercado_Receita!$A:$AAA,"TUSD_E",$J$33:$L$34) -> 2921.592
B46: As | C46: =DSUM(Mercado_Receita!A:AAA,"UC",L19:N20) -> 0 | E46: Poder Público | F46: =DSUM(Mercado_Receita!$A:$AAA,"UC",$J$35:$L$36) -> 1465 | G46: =DSUM(Mercado_Receita!$A:$AAA,"TUSD_E",$J$35:$L$36) -> 2955.077
B47: BT | C47: =DSUM(Mercado_Receita!A:AAA,"UC",L21:N22) -> 219138 | E47: Serviço Público | F47: =DSUM(Mercado_Receita!$A:$AAA,"UC",$J$37:$L$38) -> 75 | G47: =DSUM(Mercado_Receita!$A:$AAA,"TUSD_E",$J$37:$L$38) -> 1064.354
E48: Demais | F48: =DSUM(Mercado_Receita!A:AAA,"UC",$J$39:$L$40)-SUM(F$41:F$47) -> 9 | G48: =DSUM(Mercado_Receita!B:AAB,"TUSD_E",$J$39:$L$40)-SUM(G$41:G$47) -> 3345.215
E49: ="Fonte: SAMP - "&TEXT(L26,"mmmm/aa") -> Fonte: SAMP - dezembro/19
B52: Arrecadação dos Encargos
B53: Competência | D53: PeD | E53: ONS | F53: ESSERR | G53: PROINFA | H53: CDE | I53: TFSEE | J53: CFURH | K53: CVA_Energia | L53: CVA_RB | M53: CVA_CDE | N53: CVA_CFURH | O53: CVA_TranItaipu | P53: CVA_ESSERR | Q53: CVA_PROINFA | R53: Fator Selic | S53: RTE_Energia | T53: RTE_CDE_USO | U53: RTE_CDE_E | V53: RTE_CUSD | W53: RTE_PeD | X53: CVA_CDE_E | Y53: CVA_CCC | Z53: DISTRIBUICAO | AA53: cDE_E_ACR | AB53: CDE_E_Dec
B54: =DATE(YEAR(B55),MONTH(B55)-1,1) -> 43497 | D54: =DSUM(MercadoBase,D$53,INDIRECT("r"&5+2*(ROW()-54)&":r"&6+2*(ROW()-54))) -> 222732.6996 | E54: 2391.409535 | F54: 537575.09 | G54: 472812.3911 | H54: 716645.9829 | I54: 31536.9013 | J54: 0 | K54: 2387790.698 | L54: 101537.7461 | M54: 51347.77178 | N54: 0 | O54: 0 | P54: -788771.1261 | Q54: 5074.61596 | R54: =VLOOKUP(CAPA!$C$15,Índices!B:F,5,FALSE)/VLOOKUP(DATE(YEAR(B54),MONTH(B54),1),Índices!B:F,5,FALSE) -> 1.052649486 | S54: =DSUM(MercadoBase,S$53,INDIRECT("r"&5+2*(ROW()-54)&":r"&6+2*(ROW()-54))) -> 0 | T54: 0 | U54: 0 | V54: 0 | W54: 0 | X54: =DSUM(MercadoBase,X$53,INDIRECT("r"&5+2*(ROW()-54)&":r"&6+2*(ROW()-54)))*0+-59161.9111965718 -> -59161.9112 | Y54: 0 | Z54: =DSUM(MercadoBase,Z$53,INDIRECT("r"&5+2*(ROW()-54)&":r"&6+2*(ROW()-54))) -> 7148846.587 | AA54: =DSUM(MercadoBase,AA$53,INDIRECT("r"&5+2*(ROW()-54)&":r"&6+2*(ROW()-54))) -> 1374832.192 | AB54: 54952.46669
B55: 43525 | D55: 217162.1641 | E55: 2373.203075 | F55: 515764.5221 | G55: 468147.6421 | H55: 709764.7055 | I55: 31374.05244 | J55: 0 | K55: 2298795.744 | L55: 100970.6141 | M55: 50854.72742 | N55: 0 | O55: 0 | P55: -756768.9994 | Q55: 5024.549992 | R55: =VLOOKUP(CAPA!$C$15,Índices!B:F,5,FALSE)/VLOOKUP(DATE(YEAR(B55),MONTH(B55),1),Índices!B:F,5,FALSE) -> 1.047737504 | S55: 0 | T55: 0 | U55: 0 | V55: 0 | W55: 0 | X55: =DSUM(MercadoBase,X$53,INDIRECT("r"&5+2*(ROW()-54)&":r"&6+2*(ROW()-54)))*0+-56761.5862908459 -> -56761.58629 | Y55: 0 | Z55: 7104367.991 | AA55: 1319052.318 | AB55: 52722.92793
B56: 43556 | D56: 229932.1067 | E56: 2475.99647 | F56: 548525.5513 | G56: 488691.171 | H56: 741321.8773 | I56: 32857.68108 | J56: 0 | K56: 2440444.918 | L56: 104464.5861 | M56: 53115.80262 | N56: 0 | O56: 0 | P56: -804838.4772 | Q56: 5245.040237 | R56: =VLOOKUP(CAPA!$C$15,Índices!B:F,5,FALSE)/VLOOKUP(DATE(YEAR(B56),MONTH(B56),1),Índices!B:F,5,FALSE) -> 1.042335135 | S56: 0 | T56: 0 | U56: 0 | V56: 0 | W56: 0 | X56: -667947.6726 | Y56: 0 | Z56: 7450441.526 | AA56: 1402837.669 | AB56: 56071.85424
B57: 43586 | D57: 227798.8492 | E57: 2454.363251 | F57: 539641.7387 | G57: 482584.385 | H57: 732293.3229 | I57: 32674.51017 | J57: 0 | K57: 2404462.27 | L57: 104633.7223 | M57: 52468.9056 | N57: 0 | O57: 0 | P57: -791803.4706 | Q57: 5179.497128 | R57: =VLOOKUP(CAPA!$C$15,Índices!B:F,5,FALSE)/VLOOKUP(DATE(YEAR(B57),MONTH(B57),1),Índices!B:F,5,FALSE) -> 1.036705384 | S57: 0 | T57: 0 | U57: 0 | V57: 0 | W57: 0 | X57: -657129.7227 | Y57: 0 | Z57: 7449897.927 | AA57: 1380117.585 | AB57: 55163.72545
B58: 43617 | D58: 215065.27 | E58: 2308.275335 | F58: 513676.1419 | G58: 452832.1605 | H58: 687441.7906 | I58: 30839.22994 | J58: 0 | K58: 2286477.873 | L58: 99754.09557 | M58: 49255.28786 | N58: 0 | O58: 0 | P58: -753704.7689 | Q58: 4860.171501 | R58: =VLOOKUP(CAPA!$C$15,Índices!B:F,5,FALSE)/VLOOKUP(DATE(YEAR(B58),MONTH(B58),1),Índices!B:F,5,FALSE) -> 1.031867802 | S58: 0 | T58: 0 | U58: 0 | V58: 0 | W58: 0 | X58: -625511.0317 | Y58: 0 | Z58: 7017702.349 | AA58: 1313711.349 | AB58: 52509.44772
B59: 43647 | D59: 209434.6493 | E59: 2281.867602 | F59: 494563.0882 | G59: 443954.3686 | H59: 673168.664 | I59: 30295.44086 | J59: 0 | K59: 2191670.013 | L59: 99401.67201 | M59: 48232.6166 | N59: 0 | O59: 0 | P59: -725660.6404 | Q59: 4764.887653 | R59: =VLOOKUP(CAPA!$C$15,Índices!B:F,5,FALSE)/VLOOKUP(DATE(YEAR(B59),MONTH(B59),1),Índices!B:F,5,FALSE) -> 1.026041975 | S59: 0 | T59: 0 | U59: 0 | V59: 0 | W59: 0 | X59: -602236.7836 | Y59: 0 | Z59: 6930663.674 | AA59: 1264830.286 | AB59: 50555.65658
B60: 43678 | D60: 201698.612 | E60: 2229.04221 | F60: 481030.0685 | G60: 435679.4996 | H60: 659253.1803 | I60: 29131.00474 | J60: 0 | K60: 2141644.363 | L60: 96965.23264 | M60: 47235.57051 | N60: 0 | O60: 0 | P60: -705803.9628 | Q60: 4676.074873 | R60: =VLOOKUP(CAPA!$C$15,Índices!B:F,5,FALSE)/VLOOKUP(DATE(YEAR(B60),MONTH(B60),1),Índices!B:F,5,FALSE) -> 1.020919821 | S60: 0 | T60: 0 | U60: 0 | V60: 0 | W60: 0 | X60: -585757.4254 | Y60: 0 | Z60: 6631882.679 | AA60: 1230219.993 | AB60: 49172.2725
B61: 43709 | D61: 203890.9332 | E61: 2264.469925 | F61: 497893.9029 | G61: 441496.8753 | H61: 668279.7457 | I61: 29683.78499 | J61: 0 | K61: 2210032.846 | L61: 98768.56645 | M61: 47882.32501 | N61: 0 | O61: 0 | P61: -730547.8654 | Q61: 4738.511789 | R61: =VLOOKUP(CAPA!$C$15,Índices!B:F,5,FALSE)/VLOOKUP(DATE(YEAR(B61),MONTH(B61),1),Índices!B:F,5,FALSE) -> 1.01620706 | S61: 0 | T61: 0 | U61: 0 | V61: 0 | W61: 0 | X61: -606292.7658 | Y61: 0 | Z61: 6486677.698 | AA61: 1273348.745 | AB61: 50896.142
B62: 43739 | D62: 205948.4068 | E62: 2325.651518 | F62: 501812.739 | G62: 454192.1191 | H62: 687255.2845 | I62: 30396.77888 | J62: 0 | K62: 2228537.469 | L62: 97119.19794 | M62: 49241.92467 | N62: 0 | O62: 0 | P62: -736297.8803 | Q62: 4874.767709 | R62: =VLOOKUP(CAPA!$C$15,Índices!B:F,5,FALSE)/VLOOKUP(DATE(YEAR(B62),MONTH(B62),1),Índices!B:F,5,FALSE) -> 1.011359974 | S62: 0 | T62: 0 | U62: 0 | V62: 0 | W62: 0 | X62: -611064.7905 | Y62: 0 | Z62: 6460385.787 | AA62: 1283371.051 | AB62: 51296.73666
B63: 43770 | D63: 220594.0614 | E63: 2470.449859 | F63: 541145.0286 | G63: 482163.3271 | H63: 729588.2767 | I63: 32297.45109 | J63: 0 | K63: =DSUM(MercadoBase,K$53,INDIRECT("r"&5+2*(ROW()-54)&":r"&6+2*(ROW()-54)))*IF(VLOOKUP("MesesAdin",TabPostergacao[#All],2,FALSE)>2,0,1) -> 2400426.302 | L63: =DSUM(MercadoBase,L$53,INDIRECT("r"&5+2*(ROW()-54)&":r"&6+2*(ROW()-54)))*IF(VLOOKUP("MesesAdin",TabPostergacao[#All],2,FALSE)>2,0,1) -> 100716.709 | M63: =DSUM(MercadoBase,M$53,INDIRECT("r"&5+2*(ROW()-54)&":r"&6+2*(ROW()-54)))*IF(VLOOKUP("MesesAdin",TabPostergacao[#All],2,FALSE)>2,0,1) -> 52275.08871 | N63: =DSUM(MercadoBase,N$53,INDIRECT("r"&5+2*(ROW()-54)&":r"&6+2*(ROW()-54)))*IF(VLOOKUP("MesesAdin",TabPostergacao[#All],2,FALSE)>2,0,1) -> 0 | O63: =DSUM(MercadoBase,O$53,INDIRECT("r"&5+2*(ROW()-54)&":r"&6+2*(ROW()-54)))*IF(VLOOKUP("MesesAdin",TabPostergacao[#All],2,FALSE)>2,0,1) -> 0 | P63: =DSUM(MercadoBase,P$53,INDIRECT("r"&5+2*(ROW()-54)&":r"&6+2*(ROW()-54)))*IF(VLOOKUP("MesesAdin",TabPostergacao[#All],2,FALSE)>2,0,1) -> -794009.2121 | Q63: =DSUM(MercadoBase,Q$53,INDIRECT("r"&5+2*(ROW()-54)&":r"&6+2*(ROW()-54)))*IF(VLOOKUP("MesesAdin",TabPostergacao[#All],2,FALSE)>2,0,1) -> 5174.977985 | R63: =VLOOKUP(CAPA!$C$15,Índices!B:F,5,FALSE)/VLOOKUP(DATE(YEAR(B63),MONTH(B63),1),Índices!B:F,5,FALSE) -> 1.007527485 | S63: 0 | T63: 0 | U63: 0 | V63: 0 | W63: 0 | X63: -658960.301 | Y63: 0 | Z63: 6827028.189 | AA63: 1383962.204 | AB63: 55317.39606
B64: 43800 | D64: 229023.9111 | E64: 2494.552268 | F64: 554128.8164 | G64: 485199.992 | H64: 736558.071 | I64: 33388.0414 | J64: 0 | K64: =DSUM(MercadoBase,K$53,INDIRECT("r"&5+2*(ROW()-54)&":r"&6+2*(ROW()-54)))*IF(VLOOKUP("MesesAdin",TabPostergacao[#All],2,FALSE)>1,0,1) -> 2462857.123 | L64: =DSUM(MercadoBase,L$53,INDIRECT("r"&5+2*(ROW()-54)&":r"&6+2*(ROW()-54)))*IF(VLOOKUP("MesesAdin",TabPostergacao[#All],2,FALSE)>1,0,1) -> 104335.0264 | M64: =DSUM(MercadoBase,M$53,INDIRECT("r"&5+2*(ROW()-54)&":r"&6+2*(ROW()-54)))*IF(VLOOKUP("MesesAdin",TabPostergacao[#All],2,FALSE)>1,0,1) -> 52774.47532 | N64: =DSUM(MercadoBase,N$53,INDIRECT("r"&5+2*(ROW()-54)&":r"&6+2*(ROW()-54)))*IF(VLOOKUP("MesesAdin",TabPostergacao[#All],2,FALSE)>1,0,1) -> 0 | O64: =DSUM(MercadoBase,O$53,INDIRECT("r"&5+2*(ROW()-54)&":r"&6+2*(ROW()-54)))*IF(VLOOKUP("MesesAdin",TabPostergacao[#All],2,FALSE)>1,0,1) -> 0 | P64: =DSUM(MercadoBase,P$53,INDIRECT("r"&5+2*(ROW()-54)&":r"&6+2*(ROW()-54)))*IF(VLOOKUP("MesesAdin",TabPostergacao[#All],2,FALSE)>1,0,1) -> -813060.0147 | Q64: =DSUM(MercadoBase,Q$53,INDIRECT("r"&5+2*(ROW()-54)&":r"&6+2*(ROW()-54)))*IF(VLOOKUP("MesesAdin",TabPostergacao[#All],2,FALSE)>1,0,1) -> 5207.569999 | R64: =VLOOKUP(CAPA!$C$15,Índices!B:F,5,FALSE)/VLOOKUP(DATE(YEAR(B64),MONTH(B64),1),Índices!B:F,5,FALSE) -> 1.003766334 | S64: 0 | T64: 0 | U64: 0 | V64: 0 | W64: 0 | X64: -674770.8514 | Y64: 0 | Z64: 7195552.017 | AA64: 1417167.852 | AB64: 56644.63606
B65: =DATE(YEAR(CAPA!C10),MONTH(CAPA!C10)-1,1) -> 43831 | D65: 229023.9111 | E65: 2494.552268 | F65: 554128.8164 | G65: 485199.992 | H65: 736558.071 | I65: 33388.0414 | J65: 0 | K65: =DSUM(MercadoBase,K$53,INDIRECT("r"&5+2*(ROW()-54)&":r"&6+2*(ROW()-54)))*IF(VLOOKUP("MesesAdin",TabPostergacao[#All],2,FALSE)>0,0,1) -> 2462857.123 | L65: =DSUM(MercadoBase,L$53,INDIRECT("r"&5+2*(ROW()-54)&":r"&6+2*(ROW()-54)))*IF(VLOOKUP("MesesAdin",TabPostergacao[#All],2,FALSE)>0,0,1) -> 104335.0264 | M65: =DSUM(MercadoBase,M$53,INDIRECT("r"&5+2*(ROW()-54)&":r"&6+2*(ROW()-54)))*IF(VLOOKUP("MesesAdin",TabPostergacao[#All],2,FALSE)>0,0,1) -> 52774.47532 | N65: =DSUM(MercadoBase,N$53,INDIRECT("r"&5+2*(ROW()-54)&":r"&6+2*(ROW()-54)))*IF(VLOOKUP("MesesAdin",TabPostergacao[#All],2,FALSE)>0,0,1) -> 0 | O65: =DSUM(MercadoBase,O$53,INDIRECT("r"&5+2*(ROW()-54)&":r"&6+2*(ROW()-54)))*IF(VLOOKUP("MesesAdin",TabPostergacao[#All],2,FALSE)>0,0,1) -> 0 | P65: =DSUM(MercadoBase,P$53,INDIRECT("r"&5+2*(ROW()-54)&":r"&6+2*(ROW()-54)))*IF(VLOOKUP("MesesAdin",TabPostergacao[#All],2,FALSE)>0,0,1) -> -813060.0147 | Q65: =DSUM(MercadoBase,Q$53,INDIRECT("r"&5+2*(ROW()-54)&":r"&6+2*(ROW()-54)))*IF(VLOOKUP("MesesAdin",TabPostergacao[#All],2,FALSE)>0,0,1) -> 5207.569999 | R65: =VLOOKUP(CAPA!$C$15,Índices!B:F,5,FALSE)/VLOOKUP(DATE(YEAR(B65),MONTH(B65),1),Índices!B:F,5,FALSE) -> 1 | S65: 0 | T65: 0 | U65: 0 | V65: 0 | W65: 0 | X65: -674770.8514 | Y65: 0 | Z65: 7195552.017 | AA65: 1417167.852 | AB65: 56644.63606
B66: Total Bruto | D66: =SUM(D54:D65) -> 2612305.575 | E66: 28563.83332 | F66: 6279885.504 | G66: 5592953.923 | H66: 8478128.972 | I66: 377862.9183 | J66: 0 | K66: 27915996.74 | L66: 1213002.195 | M66: 607458.9714 | N66: 0 | O66: 0 | P66: -9214326.432 | Q66: 60028.23482 | S66: =SUM(S54:S65) -> 0 | T66: 0 | U66: 0 | V66: 0 | W66: 0 | X66: -6480365.693 | Y66: 0 | Z66: 83898998.44 | AA66: 16060619.1 | AB66: 641947.8979
B67: Total Atualizado pelo SELIC | D67: =SUMPRODUCT(D54:D65,$R$54:$R$65) -> 2677189.156 | E67: 29268.66708 | F67: 6435082.191 | G67: 5731476.136 | H67: 8688138.98 | I67: 387187.8133 | J67: 0 | K67: 28606247.38 | L67: 1243082.512 | M67: 622506.214 | N67: 0 | O67: 0 | P67: -9442042.836 | Q67: 61514.97046 | R67: 12.60502026 | S67: 0 | T67: 0 | U67: 0 | V67: 0 | W67: 0 | X67: -6610728.715 | Y67: 0 | Z67: 86003268.86 | AA67: 16457529.98 | AB67: 657812.5482
B71: =B53 -> Competência | C71: 0 | D71: PeD | E71: ONS | F71: ESSERR | G71: PROINFA | H71: CDE | I71: TFSEE | J71: CFURH | K71: CVA_Energia | L71: CVA_RB | M71: CVA_CDE | N71: CVA_CFURH | O71: CVA_TranItaipu | P71: CVA_ESSERR | Q71: CVA_PROINFA | R71: Fator Selic | S71: RTE_Energia | T71: RTE_CDE_USO | U71: RTE_CDE_E | V71: RTE_CUSD | W71: RTE_PeD | X71: CVA_CDE_E | Y71: CVA_CCC | Z71: DISTRIBUICAO | AA71: cDE_E_ACR | AB71: CDE_E_Dec | AC71: Fator Selic
AC72: =IFERROR(VLOOKUP(CAPA!$C$15,Índices!B:F,5,FALSE)/VLOOKUP(DATE(YEAR(B72),MONTH(B72),1),Índices!B:F,5,FALSE),0) -> 0
AC73: =IFERROR(VLOOKUP(CAPA!$C$15,Índices!B:F,5,FALSE)/VLOOKUP(DATE(YEAR(B73),MONTH(B73),1),Índices!B:F,5,FALSE),0) -> 0
AC74: =IFERROR(VLOOKUP(CAPA!$C$15,Índices!B:F,5,FALSE)/VLOOKUP(DATE(YEAR(B74),MONTH(B74),1),Índices!B:F,5,FALSE),0) -> 0
B75: Total Bruto | D75: =SUM(D72:D74) -> 0 | E75: 0 | F75: 0 | G75: 0 | H75: 0 | I75: 0 | J75: 0 | K75: 0 | L75: 0 | M75: 0 | N75: 0 | O75: 0 | P75: 0 | Q75: 0 | R75: 0 | S75: 0 | T75: 0 | U75: 0 | V75: 0 | W75: 0 | X75: 0 | Y75: 0 | Z75: 0 | AA75: 0 | AB75: 0
B76: Total Atualizado pelo SELIC | D76: =SUMPRODUCT(D72:D74,$AC$72:$AC$74) -> 0 | E76: 0 | F76: 0 | G76: 0 | H76: 0 | I76: 0 | J76: 0 | K76: 0 | L76: 0 | M76: 0 | N76: 0 | O76: 0 | P76: 0 | Q76: 0 | S76: =SUMPRODUCT(S72:S74,$AC$72:$AC$74) -> 0 | T76: 0 | U76: 0 | V76: 0 | W76: 0 | X76: 0 | Y76: 0 | Z76: 0 | AA76: 0 | AB76: 0

Sheet Financeiro RTE
B2: Data de Reajuste (antes da postergação): | C2: 43500
B3: Inicio de apuração (Energia) | C3: 2017-04-01 | E3: Resumo:
B4: Inicio de apuração (Encargo) | C4: 2017-01-01 | E4: O valor da RTE apurado mensalmente será dividido pela quantidade de dias do mês. Tal valor será atualizado
B5: Mês limite de apuração (Energia) | C5: =DATE(YEAR(C2),MONTH(C2)-3,1) -> 2018-11-01 | E5: pelo SELIC diário válido. Às parcelas diárias que cairem nos dias não úteis serão aplicadas a SELIC do
B6: Mês limite de apuração (Encargo) | C6: =C5 -> 2018-11-01 | E6: último dia útil. O mês limite dependerá da data de Reajuste e Revisão, sendo o corte o dia 10.
B7: Fator Selic Atual | C7: =VLOOKUP(C2-1,M10:P1000,4,FALSE) ->  | E7: Antes do dia 10, o limite será de m-2/m-3 para encargo/energia, m-1/m-2 para outros casos
P8: Fator Selic - Data base 01/03/2015
B9: Competência | C9: Rev Angra III Supridora | D9: Rev Angra III Suprida - TE | E9: Rev Angra III Suprida - TUSD | F9: RTE_CDE_E | G9: Qtd.Dias | H9: Rev Angra III Supridora - Atualizada | I9: Rev Angra III Suprida - TE - Atualizada | J9: Rev Angra III Suprida - TUSD - Atualizada | M9: DataRef | N9: VALOR | O9: Fator Diário | P9: Fator Selic | Q9: Transporte | R9: Energia | S9: Encargo | T9: Postergação
B10: =EDATE(B11,-1) -> 43525 | C10: =SUMIFS(DADOS_MercadoBase[FINCT_TUST_CI],DADOS_MercadoBase[AnoMes],$B10) -> 0 | D10: =SUMIFS(DADOS_MercadoBase[FinCT_CFURH],DADOS_MercadoBase[AnoMes],$B10) -> 0 | E10: =SUMIFS(DADOS_MercadoBase[FINCT_RGR],DADOS_MercadoBase[AnoMes],$B10) -> 0 | G10: =DAY(EDATE(B10,1)-1) -> 31 | H10: =SUMPRODUCT(($M$10:$M$1000>=$B10)*($M$10:$M$1000<EDATE($B10,1))*($M$10:$M$1000<$C$2-1)*($M$10:$M$1000>=$C$3)*($M$10:$M$1000<=EDATE($C$5,1)-1),$C$7/($P$10:$P$1000))*C10/$G10 ->  | M10: =Índices!K300 -> 42357 | N10: =Índices!L300 -> 0 | O10: =Índices!M300 -> 0 | P10: =Índices!N300 -> 1.108368313 | Q10: =IF(AND(M10>=DATE(2015,3,2),M10<DATE(IF(OR(CAPA!$C$23=124,CAPA!$C$23=125,CAPA!$C$23=126,CAPA!$C$23=134,CAPA!$C$23=137),2016,2015),MONTH($C$2),DAY($C$2))),$C$7/P10,0) -> 0 | R10: =IF(AND(M10>=$C$3,M10<$C$5),$C$7/P10,0) -> 0 | S10: =IF(AND(M10>=$C$4,M10<$C$6),$C$7/P10,0) -> 0
B11: 43556 | C11: =SUMIFS(DADOS_MercadoBase[FINCT_TUST_CI],DADOS_MercadoBase[AnoMes],B11) -> 0 | D11: =SUMIFS(DADOS_MercadoBase[FinCT_CFURH],DADOS_MercadoBase[AnoMes],$B11) -> 0 | E11: =SUMIFS(DADOS_MercadoBase[FINCT_RGR],DADOS_MercadoBase[AnoMes],$B11) -> 0 | G11: =DAY(EDATE(B11,1)-1) -> 30 | M11: =Índices!K301 -> 42358 | N11: =Índices!L301 -> 0 | O11: =Índices!M301 -> 0 | P11: =Índices!N301 -> 1.108368313 | Q11: =IF(AND(M11>=DATE(2015,3,2),M11<DATE(IF(OR(CAPA!$C$23=124,CAPA!$C$23=125,CAPA!$C$23=126,CAPA!$C$23=134,CAPA!$C$23=137),2016,2015),MONTH($C$2),DAY($C$2))),$C$7/P11,0) -> 0 | R11: =IF(AND(M11>=$C$3,M11<$C$5),$C$7/P11,0) -> 0 | S11: =IF(AND(M11>=$C$4,M11<$C$6),$C$7/P11,0) -> 0 | T11: =IF(AND(M11>=VLOOKUP("Data Anterior",TabPostergacao[#All],2,FALSE),M11<VLOOKUP("Data Postergada",TabPostergacao[#All],2,FALSE)),$C$7/P11,0) -> 0
B12: 43586 | C12: =SUMIFS(DADOS_MercadoBase[FINCT_TUST_CI],DADOS_MercadoBase[AnoMes],B12) -> 0 | D12: =SUMIFS(DADOS_MercadoBase[FinCT_CFURH],DADOS_MercadoBase[AnoMes],$B12) -> 0 | E12: =SUMIFS(DADOS_MercadoBase[FINCT_RGR],DADOS_MercadoBase[AnoMes],$B12) -> 0 | G12: 31 | M12: =Índices!K302 -> 42359 | N12: =Índices!L302 -> DIA ÚTIL | O12: =Índices!M302 -> 0.052531 | P12: =Índices!N302 -> 1.10895055 | Q12: =IF(AND(M12>=DATE(2015,3,2),M12<DATE(IF(OR(CAPA!$C$23=124,CAPA!$C$23=125,CAPA!$C$23=126,CAPA!$C$23=134,CAPA!$C$23=137),2016,2015),MONTH($C$2),DAY($C$2))),$C$7/P12,0) -> 0 | R12: 0 | S12: 0 | T12: =IF(AND(M12>=VLOOKUP("Data Anterior",TabPostergacao[#All],2,FALSE),M12<VLOOKUP("Data Postergada",TabPostergacao[#All],2,FALSE)),$C$7/P12,0) -> 0
B13: 43617 | C13: =SUMIFS(DADOS_MercadoBase[FINCT_TUST_CI],DADOS_MercadoBase[AnoMes],B13) -> 0 | D13: =SUMIFS(DADOS_MercadoBase[FinCT_CFURH],DADOS_MercadoBase[AnoMes],$B13) -> 0 | E13: =SUMIFS(DADOS_MercadoBase[FINCT_RGR],DADOS_MercadoBase[AnoMes],$B13) -> 0 | G13: 30 | M13: =Índices!K303 -> 42360 | N13: =Índices!L303 -> DIA ÚTIL | O13: =Índices!M303 -> 0.052531 | P13: =Índices!N303 -> 1.109533092 | Q13: =IF(AND(M13>=DATE(2015,3,2),M13<DATE(IF(OR(CAPA!$C$23=124,CAPA!$C$23=125,CAPA!$C$23=126,CAPA!$C$23=134,CAPA!$C$23=137),2016,2015),MONTH($C$2),DAY($C$2))),$C$7/P13,0) -> 0 | R13: 0 | S13: 0 | T13: =IF(AND(M13>=VLOOKUP("Data Anterior",TabPostergacao[#All],2,FALSE),M13<VLOOKUP("Data Postergada",TabPostergacao[#All],2,FALSE)),$C$7/P13,0) -> 0
B14: 43647 | C14: =SUMIFS(DADOS_MercadoBase[FINCT_TUST_CI],DADOS_MercadoBase[AnoMes],B14) -> 0 | D14: =SUMIFS(DADOS_MercadoBase[FinCT_CFURH],DADOS_MercadoBase[AnoMes],$B14) -> 0 | E14: =SUMIFS(DADOS_MercadoBase[FINCT_RGR],DADOS_MercadoBase[AnoMes],$B14) -> 0 | G14: 31 | M14: =Índices!K304 -> 42361 | N14: =Índices!L304 -> DIA ÚTIL | O14: =Índices!M304 -> 0.052531 | P14: =Índices!N304 -> 1.110115941 | Q14: =IF(AND(M14>=DATE(2015,3,2),M14<DATE(IF(OR(CAPA!$C$23=124,CAPA!$C$23=125,CAPA!$C$23=126,CAPA!$C$23=134,CAPA!$C$23=137),2016,2015),MONTH($C$2),DAY($C$2))),$C$7/P14,0) -> 0 | R14: 0 | S14: 0 | T14: =IF(AND(M14>=VLOOKUP("Data Anterior",TabPostergacao[#All],2,FALSE),M14<VLOOKUP("Data Postergada",TabPostergacao[#All],2,FALSE)),$C$7/P14,0) -> 0
B15: 43678 | C15: =SUMIFS(DADOS_MercadoBase[FINCT_TUST_CI],DADOS_MercadoBase[AnoMes],B15) -> 0 | D15: =SUMIFS(DADOS_MercadoBase[FinCT_CFURH],DADOS_MercadoBase[AnoMes],$B15) -> 0 | E15: =SUMIFS(DADOS_MercadoBase[FINCT_RGR],DADOS_MercadoBase[AnoMes],$B15) -> 0 | G15: 31 | M15: =Índices!K305 -> 42362 | N15: =Índices!L305 -> DIA ÚTIL | O15: =Índices!M305 -> 0.052531 | P15: =Índices!N305 -> 1.110699096 | Q15: =IF(AND(M15>=DATE(2015,3,2),M15<DATE(IF(OR(CAPA!$C$23=124,CAPA!$C$23=125,CAPA!$C$23=126,CAPA!$C$23=134,CAPA!$C$23=137),2016,2015),MONTH($C$2),DAY($C$2))),$C$7/P15,0) -> 0 | R15: 0 | S15: 0 | T15: =IF(AND(M15>=VLOOKUP("Data Anterior",TabPostergacao[#All],2,FALSE),M15<VLOOKUP("Data Postergada",TabPostergacao[#All],2,FALSE)),$C$7/P15,0) -> 0
B16: 43709 | C16: =SUMIFS(DADOS_MercadoBase[FINCT_TUST_CI],DADOS_MercadoBase[AnoMes],B16) -> 0 | D16: =SUMIFS(DADOS_MercadoBase[FinCT_CFURH],DADOS_MercadoBase[AnoMes],$B16) -> 0 | E16: =SUMIFS(DADOS_MercadoBase[FINCT_RGR],DADOS_MercadoBase[AnoMes],$B16) -> 0 | G16: 30 | M16: =Índices!K306 -> 42363 | N16: =Índices!L306 -> 0 | O16: =Índices!M306 -> 0 | P16: =Índices!N306 -> 1.110699096 | Q16: =IF(AND(M16>=DATE(2015,3,2),M16<DATE(IF(OR(CAPA!$C$23=124,CAPA!$C$23=125,CAPA!$C$23=126,CAPA!$C$23=134,CAPA!$C$23=137),2016,2015),MONTH($C$2),DAY($C$2))),$C$7/P16,0) -> 0 | R16: 0 | S16: 0 | T16: =IF(AND(M16>=VLOOKUP("Data Anterior",TabPostergacao[#All],2,FALSE),M16<VLOOKUP("Data Postergada",TabPostergacao[#All],2,FALSE)),$C$7/P16,0) -> 0
B17: 43739 | C17: =SUMIFS(DADOS_MercadoBase[FINCT_TUST_CI],DADOS_MercadoBase[AnoMes],B17) -> 0 | D17: =SUMIFS(DADOS_MercadoBase[FinCT_CFURH],DADOS_MercadoBase[AnoMes],$B17) -> 0 | E17: =SUMIFS(DADOS_MercadoBase[FINCT_RGR],DADOS_MercadoBase[AnoMes],$B17) -> 0 | G17: 31 | M17: =Índices!K307 -> 42364 | N17: =Índices!L307 -> 0 | O17: =Índices!M307 -> 0 | P17: =Índices!N307 -> 1.110699096 | Q17: =IF(AND(M17>=DATE(2015,3,2),M17<DATE(IF(OR(CAPA!$C$23=124,CAPA!$C$23=125,CAPA!$C$23=126,CAPA!$C$23=134,CAPA!$C$23=137),2016,2015),MONTH($C$2),DAY($C$2))),$C$7/P17,0) -> 0 | R17: 0 | S17: 0 | T17: =IF(AND(M17>=VLOOKUP("Data Anterior",TabPostergacao[#All],2,FALSE),M17<VLOOKUP("Data Postergada",TabPostergacao[#All],2,FALSE)),$C$7/P17,0) -> 0
B18: 43770 | C18: =SUMIFS(DADOS_MercadoBase[FINCT_TUST_CI],DADOS_MercadoBase[AnoMes],B18) -> 0 | D18: =SUMIFS(DADOS_MercadoBase[FinCT_CFURH],DADOS_MercadoBase[AnoMes],$B18) -> 0 | E18: =SUMIFS(DADOS_MercadoBase[FINCT_RGR],DADOS_MercadoBase[AnoMes],$B18) -> 0 | G18: 30 | M18: =Índices!K308 -> 42365 | N18: =Índices!L308 -> 0 | O18: =Índices!M308 -> 0 | P18: =Índices!N308 -> 1.110699096 | Q18: =IF(AND(M18>=DATE(2015,3,2),M18<DATE(IF(OR(CAPA!$C$23=124,CAPA!$C$23=125,CAPA!$C$23=126,CAPA!$C$23=134,CAPA!$C$23=137),2016,2015),MONTH($C$2),DAY($C$2))),$C$7/P18,0) -> 0 | R18: 0 | S18: 0 | T18: =IF(AND(M18>=VLOOKUP("Data Anterior",TabPostergacao[#All],2,FALSE),M18<VLOOKUP("Data Postergada",TabPostergacao[#All],2,FALSE)),$C$7/P18,0) -> 0
B19: =EDATE(B20,-1) -> 43800 | C19: =SUMIFS(DADOS_MercadoBase[FINCT_TUST_CI],DADOS_MercadoBase[AnoMes],B19) -> 0 | D19: =SUMIFS(DADOS_MercadoBase[FinCT_CFURH],DADOS_MercadoBase[AnoMes],$B19) -> 0 | E19: =SUMIFS(DADOS_MercadoBase[FINCT_RGR],DADOS_MercadoBase[AnoMes],$B19) -> 0 | G19: 31 | M19: =Índices!K309 -> 42366 | N19: =Índices!L309 -> DIA ÚTIL | O19: =Índices!M309 -> 0.052531 | P19: =Índices!N309 -> 1.111282558 | Q19: =IF(AND(M19>=DATE(2015,3,2),M19<DATE(IF(OR(CAPA!$C$23=124,CAPA!$C$23=125,CAPA!$C$23=126,CAPA!$C$23=134,CAPA!$C$23=137),2016,2015),MONTH($C$2),DAY($C$2))),$C$7/P19,0) -> 0 | R19: 0 | S19: 0 | T19: =IF(AND(M19>=VLOOKUP("Data Anterior",TabPostergacao[#All],2,FALSE),M19<VLOOKUP("Data Postergada",TabPostergacao[#All],2,FALSE)),$C$7/P19,0) -> 0
B20: =DATE(YEAR(CAPA!$C$10),MONTH(CAPA!$C$10)-1,1) -> 43831 | C20: =SUMIFS(DADOS_MercadoBase[FINCT_TUST_CI],DADOS_MercadoBase[AnoMes],B20) -> 0 | D20: =SUMIFS(DADOS_MercadoBase[FinCT_CFURH],DADOS_MercadoBase[AnoMes],$B20) -> 0 | E20: =SUMIFS(DADOS_MercadoBase[FINCT_RGR],DADOS_MercadoBase[AnoMes],$B20) -> 0 | G20: 31 | M20: =Índices!K310 -> 42367 | N20: =Índices!L310 -> DIA ÚTIL | O20: =Índices!M310 -> 0.052531 | P20: =Índices!N310 -> 1.111866325 | Q20: =IF(AND(M20>=DATE(2015,3,2),M20<DATE(IF(OR(CAPA!$C$23=124,CAPA!$C$23=125,CAPA!$C$23=126,CAPA!$C$23=134,CAPA!$C$23=137),2016,2015),MONTH($C$2),DAY($C$2))),$C$7/P20,0) -> 0 | R20: 0 | S20: 0 | T20: =IF(AND(M20>=VLOOKUP("Data Anterior",TabPostergacao[#All],2,FALSE),M20<VLOOKUP("Data Postergada",TabPostergacao[#All],2,FALSE)),$C$7/P20,0) -> 0
B21: =EDATE(B20,1) -> 43862 | C21: =C20 -> 0 | D21: =D20 -> 0 | E21: =E20 -> 0 | G21: 29 | M21: =Índices!K311 -> 42368 | N21: =Índices!L311 -> DIA ÚTIL | O21: =Índices!M311 -> 0.052531 | P21: =Índices!N311 -> 1.1124504 | Q21: =IF(AND(M21>=DATE(2015,3,2),M21<DATE(IF(OR(CAPA!$C$23=124,CAPA!$C$23=125,CAPA!$C$23=126,CAPA!$C$23=134,CAPA!$C$23=137),2016,2015),MONTH($C$2),DAY($C$2))),$C$7/P21,0) -> 0 | R21: 0 | S21: 0 | T21: =IF(AND(M21>=VLOOKUP("Data Anterior",TabPostergacao[#All],2,FALSE),M21<VLOOKUP("Data Postergada",TabPostergacao[#All],2,FALSE)),$C$7/P21,0) -> 0
B22: Total | M22: =Índices!K312 -> 42369 | N22: =Índices!L312 -> DIA ÚTIL | O22: =Índices!M312 -> 0.052531 | P22: =Índices!N312 -> 1.113034781 | Q22: =IF(AND(M22>=DATE(2015,3,2),M22<DATE(IF(OR(CAPA!$C$23=124,CAPA!$C$23=125,CAPA!$C$23=126,CAPA!$C$23=134,CAPA!$C$23=137),2016,2015),MONTH($C$2),DAY($C$2))),$C$7/P22,0) -> 0 | R22: 0 | S22: 0 | T22: =IF(AND(M22>=VLOOKUP("Data Anterior",TabPostergacao[#All],2,FALSE),M22<VLOOKUP("Data Postergada",TabPostergacao[#All],2,FALSE)),$C$7/P22,0) -> 0
M23: =Índices!K313 -> 42370 | N23: =Índices!L313 -> 0 | O23: =Índices!M313 -> 0 | P23: =Índices!N313 -> 1.113034781 | Q23: =IF(AND(M23>=DATE(2015,3,2),M23<DATE(IF(OR(CAPA!$C$23=124,CAPA!$C$23=125,CAPA!$C$23=126,CAPA!$C$23=134,CAPA!$C$23=137),2016,2015),MONTH($C$2),DAY($C$2))),$C$7/P23,0) -> 0 | R23: 0 | S23: 0 | T23: =IF(AND(M23>=VLOOKUP("Data Anterior",TabPostergacao[#All],2,FALSE),M23<VLOOKUP("Data Postergada",TabPostergacao[#All],2,FALSE)),$C$7/P23,0) -> 0
M24: =Índices!K314 -> 42371 | N24: =Índices!L314 -> 0 | O24: =Índices!M314 -> 0 | P24: =Índices!N314 -> 1.113034781 | Q24: =IF(AND(M24>=DATE(2015,3,2),M24<DATE(IF(OR(CAPA!$C$23=124,CAPA!$C$23=125,CAPA!$C$23=126,CAPA!$C$23=134,CAPA!$C$23=137),2016,2015),MONTH($C$2),DAY($C$2))),$C$7/P24,0) -> 0 | R24: 0 | S24: 0 | T24: =IF(AND(M24>=VLOOKUP("Data Anterior",TabPostergacao[#All],2,FALSE),M24<VLOOKUP("Data Postergada",TabPostergacao[#All],2,FALSE)),$C$7/P24,0) -> 0
B25: Competência | C25: Postergação TUSD | D25: Postergação TE | E25: Qtd. dias | F25: TUSD Atualizada | G25: TE Atualizada | M25: =Índices!K315 -> 42372 | N25: =Índices!L315 -> 0 | O25: =Índices!M315 -> 0 | P25: =Índices!N315 -> 1.113034781 | Q25: =IF(AND(M25>=DATE(2015,3,2),M25<DATE(IF(OR(CAPA!$C$23=124,CAPA!$C$23=125,CAPA!$C$23=126,CAPA!$C$23=134,CAPA!$C$23=137),2016,2015),MONTH($C$2),DAY($C$2))),$C$7/P25,0) -> 0 | R25: 0 | S25: 0 | T25: =IF(AND(M25>=VLOOKUP("Data Anterior",TabPostergacao[#All],2,FALSE),M25<VLOOKUP("Data Postergada",TabPostergacao[#All],2,FALSE)),$C$7/P25,0) -> 0
B26: =DATE(YEAR(B27),MONTH(B27)-1,1) -> 43497 | C26: =SUMIFS(OFFSET(DADOS_MercadoBase[Código],0,MATCH("FinPostTUSD",Mercado_Receita!$A$1:$DG$1,0)-1),DADOS_MercadoBase[AnoMes],B26) -> 279861.7866 | D26: =SUMIFS(OFFSET(DADOS_MercadoBase[Código],0,MATCH("FinPostTE",Mercado_Receita!$A$1:$DG$1,0)-1),DADOS_MercadoBase[AnoMes],B26) -> 466561.3131 | E26: =DAY(EDATE(B26,1)-1) -> 28 | F26: =IFERROR(SUMPRODUCT(($M$10:$M$622>=$B26)*($M$10:$M$622<DATE(YEAR($B26),MONTH($B26)+1,1)),($T$10:$T$622))*C26/$E26,0) -> 0 | G26: =IFERROR(SUMPRODUCT(($M$10:$M$622>=$B26)*($M$10:$M$622<DATE(YEAR($B26),MONTH($B26)+1,1)),($T$10:$T$622))*D26/$E26,0) -> 0 | M26: =Índices!K316 -> 42373 | N26: =Índices!L316 -> DIA ÚTIL | O26: =Índices!M316 -> 0.052531 | P26: =Índices!N316 -> 1.11361947 | Q26: =IF(AND(M26>=DATE(2015,3,2),M26<DATE(IF(OR(CAPA!$C$23=124,CAPA!$C$23=125,CAPA!$C$23=126,CAPA!$C$23=134,CAPA!$C$23=137),2016,2015),MONTH($C$2),DAY($C$2))),$C$7/P26,0) -> 0 | R26: 0 | S26: 0 | T26: =IF(AND(M26>=VLOOKUP("Data Anterior",TabPostergacao[#All],2,FALSE),M26<VLOOKUP("Data Postergada",TabPostergacao[#All],2,FALSE)),$C$7/P26,0) -> 0
B27: 43525 | C27: =SUMIFS(OFFSET(DADOS_MercadoBase[Código],0,MATCH("FinPostTUSD",Mercado_Receita!$A$1:$DG$1,0)-1),DADOS_MercadoBase[AnoMes],B27) -> 278727.8468 | D27: =SUMIFS(OFFSET(DADOS_MercadoBase[Código],0,MATCH("FinPostTE",Mercado_Receita!$A$1:$DG$1,0)-1),DADOS_MercadoBase[AnoMes],B27) -> 447491.1997 | E27: =DAY(EDATE(B27,1)-1) -> 31 | F27: =IFERROR(SUMPRODUCT(($M$10:$M$622>=$B27)*($M$10:$M$622<DATE(YEAR($B27),MONTH($B27)+1,1)),($T$10:$T$622))*C27/$E27,0) -> 0 | G27: 0 | M27: =Índices!K317 -> 42374 | N27: =Índices!L317 -> DIA ÚTIL | O27: =Índices!M317 -> 0.052531 | P27: =Índices!N317 -> 1.114204465 | Q27: =IF(AND(M27>=DATE(2015,3,2),M27<DATE(IF(OR(CAPA!$C$23=124,CAPA!$C$23=125,CAPA!$C$23=126,CAPA!$C$23=134,CAPA!$C$23=137),2016,2015),MONTH($C$2),DAY($C$2))),$C$7/P27,0) -> 0 | R27: 0 | S27: 0 | T27: =IF(AND(M27>=VLOOKUP("Data Anterior",TabPostergacao[#All],2,FALSE),M27<VLOOKUP("Data Postergada",TabPostergacao[#All],2,FALSE)),$C$7/P27,0) -> 0
B28: 43556 | C28: =SUMIFS(OFFSET(DADOS_MercadoBase[Código],0,MATCH("FinPostTUSD",Mercado_Receita!$A$1:$DG$1,0)-1),DADOS_MercadoBase[AnoMes],B28) -> 289780.1383 | D28: =SUMIFS(OFFSET(DADOS_MercadoBase[Código],0,MATCH("FinPostTE",Mercado_Receita!$A$1:$DG$1,0)-1),DADOS_MercadoBase[AnoMes],B28) -> 475054.8467 | E28: 30 | F28: 0 | G28: 0 | M28: =Índices!K318 -> 42375 | N28: =Índices!L318 -> DIA ÚTIL | O28: =Índices!M318 -> 0.052531 | P28: =Índices!N318 -> 1.114789768 | Q28: =IF(AND(M28>=DATE(2015,3,2),M28<DATE(IF(OR(CAPA!$C$23=124,CAPA!$C$23=125,CAPA!$C$23=126,CAPA!$C$23=134,CAPA!$C$23=137),2016,2015),MONTH($C$2),DAY($C$2))),$C$7/P28,0) -> 0 | R28: 0 | S28: 0 | T28: =IF(AND(M28>=VLOOKUP("Data Anterior",TabPostergacao[#All],2,FALSE),M28<VLOOKUP("Data Postergada",TabPostergacao[#All],2,FALSE)),$C$7/P28,0) -> 0
B29: 43586 | C29: =SUMIFS(OFFSET(DADOS_MercadoBase[Código],0,MATCH("FinPostTUSD",Mercado_Receita!$A$1:$DG$1,0)-1),DADOS_MercadoBase[AnoMes],B29) -> 288847.6744 | D29: =SUMIFS(OFFSET(DADOS_MercadoBase[Código],0,MATCH("FinPostTE",Mercado_Receita!$A$1:$DG$1,0)-1),DADOS_MercadoBase[AnoMes],B29) -> 468304.7078 | E29: 31 | F29: 0 | G29: 0 | M29: =Índices!K319 -> 42376 | N29: =Índices!L319 -> DIA ÚTIL | O29: =Índices!M319 -> 0.052531 | P29: =Índices!N319 -> 1.115375378 | Q29: =IF(AND(M29>=DATE(2015,3,2),M29<DATE(IF(OR(CAPA!$C$23=124,CAPA!$C$23=125,CAPA!$C$23=126,CAPA!$C$23=134,CAPA!$C$23=137),2016,2015),MONTH($C$2),DAY($C$2))),$C$7/P29,0) -> 0 | R29: 0 | S29: 0 | T29: =IF(AND(M29>=VLOOKUP("Data Anterior",TabPostergacao[#All],2,FALSE),M29<VLOOKUP("Data Postergada",TabPostergacao[#All],2,FALSE)),$C$7/P29,0) -> 0
B30: 43617 | C30: =SUMIFS(OFFSET(DADOS_MercadoBase[Código],0,MATCH("FinPostTUSD",Mercado_Receita!$A$1:$DG$1,0)-1),DADOS_MercadoBase[AnoMes],B30) -> 274227.7514 | D30: =SUMIFS(OFFSET(DADOS_MercadoBase[Código],0,MATCH("FinPostTE",Mercado_Receita!$A$1:$DG$1,0)-1),DADOS_MercadoBase[AnoMes],B30) -> 445285.0431 | E30: 30 | F30: 0 | G30: 0 | M30: =Índices!K320 -> 42377 | N30: =Índices!L320 -> DIA ÚTIL | O30: =Índices!M320 -> 0.052531 | P30: =Índices!N320 -> 1.115961296 | Q30: =IF(AND(M30>=DATE(2015,3,2),M30<DATE(IF(OR(CAPA!$C$23=124,CAPA!$C$23=125,CAPA!$C$23=126,CAPA!$C$23=134,CAPA!$C$23=137),2016,2015),MONTH($C$2),DAY($C$2))),$C$7/P30,0) -> 0 | R30: 0 | S30: 0 | T30: =IF(AND(M30>=VLOOKUP("Data Anterior",TabPostergacao[#All],2,FALSE),M30<VLOOKUP("Data Postergada",TabPostergacao[#All],2,FALSE)),$C$7/P30,0) -> 0
B31: 43647 | C31: =SUMIFS(OFFSET(DADOS_MercadoBase[Código],0,MATCH("FinPostTUSD",Mercado_Receita!$A$1:$DG$1,0)-1),DADOS_MercadoBase[AnoMes],B31) -> 270935.8118 | D31: =SUMIFS(OFFSET(DADOS_MercadoBase[Código],0,MATCH("FinPostTE",Mercado_Receita!$A$1:$DG$1,0)-1),DADOS_MercadoBase[AnoMes],B31) -> 415927.1683 | E31: 31 | F31: 0 | G31: 0 | M31: =Índices!K321 -> 42378 | N31: =Índices!L321 -> 0 | O31: =Índices!M321 -> 0 | P31: =Índices!N321 -> 1.115961296 | Q31: =IF(AND(M31>=DATE(2015,3,2),M31<DATE(IF(OR(CAPA!$C$23=124,CAPA!$C$23=125,CAPA!$C$23=126,CAPA!$C$23=134,CAPA!$C$23=137),2016,2015),MONTH($C$2),DAY($C$2))),$C$7/P31,0) -> 0 | R31: =IF(AND(M31>=$C$3,M31<$C$5),$C$7/P31,0) -> 0 | S31: 0 | T31: =IF(AND(M31>=VLOOKUP("Data Anterior",TabPostergacao[#All],2,FALSE),M31<VLOOKUP("Data Postergada",TabPostergacao[#All],2,FALSE)),$C$7/P31,0) -> 0
B32: 43678 | C32: =SUMIFS(OFFSET(DADOS_MercadoBase[Código],0,MATCH("FinPostTUSD",Mercado_Receita!$A$1:$DG$1,0)-1),DADOS_MercadoBase[AnoMes],B32) -> 263000.323 | D32: =SUMIFS(OFFSET(DADOS_MercadoBase[Código],0,MATCH("FinPostTE",Mercado_Receita!$A$1:$DG$1,0)-1),DADOS_MercadoBase[AnoMes],B32) -> 416452.5809 | E32: 31 | F32: 0 | G32: 0 | M32: =Índices!K322 -> 42379 | N32: =Índices!L322 -> 0 | O32: =Índices!M322 -> 0 | P32: =Índices!N322 -> 1.115961296 | Q32: =IF(AND(M32>=DATE(2015,3,2),M32<DATE(IF(OR(CAPA!$C$23=124,CAPA!$C$23=125,CAPA!$C$23=126,CAPA!$C$23=134,CAPA!$C$23=137),2016,2015),MONTH($C$2),DAY($C$2))),$C$7/P32,0) -> 0 | R32: 0 | S32: 0 | T32: =IF(AND(M32>=VLOOKUP("Data Anterior",TabPostergacao[#All],2,FALSE),M32<VLOOKUP("Data Postergada",TabPostergacao[#All],2,FALSE)),$C$7/P32,0) -> 0
B33: 43709 | C33: =SUMIFS(OFFSET(DADOS_MercadoBase[Código],0,MATCH("FinPostTUSD",Mercado_Receita!$A$1:$DG$1,0)-1),DADOS_MercadoBase[AnoMes],B33) -> 266199.1898 | D33: =SUMIFS(OFFSET(DADOS_MercadoBase[Código],0,MATCH("FinPostTE",Mercado_Receita!$A$1:$DG$1,0)-1),DADOS_MercadoBase[AnoMes],B33) -> 431639.2549 | E33: 30 | F33: 0 | G33: 0 | M33: =Índices!K323 -> 42380 | N33: =Índices!L323 -> DIA ÚTIL | O33: =Índices!M323 -> 0.052531 | P33: =Índices!N323 -> 1.116547521 | Q33: =IF(AND(M33>=DATE(2015,3,2),M33<DATE(IF(OR(CAPA!$C$23=124,CAPA!$C$23=125,CAPA!$C$23=126,CAPA!$C$23=134,CAPA!$C$23=137),2016,2015),MONTH($C$2),DAY($C$2))),$C$7/P33,0) -> 0 | R33: 0 | S33: 0 | T33: =IF(AND(M33>=VLOOKUP("Data Anterior",TabPostergacao[#All],2,FALSE),M33<VLOOKUP("Data Postergada",TabPostergacao[#All],2,FALSE)),$C$7/P33,0) -> 0
B34: 43739 | C34: =SUMIFS(OFFSET(DADOS_MercadoBase[Código],0,MATCH("FinPostTUSD",Mercado_Receita!$A$1:$DG$1,0)-1),DADOS_MercadoBase[AnoMes],B34) -> 266458.0623 | D34: =SUMIFS(OFFSET(DADOS_MercadoBase[Código],0,MATCH("FinPostTE",Mercado_Receita!$A$1:$DG$1,0)-1),DADOS_MercadoBase[AnoMes],B34) -> 434421.6764 | E34: 31 | F34: 0 | G34: 0 | M34: =Índices!K324 -> 42381 | N34: =Índices!L324 -> DIA ÚTIL | O34: =Índices!M324 -> 0.052531 | P34: =Índices!N324 -> 1.117134055 | Q34: =IF(AND(M34>=DATE(2015,3,2),M34<DATE(IF(OR(CAPA!$C$23=124,CAPA!$C$23=125,CAPA!$C$23=126,CAPA!$C$23=134,CAPA!$C$23=137),2016,2015),MONTH($C$2),DAY($C$2))),$C$7/P34,0) -> 0 | R34: 0 | S34: 0 | T34: =IF(AND(M34>=VLOOKUP("Data Anterior",TabPostergacao[#All],2,FALSE),M34<VLOOKUP("Data Postergada",TabPostergacao[#All],2,FALSE)),$C$7/P34,0) -> 0
B35: 43770 | C35: =SUMIFS(OFFSET(DADOS_MercadoBase[Código],0,MATCH("FinPostTUSD",Mercado_Receita!$A$1:$DG$1,0)-1),DADOS_MercadoBase[AnoMes],B35) -> 280124.5742 | D35: =SUMIFS(OFFSET(DADOS_MercadoBase[Código],0,MATCH("FinPostTE",Mercado_Receita!$A$1:$DG$1,0)-1),DADOS_MercadoBase[AnoMes],B35) -> 468564.2401 | E35: 30 | F35: 0 | G35: 0 | M35: =Índices!K325 -> 42382 | N35: =Índices!L325 -> DIA ÚTIL | O35: =Índices!M325 -> 0.052531 | P35: =Índices!N325 -> 1.117720897 | Q35: =IF(AND(M35>=DATE(2015,3,2),M35<DATE(IF(OR(CAPA!$C$23=124,CAPA!$C$23=125,CAPA!$C$23=126,CAPA!$C$23=134,CAPA!$C$23=137),2016,2015),MONTH($C$2),DAY($C$2))),$C$7/P35,0) -> 0 | R35: 0 | S35: 0 | T35: =IF(AND(M35>=VLOOKUP("Data Anterior",TabPostergacao[#All],2,FALSE),M35<VLOOKUP("Data Postergada",TabPostergacao[#All],2,FALSE)),$C$7/P35,0) -> 0
B36: =DATE(YEAR(B37),MONTH(B37)-1,1) -> 43800 | C36: =SUMIFS(OFFSET(DADOS_MercadoBase[Código],0,MATCH("FinPostTUSD",Mercado_Receita!$A$1:$DG$1,0)-1),DADOS_MercadoBase[AnoMes],B36) -> 289450.6378 | D36: =SUMIFS(OFFSET(DADOS_MercadoBase[Código],0,MATCH("FinPostTE",Mercado_Receita!$A$1:$DG$1,0)-1),DADOS_MercadoBase[AnoMes],B36) -> 480710.4626 | E36: 31 | F36: 0 | G36: 0 | M36: =Índices!K326 -> 42383 | N36: =Índices!L326 -> DIA ÚTIL | O36: =Índices!M326 -> 0.052531 | P36: =Índices!N326 -> 1.118308047 | Q36: =IF(AND(M36>=DATE(2015,3,2),M36<DATE(IF(OR(CAPA!$C$23=124,CAPA!$C$23=125,CAPA!$C$23=126,CAPA!$C$23=134,CAPA!$C$23=137),2016,2015),MONTH($C$2),DAY($C$2))),$C$7/P36,0) -> 0 | R36: 0 | S36: 0 | T36: =IF(AND(M36>=VLOOKUP("Data Anterior",TabPostergacao[#All],2,FALSE),M36<VLOOKUP("Data Postergada",TabPostergacao[#All],2,FALSE)),$C$7/P36,0) -> 0
B37: =DATE(YEAR(CAPA!C10),MONTH(CAPA!C10)-1,1) -> 43831 | C37: =SUMIFS(OFFSET(DADOS_MercadoBase[Código],0,MATCH("FinPostTUSD",Mercado_Receita!$A$1:$DG$1,0)-1),DADOS_MercadoBase[AnoMes],B37) -> 289450.6378 | D37: =SUMIFS(OFFSET(DADOS_MercadoBase[Código],0,MATCH("FinPostTE",Mercado_Receita!$A$1:$DG$1,0)-1),DADOS_MercadoBase[AnoMes],B37) -> 480710.4626 | E37: 31 | F37: 0 | G37: 0 | M37: =Índices!K327 -> 42384 | N37: =Índices!L327 -> DIA ÚTIL | O37: =Índices!M327 -> 0.052531 | P37: =Índices!N327 -> 1.118895505 | Q37: =IF(AND(M37>=DATE(2015,3,2),M37<DATE(IF(OR(CAPA!$C$23=124,CAPA!$C$23=125,CAPA!$C$23=126,CAPA!$C$23=134,CAPA!$C$23=137),2016,2015),MONTH($C$2),DAY($C$2))),$C$7/P37,0) -> 0 | R37: 0 | S37: 0 | T37: =IF(AND(M37>=VLOOKUP("Data Anterior",TabPostergacao[#All],2,FALSE),M37<VLOOKUP("Data Postergada",TabPostergacao[#All],2,FALSE)),$C$7/P37,0) -> 0
B38: =DATE(YEAR(CAPA!C10),MONTH(B37)+1,1) -> 43862 | C38: =C37 -> 289450.6378 | D38: =D37 -> 480710.4626 | E38: 29 | F38: 0 | G38: 0 | M38: =Índices!K328 -> 42385 | N38: =Índices!L328 -> 0 | O38: =Índices!M328 -> 0 | P38: =Índices!N328 -> 1.118895505 | Q38: =IF(AND(M38>=DATE(2015,3,2),M38<DATE(IF(OR(CAPA!$C$23=124,CAPA!$C$23=125,CAPA!$C$23=126,CAPA!$C$23=134,CAPA!$C$23=137),2016,2015),MONTH($C$2),DAY($C$2))),$C$7/P38,0) -> 0 | R38: 0 | S38: 0 | T38: =IF(AND(M38>=VLOOKUP("Data Anterior",TabPostergacao[#All],2,FALSE),M38<VLOOKUP("Data Postergada",TabPostergacao[#All],2,FALSE)),$C$7/P38,0) -> 0
B39: Total | C39: =SUM(C26:C38) -> 3626515.072 | D39: =SUM(D26:D38) -> 5911833.419 | F39: =SUM(F27:F38)+BD!H28 -> 0 | G39: =SUM(G27:G38) -> 0 | M39: =Índices!K329 -> 42386 | N39: =Índices!L329 -> 0 | O39: =Índices!M329 -> 0 | P39: =Índices!N329 -> 1.118895505 | Q39: =IF(AND(M39>=DATE(2015,3,2),M39<DATE(IF(OR(CAPA!$C$23=124,CAPA!$C$23=125,CAPA!$C$23=126,CAPA!$C$23=134,CAPA!$C$23=137),2016,2015),MONTH($C$2),DAY($C$2))),$C$7/P39,0) -> 0 | R39: 0 | S39: 0 | T39: =IF(AND(M39>=VLOOKUP("Data Anterior",TabPostergacao[#All],2,FALSE),M39<VLOOKUP("Data Postergada",TabPostergacao[#All],2,FALSE)),$C$7/P39,0) -> 0
M40: =Índices!K330 -> 42387 | N40: =Índices!L330 -> DIA ÚTIL | O40: =Índices!M330 -> 0.052531 | P40: =Índices!N330 -> 1.119483272 | Q40: =IF(AND(M40>=DATE(2015,3,2),M40<DATE(IF(OR(CAPA!$C$23=124,CAPA!$C$23=125,CAPA!$C$23=126,CAPA!$C$23=134,CAPA!$C$23=137),2016,2015),MONTH($C$2),DAY($C$2))),$C$7/P40,0) -> 0 | R40: 0 | S40: 0 | T40: =IF(AND(M40>=VLOOKUP("Data Anterior",TabPostergacao[#All],2,FALSE),M40<VLOOKUP("Data Postergada",TabPostergacao[#All],2,FALSE)),$C$7/P40,0) -> 0
M41: =Índices!K331 -> 42388 | N41: =Índices!L331 -> DIA ÚTIL | O41: =Índices!M331 -> 0.052531 | P41: =Índices!N331 -> 1.120071348 | Q41: =IF(AND(M41>=DATE(2015,3,2),M41<DATE(IF(OR(CAPA!$C$23=124,CAPA!$C$23=125,CAPA!$C$23=126,CAPA!$C$23=134,CAPA!$C$23=137),2016,2015),MONTH($C$2),DAY($C$2))),$C$7/P41,0) -> 0 | R41: 0 | S41: 0 | T41: =IF(AND(M41>=VLOOKUP("Data Anterior",TabPostergacao[#All],2,FALSE),M41<VLOOKUP("Data Postergada",TabPostergacao[#All],2,FALSE)),$C$7/P41,0) -> 0
M42: =Índices!K332 -> 42389 | N42: =Índices!L332 -> DIA ÚTIL | O42: =Índices!M332 -> 0.052531 | P42: =Índices!N332 -> 1.120659733 | Q42: =IF(AND(M42>=DATE(2015,3,2),M42<DATE(IF(OR(CAPA!$C$23=124,CAPA!$C$23=125,CAPA!$C$23=126,CAPA!$C$23=134,CAPA!$C$23=137),2016,2015),MONTH($C$2),DAY($C$2))),$C$7/P42,0) -> 0 | R42: 0 | S42: 0 | T42: =IF(AND(M42>=VLOOKUP("Data Anterior",TabPostergacao[#All],2,FALSE),M42<VLOOKUP("Data Postergada",TabPostergacao[#All],2,FALSE)),$C$7/P42,0) -> 0
M43: =Índices!K333 -> 42390 | N43: =Índices!L333 -> DIA ÚTIL | O43: =Índices!M333 -> 0.052531 | P43: =Índices!N333 -> 1.121248426 | Q43: =IF(AND(M43>=DATE(2015,3,2),M43<DATE(IF(OR(CAPA!$C$23=124,CAPA!$C$23=125,CAPA!$C$23=126,CAPA!$C$23=134,CAPA!$C$23=137),2016,2015),MONTH($C$2),DAY($C$2))),$C$7/P43,0) -> 0 | R43: 0 | S43: 0 | T43: =IF(AND(M43>=VLOOKUP("Data Anterior",TabPostergacao[#All],2,FALSE),M43<VLOOKUP("Data Postergada",TabPostergacao[#All],2,FALSE)),$C$7/P43,0) -> 0
M44: =Índices!K334 -> 42391 | N44: =Índices!L334 -> DIA ÚTIL | O44: =Índices!M334 -> 0.052531 | P44: =Índices!N334 -> 1.121837429 | Q44: =IF(AND(M44>=DATE(2015,3,2),M44<DATE(IF(OR(CAPA!$C$23=124,CAPA!$C$23=125,CAPA!$C$23=126,CAPA!$C$23=134,CAPA!$C$23=137),2016,2015),MONTH($C$2),DAY($C$2))),$C$7/P44,0) -> 0 | R44: 0 | S44: 0 | T44: =IF(AND(M44>=VLOOKUP("Data Anterior",TabPostergacao[#All],2,FALSE),M44<VLOOKUP("Data Postergada",TabPostergacao[#All],2,FALSE)),$C$7/P44,0) -> 0
M45: =Índices!K335 -> 42392 | N45: =Índices!L335 -> 0 | O45: =Índices!M335 -> 0 | P45: =Índices!N335 -> 1.121837429 | Q45: =IF(AND(M45>=DATE(2015,3,2),M45<DATE(IF(OR(CAPA!$C$23=124,CAPA!$C$23=125,CAPA!$C$23=126,CAPA!$C$23=134,CAPA!$C$23=137),2016,2015),MONTH($C$2),DAY($C$2))),$C$7/P45,0) -> 0 | R45: 0 | S45: 0 | T45: =IF(AND(M45>=VLOOKUP("Data Anterior",TabPostergacao[#All],2,FALSE),M45<VLOOKUP("Data Postergada",TabPostergacao[#All],2,FALSE)),$C$7/P45,0) -> 0
M46: =Índices!K336 -> 42393 | N46: =Índices!L336 -> 0 | O46: =Índices!M336 -> 0 | P46: =Índices!N336 -> 1.121837429 | Q46: =IF(AND(M46>=DATE(2015,3,2),M46<DATE(IF(OR(CAPA!$C$23=124,CAPA!$C$23=125,CAPA!$C$23=126,CAPA!$C$23=134,CAPA!$C$23=137),2016,2015),MONTH($C$2),DAY($C$2))),$C$7/P46,0) -> 0 | R46: 0 | S46: 0 | T46: =IF(AND(M46>=VLOOKUP("Data Anterior",TabPostergacao[#All],2,FALSE),M46<VLOOKUP("Data Postergada",TabPostergacao[#All],2,FALSE)),$C$7/P46,0) -> 0
M47: =Índices!K337 -> 42394 | N47: =Índices!L337 -> DIA ÚTIL | O47: =Índices!M337 -> 0.052531 | P47: =Índices!N337 -> 1.122426742 | Q47: =IF(AND(M47>=DATE(2015,3,2),M47<DATE(IF(OR(CAPA!$C$23=124,CAPA!$C$23=125,CAPA!$C$23=126,CAPA!$C$23=134,CAPA!$C$23=137),2016,2015),MONTH($C$2),DAY($C$2))),$C$7/P47,0) -> 0 | R47: 0 | S47: 0 | T47: =IF(AND(M47>=VLOOKUP("Data Anterior",TabPostergacao[#All],2,FALSE),M47<VLOOKUP("Data Postergada",TabPostergacao[#All],2,FALSE)),$C$7/P47,0) -> 0
M48: =Índices!K338 -> 42395 | N48: =Índices!L338 -> DIA ÚTIL | O48: =Índices!M338 -> 0.052531 | P48: =Índices!N338 -> 1.123016364 | Q48: =IF(AND(M48>=DATE(2015,3,2),M48<DATE(IF(OR(CAPA!$C$23=124,CAPA!$C$23=125,CAPA!$C$23=126,CAPA!$C$23=134,CAPA!$C$23=137),2016,2015),MONTH($C$2),DAY($C$2))),$C$7/P48,0) -> 0 | R48: 0 | S48: 0 | T48: =IF(AND(M48>=VLOOKUP("Data Anterior",TabPostergacao[#All],2,FALSE),M48<VLOOKUP("Data Postergada",TabPostergacao[#All],2,FALSE)),$C$7/P48,0) -> 0
M49: =Índices!K339 -> 42396 | N49: =Índices!L339 -> DIA ÚTIL | O49: =Índices!M339 -> 0.052531 | P49: =Índices!N339 -> 1.123606295 | Q49: =IF(AND(M49>=DATE(2015,3,2),M49<DATE(IF(OR(CAPA!$C$23=124,CAPA!$C$23=125,CAPA!$C$23=126,CAPA!$C$23=134,CAPA!$C$23=137),2016,2015),MONTH($C$2),DAY($C$2))),$C$7/P49,0) -> 0 | R49: 0 | S49: 0 | T49: =IF(AND(M49>=VLOOKUP("Data Anterior",TabPostergacao[#All],2,FALSE),M49<VLOOKUP("Data Postergada",TabPostergacao[#All],2,FALSE)),$C$7/P49,0) -> 0
M50: =Índices!K340 -> 42397 | N50: =Índices!L340 -> DIA ÚTIL | O50: =Índices!M340 -> 0.052531 | P50: =Índices!N340 -> 1.124196537 | Q50: =IF(AND(M50>=DATE(2015,3,2),M50<DATE(IF(OR(CAPA!$C$23=124,CAPA!$C$23=125,CAPA!$C$23=126,CAPA!$C$23=134,CAPA!$C$23=137),2016,2015),MONTH($C$2),DAY($C$2))),$C$7/P50,0) -> 0 | R50: 0 | S50: 0 | T50: =IF(AND(M50>=VLOOKUP("Data Anterior",TabPostergacao[#All],2,FALSE),M50<VLOOKUP("Data Postergada",TabPostergacao[#All],2,FALSE)),$C$7/P50,0) -> 0
M51: =Índices!K341 -> 42398 | N51: =Índices!L341 -> DIA ÚTIL | O51: =Índices!M341 -> 0.052531 | P51: =Índices!N341 -> 1.124787089 | Q51: =IF(AND(M51>=DATE(2015,3,2),M51<DATE(IF(OR(CAPA!$C$23=124,CAPA!$C$23=125,CAPA!$C$23=126,CAPA!$C$23=134,CAPA!$C$23=137),2016,2015),MONTH($C$2),DAY($C$2))),$C$7/P51,0) -> 0 | R51: 0 | S51: 0 | T51: =IF(AND(M51>=VLOOKUP("Data Anterior",TabPostergacao[#All],2,FALSE),M51<VLOOKUP("Data Postergada",TabPostergacao[#All],2,FALSE)),$C$7/P51,0) -> 0
M52: =Índices!K342 -> 42399 | N52: =Índices!L342 -> 0 | O52: =Índices!M342 -> 0 | P52: =Índices!N342 -> 1.124787089 | Q52: =IF(AND(M52>=DATE(2015,3,2),M52<DATE(IF(OR(CAPA!$C$23=124,CAPA!$C$23=125,CAPA!$C$23=126,CAPA!$C$23=134,CAPA!$C$23=137),2016,2015),MONTH($C$2),DAY($C$2))),$C$7/P52,0) -> 0 | R52: 0 | S52: 0 | T52: =IF(AND(M52>=VLOOKUP("Data Anterior",TabPostergacao[#All],2,FALSE),M52<VLOOKUP("Data Postergada",TabPostergacao[#All],2,FALSE)),$C$7/P52,0) -> 0
M53: =Índices!K343 -> 42400 | N53: =Índices!L343 -> 0 | O53: =Índices!M343 -> 0 | P53: =Índices!N343 -> 1.124787089 | Q53: =IF(AND(M53>=DATE(2015,3,2),M53<DATE(IF(OR(CAPA!$C$23=124,CAPA!$C$23=125,CAPA!$C$23=126,CAPA!$C$23=134,CAPA!$C$23=137),2016,2015),MONTH($C$2),DAY($C$2))),$C$7/P53,0) -> 0 | R53: 0 | S53: 0 | T53: =IF(AND(M53>=VLOOKUP("Data Anterior",TabPostergacao[#All],2,FALSE),M53<VLOOKUP("Data Postergada",TabPostergacao[#All],2,FALSE)),$C$7/P53,0) -> 0
M54: =Índices!K344 -> 42401 | N54: =Índices!L344 -> DIA ÚTIL | O54: =Índices!M344 -> 0.052531 | P54: =Índices!N344 -> 1.125377951 | Q54: =IF(AND(M54>=DATE(2015,3,2),M54<DATE(IF(OR(CAPA!$C$23=124,CAPA!$C$23=125,CAPA!$C$23=126,CAPA!$C$23=134,CAPA!$C$23=137),2016,2015),MONTH($C$2),DAY($C$2))),$C$7/P54,0) -> 0 | R54: 0 | S54: 0 | T54: =IF(AND(M54>=VLOOKUP("Data Anterior",TabPostergacao[#All],2,FALSE),M54<VLOOKUP("Data Postergada",TabPostergacao[#All],2,FALSE)),$C$7/P54,0) -> 0
M55: =Índices!K345 -> 42402 | N55: =Índices!L345 -> DIA ÚTIL | O55: =Índices!M345 -> 0.052531 | P55: =Índices!N345 -> 1.125969123 | Q55: =IF(AND(M55>=DATE(2015,3,2),M55<DATE(IF(OR(CAPA!$C$23=124,CAPA!$C$23=125,CAPA!$C$23=126,CAPA!$C$23=134,CAPA!$C$23=137),2016,2015),MONTH($C$2),DAY($C$2))),$C$7/P55,0) -> 0 | R55: 0 | S55: 0 | T55: =IF(AND(M55>=VLOOKUP("Data Anterior",TabPostergacao[#All],2,FALSE),M55<VLOOKUP("Data Postergada",TabPostergacao[#All],2,FALSE)),$C$7/P55,0) -> 0
M56: =Índices!K346 -> 42403 | N56: =Índices!L346 -> DIA ÚTIL | O56: =Índices!M346 -> 0.052531 | P56: =Índices!N346 -> 1.126560606 | Q56: =IF(AND(M56>=DATE(2015,3,2),M56<DATE(IF(OR(CAPA!$C$23=124,CAPA!$C$23=125,CAPA!$C$23=126,CAPA!$C$23=134,CAPA!$C$23=137),2016,2015),MONTH($C$2),DAY($C$2))),$C$7/P56,0) -> 0 | R56: 0 | S56: 0 | T56: =IF(AND(M56>=VLOOKUP("Data Anterior",TabPostergacao[#All],2,FALSE),M56<VLOOKUP("Data Postergada",TabPostergacao[#All],2,FALSE)),$C$7/P56,0) -> 0
M57: =Índices!K347 -> 42404 | N57: =Índices!L347 -> DIA ÚTIL | O57: =Índices!M347 -> 0.052531 | P57: =Índices!N347 -> 1.127152399 | Q57: =IF(AND(M57>=DATE(2015,3,2),M57<DATE(IF(OR(CAPA!$C$23=124,CAPA!$C$23=125,CAPA!$C$23=126,CAPA!$C$23=134,CAPA!$C$23=137),2016,2015),MONTH($C$2),DAY($C$2))),$C$7/P57,0) -> 0 | R57: 0 | S57: 0 | T57: =IF(AND(M57>=VLOOKUP("Data Anterior",TabPostergacao[#All],2,FALSE),M57<VLOOKUP("Data Postergada",TabPostergacao[#All],2,FALSE)),$C$7/P57,0) -> 0
M58: =Índices!K348 -> 42405 | N58: =Índices!L348 -> DIA ÚTIL | O58: =Índices!M348 -> 0.052531 | P58: =Índices!N348 -> 1.127744504 | Q58: =IF(AND(M58>=DATE(2015,3,2),M58<DATE(IF(OR(CAPA!$C$23=124,CAPA!$C$23=125,CAPA!$C$23=126,CAPA!$C$23=134,CAPA!$C$23=137),2016,2015),MONTH($C$2),DAY($C$2))),$C$7/P58,0) -> 0 | R58: 0 | S58: 0 | T58: =IF(AND(M58>=VLOOKUP("Data Anterior",TabPostergacao[#All],2,FALSE),M58<VLOOKUP("Data Postergada",TabPostergacao[#All],2,FALSE)),$C$7/P58,0) -> 0
M59: =Índices!K349 -> 42406 | N59: =Índices!L349 -> 0 | O59: =Índices!M349 -> 0 | P59: =Índices!N349 -> 1.127744504 | Q59: =IF(AND(M59>=DATE(2015,3,2),M59<DATE(IF(OR(CAPA!$C$23=124,CAPA!$C$23=125,CAPA!$C$23=126,CAPA!$C$23=134,CAPA!$C$23=137),2016,2015),MONTH($C$2),DAY($C$2))),$C$7/P59,0) -> 0 | R59: 0 | S59: 0 | T59: =IF(AND(M59>=VLOOKUP("Data Anterior",TabPostergacao[#All],2,FALSE),M59<VLOOKUP("Data Postergada",TabPostergacao[#All],2,FALSE)),$C$7/P59,0) -> 0
M60: =Índices!K350 -> 42407 | N60: =Índices!L350 -> 0 | O60: =Índices!M350 -> 0 | P60: =Índices!N350 -> 1.127744504 | Q60: =IF(AND(M60>=DATE(2015,3,2),M60<DATE(IF(OR(CAPA!$C$23=124,CAPA!$C$23=125,CAPA!$C$23=126,CAPA!$C$23=134,CAPA!$C$23=137),2016,2015),MONTH($C$2),DAY($C$2))),$C$7/P60,0) -> 0 | R60: 0 | S60: 0 | T60: =IF(AND(M60>=VLOOKUP("Data Anterior",TabPostergacao[#All],2,FALSE),M60<VLOOKUP("Data Postergada",TabPostergacao[#All],2,FALSE)),$C$7/P60,0) -> 0
M61: =Índices!K351 -> 42408 | N61: =Índices!L351 -> 0 | O61: =Índices!M351 -> 0 | P61: =Índices!N351 -> 1.127744504 | Q61: =IF(AND(M61>=DATE(2015,3,2),M61<DATE(IF(OR(CAPA!$C$23=124,CAPA!$C$23=125,CAPA!$C$23=126,CAPA!$C$23=134,CAPA!$C$23=137),2016,2015),MONTH($C$2),DAY($C$2))),$C$7/P61,0) -> 0 | R61: 0 | S61: 0 | T61: =IF(AND(M61>=VLOOKUP("Data Anterior",TabPostergacao[#All],2,FALSE),M61<VLOOKUP("Data Postergada",TabPostergacao[#All],2,FALSE)),$C$7/P61,0) -> 0
M62: =Índices!K352 -> 42409 | N62: =Índices!L352 -> 0 | O62: =Índices!M352 -> 0 | P62: =Índices!N352 -> 1.127744504 | Q62: =IF(AND(M62>=DATE(2015,3,2),M62<DATE(IF(OR(CAPA!$C$23=124,CAPA!$C$23=125,CAPA!$C$23=126,CAPA!$C$23=134,CAPA!$C$23=137),2016,2015),MONTH($C$2),DAY($C$2))),$C$7/P62,0) -> 0 | R62: 0 | S62: 0 | T62: =IF(AND(M62>=VLOOKUP("Data Anterior",TabPostergacao[#All],2,FALSE),M62<VLOOKUP("Data Postergada",TabPostergacao[#All],2,FALSE)),$C$7/P62,0) -> 0
M63: =Índices!K353 -> 42410 | N63: =Índices!L353 -> DIA ÚTIL | O63: =Índices!M353 -> 0.052531 | P63: =Índices!N353 -> 1.128336919 | Q63: =IF(AND(M63>=DATE(2015,3,2),M63<DATE(IF(OR(CAPA!$C$23=124,CAPA!$C$23=125,CAPA!$C$23=126,CAPA!$C$23=134,CAPA!$C$23=137),2016,2015),MONTH($C$2),DAY($C$2))),$C$7/P63,0) -> 0 | R63: 0 | S63: 0 | T63: =IF(AND(M63>=VLOOKUP("Data Anterior",TabPostergacao[#All],2,FALSE),M63<VLOOKUP("Data Postergada",TabPostergacao[#All],2,FALSE)),$C$7/P63,0) -> 0
M64: =Índices!K354 -> 42411 | N64: =Índices!L354 -> DIA ÚTIL | O64: =Índices!M354 -> 0.052531 | P64: =Índices!N354 -> 1.128929646 | Q64: =IF(AND(M64>=DATE(2015,3,2),M64<DATE(IF(OR(CAPA!$C$23=124,CAPA!$C$23=125,CAPA!$C$23=126,CAPA!$C$23=134,CAPA!$C$23=137),2016,2015),MONTH($C$2),DAY($C$2))),$C$7/P64,0) -> 0 | R64: 0 | S64: 0 | T64: =IF(AND(M64>=VLOOKUP("Data Anterior",TabPostergacao[#All],2,FALSE),M64<VLOOKUP("Data Postergada",TabPostergacao[#All],2,FALSE)),$C$7/P64,0) -> 0
M65: =Índices!K355 -> 42412 | N65: =Índices!L355 -> DIA ÚTIL | O65: =Índices!M355 -> 0.052531 | P65: =Índices!N355 -> 1.129522684 | Q65: =IF(AND(M65>=DATE(2015,3,2),M65<DATE(IF(OR(CAPA!$C$23=124,CAPA!$C$23=125,CAPA!$C$23=126,CAPA!$C$23=134,CAPA!$C$23=137),2016,2015),MONTH($C$2),DAY($C$2))),$C$7/P65,0) -> 0 | R65: 0 | S65: 0 | T65: =IF(AND(M65>=VLOOKUP("Data Anterior",TabPostergacao[#All],2,FALSE),M65<VLOOKUP("Data Postergada",TabPostergacao[#All],2,FALSE)),$C$7/P65,0) -> 0
M66: =Índices!K356 -> 42413 | N66: =Índices!L356 -> 0 | O66: =Índices!M356 -> 0 | P66: =Índices!N356 -> 1.129522684 | Q66: =IF(AND(M66>=DATE(2015,3,2),M66<DATE(IF(OR(CAPA!$C$23=124,CAPA!$C$23=125,CAPA!$C$23=126,CAPA!$C$23=134,CAPA!$C$23=137),2016,2015),MONTH($C$2),DAY($C$2))),$C$7/P66,0) -> 0 | R66: 0 | S66: 0 | T66: =IF(AND(M66>=VLOOKUP("Data Anterior",TabPostergacao[#All],2,FALSE),M66<VLOOKUP("Data Postergada",TabPostergacao[#All],2,FALSE)),$C$7/P66,0) -> 0
M67: =Índices!K357 -> 42414 | N67: =Índices!L357 -> 0 | O67: =Índices!M357 -> 0 | P67: =Índices!N357 -> 1.129522684 | Q67: =IF(AND(M67>=DATE(2015,3,2),M67<DATE(IF(OR(CAPA!$C$23=124,CAPA!$C$23=125,CAPA!$C$23=126,CAPA!$C$23=134,CAPA!$C$23=137),2016,2015),MONTH($C$2),DAY($C$2))),$C$7/P67,0) -> 0 | R67: 0 | S67: 0 | T67: =IF(AND(M67>=VLOOKUP("Data Anterior",TabPostergacao[#All],2,FALSE),M67<VLOOKUP("Data Postergada",TabPostergacao[#All],2,FALSE)),$C$7/P67,0) -> 0
M68: =Índices!K358 -> 42415 | N68: =Índices!L358 -> DIA ÚTIL | O68: =Índices!M358 -> 0.052531 | P68: =Índices!N358 -> 1.130116033 | Q68: =IF(AND(M68>=DATE(2015,3,2),M68<DATE(IF(OR(CAPA!$C$23=124,CAPA!$C$23=125,CAPA!$C$23=126,CAPA!$C$23=134,CAPA!$C$23=137),2016,2015),MONTH($C$2),DAY($C$2))),$C$7/P68,0) -> 0 | R68: 0 | S68: 0 | T68: =IF(AND(M68>=VLOOKUP("Data Anterior",TabPostergacao[#All],2,FALSE),M68<VLOOKUP("Data Postergada",TabPostergacao[#All],2,FALSE)),$C$7/P68,0) -> 0
M69: =Índices!K359 -> 42416 | N69: =Índices!L359 -> DIA ÚTIL | O69: =Índices!M359 -> 0.052531 | P69: =Índices!N359 -> 1.130709695 | Q69: =IF(AND(M69>=DATE(2015,3,2),M69<DATE(IF(OR(CAPA!$C$23=124,CAPA!$C$23=125,CAPA!$C$23=126,CAPA!$C$23=134,CAPA!$C$23=137),2016,2015),MONTH($C$2),DAY($C$2))),$C$7/P69,0) -> 0 | R69: 0 | S69: 0 | T69: =IF(AND(M69>=VLOOKUP("Data Anterior",TabPostergacao[#All],2,FALSE),M69<VLOOKUP("Data Postergada",TabPostergacao[#All],2,FALSE)),$C$7/P69,0) -> 0
M70: =Índices!K360 -> 42417 | N70: =Índices!L360 -> DIA ÚTIL | O70: =Índices!M360 -> 0.052531 | P70: =Índices!N360 -> 1.131303668 | Q70: =IF(AND(M70>=DATE(2015,3,2),M70<DATE(IF(OR(CAPA!$C$23=124,CAPA!$C$23=125,CAPA!$C$23=126,CAPA!$C$23=134,CAPA!$C$23=137),2016,2015),MONTH($C$2),DAY($C$2))),$C$7/P70,0) -> 0 | R70: 0 | S70: 0 | T70: =IF(AND(M70>=VLOOKUP("Data Anterior",TabPostergacao[#All],2,FALSE),M70<VLOOKUP("Data Postergada",TabPostergacao[#All],2,FALSE)),$C$7/P70,0) -> 0
M71: =Índices!K361 -> 42418 | N71: =Índices!L361 -> DIA ÚTIL | O71: =Índices!M361 -> 0.052531 | P71: =Índices!N361 -> 1.131897953 | Q71: =IF(AND(M71>=DATE(2015,3,2),M71<DATE(IF(OR(CAPA!$C$23=124,CAPA!$C$23=125,CAPA!$C$23=126,CAPA!$C$23=134,CAPA!$C$23=137),2016,2015),MONTH($C$2),DAY($C$2))),$C$7/P71,0) -> 0 | R71: 0 | S71: 0 | T71: =IF(AND(M71>=VLOOKUP("Data Anterior",TabPostergacao[#All],2,FALSE),M71<VLOOKUP("Data Postergada",TabPostergacao[#All],2,FALSE)),$C$7/P71,0) -> 0
M72: =Índices!K362 -> 42419 | N72: =Índices!L362 -> DIA ÚTIL | O72: =Índices!M362 -> 0.052531 | P72: =Índices!N362 -> 1.13249255 | Q72: =IF(AND(M72>=DATE(2015,3,2),M72<DATE(IF(OR(CAPA!$C$23=124,CAPA!$C$23=125,CAPA!$C$23=126,CAPA!$C$23=134,CAPA!$C$23=137),2016,2015),MONTH($C$2),DAY($C$2))),$C$7/P72,0) -> 0 | R72: 0 | S72: 0 | T72: =IF(AND(M72>=VLOOKUP("Data Anterior",TabPostergacao[#All],2,FALSE),M72<VLOOKUP("Data Postergada",TabPostergacao[#All],2,FALSE)),$C$7/P72,0) -> 0
M73: =Índices!K363 -> 42420 | N73: =Índices!L363 -> 0 | O73: =Índices!M363 -> 0 | P73: =Índices!N363 -> 1.13249255 | Q73: =IF(AND(M73>=DATE(2015,3,2),M73<DATE(IF(OR(CAPA!$C$23=124,CAPA!$C$23=125,CAPA!$C$23=126,CAPA!$C$23=134,CAPA!$C$23=137),2016,2015),MONTH($C$2),DAY($C$2))),$C$7/P73,0) -> 0 | R73: 0 | S73: 0 | T73: =IF(AND(M73>=VLOOKUP("Data Anterior",TabPostergacao[#All],2,FALSE),M73<VLOOKUP("Data Postergada",TabPostergacao[#All],2,FALSE)),$C$7/P73,0) -> 0
M74: =Índices!K364 -> 42421 | N74: =Índices!L364 -> 0 | O74: =Índices!M364 -> 0 | P74: =Índices!N364 -> 1.13249255 | Q74: =IF(AND(M74>=DATE(2015,3,2),M74<DATE(IF(OR(CAPA!$C$23=124,CAPA!$C$23=125,CAPA!$C$23=126,CAPA!$C$23=134,CAPA!$C$23=137),2016,2015),MONTH($C$2),DAY($C$2))),$C$7/P74,0) -> 0 | R74: 0 | S74: =IF(AND(M74>=$C$4,M74<$C$6),$C$7/P74,0) -> 0 | T74: =IF(AND(M74>=VLOOKUP("Data Anterior",TabPostergacao[#All],2,FALSE),M74<VLOOKUP("Data Postergada",TabPostergacao[#All],2,FALSE)),$C$7/P74,0) -> 0
M75: =Índices!K365 -> 42422 | N75: =Índices!L365 -> DIA ÚTIL | O75: =Índices!M365 -> 0.052531 | P75: =Índices!N365 -> 1.13308746 | Q75: =IF(AND(M75>=DATE(2015,3,2),M75<DATE(IF(OR(CAPA!$C$23=124,CAPA!$C$23=125,CAPA!$C$23=126,CAPA!$C$23=134,CAPA!$C$23=137),2016,2015),MONTH($C$2),DAY($C$2))),$C$7/P75,0) -> 0 | R75: =IF(AND(M75>=$C$3,M75<$C$5),$C$7/P75,0) -> 0 | S75: 0 | T75: =IF(AND(M75>=VLOOKUP("Data Anterior",TabPostergacao[#All],2,FALSE),M75<VLOOKUP("Data Postergada",TabPostergacao[#All],2,FALSE)),$C$7/P75,0) -> 0
M76: =Índices!K366 -> 42423 | N76: =Índices!L366 -> DIA ÚTIL | O76: =Índices!M366 -> 0.052531 | P76: =Índices!N366 -> 1.133682682 | Q76: =IF(AND(M76>=DATE(2015,3,2),M76<DATE(IF(OR(CAPA!$C$23=124,CAPA!$C$23=125,CAPA!$C$23=126,CAPA!$C$23=134,CAPA!$C$23=137),2016,2015),MONTH($C$2),DAY($C$2))),$C$7/P76,0) -> 0 | R76: 0 | S76: 0 | T76: =IF(AND(M76>=VLOOKUP("Data Anterior",TabPostergacao[#All],2,FALSE),M76<VLOOKUP("Data Postergada",TabPostergacao[#All],2,FALSE)),$C$7/P76,0) -> 0
M77: =Índices!K367 -> 42424 | N77: =Índices!L367 -> DIA ÚTIL | O77: =Índices!M367 -> 0.052531 | P77: =Índices!N367 -> 1.134278217 | Q77: =IF(AND(M77>=DATE(2015,3,2),M77<DATE(IF(OR(CAPA!$C$23=124,CAPA!$C$23=125,CAPA!$C$23=126,CAPA!$C$23=134,CAPA!$C$23=137),2016,2015),MONTH($C$2),DAY($C$2))),$C$7/P77,0) -> 0 | R77: 0 | S77: 0 | T77: =IF(AND(M77>=VLOOKUP("Data Anterior",TabPostergacao[#All],2,FALSE),M77<VLOOKUP("Data Postergada",TabPostergacao[#All],2,FALSE)),$C$7/P77,0) -> 0
M78: =Índices!K368 -> 42425 | N78: =Índices!L368 -> DIA ÚTIL | O78: =Índices!M368 -> 0.052531 | P78: =Índices!N368 -> 1.134874065 | Q78: =IF(AND(M78>=DATE(2015,3,2),M78<DATE(IF(OR(CAPA!$C$23=124,CAPA!$C$23=125,CAPA!$C$23=126,CAPA!$C$23=134,CAPA!$C$23=137),2016,2015),MONTH($C$2),DAY($C$2))),$C$7/P78,0) -> 0 | R78: 0 | S78: 0 | T78: =IF(AND(M78>=VLOOKUP("Data Anterior",TabPostergacao[#All],2,FALSE),M78<VLOOKUP("Data Postergada",TabPostergacao[#All],2,FALSE)),$C$7/P78,0) -> 0
M79: =Índices!K369 -> 42426 | N79: =Índices!L369 -> DIA ÚTIL | O79: =Índices!M369 -> 0.052531 | P79: =Índices!N369 -> 1.135470225 | Q79: =IF(AND(M79>=DATE(2015,3,2),M79<DATE(IF(OR(CAPA!$C$23=124,CAPA!$C$23=125,CAPA!$C$23=126,CAPA!$C$23=134,CAPA!$C$23=137),2016,2015),MONTH($C$2),DAY($C$2))),$C$7/P79,0) -> 0 | R79: 0 | S79: 0 | T79: =IF(AND(M79>=VLOOKUP("Data Anterior",TabPostergacao[#All],2,FALSE),M79<VLOOKUP("Data Postergada",TabPostergacao[#All],2,FALSE)),$C$7/P79,0) -> 0
M80: =Índices!K370 -> 42427 | N80: =Índices!L370 -> 0 | O80: =Índices!M370 -> 0 | P80: =Índices!N370 -> 1.135470225 | Q80: =IF(AND(M80>=DATE(2015,3,2),M80<DATE(IF(OR(CAPA!$C$23=124,CAPA!$C$23=125,CAPA!$C$23=126,CAPA!$C$23=134,CAPA!$C$23=137),2016,2015),MONTH($C$2),DAY($C$2))),$C$7/P80,0) -> 0 | R80: 0 | S80: 0 | T80: =IF(AND(M80>=VLOOKUP("Data Anterior",TabPostergacao[#All],2,FALSE),M80<VLOOKUP("Data Postergada",TabPostergacao[#All],2,FALSE)),$C$7/P80,0) -> 0
M81: =Índices!K371 -> 42428 | N81: =Índices!L371 -> 0 | O81: =Índices!M371 -> 0 | P81: =Índices!N371 -> 1.135470225 | Q81: =IF(AND(M81>=DATE(2015,3,2),M81<DATE(IF(OR(CAPA!$C$23=124,CAPA!$C$23=125,CAPA!$C$23=126,CAPA!$C$23=134,CAPA!$C$23=137),2016,2015),MONTH($C$2),DAY($C$2))),$C$7/P81,0) -> 0 | R81: 0 | S81: 0 | T81: =IF(AND(M81>=VLOOKUP("Data Anterior",TabPostergacao[#All],2,FALSE),M81<VLOOKUP("Data Postergada",TabPostergacao[#All],2,FALSE)),$C$7/P81,0) -> 0
M82: =Índices!K372 -> 42429 | N82: =Índices!L372 -> DIA ÚTIL | O82: =Índices!M372 -> 0.052531 | P82: =Índices!N372 -> 1.136066699 | Q82: =IF(AND(M82>=DATE(2015,3,2),M82<DATE(IF(OR(CAPA!$C$23=124,CAPA!$C$23=125,CAPA!$C$23=126,CAPA!$C$23=134,CAPA!$C$23=137),2016,2015),MONTH($C$2),DAY($C$2))),$C$7/P82,0) -> 0 | R82: 0 | S82: 0 | T82: =IF(AND(M82>=VLOOKUP("Data Anterior",TabPostergacao[#All],2,FALSE),M82<VLOOKUP("Data Postergada",TabPostergacao[#All],2,FALSE)),$C$7/P82,0) -> 0
M83: =Índices!K373 -> 42430 | N83: =Índices!L373 -> DIA ÚTIL | O83: =Índices!M373 -> 0.052531 | P83: =Índices!N373 -> 1.136663486 | Q83: =IF(AND(M83>=DATE(2015,3,2),M83<DATE(IF(OR(CAPA!$C$23=124,CAPA!$C$23=125,CAPA!$C$23=126,CAPA!$C$23=134,CAPA!$C$23=137),2016,2015),MONTH($C$2),DAY($C$2))),$C$7/P83,0) -> 0 | R83: 0 | S83: 0 | T83: =IF(AND(M83>=VLOOKUP("Data Anterior",TabPostergacao[#All],2,FALSE),M83<VLOOKUP("Data Postergada",TabPostergacao[#All],2,FALSE)),$C$7/P83,0) -> 0
M84: =Índices!K374 -> 42431 | N84: =Índices!L374 -> DIA ÚTIL | O84: =Índices!M374 -> 0.052531 | P84: =Índices!N374 -> 1.137260587 | Q84: =IF(AND(M84>=DATE(2015,3,2),M84<DATE(IF(OR(CAPA!$C$23=124,CAPA!$C$23=125,CAPA!$C$23=126,CAPA!$C$23=134,CAPA!$C$23=137),2016,2015),MONTH($C$2),DAY($C$2))),$C$7/P84,0) -> 0 | R84: 0 | S84: 0 | T84: =IF(AND(M84>=VLOOKUP("Data Anterior",TabPostergacao[#All],2,FALSE),M84<VLOOKUP("Data Postergada",TabPostergacao[#All],2,FALSE)),$C$7/P84,0) -> 0
M85: =Índices!K375 -> 42432 | N85: =Índices!L375 -> DIA ÚTIL | O85: =Índices!M375 -> 0.052531 | P85: =Índices!N375 -> 1.137858001 | Q85: =IF(AND(M85>=DATE(2015,3,2),M85<DATE(IF(OR(CAPA!$C$23=124,CAPA!$C$23=125,CAPA!$C$23=126,CAPA!$C$23=134,CAPA!$C$23=137),2016,2015),MONTH($C$2),DAY($C$2))),$C$7/P85,0) -> 0 | R85: 0 | S85: 0 | T85: =IF(AND(M85>=VLOOKUP("Data Anterior",TabPostergacao[#All],2,FALSE),M85<VLOOKUP("Data Postergada",TabPostergacao[#All],2,FALSE)),$C$7/P85,0) -> 0
M86: =Índices!K376 -> 42433 | N86: =Índices!L376 -> DIA ÚTIL | O86: =Índices!M376 -> 0.052531 | P86: =Índices!N376 -> 1.13845573 | Q86: =IF(AND(M86>=DATE(2015,3,2),M86<DATE(IF(OR(CAPA!$C$23=124,CAPA!$C$23=125,CAPA!$C$23=126,CAPA!$C$23=134,CAPA!$C$23=137),2016,2015),MONTH($C$2),DAY($C$2))),$C$7/P86,0) -> 0 | R86: 0 | S86: 0 | T86: =IF(AND(M86>=VLOOKUP("Data Anterior",TabPostergacao[#All],2,FALSE),M86<VLOOKUP("Data Postergada",TabPostergacao[#All],2,FALSE)),$C$7/P86,0) -> 0
M87: =Índices!K377 -> 42434 | N87: =Índices!L377 -> 0 | O87: =Índices!M377 -> 0 | P87: =Índices!N377 -> 1.13845573 | Q87: =IF(AND(M87>=DATE(2015,3,2),M87<DATE(IF(OR(CAPA!$C$23=124,CAPA!$C$23=125,CAPA!$C$23=126,CAPA!$C$23=134,CAPA!$C$23=137),2016,2015),MONTH($C$2),DAY($C$2))),$C$7/P87,0) -> 0 | R87: 0 | S87: 0 | T87: =IF(AND(M87>=VLOOKUP("Data Anterior",TabPostergacao[#All],2,FALSE),M87<VLOOKUP("Data Postergada",TabPostergacao[#All],2,FALSE)),$C$7/P87,0) -> 0
M88: =Índices!K378 -> 42435 | N88: =Índices!L378 -> 0 | O88: =Índices!M378 -> 0 | P88: =Índices!N378 -> 1.13845573 | Q88: =IF(AND(M88>=DATE(2015,3,2),M88<DATE(IF(OR(CAPA!$C$23=124,CAPA!$C$23=125,CAPA!$C$23=126,CAPA!$C$23=134,CAPA!$C$23=137),2016,2015),MONTH($C$2),DAY($C$2))),$C$7/P88,0) -> 0 | R88: 0 | S88: 0 | T88: =IF(AND(M88>=VLOOKUP("Data Anterior",TabPostergacao[#All],2,FALSE),M88<VLOOKUP("Data Postergada",TabPostergacao[#All],2,FALSE)),$C$7/P88,0) -> 0
M89: =Índices!K379 -> 42436 | N89: =Índices!L379 -> DIA ÚTIL | O89: =Índices!M379 -> 0.052531 | P89: =Índices!N379 -> 1.139053772 | Q89: =IF(AND(M89>=DATE(2015,3,2),M89<DATE(IF(OR(CAPA!$C$23=124,CAPA!$C$23=125,CAPA!$C$23=126,CAPA!$C$23=134,CAPA!$C$23=137),2016,2015),MONTH($C$2),DAY($C$2))),$C$7/P89,0) -> 0 | R89: 0 | S89: 0 | T89: =IF(AND(M89>=VLOOKUP("Data Anterior",TabPostergacao[#All],2,FALSE),M89<VLOOKUP("Data Postergada",TabPostergacao[#All],2,FALSE)),$C$7/P89,0) -> 0
M90: =Índices!K380 -> 42437 | N90: =Índices!L380 -> DIA ÚTIL | O90: =Índices!M380 -> 0.052531 | P90: =Índices!N380 -> 1.139652128 | Q90: =IF(AND(M90>=DATE(2015,3,2),M90<DATE(IF(OR(CAPA!$C$23=124,CAPA!$C$23=125,CAPA!$C$23=126,CAPA!$C$23=134,CAPA!$C$23=137),2016,2015),MONTH($C$2),DAY($C$2))),$C$7/P90,0) -> 0 | R90: 0 | S90: 0 | T90: =IF(AND(M90>=VLOOKUP("Data Anterior",TabPostergacao[#All],2,FALSE),M90<VLOOKUP("Data Postergada",TabPostergacao[#All],2,FALSE)),$C$7/P90,0) -> 0
M91: =Índices!K381 -> 42438 | N91: =Índices!L381 -> DIA ÚTIL | O91: =Índices!M381 -> 0.052531 | P91: =Índices!N381 -> 1.140250799 | Q91: =IF(AND(M91>=DATE(2015,3,2),M91<DATE(IF(OR(CAPA!$C$23=124,CAPA!$C$23=125,CAPA!$C$23=126,CAPA!$C$23=134,CAPA!$C$23=137),2016,2015),MONTH($C$2),DAY($C$2))),$C$7/P91,0) -> 0 | R91: 0 | S91: 0 | T91: =IF(AND(M91>=VLOOKUP("Data Anterior",TabPostergacao[#All],2,FALSE),M91<VLOOKUP("Data Postergada",TabPostergacao[#All],2,FALSE)),$C$7/P91,0) -> 0
M92: =Índices!K382 -> 42439 | N92: =Índices!L382 -> DIA ÚTIL | O92: =Índices!M382 -> 0.052531 | P92: =Índices!N382 -> 1.140849784 | Q92: =IF(AND(M92>=DATE(2015,3,2),M92<DATE(IF(OR(CAPA!$C$23=124,CAPA!$C$23=125,CAPA!$C$23=126,CAPA!$C$23=134,CAPA!$C$23=137),2016,2015),MONTH($C$2),DAY($C$2))),$C$7/P92,0) -> 0 | R92: 0 | S92: 0 | T92: =IF(AND(M92>=VLOOKUP("Data Anterior",TabPostergacao[#All],2,FALSE),M92<VLOOKUP("Data Postergada",TabPostergacao[#All],2,FALSE)),$C$7/P92,0) -> 0
M93: =Índices!K383 -> 42440 | N93: =Índices!L383 -> DIA ÚTIL | O93: =Índices!M383 -> 0.052531 | P93: =Índices!N383 -> 1.141449084 | Q93: =IF(AND(M93>=DATE(2015,3,2),M93<DATE(IF(OR(CAPA!$C$23=124,CAPA!$C$23=125,CAPA!$C$23=126,CAPA!$C$23=134,CAPA!$C$23=137),2016,2015),MONTH($C$2),DAY($C$2))),$C$7/P93,0) -> 0 | R93: 0 | S93: 0 | T93: =IF(AND(M93>=VLOOKUP("Data Anterior",TabPostergacao[#All],2,FALSE),M93<VLOOKUP("Data Postergada",TabPostergacao[#All],2,FALSE)),$C$7/P93,0) -> 0
M94: =Índices!K384 -> 42441 | N94: =Índices!L384 -> 0 | O94: =Índices!M384 -> 0 | P94: =Índices!N384 -> 1.141449084 | Q94: =IF(AND(M94>=DATE(2015,3,2),M94<DATE(IF(OR(CAPA!$C$23=124,CAPA!$C$23=125,CAPA!$C$23=126,CAPA!$C$23=134,CAPA!$C$23=137),2016,2015),MONTH($C$2),DAY($C$2))),$C$7/P94,0) -> 0 | R94: 0 | S94: 0 | T94: =IF(AND(M94>=VLOOKUP("Data Anterior",TabPostergacao[#All],2,FALSE),M94<VLOOKUP("Data Postergada",TabPostergacao[#All],2,FALSE)),$C$7/P94,0) -> 0
M95: =Índices!K385 -> 42442 | N95: =Índices!L385 -> 0 | O95: =Índices!M385 -> 0 | P95: =Índices!N385 -> 1.141449084 | Q95: =IF(AND(M95>=DATE(2015,3,2),M95<DATE(IF(OR(CAPA!$C$23=124,CAPA!$C$23=125,CAPA!$C$23=126,CAPA!$C$23=134,CAPA!$C$23=137),2016,2015),MONTH($C$2),DAY($C$2))),$C$7/P95,0) -> 0 | R95: 0 | S95: 0 | T95: =IF(AND(M95>=VLOOKUP("Data Anterior",TabPostergacao[#All],2,FALSE),M95<VLOOKUP("Data Postergada",TabPostergacao[#All],2,FALSE)),$C$7/P95,0) -> 0
M96: =Índices!K386 -> 42443 | N96: =Índices!L386 -> DIA ÚTIL | O96: =Índices!M386 -> 0.052531 | P96: =Índices!N386 -> 1.142048698 | Q96: =IF(AND(M96>=DATE(2015,3,2),M96<DATE(IF(OR(CAPA!$C$23=124,CAPA!$C$23=125,CAPA!$C$23=126,CAPA!$C$23=134,CAPA!$C$23=137),2016,2015),MONTH($C$2),DAY($C$2))),$C$7/P96,0) -> 0 | R96: 0 | S96: 0 | T96: =IF(AND(M96>=VLOOKUP("Data Anterior",TabPostergacao[#All],2,FALSE),M96<VLOOKUP("Data Postergada",TabPostergacao[#All],2,FALSE)),$C$7/P96,0) -> 0
M97: =Índices!K387 -> 42444 | N97: =Índices!L387 -> DIA ÚTIL | O97: =Índices!M387 -> 0.052531 | P97: =Índices!N387 -> 1.142648628 | Q97: =IF(AND(M97>=DATE(2015,3,2),M97<DATE(IF(OR(CAPA!$C$23=124,CAPA!$C$23=125,CAPA!$C$23=126,CAPA!$C$23=134,CAPA!$C$23=137),2016,2015),MONTH($C$2),DAY($C$2))),$C$7/P97,0) -> 0 | R97: 0 | S97: 0 | T97: =IF(AND(M97>=VLOOKUP("Data Anterior",TabPostergacao[#All],2,FALSE),M97<VLOOKUP("Data Postergada",TabPostergacao[#All],2,FALSE)),$C$7/P97,0) -> 0
M98: =Índices!K388 -> 42445 | N98: =Índices!L388 -> DIA ÚTIL | O98: =Índices!M388 -> 0.052531 | P98: =Índices!N388 -> 1.143248873 | Q98: =IF(AND(M98>=DATE(2015,3,2),M98<DATE(IF(OR(CAPA!$C$23=124,CAPA!$C$23=125,CAPA!$C$23=126,CAPA!$C$23=134,CAPA!$C$23=137),2016,2015),MONTH($C$2),DAY($C$2))),$C$7/P98,0) -> 0 | R98: 0 | S98: 0 | T98: =IF(AND(M98>=VLOOKUP("Data Anterior",TabPostergacao[#All],2,FALSE),M98<VLOOKUP("Data Postergada",TabPostergacao[#All],2,FALSE)),$C$7/P98,0) -> 0
M99: =Índices!K389 -> 42446 | N99: =Índices!L389 -> DIA ÚTIL | O99: =Índices!M389 -> 0.052531 | P99: =Índices!N389 -> 1.143849433 | Q99: =IF(AND(M99>=DATE(2015,3,2),M99<DATE(IF(OR(CAPA!$C$23=124,CAPA!$C$23=125,CAPA!$C$23=126,CAPA!$C$23=134,CAPA!$C$23=137),2016,2015),MONTH($C$2),DAY($C$2))),$C$7/P99,0) -> 0 | R99: 0 | S99: 0 | T99: =IF(AND(M99>=VLOOKUP("Data Anterior",TabPostergacao[#All],2,FALSE),M99<VLOOKUP("Data Postergada",TabPostergacao[#All],2,FALSE)),$C$7/P99,0) -> 0
M100: =Índices!K390 -> 42447 | N100: =Índices!L390 -> DIA ÚTIL | O100: =Índices!M390 -> 0.052531 | P100: =Índices!N390 -> 1.144450308 | Q100: =IF(AND(M100>=DATE(2015,3,2),M100<DATE(IF(OR(CAPA!$C$23=124,CAPA!$C$23=125,CAPA!$C$23=126,CAPA!$C$23=134,CAPA!$C$23=137),2016,2015),MONTH($C$2),DAY($C$2))),$C$7/P100,0) -> 0 | R100: 0 | S100: 0 | T100: =IF(AND(M100>=VLOOKUP("Data Anterior",TabPostergacao[#All],2,FALSE),M100<VLOOKUP("Data Postergada",TabPostergacao[#All],2,FALSE)),$C$7/P100,0) -> 0
M101: =Índices!K391 -> 42448 | N101: =Índices!L391 -> 0 | O101: =Índices!M391 -> 0 | P101: =Índices!N391 -> 1.144450308 | Q101: =IF(AND(M101>=DATE(2015,3,2),M101<DATE(IF(OR(CAPA!$C$23=124,CAPA!$C$23=125,CAPA!$C$23=126,CAPA!$C$23=134,CAPA!$C$23=137),2016,2015),MONTH($C$2),DAY($C$2))),$C$7/P101,0) -> 0 | R101: 0 | S101: 0 | T101: =IF(AND(M101>=VLOOKUP("Data Anterior",TabPostergacao[#All],2,FALSE),M101<VLOOKUP("Data Postergada",TabPostergacao[#All],2,FALSE)),$C$7/P101,0) -> 0
M102: =Índices!K392 -> 42449 | N102: =Índices!L392 -> 0 | O102: =Índices!M392 -> 0 | P102: =Índices!N392 -> 1.144450308 | Q102: =IF(AND(M102>=DATE(2015,3,2),M102<DATE(IF(OR(CAPA!$C$23=124,CAPA!$C$23=125,CAPA!$C$23=126,CAPA!$C$23=134,CAPA!$C$23=137),2016,2015),MONTH($C$2),DAY($C$2))),$C$7/P102,0) -> 0 | R102: 0 | S102: 0 | T102: =IF(AND(M102>=VLOOKUP("Data Anterior",TabPostergacao[#All],2,FALSE),M102<VLOOKUP("Data Postergada",TabPostergacao[#All],2,FALSE)),$C$7/P102,0) -> 0
M103: =Índices!K393 -> 42450 | N103: =Índices!L393 -> DIA ÚTIL | O103: =Índices!M393 -> 0.052531 | P103: =Índices!N393 -> 1.1450515 | Q103: =IF(AND(M103>=DATE(2015,3,2),M103<DATE(IF(OR(CAPA!$C$23=124,CAPA!$C$23=125,CAPA!$C$23=126,CAPA!$C$23=134,CAPA!$C$23=137),2016,2015),MONTH($C$2),DAY($C$2))),$C$7/P103,0) -> 0 | R103: 0 | S103: 0 | T103: =IF(AND(M103>=VLOOKUP("Data Anterior",TabPostergacao[#All],2,FALSE),M103<VLOOKUP("Data Postergada",TabPostergacao[#All],2,FALSE)),$C$7/P103,0) -> 0
M104: =Índices!K394 -> 42451 | N104: =Índices!L394 -> DIA ÚTIL | O104: =Índices!M394 -> 0.052531 | P104: =Índices!N394 -> 1.145653007 | Q104: =IF(AND(M104>=DATE(2015,3,2),M104<DATE(IF(OR(CAPA!$C$23=124,CAPA!$C$23=125,CAPA!$C$23=126,CAPA!$C$23=134,CAPA!$C$23=137),2016,2015),MONTH($C$2),DAY($C$2))),$C$7/P104,0) -> 0 | R104: 0 | S104: 0 | T104: =IF(AND(M104>=VLOOKUP("Data Anterior",TabPostergacao[#All],2,FALSE),M104<VLOOKUP("Data Postergada",TabPostergacao[#All],2,FALSE)),$C$7/P104,0) -> 0
M105: =Índices!K395 -> 42452 | N105: =Índices!L395 -> DIA ÚTIL | O105: =Índices!M395 -> 0.052531 | P105: =Índices!N395 -> 1.14625483 | Q105: =IF(AND(M105>=DATE(2015,3,2),M105<DATE(IF(OR(CAPA!$C$23=124,CAPA!$C$23=125,CAPA!$C$23=126,CAPA!$C$23=134,CAPA!$C$23=137),2016,2015),MONTH($C$2),DAY($C$2))),$C$7/P105,0) -> 0 | R105: 0 | S105: 0 | T105: =IF(AND(M105>=VLOOKUP("Data Anterior",TabPostergacao[#All],2,FALSE),M105<VLOOKUP("Data Postergada",TabPostergacao[#All],2,FALSE)),$C$7/P105,0) -> 0
M106: =Índices!K396 -> 42453 | N106: =Índices!L396 -> DIA ÚTIL | O106: =Índices!M396 -> 0.052531 | P106: =Índices!N396 -> 1.146856969 | Q106: =IF(AND(M106>=DATE(2015,3,2),M106<DATE(IF(OR(CAPA!$C$23=124,CAPA!$C$23=125,CAPA!$C$23=126,CAPA!$C$23=134,CAPA!$C$23=137),2016,2015),MONTH($C$2),DAY($C$2))),$C$7/P106,0) -> 0 | R106: 0 | S106: 0 | T106: =IF(AND(M106>=VLOOKUP("Data Anterior",TabPostergacao[#All],2,FALSE),M106<VLOOKUP("Data Postergada",TabPostergacao[#All],2,FALSE)),$C$7/P106,0) -> 0
M107: =Índices!K397 -> 42454 | N107: =Índices!L397 -> 0 | O107: =Índices!M397 -> 0 | P107: =Índices!N397 -> 1.146856969 | Q107: =IF(AND(M107>=DATE(2015,3,2),M107<DATE(IF(OR(CAPA!$C$23=124,CAPA!$C$23=125,CAPA!$C$23=126,CAPA!$C$23=134,CAPA!$C$23=137),2016,2015),MONTH($C$2),DAY($C$2))),$C$7/P107,0) -> 0 | R107: 0 | S107: 0 | T107: =IF(AND(M107>=VLOOKUP("Data Anterior",TabPostergacao[#All],2,FALSE),M107<VLOOKUP("Data Postergada",TabPostergacao[#All],2,FALSE)),$C$7/P107,0) -> 0
M108: =Índices!K398 -> 42455 | N108: =Índices!L398 -> 0 | O108: =Índices!M398 -> 0 | P108: =Índices!N398 -> 1.146856969 | Q108: =IF(AND(M108>=DATE(2015,3,2),M108<DATE(IF(OR(CAPA!$C$23=124,CAPA!$C$23=125,CAPA!$C$23=126,CAPA!$C$23=134,CAPA!$C$23=137),2016,2015),MONTH($C$2),DAY($C$2))),$C$7/P108,0) -> 0 | R108: 0 | S108: 0 | T108: =IF(AND(M108>=VLOOKUP("Data Anterior",TabPostergacao[#All],2,FALSE),M108<VLOOKUP("Data Postergada",TabPostergacao[#All],2,FALSE)),$C$7/P108,0) -> 0
M109: =Índices!K399 -> 42456 | N109: =Índices!L399 -> 0 | O109: =Índices!M399 -> 0 | P109: =Índices!N399 -> 1.146856969 | Q109: =IF(AND(M109>=DATE(2015,3,2),M109<DATE(IF(OR(CAPA!$C$23=124,CAPA!$C$23=125,CAPA!$C$23=126,CAPA!$C$23=134,CAPA!$C$23=137),2016,2015),MONTH($C$2),DAY($C$2))),$C$7/P109,0) -> 0 | R109: 0 | S109: 0 | T109: =IF(AND(M109>=VLOOKUP("Data Anterior",TabPostergacao[#All],2,FALSE),M109<VLOOKUP("Data Postergada",TabPostergacao[#All],2,FALSE)),$C$7/P109,0) -> 0
M110: =Índices!K400 -> 42457 | N110: =Índices!L400 -> DIA ÚTIL | O110: =Índices!M400 -> 0.052531 | P110: =Índices!N400 -> 1.147459424 | Q110: =IF(AND(M110>=DATE(2015,3,2),M110<DATE(IF(OR(CAPA!$C$23=124,CAPA!$C$23=125,CAPA!$C$23=126,CAPA!$C$23=134,CAPA!$C$23=137),2016,2015),MONTH($C$2),DAY($C$2))),$C$7/P110,0) -> 0 | R110: 0 | S110: 0 | T110: =IF(AND(M110>=VLOOKUP("Data Anterior",TabPostergacao[#All],2,FALSE),M110<VLOOKUP("Data Postergada",TabPostergacao[#All],2,FALSE)),$C$7/P110,0) -> 0
M111: =Índices!K401 -> 42458 | N111: =Índices!L401 -> DIA ÚTIL | O111: =Índices!M401 -> 0.052531 | P111: =Índices!N401 -> 1.148062196 | Q111: =IF(AND(M111>=DATE(2015,3,2),M111<DATE(IF(OR(CAPA!$C$23=124,CAPA!$C$23=125,CAPA!$C$23=126,CAPA!$C$23=134,CAPA!$C$23=137),2016,2015),MONTH($C$2),DAY($C$2))),$C$7/P111,0) -> 0 | R111: 0 | S111: 0 | T111: =IF(AND(M111>=VLOOKUP("Data Anterior",TabPostergacao[#All],2,FALSE),M111<VLOOKUP("Data Postergada",TabPostergacao[#All],2,FALSE)),$C$7/P111,0) -> 0
M112: =Índices!K402 -> 42459 | N112: =Índices!L402 -> DIA ÚTIL | O112: =Índices!M402 -> 0.052531 | P112: =Índices!N402 -> 1.148665285 | Q112: =IF(AND(M112>=DATE(2015,3,2),M112<DATE(IF(OR(CAPA!$C$23=124,CAPA!$C$23=125,CAPA!$C$23=126,CAPA!$C$23=134,CAPA!$C$23=137),2016,2015),MONTH($C$2),DAY($C$2))),$C$7/P112,0) -> 0 | R112: 0 | S112: 0 | T112: =IF(AND(M112>=VLOOKUP("Data Anterior",TabPostergacao[#All],2,FALSE),M112<VLOOKUP("Data Postergada",TabPostergacao[#All],2,FALSE)),$C$7/P112,0) -> 0
M113: =Índices!K403 -> 42460 | N113: =Índices!L403 -> DIA ÚTIL | O113: =Índices!M403 -> 0.052531 | P113: =Índices!N403 -> 1.14926869 | Q113: =IF(AND(M113>=DATE(2015,3,2),M113<DATE(IF(OR(CAPA!$C$23=124,CAPA!$C$23=125,CAPA!$C$23=126,CAPA!$C$23=134,CAPA!$C$23=137),2016,2015),MONTH($C$2),DAY($C$2))),$C$7/P113,0) -> 0 | R113: 0 | S113: 0 | T113: =IF(AND(M113>=VLOOKUP("Data Anterior",TabPostergacao[#All],2,FALSE),M113<VLOOKUP("Data Postergada",TabPostergacao[#All],2,FALSE)),$C$7/P113,0) -> 0
M114: =Índices!K404 -> 42461 | N114: =Índices!L404 -> DIA ÚTIL | O114: =Índices!M404 -> 0.052531 | P114: =Índices!N404 -> 1.149872412 | Q114: =IF(AND(M114>=DATE(2015,3,2),M114<DATE(IF(OR(CAPA!$C$23=124,CAPA!$C$23=125,CAPA!$C$23=126,CAPA!$C$23=134,CAPA!$C$23=137),2016,2015),MONTH($C$2),DAY($C$2))),$C$7/P114,0) -> 0 | R114: 0 | S114: 0 | T114: =IF(AND(M114>=VLOOKUP("Data Anterior",TabPostergacao[#All],2,FALSE),M114<VLOOKUP("Data Postergada",TabPostergacao[#All],2,FALSE)),$C$7/P114,0) -> 0
M115: =Índices!K405 -> 42462 | N115: =Índices!L405 -> 0 | O115: =Índices!M405 -> 0 | P115: =Índices!N405 -> 1.149872412 | Q115: =IF(AND(M115>=DATE(2015,3,2),M115<DATE(IF(OR(CAPA!$C$23=124,CAPA!$C$23=125,CAPA!$C$23=126,CAPA!$C$23=134,CAPA!$C$23=137),2016,2015),MONTH($C$2),DAY($C$2))),$C$7/P115,0) -> 0 | R115: 0 | S115: 0 | T115: =IF(AND(M115>=VLOOKUP("Data Anterior",TabPostergacao[#All],2,FALSE),M115<VLOOKUP("Data Postergada",TabPostergacao[#All],2,FALSE)),$C$7/P115,0) -> 0
M116: =Índices!K406 -> 42463 | N116: =Índices!L406 -> 0 | O116: =Índices!M406 -> 0 | P116: =Índices!N406 -> 1.149872412 | Q116: =IF(AND(M116>=DATE(2015,3,2),M116<DATE(IF(OR(CAPA!$C$23=124,CAPA!$C$23=125,CAPA!$C$23=126,CAPA!$C$23=134,CAPA!$C$23=137),2016,2015),MONTH($C$2),DAY($C$2))),$C$7/P116,0) -> 0 | R116: 0 | S116: 0 | T116: =IF(AND(M116>=VLOOKUP("Data Anterior",TabPostergacao[#All],2,FALSE),M116<VLOOKUP("Data Postergada",TabPostergacao[#All],2,FALSE)),$C$7/P116,0) -> 0
M117: =Índices!K407 -> 42464 | N117: =Índices!L407 -> DIA ÚTIL | O117: =Índices!M407 -> 0.052531 | P117: =Índices!N407 -> 1.150476452 | Q117: =IF(AND(M117>=DATE(2015,3,2),M117<DATE(IF(OR(CAPA!$C$23=124,CAPA!$C$23=125,CAPA!$C$23=126,CAPA!$C$23=134,CAPA!$C$23=137),2016,2015),MONTH($C$2),DAY($C$2))),$C$7/P117,0) -> 0 | R117: 0 | S117: 0 | T117: =IF(AND(M117>=VLOOKUP("Data Anterior",TabPostergacao[#All],2,FALSE),M117<VLOOKUP("Data Postergada",TabPostergacao[#All],2,FALSE)),$C$7/P117,0) -> 0
M118: =Índices!K408 -> 42465 | N118: =Índices!L408 -> DIA ÚTIL | O118: =Índices!M408 -> 0.052531 | P118: =Índices!N408 -> 1.151080809 | Q118: =IF(AND(M118>=DATE(2015,3,2),M118<DATE(IF(OR(CAPA!$C$23=124,CAPA!$C$23=125,CAPA!$C$23=126,CAPA!$C$23=134,CAPA!$C$23=137),2016,2015),MONTH($C$2),DAY($C$2))),$C$7/P118,0) -> 0 | R118: 0 | S118: 0 | T118: =IF(AND(M118>=VLOOKUP("Data Anterior",TabPostergacao[#All],2,FALSE),M118<VLOOKUP("Data Postergada",TabPostergacao[#All],2,FALSE)),$C$7/P118,0) -> 0
M119: =Índices!K409 -> 42466 | N119: =Índices!L409 -> DIA ÚTIL | O119: =Índices!M409 -> 0.052531 | P119: =Índices!N409 -> 1.151685483 | Q119: =IF(AND(M119>=DATE(2015,3,2),M119<DATE(IF(OR(CAPA!$C$23=124,CAPA!$C$23=125,CAPA!$C$23=126,CAPA!$C$23=134,CAPA!$C$23=137),2016,2015),MONTH($C$2),DAY($C$2))),$C$7/P119,0) -> 0 | R119: 0 | S119: 0 | T119: =IF(AND(M119>=VLOOKUP("Data Anterior",TabPostergacao[#All],2,FALSE),M119<VLOOKUP("Data Postergada",TabPostergacao[#All],2,FALSE)),$C$7/P119,0) -> 0
M120: =Índices!K410 -> 42467 | N120: =Índices!L410 -> DIA ÚTIL | O120: =Índices!M410 -> 0.052531 | P120: =Índices!N410 -> 1.152290475 | Q120: =IF(AND(M120>=DATE(2015,3,2),M120<DATE(IF(OR(CAPA!$C$23=124,CAPA!$C$23=125,CAPA!$C$23=126,CAPA!$C$23=134,CAPA!$C$23=137),2016,2015),MONTH($C$2),DAY($C$2))),$C$7/P120,0) -> 0 | R120: 0 | S120: 0 | T120: =IF(AND(M120>=VLOOKUP("Data Anterior",TabPostergacao[#All],2,FALSE),M120<VLOOKUP("Data Postergada",TabPostergacao[#All],2,FALSE)),$C$7/P120,0) -> 0
M121: =Índices!K411 -> 42468 | N121: =Índices!L411 -> DIA ÚTIL | O121: =Índices!M411 -> 0.052531 | P121: =Índices!N411 -> 1.152895784 | Q121: =IF(AND(M121>=DATE(2015,3,2),M121<DATE(IF(OR(CAPA!$C$23=124,CAPA!$C$23=125,CAPA!$C$23=126,CAPA!$C$23=134,CAPA!$C$23=137),2016,2015),MONTH($C$2),DAY($C$2))),$C$7/P121,0) -> 0 | R121: 0 | S121: 0 | T121: =IF(AND(M121>=VLOOKUP("Data Anterior",TabPostergacao[#All],2,FALSE),M121<VLOOKUP("Data Postergada",TabPostergacao[#All],2,FALSE)),$C$7/P121,0) -> 0
M122: =Índices!K412 -> 42469 | N122: =Índices!L412 -> 0 | O122: =Índices!M412 -> 0 | P122: =Índices!N412 -> 1.152895784 | Q122: =IF(AND(M122>=DATE(2015,3,2),M122<DATE(IF(OR(CAPA!$C$23=124,CAPA!$C$23=125,CAPA!$C$23=126,CAPA!$C$23=134,CAPA!$C$23=137),2016,2015),MONTH($C$2),DAY($C$2))),$C$7/P122,0) -> 0 | R122: 0 | S122: 0 | T122: =IF(AND(M122>=VLOOKUP("Data Anterior",TabPostergacao[#All],2,FALSE),M122<VLOOKUP("Data Postergada",TabPostergacao[#All],2,FALSE)),$C$7/P122,0) -> 0
M123: =Índices!K413 -> 42470 | N123: =Índices!L413 -> 0 | O123: =Índices!M413 -> 0 | P123: =Índices!N413 -> 1.152895784 | Q123: =IF(AND(M123>=DATE(2015,3,2),M123<DATE(IF(OR(CAPA!$C$23=124,CAPA!$C$23=125,CAPA!$C$23=126,CAPA!$C$23=134,CAPA!$C$23=137),2016,2015),MONTH($C$2),DAY($C$2))),$C$7/P123,0) -> 0 | R123: 0 | S123: 0 | T123: =IF(AND(M123>=VLOOKUP("Data Anterior",TabPostergacao[#All],2,FALSE),M123<VLOOKUP("Data Postergada",TabPostergacao[#All],2,FALSE)),$C$7/P123,0) -> 0
M124: =Índices!K414 -> 42471 | N124: =Índices!L414 -> DIA ÚTIL | O124: =Índices!M414 -> 0.052531 | P124: =Índices!N414 -> 1.153501412 | Q124: =IF(AND(M124>=DATE(2015,3,2),M124<DATE(IF(OR(CAPA!$C$23=124,CAPA!$C$23=125,CAPA!$C$23=126,CAPA!$C$23=134,CAPA!$C$23=137),2016,2015),MONTH($C$2),DAY($C$2))),$C$7/P124,0) -> 0 | R124: 0 | S124: 0 | T124: =IF(AND(M124>=VLOOKUP("Data Anterior",TabPostergacao[#All],2,FALSE),M124<VLOOKUP("Data Postergada",TabPostergacao[#All],2,FALSE)),$C$7/P124,0) -> 0
M125: =Índices!K415 -> 42472 | N125: =Índices!L415 -> DIA ÚTIL | O125: =Índices!M415 -> 0.052531 | P125: =Índices!N415 -> 1.154107358 | Q125: =IF(AND(M125>=DATE(2015,3,2),M125<DATE(IF(OR(CAPA!$C$23=124,CAPA!$C$23=125,CAPA!$C$23=126,CAPA!$C$23=134,CAPA!$C$23=137),2016,2015),MONTH($C$2),DAY($C$2))),$C$7/P125,0) -> 0 | R125: 0 | S125: 0 | T125: =IF(AND(M125>=VLOOKUP("Data Anterior",TabPostergacao[#All],2,FALSE),M125<VLOOKUP("Data Postergada",TabPostergacao[#All],2,FALSE)),$C$7/P125,0) -> 0
M126: =Índices!K416 -> 42473 | N126: =Índices!L416 -> DIA ÚTIL | O126: =Índices!M416 -> 0.052531 | P126: =Índices!N416 -> 1.154713622 | Q126: =IF(AND(M126>=DATE(2015,3,2),M126<DATE(IF(OR(CAPA!$C$23=124,CAPA!$C$23=125,CAPA!$C$23=126,CAPA!$C$23=134,CAPA!$C$23=137),2016,2015),MONTH($C$2),DAY($C$2))),$C$7/P126,0) -> 0 | R126: 0 | S126: 0 | T126: =IF(AND(M126>=VLOOKUP("Data Anterior",TabPostergacao[#All],2,FALSE),M126<VLOOKUP("Data Postergada",TabPostergacao[#All],2,FALSE)),$C$7/P126,0) -> 0
M127: =Índices!K417 -> 42474 | N127: =Índices!L417 -> DIA ÚTIL | O127: =Índices!M417 -> 0.052531 | P127: =Índices!N417 -> 1.155320205 | Q127: =IF(AND(M127>=DATE(2015,3,2),M127<DATE(IF(OR(CAPA!$C$23=124,CAPA!$C$23=125,CAPA!$C$23=126,CAPA!$C$23=134,CAPA!$C$23=137),2016,2015),MONTH($C$2),DAY($C$2))),$C$7/P127,0) -> 0 | R127: 0 | S127: 0 | T127: =IF(AND(M127>=VLOOKUP("Data Anterior",TabPostergacao[#All],2,FALSE),M127<VLOOKUP("Data Postergada",TabPostergacao[#All],2,FALSE)),$C$7/P127,0) -> 0
M128: =Índices!K418 -> 42475 | N128: =Índices!L418 -> DIA ÚTIL | O128: =Índices!M418 -> 0.052531 | P128: =Índices!N418 -> 1.155927106 | Q128: =IF(AND(M128>=DATE(2015,3,2),M128<DATE(IF(OR(CAPA!$C$23=124,CAPA!$C$23=125,CAPA!$C$23=126,CAPA!$C$23=134,CAPA!$C$23=137),2016,2015),MONTH($C$2),DAY($C$2))),$C$7/P128,0) -> 0 | R128: 0 | S128: 0 | T128: =IF(AND(M128>=VLOOKUP("Data Anterior",TabPostergacao[#All],2,FALSE),M128<VLOOKUP("Data Postergada",TabPostergacao[#All],2,FALSE)),$C$7/P128,0) -> 0
M129: =Índices!K419 -> 42476 | N129: =Índices!L419 -> 0 | O129: =Índices!M419 -> 0 | P129: =Índices!N419 -> 1.155927106 | Q129: =IF(AND(M129>=DATE(2015,3,2),M129<DATE(IF(OR(CAPA!$C$23=124,CAPA!$C$23=125,CAPA!$C$23=126,CAPA!$C$23=134,CAPA!$C$23=137),2016,2015),MONTH($C$2),DAY($C$2))),$C$7/P129,0) -> 0 | R129: 0 | S129: 0 | T129: =IF(AND(M129>=VLOOKUP("Data Anterior",TabPostergacao[#All],2,FALSE),M129<VLOOKUP("Data Postergada",TabPostergacao[#All],2,FALSE)),$C$7/P129,0) -> 0
M130: =Índices!K420 -> 42477 | N130: =Índices!L420 -> 0 | O130: =Índices!M420 -> 0 | P130: =Índices!N420 -> 1.155927106 | Q130: =IF(AND(M130>=DATE(2015,3,2),M130<DATE(IF(OR(CAPA!$C$23=124,CAPA!$C$23=125,CAPA!$C$23=126,CAPA!$C$23=134,CAPA!$C$23=137),2016,2015),MONTH($C$2),DAY($C$2))),$C$7/P130,0) -> 0 | R130: 0 | S130: 0 | T130: =IF(AND(M130>=VLOOKUP("Data Anterior",TabPostergacao[#All],2,FALSE),M130<VLOOKUP("Data Postergada",TabPostergacao[#All],2,FALSE)),$C$7/P130,0) -> 0
M131: =Índices!K421 -> 42478 | N131: =Índices!L421 -> DIA ÚTIL | O131: =Índices!M421 -> 0.052531 | P131: =Índices!N421 -> 1.156534326 | Q131: =IF(AND(M131>=DATE(2015,3,2),M131<DATE(IF(OR(CAPA!$C$23=124,CAPA!$C$23=125,CAPA!$C$23=126,CAPA!$C$23=134,CAPA!$C$23=137),2016,2015),MONTH($C$2),DAY($C$2))),$C$7/P131,0) -> 0 | R131: 0 | S131: 0 | T131: =IF(AND(M131>=VLOOKUP("Data Anterior",TabPostergacao[#All],2,FALSE),M131<VLOOKUP("Data Postergada",TabPostergacao[#All],2,FALSE)),$C$7/P131,0) -> 0
M132: =Índices!K422 -> 42479 | N132: =Índices!L422 -> DIA ÚTIL | O132: =Índices!M422 -> 0.052531 | P132: =Índices!N422 -> 1.157141865 | Q132: =IF(AND(M132>=DATE(2015,3,2),M132<DATE(IF(OR(CAPA!$C$23=124,CAPA!$C$23=125,CAPA!$C$23=126,CAPA!$C$23=134,CAPA!$C$23=137),2016,2015),MONTH($C$2),DAY($C$2))),$C$7/P132,0) -> 0 | R132: 0 | S132: 0 | T132: =IF(AND(M132>=VLOOKUP("Data Anterior",TabPostergacao[#All],2,FALSE),M132<VLOOKUP("Data Postergada",TabPostergacao[#All],2,FALSE)),$C$7/P132,0) -> 0
M133: =Índices!K423 -> 42480 | N133: =Índices!L423 -> DIA ÚTIL | O133: =Índices!M423 -> 0.052531 | P133: =Índices!N423 -> 1.157749723 | Q133: =IF(AND(M133>=DATE(2015,3,2),M133<DATE(IF(OR(CAPA!$C$23=124,CAPA!$C$23=125,CAPA!$C$23=126,CAPA!$C$23=134,CAPA!$C$23=137),2016,2015),MONTH($C$2),DAY($C$2))),$C$7/P133,0) -> 0 | R133: 0 | S133: 0 | T133: =IF(AND(M133>=VLOOKUP("Data Anterior",TabPostergacao[#All],2,FALSE),M133<VLOOKUP("Data Postergada",TabPostergacao[#All],2,FALSE)),$C$7/P133,0) -> 0
M134: =Índices!K424 -> 42481 | N134: =Índices!L424 -> 0 | O134: =Índices!M424 -> 0 | P134: =Índices!N424 -> 1.157749723 | Q134: =IF(AND(M134>=DATE(2015,3,2),M134<DATE(IF(OR(CAPA!$C$23=124,CAPA!$C$23=125,CAPA!$C$23=126,CAPA!$C$23=134,CAPA!$C$23=137),2016,2015),MONTH($C$2),DAY($C$2))),$C$7/P134,0) -> 0 | R134: 0 | S134: 0 | T134: =IF(AND(M134>=VLOOKUP("Data Anterior",TabPostergacao[#All],2,FALSE),M134<VLOOKUP("Data Postergada",TabPostergacao[#All],2,FALSE)),$C$7/P134,0) -> 0
M135: =Índices!K425 -> 42482 | N135: =Índices!L425 -> DIA ÚTIL | O135: =Índices!M425 -> 0.052531 | P135: =Índices!N425 -> 1.158357901 | Q135: =IF(AND(M135>=DATE(2015,3,2),M135<DATE(IF(OR(CAPA!$C$23=124,CAPA!$C$23=125,CAPA!$C$23=126,CAPA!$C$23=134,CAPA!$C$23=137),2016,2015),MONTH($C$2),DAY($C$2))),$C$7/P135,0) -> 0 | R135: 0 | S135: 0 | T135: =IF(AND(M135>=VLOOKUP("Data Anterior",TabPostergacao[#All],2,FALSE),M135<VLOOKUP("Data Postergada",TabPostergacao[#All],2,FALSE)),$C$7/P135,0) -> 0
M136: =Índices!K426 -> 42483 | N136: =Índices!L426 -> 0 | O136: =Índices!M426 -> 0 | P136: =Índices!N426 -> 1.158357901 | Q136: =IF(AND(M136>=DATE(2015,3,2),M136<DATE(IF(OR(CAPA!$C$23=124,CAPA!$C$23=125,CAPA!$C$23=126,CAPA!$C$23=134,CAPA!$C$23=137),2016,2015),MONTH($C$2),DAY($C$2))),$C$7/P136,0) -> 0 | R136: 0 | S136: 0 | T136: =IF(AND(M136>=VLOOKUP("Data Anterior",TabPostergacao[#All],2,FALSE),M136<VLOOKUP("Data Postergada",TabPostergacao[#All],2,FALSE)),$C$7/P136,0) -> 0
M137: =Índices!K427 -> 42484 | N137: =Índices!L427 -> 0 | O137: =Índices!M427 -> 0 | P137: =Índices!N427 -> 1.158357901 | Q137: =IF(AND(M137>=DATE(2015,3,2),M137<DATE(IF(OR(CAPA!$C$23=124,CAPA!$C$23=125,CAPA!$C$23=126,CAPA!$C$23=134,CAPA!$C$23=137),2016,2015),MONTH($C$2),DAY($C$2))),$C$7/P137,0) -> 0 | R137: 0 | S137: 0 | T137: =IF(AND(M137>=VLOOKUP("Data Anterior",TabPostergacao[#All],2,FALSE),M137<VLOOKUP("Data Postergada",TabPostergacao[#All],2,FALSE)),$C$7/P137,0) -> 0
M138: =Índices!K428 -> 42485 | N138: =Índices!L428 -> DIA ÚTIL | O138: =Índices!M428 -> 0.052531 | P138: =Índices!N428 -> 1.158966398 | Q138: =IF(AND(M138>=DATE(2015,3,2),M138<DATE(IF(OR(CAPA!$C$23=124,CAPA!$C$23=125,CAPA!$C$23=126,CAPA!$C$23=134,CAPA!$C$23=137),2016,2015),MONTH($C$2),DAY($C$2))),$C$7/P138,0) -> 0 | R138: 0 | S138: =IF(AND(M138>=$C$4,M138<$C$6),$C$7/P138,0) -> 0 | T138: =IF(AND(M138>=VLOOKUP("Data Anterior",TabPostergacao[#All],2,FALSE),M138<VLOOKUP("Data Postergada",TabPostergacao[#All],2,FALSE)),$C$7/P138,0) -> 0
M139: =Índices!K429 -> 42486 | N139: =Índices!L429 -> DIA ÚTIL | O139: =Índices!M429 -> 0.052531 | P139: =Índices!N429 -> 1.159575214 | Q139: =IF(AND(M139>=DATE(2015,3,2),M139<DATE(IF(OR(CAPA!$C$23=124,CAPA!$C$23=125,CAPA!$C$23=126,CAPA!$C$23=134,CAPA!$C$23=137),2016,2015),MONTH($C$2),DAY($C$2))),$C$7/P139,0) -> 0 | R139: =IF(AND(M139>=$C$3,M139<$C$5),$C$7/P139,0) -> 0 | S139: 0 | T139: =IF(AND(M139>=VLOOKUP("Data Anterior",TabPostergacao[#All],2,FALSE),M139<VLOOKUP("Data Postergada",TabPostergacao[#All],2,FALSE)),$C$7/P139,0) -> 0
M140: =Índices!K430 -> 42487 | N140: =Índices!L430 -> DIA ÚTIL | O140: =Índices!M430 -> 0.052531 | P140: =Índices!N430 -> 1.160184351 | Q140: =IF(AND(M140>=DATE(2015,3,2),M140<DATE(IF(OR(CAPA!$C$23=124,CAPA!$C$23=125,CAPA!$C$23=126,CAPA!$C$23=134,CAPA!$C$23=137),2016,2015),MONTH($C$2),DAY($C$2))),$C$7/P140,0) -> 0 | R140: 0 | S140: 0 | T140: =IF(AND(M140>=VLOOKUP("Data Anterior",TabPostergacao[#All],2,FALSE),M140<VLOOKUP("Data Postergada",TabPostergacao[#All],2,FALSE)),$C$7/P140,0) -> 0
M141: =Índices!K431 -> 42488 | N141: =Índices!L431 -> DIA ÚTIL | O141: =Índices!M431 -> 0.052531 | P141: =Índices!N431 -> 1.160793807 | Q141: =IF(AND(M141>=DATE(2015,3,2),M141<DATE(IF(OR(CAPA!$C$23=124,CAPA!$C$23=125,CAPA!$C$23=126,CAPA!$C$23=134,CAPA!$C$23=137),2016,2015),MONTH($C$2),DAY($C$2))),$C$7/P141,0) -> 0 | R141: 0 | S141: 0 | T141: =IF(AND(M141>=VLOOKUP("Data Anterior",TabPostergacao[#All],2,FALSE),M141<VLOOKUP("Data Postergada",TabPostergacao[#All],2,FALSE)),$C$7/P141,0) -> 0
M142: =Índices!K432 -> 42489 | N142: =Índices!L432 -> DIA ÚTIL | O142: =Índices!M432 -> 0.052531 | P142: =Índices!N432 -> 1.161403584 | Q142: =IF(AND(M142>=DATE(2015,3,2),M142<DATE(IF(OR(CAPA!$C$23=124,CAPA!$C$23=125,CAPA!$C$23=126,CAPA!$C$23=134,CAPA!$C$23=137),2016,2015),MONTH($C$2),DAY($C$2))),$C$7/P142,0) -> 0 | R142: 0 | S142: 0 | T142: =IF(AND(M142>=VLOOKUP("Data Anterior",TabPostergacao[#All],2,FALSE),M142<VLOOKUP("Data Postergada",TabPostergacao[#All],2,FALSE)),$C$7/P142,0) -> 0
M143: =Índices!K433 -> 42490 | N143: =Índices!L433 -> 0 | O143: =Índices!M433 -> 0 | P143: =Índices!N433 -> 1.161403584 | Q143: =IF(AND(M143>=DATE(2015,3,2),M143<DATE(IF(OR(CAPA!$C$23=124,CAPA!$C$23=125,CAPA!$C$23=126,CAPA!$C$23=134,CAPA!$C$23=137),2016,2015),MONTH($C$2),DAY($C$2))),$C$7/P143,0) -> 0 | R143: 0 | S143: 0 | T143: =IF(AND(M143>=VLOOKUP("Data Anterior",TabPostergacao[#All],2,FALSE),M143<VLOOKUP("Data Postergada",TabPostergacao[#All],2,FALSE)),$C$7/P143,0) -> 0
M144: =Índices!K434 -> 42491 | N144: =Índices!L434 -> 0 | O144: =Índices!M434 -> 0 | P144: =Índices!N434 -> 1.161403584 | Q144: =IF(AND(M144>=DATE(2015,3,2),M144<DATE(IF(OR(CAPA!$C$23=124,CAPA!$C$23=125,CAPA!$C$23=126,CAPA!$C$23=134,CAPA!$C$23=137),2016,2015),MONTH($C$2),DAY($C$2))),$C$7/P144,0) -> 0 | R144: 0 | S144: 0 | T144: =IF(AND(M144>=VLOOKUP("Data Anterior",TabPostergacao[#All],2,FALSE),M144<VLOOKUP("Data Postergada",TabPostergacao[#All],2,FALSE)),$C$7/P144,0) -> 0
M145: =Índices!K435 -> 42492 | N145: =Índices!L435 -> DIA ÚTIL | O145: =Índices!M435 -> 0.052531 | P145: =Índices!N435 -> 1.162013681 | Q145: =IF(AND(M145>=DATE(2015,3,2),M145<DATE(IF(OR(CAPA!$C$23=124,CAPA!$C$23=125,CAPA!$C$23=126,CAPA!$C$23=134,CAPA!$C$23=137),2016,2015),MONTH($C$2),DAY($C$2))),$C$7/P145,0) -> 0 | R145: 0 | S145: 0 | T145: =IF(AND(M145>=VLOOKUP("Data Anterior",TabPostergacao[#All],2,FALSE),M145<VLOOKUP("Data Postergada",TabPostergacao[#All],2,FALSE)),$C$7/P145,0) -> 0
M146: =Índices!K436 -> 42493 | N146: =Índices!L436 -> DIA ÚTIL | O146: =Índices!M436 -> 0.052531 | P146: =Índices!N436 -> 1.162624098 | Q146: =IF(AND(M146>=DATE(2015,3,2),M146<DATE(IF(OR(CAPA!$C$23=124,CAPA!$C$23=125,CAPA!$C$23=126,CAPA!$C$23=134,CAPA!$C$23=137),2016,2015),MONTH($C$2),DAY($C$2))),$C$7/P146,0) -> 0 | R146: 0 | S146: =IF(AND(M146>=$C$4,M146<$C$6),$C$7/P146,0) -> 0 | T146: =IF(AND(M146>=VLOOKUP("Data Anterior",TabPostergacao[#All],2,FALSE),M146<VLOOKUP("Data Postergada",TabPostergacao[#All],2,FALSE)),$C$7/P146,0) -> 0
M147: =Índices!K437 -> 42494 | N147: =Índices!L437 -> DIA ÚTIL | O147: =Índices!M437 -> 0.052531 | P147: =Índices!N437 -> 1.163234836 | Q147: =IF(AND(M147>=DATE(2015,3,2),M147<DATE(IF(OR(CAPA!$C$23=124,CAPA!$C$23=125,CAPA!$C$23=126,CAPA!$C$23=134,CAPA!$C$23=137),2016,2015),MONTH($C$2),DAY($C$2))),$C$7/P147,0) -> 0 | R147: 0 | S147: 0 | T147: =IF(AND(M147>=VLOOKUP("Data Anterior",TabPostergacao[#All],2,FALSE),M147<VLOOKUP("Data Postergada",TabPostergacao[#All],2,FALSE)),$C$7/P147,0) -> 0
M148: =Índices!K438 -> 42495 | N148: =Índices!L438 -> DIA ÚTIL | O148: =Índices!M438 -> 0.052531 | P148: =Índices!N438 -> 1.163845895 | Q148: =IF(AND(M148>=DATE(2015,3,2),M148<DATE(IF(OR(CAPA!$C$23=124,CAPA!$C$23=125,CAPA!$C$23=126,CAPA!$C$23=134,CAPA!$C$23=137),2016,2015),MONTH($C$2),DAY($C$2))),$C$7/P148,0) -> 0 | R148: 0 | S148: 0 | T148: =IF(AND(M148>=VLOOKUP("Data Anterior",TabPostergacao[#All],2,FALSE),M148<VLOOKUP("Data Postergada",TabPostergacao[#All],2,FALSE)),$C$7/P148,0) -> 0
M149: =Índices!K439 -> 42496 | N149: =Índices!L439 -> DIA ÚTIL | O149: =Índices!M439 -> 0.052531 | P149: =Índices!N439 -> 1.164457275 | Q149: =IF(AND(M149>=DATE(2015,3,2),M149<DATE(IF(OR(CAPA!$C$23=124,CAPA!$C$23=125,CAPA!$C$23=126,CAPA!$C$23=134,CAPA!$C$23=137),2016,2015),MONTH($C$2),DAY($C$2))),$C$7/P149,0) -> 0 | R149: 0 | S149: 0 | T149: =IF(AND(M149>=VLOOKUP("Data Anterior",TabPostergacao[#All],2,FALSE),M149<VLOOKUP("Data Postergada",TabPostergacao[#All],2,FALSE)),$C$7/P149,0) -> 0
M150: =Índices!K440 -> 42497 | N150: =Índices!L440 -> 0 | O150: =Índices!M440 -> 0 | P150: =Índices!N440 -> 1.164457275 | Q150: =IF(AND(M150>=DATE(2015,3,2),M150<DATE(IF(OR(CAPA!$C$23=124,CAPA!$C$23=125,CAPA!$C$23=126,CAPA!$C$23=134,CAPA!$C$23=137),2016,2015),MONTH($C$2),DAY($C$2))),$C$7/P150,0) -> 0 | R150: 0 | S150: 0 | T150: =IF(AND(M150>=VLOOKUP("Data Anterior",TabPostergacao[#All],2,FALSE),M150<VLOOKUP("Data Postergada",TabPostergacao[#All],2,FALSE)),$C$7/P150,0) -> 0
M151: =Índices!K441 -> 42498 | N151: =Índices!L441 -> 0 | O151: =Índices!M441 -> 0 | P151: =Índices!N441 -> 1.164457275 | Q151: =IF(AND(M151>=DATE(2015,3,2),M151<DATE(IF(OR(CAPA!$C$23=124,CAPA!$C$23=125,CAPA!$C$23=126,CAPA!$C$23=134,CAPA!$C$23=137),2016,2015),MONTH($C$2),DAY($C$2))),$C$7/P151,0) -> 0 | R151: 0 | S151: 0 | T151: =IF(AND(M151>=VLOOKUP("Data Anterior",TabPostergacao[#All],2,FALSE),M151<VLOOKUP("Data Postergada",TabPostergacao[#All],2,FALSE)),$C$7/P151,0) -> 0
M152: =Índices!K442 -> 42499 | N152: =Índices!L442 -> DIA ÚTIL | O152: =Índices!M442 -> 0.052531 | P152: =Índices!N442 -> 1.165068976 | Q152: =IF(AND(M152>=DATE(2015,3,2),M152<DATE(IF(OR(CAPA!$C$23=124,CAPA!$C$23=125,CAPA!$C$23=126,CAPA!$C$23=134,CAPA!$C$23=137),2016,2015),MONTH($C$2),DAY($C$2))),$C$7/P152,0) -> 0 | R152: 0 | S152: 0 | T152: =IF(AND(M152>=VLOOKUP("Data Anterior",TabPostergacao[#All],2,FALSE),M152<VLOOKUP("Data Postergada",TabPostergacao[#All],2,FALSE)),$C$7/P152,0) -> 0
M153: =Índices!K443 -> 42500 | N153: =Índices!L443 -> DIA ÚTIL | O153: =Índices!M443 -> 0.052531 | P153: =Índices!N443 -> 1.165680998 | Q153: =IF(AND(M153>=DATE(2015,3,2),M153<DATE(IF(OR(CAPA!$C$23=124,CAPA!$C$23=125,CAPA!$C$23=126,CAPA!$C$23=134,CAPA!$C$23=137),2016,2015),MONTH($C$2),DAY($C$2))),$C$7/P153,0) -> 0 | R153: 0 | S153: 0 | T153: =IF(AND(M153>=VLOOKUP("Data Anterior",TabPostergacao[#All],2,FALSE),M153<VLOOKUP("Data Postergada",TabPostergacao[#All],2,FALSE)),$C$7/P153,0) -> 0
M154: =Índices!K444 -> 42501 | N154: =Índices!L444 -> DIA ÚTIL | O154: =Índices!M444 -> 0.052531 | P154: =Índices!N444 -> 1.166293342 | Q154: =IF(AND(M154>=DATE(2015,3,2),M154<DATE(IF(OR(CAPA!$C$23=124,CAPA!$C$23=125,CAPA!$C$23=126,CAPA!$C$23=134,CAPA!$C$23=137),2016,2015),MONTH($C$2),DAY($C$2))),$C$7/P154,0) -> 0 | R154: 0 | S154: 0 | T154: =IF(AND(M154>=VLOOKUP("Data Anterior",TabPostergacao[#All],2,FALSE),M154<VLOOKUP("Data Postergada",TabPostergacao[#All],2,FALSE)),$C$7/P154,0) -> 0
M155: =Índices!K445 -> 42502 | N155: =Índices!L445 -> DIA ÚTIL | O155: =Índices!M445 -> 0.052531 | P155: =Índices!N445 -> 1.166906008 | Q155: =IF(AND(M155>=DATE(2015,3,2),M155<DATE(IF(OR(CAPA!$C$23=124,CAPA!$C$23=125,CAPA!$C$23=126,CAPA!$C$23=134,CAPA!$C$23=137),2016,2015),MONTH($C$2),DAY($C$2))),$C$7/P155,0) -> 0 | R155: 0 | S155: 0 | T155: =IF(AND(M155>=VLOOKUP("Data Anterior",TabPostergacao[#All],2,FALSE),M155<VLOOKUP("Data Postergada",TabPostergacao[#All],2,FALSE)),$C$7/P155,0) -> 0
M156: =Índices!K446 -> 42503 | N156: =Índices!L446 -> DIA ÚTIL | O156: =Índices!M446 -> 0.052531 | P156: =Índices!N446 -> 1.167518995 | Q156: =IF(AND(M156>=DATE(2015,3,2),M156<DATE(IF(OR(CAPA!$C$23=124,CAPA!$C$23=125,CAPA!$C$23=126,CAPA!$C$23=134,CAPA!$C$23=137),2016,2015),MONTH($C$2),DAY($C$2))),$C$7/P156,0) -> 0 | R156: 0 | S156: 0 | T156: =IF(AND(M156>=VLOOKUP("Data Anterior",TabPostergacao[#All],2,FALSE),M156<VLOOKUP("Data Postergada",TabPostergacao[#All],2,FALSE)),$C$7/P156,0) -> 0
M157: =Índices!K447 -> 42504 | N157: =Índices!L447 -> 0 | O157: =Índices!M447 -> 0 | P157: =Índices!N447 -> 1.167518995 | Q157: =IF(AND(M157>=DATE(2015,3,2),M157<DATE(IF(OR(CAPA!$C$23=124,CAPA!$C$23=125,CAPA!$C$23=126,CAPA!$C$23=134,CAPA!$C$23=137),2016,2015),MONTH($C$2),DAY($C$2))),$C$7/P157,0) -> 0 | R157: 0 | S157: 0 | T157: =IF(AND(M157>=VLOOKUP("Data Anterior",TabPostergacao[#All],2,FALSE),M157<VLOOKUP("Data Postergada",TabPostergacao[#All],2,FALSE)),$C$7/P157,0) -> 0
M158: =Índices!K448 -> 42505 | N158: =Índices!L448 -> 0 | O158: =Índices!M448 -> 0 | P158: =Índices!N448 -> 1.167518995 | Q158: =IF(AND(M158>=DATE(2015,3,2),M158<DATE(IF(OR(CAPA!$C$23=124,CAPA!$C$23=125,CAPA!$C$23=126,CAPA!$C$23=134,CAPA!$C$23=137),2016,2015),MONTH($C$2),DAY($C$2))),$C$7/P158,0) -> 0 | R158: 0 | S158: 0 | T158: =IF(AND(M158>=VLOOKUP("Data Anterior",TabPostergacao[#All],2,FALSE),M158<VLOOKUP("Data Postergada",TabPostergacao[#All],2,FALSE)),$C$7/P158,0) -> 0
M159: =Índices!K449 -> 42506 | N159: =Índices!L449 -> DIA ÚTIL | O159: =Índices!M449 -> 0.052531 | P159: =Índices!N449 -> 1.168132305 | Q159: =IF(AND(M159>=DATE(2015,3,2),M159<DATE(IF(OR(CAPA!$C$23=124,CAPA!$C$23=125,CAPA!$C$23=126,CAPA!$C$23=134,CAPA!$C$23=137),2016,2015),MONTH($C$2),DAY($C$2))),$C$7/P159,0) -> 0 | R159: 0 | S159: 0 | T159: =IF(AND(M159>=VLOOKUP("Data Anterior",TabPostergacao[#All],2,FALSE),M159<VLOOKUP("Data Postergada",TabPostergacao[#All],2,FALSE)),$C$7/P159,0) -> 0
M160: =Índices!K450 -> 42507 | N160: =Índices!L450 -> DIA ÚTIL | O160: =Índices!M450 -> 0.052531 | P160: =Índices!N450 -> 1.168745936 | Q160: =IF(AND(M160>=DATE(2015,3,2),M160<DATE(IF(OR(CAPA!$C$23=124,CAPA!$C$23=125,CAPA!$C$23=126,CAPA!$C$23=134,CAPA!$C$23=137),2016,2015),MONTH($C$2),DAY($C$2))),$C$7/P160,0) -> 0 | R160: 0 | S160: 0 | T160: =IF(AND(M160>=VLOOKUP("Data Anterior",TabPostergacao[#All],2,FALSE),M160<VLOOKUP("Data Postergada",TabPostergacao[#All],2,FALSE)),$C$7/P160,0) -> 0
M161: =Índices!K451 -> 42508 | N161: =Índices!L451 -> DIA ÚTIL | O161: =Índices!M451 -> 0.052531 | P161: =Índices!N451 -> 1.16935989 | Q161: =IF(AND(M161>=DATE(2015,3,2),M161<DATE(IF(OR(CAPA!$C$23=124,CAPA!$C$23=125,CAPA!$C$23=126,CAPA!$C$23=134,CAPA!$C$23=137),2016,2015),MONTH($C$2),DAY($C$2))),$C$7/P161,0) -> 0 | R161: 0 | S161: 0 | T161: =IF(AND(M161>=VLOOKUP("Data Anterior",TabPostergacao[#All],2,FALSE),M161<VLOOKUP("Data Postergada",TabPostergacao[#All],2,FALSE)),$C$7/P161,0) -> 0
M162: =Índices!K452 -> 42509 | N162: =Índices!L452 -> DIA ÚTIL | O162: =Índices!M452 -> 0.052531 | P162: =Índices!N452 -> 1.169974167 | Q162: =IF(AND(M162>=DATE(2015,3,2),M162<DATE(IF(OR(CAPA!$C$23=124,CAPA!$C$23=125,CAPA!$C$23=126,CAPA!$C$23=134,CAPA!$C$23=137),2016,2015),MONTH($C$2),DAY($C$2))),$C$7/P162,0) -> 0 | R162: 0 | S162: 0 | T162: =IF(AND(M162>=VLOOKUP("Data Anterior",TabPostergacao[#All],2,FALSE),M162<VLOOKUP("Data Postergada",TabPostergacao[#All],2,FALSE)),$C$7/P162,0) -> 0
M163: =Índices!K453 -> 42510 | N163: =Índices!L453 -> DIA ÚTIL | O163: =Índices!M453 -> 0.052531 | P163: =Índices!N453 -> 1.170588766 | Q163: =IF(AND(M163>=DATE(2015,3,2),M163<DATE(IF(OR(CAPA!$C$23=124,CAPA!$C$23=125,CAPA!$C$23=126,CAPA!$C$23=134,CAPA!$C$23=137),2016,2015),MONTH($C$2),DAY($C$2))),$C$7/P163,0) -> 0 | R163: 0 | S163: 0 | T163: =IF(AND(M163>=VLOOKUP("Data Anterior",TabPostergacao[#All],2,FALSE),M163<VLOOKUP("Data Postergada",TabPostergacao[#All],2,FALSE)),$C$7/P163,0) -> 0
M164: =Índices!K454 -> 42511 | N164: =Índices!L454 -> 0 | O164: =Índices!M454 -> 0 | P164: =Índices!N454 -> 1.170588766 | Q164: =IF(AND(M164>=DATE(2015,3,2),M164<DATE(IF(OR(CAPA!$C$23=124,CAPA!$C$23=125,CAPA!$C$23=126,CAPA!$C$23=134,CAPA!$C$23=137),2016,2015),MONTH($C$2),DAY($C$2))),$C$7/P164,0) -> 0 | R164: 0 | S164: 0 | T164: =IF(AND(M164>=VLOOKUP("Data Anterior",TabPostergacao[#All],2,FALSE),M164<VLOOKUP("Data Postergada",TabPostergacao[#All],2,FALSE)),$C$7/P164,0) -> 0
M165: =Índices!K455 -> 42512 | N165: =Índices!L455 -> 0 | O165: =Índices!M455 -> 0 | P165: =Índices!N455 -> 1.170588766 | Q165: =IF(AND(M165>=DATE(2015,3,2),M165<DATE(IF(OR(CAPA!$C$23=124,CAPA!$C$23=125,CAPA!$C$23=126,CAPA!$C$23=134,CAPA!$C$23=137),2016,2015),MONTH($C$2),DAY($C$2))),$C$7/P165,0) -> 0 | R165: 0 | S165: 0 | T165: =IF(AND(M165>=VLOOKUP("Data Anterior",TabPostergacao[#All],2,FALSE),M165<VLOOKUP("Data Postergada",TabPostergacao[#All],2,FALSE)),$C$7/P165,0) -> 0
M166: =Índices!K456 -> 42513 | N166: =Índices!L456 -> DIA ÚTIL | O166: =Índices!M456 -> 0.052531 | P166: =Índices!N456 -> 1.171203688 | Q166: =IF(AND(M166>=DATE(2015,3,2),M166<DATE(IF(OR(CAPA!$C$23=124,CAPA!$C$23=125,CAPA!$C$23=126,CAPA!$C$23=134,CAPA!$C$23=137),2016,2015),MONTH($C$2),DAY($C$2))),$C$7/P166,0) -> 0 | R166: 0 | S166: 0 | T166: =IF(AND(M166>=VLOOKUP("Data Anterior",TabPostergacao[#All],2,FALSE),M166<VLOOKUP("Data Postergada",TabPostergacao[#All],2,FALSE)),$C$7/P166,0) -> 0
M167: =Índices!K457 -> 42514 | N167: =Índices!L457 -> DIA ÚTIL | O167: =Índices!M457 -> 0.052531 | P167: =Índices!N457 -> 1.171818933 | Q167: =IF(AND(M167>=DATE(2015,3,2),M167<DATE(IF(OR(CAPA!$C$23=124,CAPA!$C$23=125,CAPA!$C$23=126,CAPA!$C$23=134,CAPA!$C$23=137),2016,2015),MONTH($C$2),DAY($C$2))),$C$7/P167,0) -> 0 | R167: 0 | S167: 0 | T167: =IF(AND(M167>=VLOOKUP("Data Anterior",TabPostergacao[#All],2,FALSE),M167<VLOOKUP("Data Postergada",TabPostergacao[#All],2,FALSE)),$C$7/P167,0) -> 0
M168: =Índices!K458 -> 42515 | N168: =Índices!L458 -> DIA ÚTIL | O168: =Índices!M458 -> 0.052531 | P168: =Índices!N458 -> 1.172434501 | Q168: =IF(AND(M168>=DATE(2015,3,2),M168<DATE(IF(OR(CAPA!$C$23=124,CAPA!$C$23=125,CAPA!$C$23=126,CAPA!$C$23=134,CAPA!$C$23=137),2016,2015),MONTH($C$2),DAY($C$2))),$C$7/P168,0) -> 0 | R168: 0 | S168: 0 | T168: =IF(AND(M168>=VLOOKUP("Data Anterior",TabPostergacao[#All],2,FALSE),M168<VLOOKUP("Data Postergada",TabPostergacao[#All],2,FALSE)),$C$7/P168,0) -> 0
M169: =Índices!K459 -> 42516 | N169: =Índices!L459 -> 0 | O169: =Índices!M459 -> 0 | P169: =Índices!N459 -> 1.172434501 | Q169: =IF(AND(M169>=DATE(2015,3,2),M169<DATE(IF(OR(CAPA!$C$23=124,CAPA!$C$23=125,CAPA!$C$23=126,CAPA!$C$23=134,CAPA!$C$23=137),2016,2015),MONTH($C$2),DAY($C$2))),$C$7/P169,0) -> 0 | R169: 0 | S169: 0 | T169: =IF(AND(M169>=VLOOKUP("Data Anterior",TabPostergacao[#All],2,FALSE),M169<VLOOKUP("Data Postergada",TabPostergacao[#All],2,FALSE)),$C$7/P169,0) -> 0
M170: =Índices!K460 -> 42517 | N170: =Índices!L460 -> DIA ÚTIL | O170: =Índices!M460 -> 0.052531 | P170: =Índices!N460 -> 1.173050393 | Q170: =IF(AND(M170>=DATE(2015,3,2),M170<DATE(IF(OR(CAPA!$C$23=124,CAPA!$C$23=125,CAPA!$C$23=126,CAPA!$C$23=134,CAPA!$C$23=137),2016,2015),MONTH($C$2),DAY($C$2))),$C$7/P170,0) -> 0 | R170: 0 | S170: 0 | T170: =IF(AND(M170>=VLOOKUP("Data Anterior",TabPostergacao[#All],2,FALSE),M170<VLOOKUP("Data Postergada",TabPostergacao[#All],2,FALSE)),$C$7/P170,0) -> 0
M171: =Índices!K461 -> 42518 | N171: =Índices!L461 -> 0 | O171: =Índices!M461 -> 0 | P171: =Índices!N461 -> 1.173050393 | Q171: =IF(AND(M171>=DATE(2015,3,2),M171<DATE(IF(OR(CAPA!$C$23=124,CAPA!$C$23=125,CAPA!$C$23=126,CAPA!$C$23=134,CAPA!$C$23=137),2016,2015),MONTH($C$2),DAY($C$2))),$C$7/P171,0) -> 0 | R171: 0 | S171: 0 | T171: =IF(AND(M171>=VLOOKUP("Data Anterior",TabPostergacao[#All],2,FALSE),M171<VLOOKUP("Data Postergada",TabPostergacao[#All],2,FALSE)),$C$7/P171,0) -> 0
M172: =Índices!K462 -> 42519 | N172: =Índices!L462 -> 0 | O172: =Índices!M462 -> 0 | P172: =Índices!N462 -> 1.173050393 | Q172: =IF(AND(M172>=DATE(2015,3,2),M172<DATE(IF(OR(CAPA!$C$23=124,CAPA!$C$23=125,CAPA!$C$23=126,CAPA!$C$23=134,CAPA!$C$23=137),2016,2015),MONTH($C$2),DAY($C$2))),$C$7/P172,0) -> 0 | R172: 0 | S172: 0 | T172: =IF(AND(M172>=VLOOKUP("Data Anterior",TabPostergacao[#All],2,FALSE),M172<VLOOKUP("Data Postergada",TabPostergacao[#All],2,FALSE)),$C$7/P172,0) -> 0
M173: =Índices!K463 -> 42520 | N173: =Índices!L463 -> DIA ÚTIL | O173: =Índices!M463 -> 0.052531 | P173: =Índices!N463 -> 1.173666608 | Q173: =IF(AND(M173>=DATE(2015,3,2),M173<DATE(IF(OR(CAPA!$C$23=124,CAPA!$C$23=125,CAPA!$C$23=126,CAPA!$C$23=134,CAPA!$C$23=137),2016,2015),MONTH($C$2),DAY($C$2))),$C$7/P173,0) -> 0 | R173: 0 | S173: 0 | T173: =IF(AND(M173>=VLOOKUP("Data Anterior",TabPostergacao[#All],2,FALSE),M173<VLOOKUP("Data Postergada",TabPostergacao[#All],2,FALSE)),$C$7/P173,0) -> 0
M174: =Índices!K464 -> 42521 | N174: =Índices!L464 -> DIA ÚTIL | O174: =Índices!M464 -> 0.052531 | P174: =Índices!N464 -> 1.174283146 | Q174: =IF(AND(M174>=DATE(2015,3,2),M174<DATE(IF(OR(CAPA!$C$23=124,CAPA!$C$23=125,CAPA!$C$23=126,CAPA!$C$23=134,CAPA!$C$23=137),2016,2015),MONTH($C$2),DAY($C$2))),$C$7/P174,0) -> 0 | R174: 0 | S174: 0 | T174: =IF(AND(M174>=VLOOKUP("Data Anterior",TabPostergacao[#All],2,FALSE),M174<VLOOKUP("Data Postergada",TabPostergacao[#All],2,FALSE)),$C$7/P174,0) -> 0
M175: =Índices!K465 -> 42522 | N175: =Índices!L465 -> DIA ÚTIL | O175: =Índices!M465 -> 0.052531 | P175: =Índices!N465 -> 1.174900009 | Q175: =IF(AND(M175>=DATE(2015,3,2),M175<DATE(IF(OR(CAPA!$C$23=124,CAPA!$C$23=125,CAPA!$C$23=126,CAPA!$C$23=134,CAPA!$C$23=137),2016,2015),MONTH($C$2),DAY($C$2))),$C$7/P175,0) -> 0 | R175: 0 | S175: 0 | T175: =IF(AND(M175>=VLOOKUP("Data Anterior",TabPostergacao[#All],2,FALSE),M175<VLOOKUP("Data Postergada",TabPostergacao[#All],2,FALSE)),$C$7/P175,0) -> 0
M176: =Índices!K466 -> 42523 | N176: =Índices!L466 -> DIA ÚTIL | O176: =Índices!M466 -> 0.052531 | P176: =Índices!N466 -> 1.175517196 | Q176: =IF(AND(M176>=DATE(2015,3,2),M176<DATE(IF(OR(CAPA!$C$23=124,CAPA!$C$23=125,CAPA!$C$23=126,CAPA!$C$23=134,CAPA!$C$23=137),2016,2015),MONTH($C$2),DAY($C$2))),$C$7/P176,0) -> 0 | R176: 0 | S176: 0 | T176: =IF(AND(M176>=VLOOKUP("Data Anterior",TabPostergacao[#All],2,FALSE),M176<VLOOKUP("Data Postergada",TabPostergacao[#All],2,FALSE)),$C$7/P176,0) -> 0
M177: =Índices!K467 -> 42524 | N177: =Índices!L467 -> DIA ÚTIL | O177: =Índices!M467 -> 0.052531 | P177: =Índices!N467 -> 1.176134707 | Q177: =IF(AND(M177>=DATE(2015,3,2),M177<DATE(IF(OR(CAPA!$C$23=124,CAPA!$C$23=125,CAPA!$C$23=126,CAPA!$C$23=134,CAPA!$C$23=137),2016,2015),MONTH($C$2),DAY($C$2))),$C$7/P177,0) -> 0 | R177: 0 | S177: 0 | T177: =IF(AND(M177>=VLOOKUP("Data Anterior",TabPostergacao[#All],2,FALSE),M177<VLOOKUP("Data Postergada",TabPostergacao[#All],2,FALSE)),$C$7/P177,0) -> 0
M178: =Índices!K468 -> 42525 | N178: =Índices!L468 -> 0 | O178: =Índices!M468 -> 0 | P178: =Índices!N468 -> 1.176134707 | Q178: =IF(AND(M178>=DATE(2015,3,2),M178<DATE(IF(OR(CAPA!$C$23=124,CAPA!$C$23=125,CAPA!$C$23=126,CAPA!$C$23=134,CAPA!$C$23=137),2016,2015),MONTH($C$2),DAY($C$2))),$C$7/P178,0) -> 0 | R178: 0 | S178: 0 | T178: =IF(AND(M178>=VLOOKUP("Data Anterior",TabPostergacao[#All],2,FALSE),M178<VLOOKUP("Data Postergada",TabPostergacao[#All],2,FALSE)),$C$7/P178,0) -> 0
M179: =Índices!K469 -> 42526 | N179: =Índices!L469 -> 0 | O179: =Índices!M469 -> 0 | P179: =Índices!N469 -> 1.176134707 | Q179: =IF(AND(M179>=DATE(2015,3,2),M179<DATE(IF(OR(CAPA!$C$23=124,CAPA!$C$23=125,CAPA!$C$23=126,CAPA!$C$23=134,CAPA!$C$23=137),2016,2015),MONTH($C$2),DAY($C$2))),$C$7/P179,0) -> 0 | R179: 0 | S179: 0 | T179: =IF(AND(M179>=VLOOKUP("Data Anterior",TabPostergacao[#All],2,FALSE),M179<VLOOKUP("Data Postergada",TabPostergacao[#All],2,FALSE)),$C$7/P179,0) -> 0
M180: =Índices!K470 -> 42527 | N180: =Índices!L470 -> DIA ÚTIL | O180: =Índices!M470 -> 0.052531 | P180: =Índices!N470 -> 1.176752542 | Q180: =IF(AND(M180>=DATE(2015,3,2),M180<DATE(IF(OR(CAPA!$C$23=124,CAPA!$C$23=125,CAPA!$C$23=126,CAPA!$C$23=134,CAPA!$C$23=137),2016,2015),MONTH($C$2),DAY($C$2))),$C$7/P180,0) -> 0 | R180: 0 | S180: 0 | T180: =IF(AND(M180>=VLOOKUP("Data Anterior",TabPostergacao[#All],2,FALSE),M180<VLOOKUP("Data Postergada",TabPostergacao[#All],2,FALSE)),$C$7/P180,0) -> 0
M181: =Índices!K471 -> 42528 | N181: =Índices!L471 -> DIA ÚTIL | O181: =Índices!M471 -> 0.052531 | P181: =Índices!N471 -> 1.177370702 | Q181: =IF(AND(M181>=DATE(2015,3,2),M181<DATE(IF(OR(CAPA!$C$23=124,CAPA!$C$23=125,CAPA!$C$23=126,CAPA!$C$23=134,CAPA!$C$23=137),2016,2015),MONTH($C$2),DAY($C$2))),$C$7/P181,0) -> 0 | R181: 0 | S181: 0 | T181: =IF(AND(M181>=VLOOKUP("Data Anterior",TabPostergacao[#All],2,FALSE),M181<VLOOKUP("Data Postergada",TabPostergacao[#All],2,FALSE)),$C$7/P181,0) -> 0
M182: =Índices!K472 -> 42529 | N182: =Índices!L472 -> DIA ÚTIL | O182: =Índices!M472 -> 0.052531 | P182: =Índices!N472 -> 1.177989187 | Q182: =IF(AND(M182>=DATE(2015,3,2),M182<DATE(IF(OR(CAPA!$C$23=124,CAPA!$C$23=125,CAPA!$C$23=126,CAPA!$C$23=134,CAPA!$C$23=137),2016,2015),MONTH($C$2),DAY($C$2))),$C$7/P182,0) -> 0 | R182: 0 | S182: 0 | T182: =IF(AND(M182>=VLOOKUP("Data Anterior",TabPostergacao[#All],2,FALSE),M182<VLOOKUP("Data Postergada",TabPostergacao[#All],2,FALSE)),$C$7/P182,0) -> 0
M183: =Índices!K473 -> 42530 | N183: =Índices!L473 -> DIA ÚTIL | O183: =Índices!M473 -> 0.052531 | P183: =Índices!N473 -> 1.178607996 | Q183: =IF(AND(M183>=DATE(2015,3,2),M183<DATE(IF(OR(CAPA!$C$23=124,CAPA!$C$23=125,CAPA!$C$23=126,CAPA!$C$23=134,CAPA!$C$23=137),2016,2015),MONTH($C$2),DAY($C$2))),$C$7/P183,0) -> 0 | R183: 0 | S183: 0 | T183: =IF(AND(M183>=VLOOKUP("Data Anterior",TabPostergacao[#All],2,FALSE),M183<VLOOKUP("Data Postergada",TabPostergacao[#All],2,FALSE)),$C$7/P183,0) -> 0
M184: =Índices!K474 -> 42531 | N184: =Índices!L474 -> DIA ÚTIL | O184: =Índices!M474 -> 0.052531 | P184: =Índices!N474 -> 1.179227131 | Q184: =IF(AND(M184>=DATE(2015,3,2),M184<DATE(IF(OR(CAPA!$C$23=124,CAPA!$C$23=125,CAPA!$C$23=126,CAPA!$C$23=134,CAPA!$C$23=137),2016,2015),MONTH($C$2),DAY($C$2))),$C$7/P184,0) -> 0 | R184: 0 | S184: 0 | T184: =IF(AND(M184>=VLOOKUP("Data Anterior",TabPostergacao[#All],2,FALSE),M184<VLOOKUP("Data Postergada",TabPostergacao[#All],2,FALSE)),$C$7/P184,0) -> 0
M185: =Índices!K475 -> 42532 | N185: =Índices!L475 -> 0 | O185: =Índices!M475 -> 0 | P185: =Índices!N475 -> 1.179227131 | Q185: =IF(AND(M185>=DATE(2015,3,2),M185<DATE(IF(OR(CAPA!$C$23=124,CAPA!$C$23=125,CAPA!$C$23=126,CAPA!$C$23=134,CAPA!$C$23=137),2016,2015),MONTH($C$2),DAY($C$2))),$C$7/P185,0) -> 0 | R185: 0 | S185: 0 | T185: =IF(AND(M185>=VLOOKUP("Data Anterior",TabPostergacao[#All],2,FALSE),M185<VLOOKUP("Data Postergada",TabPostergacao[#All],2,FALSE)),$C$7/P185,0) -> 0
M186: =Índices!K476 -> 42533 | N186: =Índices!L476 -> 0 | O186: =Índices!M476 -> 0 | P186: =Índices!N476 -> 1.179227131 | Q186: =IF(AND(M186>=DATE(2015,3,2),M186<DATE(IF(OR(CAPA!$C$23=124,CAPA!$C$23=125,CAPA!$C$23=126,CAPA!$C$23=134,CAPA!$C$23=137),2016,2015),MONTH($C$2),DAY($C$2))),$C$7/P186,0) -> 0 | R186: 0 | S186: 0 | T186: =IF(AND(M186>=VLOOKUP("Data Anterior",TabPostergacao[#All],2,FALSE),M186<VLOOKUP("Data Postergada",TabPostergacao[#All],2,FALSE)),$C$7/P186,0) -> 0
M187: =Índices!K477 -> 42534 | N187: =Índices!L477 -> DIA ÚTIL | O187: =Índices!M477 -> 0.052531 | P187: =Índices!N477 -> 1.17984659 | Q187: =IF(AND(M187>=DATE(2015,3,2),M187<DATE(IF(OR(CAPA!$C$23=124,CAPA!$C$23=125,CAPA!$C$23=126,CAPA!$C$23=134,CAPA!$C$23=137),2016,2015),MONTH($C$2),DAY($C$2))),$C$7/P187,0) -> 0 | R187: 0 | S187: 0 | T187: =IF(AND(M187>=VLOOKUP("Data Anterior",TabPostergacao[#All],2,FALSE),M187<VLOOKUP("Data Postergada",TabPostergacao[#All],2,FALSE)),$C$7/P187,0) -> 0
M188: =Índices!K478 -> 42535 | N188: =Índices!L478 -> DIA ÚTIL | O188: =Índices!M478 -> 0.052531 | P188: =Índices!N478 -> 1.180466376 | Q188: =IF(AND(M188>=DATE(2015,3,2),M188<DATE(IF(OR(CAPA!$C$23=124,CAPA!$C$23=125,CAPA!$C$23=126,CAPA!$C$23=134,CAPA!$C$23=137),2016,2015),MONTH($C$2),DAY($C$2))),$C$7/P188,0) -> 0 | R188: 0 | S188: 0 | T188: =IF(AND(M188>=VLOOKUP("Data Anterior",TabPostergacao[#All],2,FALSE),M188<VLOOKUP("Data Postergada",TabPostergacao[#All],2,FALSE)),$C$7/P188,0) -> 0
M189: =Índices!K479 -> 42536 | N189: =Índices!L479 -> DIA ÚTIL | O189: =Índices!M479 -> 0.052531 | P189: =Índices!N479 -> 1.181086486 | Q189: =IF(AND(M189>=DATE(2015,3,2),M189<DATE(IF(OR(CAPA!$C$23=124,CAPA!$C$23=125,CAPA!$C$23=126,CAPA!$C$23=134,CAPA!$C$23=137),2016,2015),MONTH($C$2),DAY($C$2))),$C$7/P189,0) -> 0 | R189: 0 | S189: 0 | T189: =IF(AND(M189>=VLOOKUP("Data Anterior",TabPostergacao[#All],2,FALSE),M189<VLOOKUP("Data Postergada",TabPostergacao[#All],2,FALSE)),$C$7/P189,0) -> 0
M190: =Índices!K480 -> 42537 | N190: =Índices!L480 -> DIA ÚTIL | O190: =Índices!M480 -> 0.052531 | P190: =Índices!N480 -> 1.181706923 | Q190: =IF(AND(M190>=DATE(2015,3,2),M190<DATE(IF(OR(CAPA!$C$23=124,CAPA!$C$23=125,CAPA!$C$23=126,CAPA!$C$23=134,CAPA!$C$23=137),2016,2015),MONTH($C$2),DAY($C$2))),$C$7/P190,0) -> 0 | R190: 0 | S190: 0 | T190: =IF(AND(M190>=VLOOKUP("Data Anterior",TabPostergacao[#All],2,FALSE),M190<VLOOKUP("Data Postergada",TabPostergacao[#All],2,FALSE)),$C$7/P190,0) -> 0
M191: =Índices!K481 -> 42538 | N191: =Índices!L481 -> DIA ÚTIL | O191: =Índices!M481 -> 0.052531 | P191: =Índices!N481 -> 1.182327685 | Q191: =IF(AND(M191>=DATE(2015,3,2),M191<DATE(IF(OR(CAPA!$C$23=124,CAPA!$C$23=125,CAPA!$C$23=126,CAPA!$C$23=134,CAPA!$C$23=137),2016,2015),MONTH($C$2),DAY($C$2))),$C$7/P191,0) -> 0 | R191: 0 | S191: 0 | T191: =IF(AND(M191>=VLOOKUP("Data Anterior",TabPostergacao[#All],2,FALSE),M191<VLOOKUP("Data Postergada",TabPostergacao[#All],2,FALSE)),$C$7/P191,0) -> 0
M192: =Índices!K482 -> 42539 | N192: =Índices!L482 -> 0 | O192: =Índices!M482 -> 0 | P192: =Índices!N482 -> 1.182327685 | Q192: =IF(AND(M192>=DATE(2015,3,2),M192<DATE(IF(OR(CAPA!$C$23=124,CAPA!$C$23=125,CAPA!$C$23=126,CAPA!$C$23=134,CAPA!$C$23=137),2016,2015),MONTH($C$2),DAY($C$2))),$C$7/P192,0) -> 0 | R192: 0 | S192: 0 | T192: =IF(AND(M192>=VLOOKUP("Data Anterior",TabPostergacao[#All],2,FALSE),M192<VLOOKUP("Data Postergada",TabPostergacao[#All],2,FALSE)),$C$7/P192,0) -> 0
M193: =Índices!K483 -> 42540 | N193: =Índices!L483 -> 0 | O193: =Índices!M483 -> 0 | P193: =Índices!N483 -> 1.182327685 | Q193: =IF(AND(M193>=DATE(2015,3,2),M193<DATE(IF(OR(CAPA!$C$23=124,CAPA!$C$23=125,CAPA!$C$23=126,CAPA!$C$23=134,CAPA!$C$23=137),2016,2015),MONTH($C$2),DAY($C$2))),$C$7/P193,0) -> 0 | R193: 0 | S193: 0 | T193: =IF(AND(M193>=VLOOKUP("Data Anterior",TabPostergacao[#All],2,FALSE),M193<VLOOKUP("Data Postergada",TabPostergacao[#All],2,FALSE)),$C$7/P193,0) -> 0
M194: =Índices!K484 -> 42541 | N194: =Índices!L484 -> DIA ÚTIL | O194: =Índices!M484 -> 0.052531 | P194: =Índices!N484 -> 1.182948774 | Q194: =IF(AND(M194>=DATE(2015,3,2),M194<DATE(IF(OR(CAPA!$C$23=124,CAPA!$C$23=125,CAPA!$C$23=126,CAPA!$C$23=134,CAPA!$C$23=137),2016,2015),MONTH($C$2),DAY($C$2))),$C$7/P194,0) -> 0 | R194: 0 | S194: 0 | T194: =IF(AND(M194>=VLOOKUP("Data Anterior",TabPostergacao[#All],2,FALSE),M194<VLOOKUP("Data Postergada",TabPostergacao[#All],2,FALSE)),$C$7/P194,0) -> 0
M195: =Índices!K485 -> 42542 | N195: =Índices!L485 -> DIA ÚTIL | O195: =Índices!M485 -> 0.052531 | P195: =Índices!N485 -> 1.183570189 | Q195: =IF(AND(M195>=DATE(2015,3,2),M195<DATE(IF(OR(CAPA!$C$23=124,CAPA!$C$23=125,CAPA!$C$23=126,CAPA!$C$23=134,CAPA!$C$23=137),2016,2015),MONTH($C$2),DAY($C$2))),$C$7/P195,0) -> 0 | R195: 0 | S195: 0 | T195: =IF(AND(M195>=VLOOKUP("Data Anterior",TabPostergacao[#All],2,FALSE),M195<VLOOKUP("Data Postergada",TabPostergacao[#All],2,FALSE)),$C$7/P195,0) -> 0
M196: =Índices!K486 -> 42543 | N196: =Índices!L486 -> DIA ÚTIL | O196: =Índices!M486 -> 0.052531 | P196: =Índices!N486 -> 1.18419193 | Q196: =IF(AND(M196>=DATE(2015,3,2),M196<DATE(IF(OR(CAPA!$C$23=124,CAPA!$C$23=125,CAPA!$C$23=126,CAPA!$C$23=134,CAPA!$C$23=137),2016,2015),MONTH($C$2),DAY($C$2))),$C$7/P196,0) -> 0 | R196: 0 | S196: 0 | T196: =IF(AND(M196>=VLOOKUP("Data Anterior",TabPostergacao[#All],2,FALSE),M196<VLOOKUP("Data Postergada",TabPostergacao[#All],2,FALSE)),$C$7/P196,0) -> 0
M197: =Índices!K487 -> 42544 | N197: =Índices!L487 -> DIA ÚTIL | O197: =Índices!M487 -> 0.052531 | P197: =Índices!N487 -> 1.184813998 | Q197: =IF(AND(M197>=DATE(2015,3,2),M197<DATE(IF(OR(CAPA!$C$23=124,CAPA!$C$23=125,CAPA!$C$23=126,CAPA!$C$23=134,CAPA!$C$23=137),2016,2015),MONTH($C$2),DAY($C$2))),$C$7/P197,0) -> 0 | R197: 0 | S197: 0 | T197: =IF(AND(M197>=VLOOKUP("Data Anterior",TabPostergacao[#All],2,FALSE),M197<VLOOKUP("Data Postergada",TabPostergacao[#All],2,FALSE)),$C$7/P197,0) -> 0
M198: =Índices!K488 -> 42545 | N198: =Índices!L488 -> DIA ÚTIL | O198: =Índices!M488 -> 0.052531 | P198: =Índices!N488 -> 1.185436393 | Q198: =IF(AND(M198>=DATE(2015,3,2),M198<DATE(IF(OR(CAPA!$C$23=124,CAPA!$C$23=125,CAPA!$C$23=126,CAPA!$C$23=134,CAPA!$C$23=137),2016,2015),MONTH($C$2),DAY($C$2))),$C$7/P198,0) -> 0 | R198: 0 | S198: 0 | T198: =IF(AND(M198>=VLOOKUP("Data Anterior",TabPostergacao[#All],2,FALSE),M198<VLOOKUP("Data Postergada",TabPostergacao[#All],2,FALSE)),$C$7/P198,0) -> 0
M199: =Índices!K489 -> 42546 | N199: =Índices!L489 -> 0 | O199: =Índices!M489 -> 0 | P199: =Índices!N489 -> 1.185436393 | Q199: =IF(AND(M199>=DATE(2015,3,2),M199<DATE(IF(OR(CAPA!$C$23=124,CAPA!$C$23=125,CAPA!$C$23=126,CAPA!$C$23=134,CAPA!$C$23=137),2016,2015),MONTH($C$2),DAY($C$2))),$C$7/P199,0) -> 0 | R199: 0 | S199: 0 | T199: =IF(AND(M199>=VLOOKUP("Data Anterior",TabPostergacao[#All],2,FALSE),M199<VLOOKUP("Data Postergada",TabPostergacao[#All],2,FALSE)),$C$7/P199,0) -> 0
M200: =Índices!K490 -> 42547 | N200: =Índices!L490 -> 0 | O200: =Índices!M490 -> 0 | P200: =Índices!N490 -> 1.185436393 | Q200: =IF(AND(M200>=DATE(2015,3,2),M200<DATE(IF(OR(CAPA!$C$23=124,CAPA!$C$23=125,CAPA!$C$23=126,CAPA!$C$23=134,CAPA!$C$23=137),2016,2015),MONTH($C$2),DAY($C$2))),$C$7/P200,0) -> 0 | R200: 0 | S200: 0 | T200: =IF(AND(M200>=VLOOKUP("Data Anterior",TabPostergacao[#All],2,FALSE),M200<VLOOKUP("Data Postergada",TabPostergacao[#All],2,FALSE)),$C$7/P200,0) -> 0
M201: =Índices!K491 -> 42548 | N201: =Índices!L491 -> DIA ÚTIL | O201: =Índices!M491 -> 0.052531 | P201: =Índices!N491 -> 1.186059114 | Q201: =IF(AND(M201>=DATE(2015,3,2),M201<DATE(IF(OR(CAPA!$C$23=124,CAPA!$C$23=125,CAPA!$C$23=126,CAPA!$C$23=134,CAPA!$C$23=137),2016,2015),MONTH($C$2),DAY($C$2))),$C$7/P201,0) -> 0 | R201: 0 | S201: 0 | T201: =IF(AND(M201>=VLOOKUP("Data Anterior",TabPostergacao[#All],2,FALSE),M201<VLOOKUP("Data Postergada",TabPostergacao[#All],2,FALSE)),$C$7/P201,0) -> 0
... 803 more rows

Sheet Mercado_Receita
A1: Código | B1: TipoMercado | C1: Modalidade | D1: Subgrupo | E1: Classe | F1: Subclasse | G1: Detalhe | H1: Agente | I1: Posto | J1: OPÇÃO | K1: AnoMes | L1: D | M1: Daj | N1: TUSD_E | O1: TUSD_Eaj | P1: TE_E | Q1: TE_Eaj | R1: TUSD/KW | S1: TUSD/MWh | T1: TE | U1: ReceitaD | V1: ReceitaE | W1: Total | X1: Total com Tar de aplicação | Y1: CCC | Z1: CDE | AA1: CFURH | AB1: Conexao_D | AC1: Conexao_T | AD1: CUSD | AE1: DISTRIBUICAO | AF1: EnergiaRevenda | AG1: ESSERR | AH1: ITAIPU | AI1: ONS | AJ1: OUTROS | AK1: PeD | AL1: PROINFA | AM1: RGR | AN1: TFSEE | AO1: TUST_FR | AP1: TUST_RB | AQ1: TUSDG_ONS | AR1: TUSDG_T | AS1: TUST_CI | AT1: TUST_ITAIPU | AU1: CVA_CCC | AV1: CVA_CDE | AW1: CVA_PROINFA | AX1: CVA_TranItaipu | AY1: CVA_ESSERR | AZ1: CVA_CFURH | BA1: CVA_CDE_E | BB1: CVA_Energia | BC1: CVA_RB | BD1: perdasnt | BE1: perdasrb_d | BF1: perdasrb_c | BG1: perdastec | BH1: RI | BI1: PisPasep | BJ1: Cofins | BK1: ICMS | BL1: UC | BM1: total_dummy | BN1: Subs_CarFI | BO1: Subs_GerFI | BP1: Subs_Dist | BQ1: Subs_AguaEsgoto | BR1: Subs_Rural | BS1: Subs_Irrigante | BT1: Subs_BaixaRenda | BU1: CDE_E | BV1: DespesaEnergia | BW1: RTE_CUSD | BX1: RTE_Energia | BY1: RTE_CDE_USO | BZ1: RTE_CDE_E | CA1: RTE_PeD | CB1: Dif_Subs_Car | CC1: Dif_Subs_Ger | CD1: Dif_Subs_D | CE1: Dif_Subs_Agua | CF1: Dif_Subs_Ru | CG1: Dif_Subs_Irr | CH1: dif_subs_baixa | CI1: FinTotAj | CJ1: FinAj | CK1: RTE_CDE_E_Dec | CL1: RTE_CDE_E_ACR | CM1: CDE_E_Dec | CN1: CDE_E_ACR | CO1: FinPostTUSD | CP1: FinPostTE | CQ1: FinPostQtddias | CR1: FinCT_Geral | CS1: finCT_TUST_FR | CT1: finCT_TUST_RB | CU1: FINCT_TUSDG_ONS | CV1: FINCT_TUSDG_T | CW1: FINCT_TUST_CI | CX1: FINCT_TUST_ITAIPU | CY1: FinCT_Itaipu | CZ1: FinCT_CUSD | DA1: FinCT_Conexao_D | DB1: FinCT_Conexao_T | DC1: FinCT_EnergiaRevenda | DD1: FINCT_perdasrb_c | DE1: FINCT_perdasrb_d | DF1: FinCT_perdasnt | DG1: FinCT_perdastec | DH1: FinCT_CCC | DI1: FinCT_CDE | DJ1: FinCT_CDE_E | DK1: FinCT_CFURH | DL1: FinCT_ONS | DM1: FinCT_ESSERR | DN1: FinCT_Ped | DO1: finCT_PROINFA | DP1: finCT_TFSEE | DQ1: FINCT_Liminar | DR1: FinCT_Posterg | DS1: FINCT_RGR | DT1: Tipo_ato | DU1: DIST_D | DV1: DIST_E | DW1: FIN_RI | DX1: FINCT_RI | DY1: idsreag | DZ1: FinCTAn3En | EA1: An3En | EB1: CVA_An3En | EC1: Fin_An3En | ED1: FIN_CFURH | EE1: TEAngra | EF1: TUSDAngra | EG1: teCheia | EH1: tusdcheia | EI1: AngraIII_TE | EJ1: AngraIII_TUSD | EK1: AngraIII_Desc_TE | EL1: AngraIII_Desc_TUSD
A2: 1106 | B2: Regular | C2: Azul | D2: A3 | E2: Industrial | F2: Não se aplica | G2: Fonte incentivada | H2: Não se aplica | I2: Fora ponta | J2: LIVRE | K2: 2019-09-01 | L2: 9496 | M2: 7916.25769 | N2: 0 | O2: 0 | P2: 0 | Q2: 0 | R2: 5.12 | U2: 48619.52 | W2: 48619.52 | X2: 51373.36 | Y2: 0 | Z2: 0 | AA2: 0 | AB2: 0 | AC2: 703.6796145 | AD2: 9690.211967 | AE2: 12566.42653 | AF2: 0 | AG2: 0 | AH2: 0 | AI2: 0 | AJ2: 0 | AK2: 0 | AL2: 0 | AM2: 0 | AN2: 0 | AO2: 8028.194817 | AP2: 17611.36148 | AQ2: 0 | AR2: 0 | AS2: 0 | AT2: 0 | AU2: 0 | AV2: 0 | AW2: 0 | AX2: 0 | AY2: 0 | AZ2: 0 | BB2: 0 | BC2: 2378.850739 | BD2: 0 | BE2: 0 | BF2: 0 | BG2: 0 | BH2: 0 | BI2: 0 | BJ2: 0 | BK2: 0 | BL2: 0 | BN2: 8546.405898 | BU2: 0 | BV2: 0 | CI2: 42826.9666 | CJ2: 2295.697228 | CM2: 0 | CN2: 0 | CO2: 2753.84 | CP2: 0 | CQ2: 30 | CR2: 420.7132818 | CS2: -2.728484105e-12 | CT2: 21.05010008 | CU2: 0 | CV2: 0 | CW2: 0 | CX2: 0 | CY2: 0 | CZ2: 399.6631817 | DA2: 0 | DB2: 0 | DC2: 0 | DD2: 0 | DE2: 0 | DF2: 0 | DG2: 0 | DH2: 0 | DI2: 0 | DJ2: 0 | DK2: 0 | DL2: 0 | DM2: 0 | DN2: 0 | DO2: 0 | DP2: 0 | DQ2: 0 | DR2: 0 | DS2: 0 | DU2: 12566.42653 | DW2: 0 | DX2: 0 | DY2: 140 | DZ2: 0 | EA2: 0 | EB2: 0 | ED2: 0 | EE2: -83.4197843 | EG2: -83.4197843 | EI2: 0 | EJ2: 0 | EK2: 0 | EL2: 0
A3: 1127 | B3: Regular | C3: Azul | D3: A3 | E3: Industrial | F3: Não se aplica | G3: Fonte incentivada | H3: Não se aplica | I3: Fora ponta | J3: LIVRE | K3: 2019-10-01 | L3: 9788 | M3: 8895.106535 | N3: 0 | O3: 0 | P3: 0 | Q3: 0 | R3: 5.12 | U3: 50114.56 | W3: 50114.56 | X3: 52953.08 | Y3: 0 | Z3: 0 | AA3: 0 | AB3: 0 | AC3: 725.3176145 | AD3: 9988.183944 | AE3: 12952.8415 | AF3: 0 | AG3: 0 | AH3: 0 | AI3: 0 | AJ3: 0 | AK3: 0 | AL3: 0 | AM3: 0 | AN3: 0 | AO3: 8275.060117 | AP3: 18152.90714 | AQ3: 0 | AR3: 0 | AS3: 0 | AT3: 0 | AU3: 0 | AV3: 0 | AW3: 0 | AX3: 0 | AY3: 0 | AZ3: 0 | BB3: 0 | BC3: 2451.999899 | BD3: 0 | BE3: 0 | BF3: 0 | BG3: 0 | BH3: 0 | BI3: 0 | BJ3: 0 | BK3: 0 | BL3: 0 | BN3: 4830.553644 | BU3: 0 | BV3: 0 | CI3: 48122.5451 | CJ3: 2579.569639 | CM3: 0 | CN3: 0 | CO3: 2838.52 | CP3: 0 | CQ3: 31 | CR3: 433.6501266 | CS3: -3.637978807e-12 | CT3: 21.69738623 | CU3: 0 | CV3: 0 | CW3: 0 | CX3: 0 | CY3: 0 | CZ3: 411.9527403 | DA3: 0 | DB3: 0 | DC3: 0 | DD3: 0 | DE3: 0 | DF3: 0 | DG3: 0 | DH3: 0 | DI3: 0 | DJ3: 0 | DK3: 0 | DL3: 0 | DM3: 0 | DN3: 0 | DO3: 0 | DP3: 0 | DQ3: 0 | DR3: 0 | DS3: 0 | DU3: 12952.8415 | DW3: 0 | DX3: 0 | DY3: 140 | DZ3: 0 | EA3: 0 | EB3: 0 | ED3: 0 | EE3: -83.4197843 | EG3: -83.4197843 | EI3: 0 | EJ3: 0 | EK3: 0 | EL3: 0
A4: 1148 | B4: Regular | C4: Azul | D4: A3 | E4: Industrial | F4: Não se aplica | G4: Fonte incentivada | H4: Não se aplica | I4: Fora ponta | J4: LIVRE | K4: 2019-11-01 | L4: 9839 | M4: 8941.454148 | N4: 0 | O4: 0 | P4: 0 | Q4: 0 | R4: 5.12 | U4: 50375.68 | W4: 50375.68 | X4: 53228.99 | Y4: 0 | Z4: 0 | AA4: 0 | AB4: 0 | AC4: 729.0968542 | AD4: 10040.227 | AE4: 13020.33179 | AF4: 0 | AG4: 0 | AH4: 0 | AI4: 0 | AJ4: 0 | AK4: 0 | AL4: 0 | AM4: 0 | AN4: 0 | AO4: 8318.177002 | AP4: 18247.49217 | AQ4: 0 | AR4: 0 | AS4: 0 | AT4: 0 | AU4: 0 | AV4: 0 | AW4: 0 | AX4: 0 | AY4: 0 | AZ4: 0 | BB4: 0 | BC4: 2464.77595 | BD4: 0 | BE4: 0 | BF4: 0 | BG4: 0 | BH4: 0 | BI4: 0 | BJ4: 0 | BK4: 0 | BL4: 0 | BN4: 4855.723059 | BU4: 0 | BV4: 0 | CI4: 48373.2445 | CJ4: 2592.969262 | CM4: 0 | CN4: 0 | CO4: 2853.31 | CP4: 0 | CQ4: 30 | CR4: 435.909644 | CS4: -1.818989404e-12 | CT4: 21.81043963 | CU4: 0 | CV4: 0 | CW4: 0 | CX4: 0 | CY4: 0 | CZ4: 414.0992043 | DA4: 0 | DB4: 0 | DC4: 0 | DD4: 0 | DE4: 0 | DF4: 0 | DG4: 0 | DH4: 0 | DI4: 0 | DJ4: 0 | DK4: 0 | DL4: 0 | DM4: 0 | DN4: 0 | DO4: 0 | DP4: 0 | DQ4: 0 | DR4: 0 | DS4: 0 | DU4: 13020.33179 | DW4: 0 | DX4: 0 | DY4: 140 | DZ4: 0 | EA4: 0 | EB4: 0 | ED4: 0 | EE4: -83.4197843 | EG4: -83.4197843 | EI4: 0 | EJ4: 0 | EK4: 0 | EL4: 0
A5: 1169 | B5: Regular | C5: Azul | D5: A3 | E5: Industrial | F5: Não se aplica | G5: Fonte incentivada | H5: Não se aplica | I5: Fora ponta | J5: LIVRE | K5: 2019-12-01 | L5: 10500 | M5: 8240.364195 | N5: 0 | O5: 0 | P5: 0 | Q5: 0 | R5: 5.12 | U5: 53760 | W5: 53760 | X5: 56805 | Y5: 0 | Z5: 0 | AA5: 0 | AB5: 0 | AC5: 778.078765 | AD5: 10714.74575 | AE5: 13895.05883 | AF5: 0 | AG5: 0 | AH5: 0 | AI5: 0 | AJ5: 0 | AK5: 0 | AL5: 0 | AM5: 0 | AN5: 0 | AO5: 8877.005643 | AP5: 19473.38833 | AQ5: 0 | AR5: 0 | AS5: 0 | AT5: 0 | AU5: 0 | AV5: 0 | AW5: 0 | AX5: 0 | AY5: 0 | AZ5: 0 | BB5: 0 | BC5: 2630.363602 | BD5: 0 | BE5: 0 | BF5: 0 | BG5: 0 | BH5: 0 | BI5: 0 | BJ5: 0 | BK5: 0 | BL5: 0 | BN5: 12224.62971 | BU5: 0 | BV5: 0 | CI5: 44580.3476 | CJ5: 2389.652922 | CM5: 0 | CN5: 0 | CO5: 3045 | CP5: 0 | CR5: 465.1947618 | CS5: -1.818989404e-12 | CT5: 23.27570039 | CU5: 0 | CV5: 0 | CW5: 0 | CX5: 0 | CY5: 0 | CZ5: 441.9190615 | DA5: 0 | DB5: 0 | DC5: 0 | DD5: 0 | DE5: 0 | DF5: 0 | DG5: 0 | DH5: 0 | DI5: 0 | DJ5: 0 | DK5: 0 | DL5: 0 | DM5: 0 | DN5: 0 | DO5: 0 | DP5: 0 | DQ5: 0 | DR5: 0 | DS5: 0 | DU5: 13895.05883 | DW5: 0 | DX5: 0 | DY5: 140 | DZ5: 0 | EA5: 0 | EB5: 0 | ED5: 0 | EE5: -83.4197843 | EG5: -83.4197843 | EI5: 0 | EJ5: 0 | EK5: 0 | EL5: 0
A6: 1190 | B6: PROJETADO | C6: Azul | D6: A3 | E6: Industrial | F6: Não se aplica | G6: Fonte incentivada | H6: Não se aplica | I6: Fora ponta | J6: LIVRE | K6: 2020-01-01 | L6: 10500 | M6: 8240.364195 | N6: 0 | O6: 0 | P6: 0 | Q6: 0 | R6: 5.12 | U6: 53760 | W6: 53760 | X6: 56805 | Y6: 0 | Z6: 0 | AA6: 0 | AB6: 0 | AC6: 778.078765 | AD6: 10714.74575 | AE6: 13895.05883 | AF6: 0 | AG6: 0 | AH6: 0 | AI6: 0 | AJ6: 0 | AK6: 0 | AL6: 0 | AM6: 0 | AN6: 0 | AO6: 8877.005643 | AP6: 19473.38833 | AQ6: 0 | AR6: 0 | AS6: 0 | AT6: 0 | AU6: 0 | AV6: 0 | AW6: 0 | AX6: 0 | AY6: 0 | AZ6: 0 | BB6: 0 | BC6: 2630.363602 | BD6: 0 | BE6: 0 | BF6: 0 | BG6: 0 | BH6: 0 | BI6: 0 | BJ6: 0 | BK6: 0 | BL6: 0 | BN6: 12224.62971 | BU6: 0 | BV6: 0 | CI6: 44580.3476 | CJ6: 2389.652922 | CM6: 0 | CN6: 0 | CO6: 3045 | CP6: 0 | CQ6: 31 | CR6: 465.1947618 | CS6: -1.818989404e-12 | CT6: 23.27570039 | CU6: 0 | CV6: 0 | CW6: 0 | CX6: 0 | CY6: 0 | CZ6: 441.9190615 | DA6: 0 | DB6: 0 | DC6: 0 | DD6: 0 | DE6: 0 | DF6: 0 | DG6: 0 | DH6: 0 | DI6: 0 | DJ6: 0 | DK6: 0 | DL6: 0 | DM6: 0 | DN6: 0 | DO6: 0 | DP6: 0 | DQ6: 0 | DR6: 0 | DS6: 0 | DU6: 13895.05883 | DW6: 0 | DX6: 0 | DY6: 140 | DZ6: 0 | EA6: 0 | EB6: 0 | ED6: 0 | EE6: -83.4197843 | EG6: -83.4197843 | EI6: 0 | EJ6: 0 | EK6: 0 | EL6: 0
A7: 1107 | B7: Regular | C7: Azul | D7: A3 | E7: Industrial | F7: Não se aplica | G7: Fonte incentivada | H7: Não se aplica | I7: Não se aplica | J7: LIVRE | K7: 2019-09-01 | L7: 0 | M7: 0 | N7: 4126.497 | O7: 4126.497 | P7: 0 | Q7: 0 | S7: 28.19719449 | V7: 116355.6385 | W7: 116355.6385 | X7: 121290.2962 | Y7: 0 | Z7: 55436.39452 | AA7: 0 | AB7: 0 | AC7: 0 | AD7: 0 | AE7: 0 | AF7: 0 | AG7: 0 | AH7: 0 | AI7: 181.2224737 | AJ7: 0 | AK7: 1001.979862 | AL7: 38405.72219 | AM7: 0 | AN7: 1474.640567 | AO7: 0 | AP7: 0 | AQ7: 0 | AR7: 0 | AS7: 0 | AT7: 0 | AU7: 0 | AV7: 3972.024406 | AW7: 412.202164 | AX7: 0 | AY7: 0 | AZ7: 0 | BB7: 4638.566305 | BC7: 0 | BD7: 9866.483714 | BE7: 222.2926838 | BF7: 0 | BG7: 9766.902463 | BH7: 0 | BI7: 29104.69 | BJ7: 0 | BK7: 194191.82 | BL7: 1 | BU7: 0 | BV7: 19855.67886 | CI7: 121277.835 | CJ7: 4922.166529 | CM7: 0 | CN7: 0 | CO7: 4934.657711 | CP7: 0 | CQ7: 30 | CR7: -4088.135164 | CS7: 0 | CT7: 0 | CU7: 0 | CV7: 0 | CW7: 0 | CX7: 0 | CY7: 0 | CZ7: 0 | DA7: 0 | DB7: 0 | DC7: 0 | DD7: 0 | DE7: -3.298892882 | DF7: -146.4217011 | DG7: -144.9438842 | DH7: 0 | DI7: -1338.100579 | DJ7: 0 | DK7: 0 | DL7: -6.593068371 | DM7: 0 | DN7: -809.6586036 | DO7: -1590.858935 | DP7: -48.25950066 | DQ7: 0 | DR7: 0 | DS7: 0 | DV7: 0 | DW7: 0 | DX7: 0 | DY7: 140 | DZ7: 0 | EA7: 0 | EB7: 0 | ED7: 0 | EE7: -83.4197843 | EG7: -83.4197843 | EI7: 0 | EJ7: 0 | EK7: 0 | EL7: 0
A8: 1128 | B8: Regular | C8: Azul | D8: A3 | E8: Industrial | F8: Não se aplica | G8: Fonte incentivada | H8: Não se aplica | I8: Não se aplica | J8: LIVRE | K8: 2019-10-01 | L8: 0 | M8: 0 | N8: 5605.215 | O8: 5605.215 | P8: 0 | Q8: 0 | S8: 28.19719449 | V8: 158051.3375 | W8: 158051.3375 | X8: 164754.3152 | Y8: 0 | Z8: 75301.86259 | AA8: 0 | AB8: 0 | AC8: 0 | AD8: 0 | AE8: 0 | AF8: 0 | AG8: 0 | AH8: 0 | AI8: 246.1630113 | AJ8: 0 | AK8: 1361.036383 | AL8: 52168.29919 | AM8: 0 | AN8: 2003.073654 | AO8: 0 | AP8: 0 | AQ8: 0 | AR8: 0 | AS8: 0 | AT8: 0 | AU8: 0 | AV8: 5395.387608 | AW8: 559.9135908 | AX8: 0 | AY8: 0 | AZ8: 0 | BB8: 6300.782827 | BC8: 0 | BD8: 13402.10898 | BE8: 301.9506099 | BF8: 0 | BG8: 13266.84308 | BH8: 0 | BI8: 29538.57 | BJ8: 0 | BK8: 121457.94 | BL8: 1 | BU8: 0 | BV8: 26970.90268 | CI8: 164737.4158 | CJ8: 6686.048287 | CM8: 0 | CN8: 0 | CO8: 6702.977712 | CP8: 0 | CQ8: 31 | CR8: -5553.106314 | CS8: 0 | CT8: 0 | CU8: 0 | CV8: 0 | CW8: 0 | CX8: 0 | CY8: 0 | CZ8: 0 | DA8: 0 | DB8: 0 | DC8: 0 | DD8: 0 | DE8: -4.481041394 | DF8: -198.8914847 | DG8: -196.8840965 | DH8: 0 | DI8: -1817.604965 | DJ8: 0 | DK8: 0 | DL8: -8.955674929 | DM8: 0 | DN8: -1099.79737 | DO8: -2160.93853 | DP8: -65.55315004 | DQ8: 0 | DR8: 0 | DS8: 0 | DV8: 0 | DW8: 0 | DX8: 0 | DY8: 140 | DZ8: 0 | EA8: 0 | EB8: 0 | ED8: 0 | EE8: -83.4197843 | EG8: -83.4197843 | EI8: 0 | EJ8: 0 | EK8: 0 | EL8: 0
A9: 1149 | B9: Regular | C9: Azul | D9: A3 | E9: Industrial | F9: Não se aplica | G9: Fonte incentivada | H9: Não se aplica | I9: Não se aplica | J9: LIVRE | K9: 2019-11-01 | L9: 0 | M9: 0 | N9: 5495.104 | O9: 5495.104 | P9: 0 | Q9: 0 | S9: 28.19719449 | V9: 154946.5162 | W9: 154946.5162 | X9: 161517.8181 | Y9: 0 | Z9: 73822.60383 | AA9: 0 | AB9: 0 | AC9: 0 | AD9: 0 | AE9: 0 | AF9: 0 | AG9: 0 | AH9: 0 | AI9: 241.3272904 | AJ9: 0 | AK9: 1334.299661 | AL9: 51143.48505 | AM9: 0 | AN9: 1963.724504 | AO9: 0 | AP9: 0 | AQ9: 0 | AR9: 0 | AS9: 0 | AT9: 0 | AU9: 0 | AV9: 5289.398538 | AW9: 548.9144328 | AX9: 0 | AY9: 0 | AZ9: 0 | BB9: 6177.007825 | BC9: 0 | BD9: 13138.8328 | BE9: 296.0189759 | BF9: 0 | BG9: 13006.22411 | BH9: 0 | BI9: 29271.73 | BJ9: 0 | BK9: 120360.74 | BL9: 1 | BU9: 0 | BV9: 26441.07589 | CI9: 161500.989 | CJ9: 6554.44277 | CM9: 0 | CN9: 0 | CO9: 6571.301839 | CP9: 0 | CQ9: 30 | CR9: -5444.018957 | CS9: 0 | CT9: 0 | CU9: 0 | CV9: 0 | CW9: 0 | CX9: 0 | CY9: 0 | CZ9: 0 | DA9: 0 | DB9: 0 | DC9: 0 | DD9: 0 | DE9: -4.393014092 | DF9: -194.9843839 | DG9: -193.0164296 | DH9: 0 | DI9: -1781.899234 | DJ9: 0 | DK9: 0 | DL9: -8.779746205 | DM9: 0 | DN9: -1078.192528 | DO9: -2118.488223 | DP9: -64.26539874 | DQ9: 0 | DR9: 0 | DS9: 0 | DV9: 0 | DW9: 0 | DX9: 0 | DY9: 140 | DZ9: 0 | EA9: 0 | EB9: 0 | ED9: 0 | EE9: -83.4197843 | EG9: -83.4197843 | EI9: 0 | EJ9: 0 | EK9: 0 | EL9: 0
A10: 1170 | B10: Regular | C10: Azul | D10: A3 | E10: Industrial | F10: Não se aplica | G10: Fonte incentivada | H10: Não se aplica | I10: Não se aplica | J10: LIVRE | K10: 2019-12-01 | L10: 0 | M10: 0 | N10: 4737.228 | O10: 4737.228 | P10: 0 | Q10: 0 | S10: 28.19719449 | V10: 133576.5393 | W10: 133576.5393 | X10: 139241.5376 | Y10: 0 | Z10: 63641.10778 | AA10: 0 | AB10: 0 | AC10: 0 | AD10: 0 | AE10: 0 | AF10: 0 | AG10: 0 | AH10: 0 | AI10: 208.0438145 | AJ10: 0 | AK10: 1150.275175 | AL10: 44089.85697 | AM10: 0 | AN10: 1692.890745 | AO10: 0 | AP10: 0 | AQ10: 0 | AR10: 0 | AS10: 0 | AT10: 0 | AU10: 0 | AV10: 4559.893108 | AW10: 473.2090276 | AX10: 0 | AY10: 0 | AZ10: 0 | BB10: 5325.084735 | BC10: 0 | BD10: 11326.74588 | BE10: 255.1925098 | BF10: 0 | BG10: 11212.42638 | BH10: 0 | BI10: 18113.89 | BJ10: 0 | BK10: 110228.48 | BL10: 1 | BU10: 0 | BV10: 22794.36477 | CI10: 139227.1897 | CJ10: 5650.620441 | CM10: 0 | CN10: 0 | CO10: 5664.998346 | CP10: 0 | CR10: -4693.188525 | CS10: 0 | CT10: 0 | CU10: 0 | CV10: 0 | CW10: 0 | CX10: 0 | CY10: 0 | CZ10: 0 | DA10: 0 | DB10: 0 | DC10: 0 | DD10: 0 | DE10: -3.787136579 | DF10: -168.0924479 | DG10: -166.3959108 | DH10: 0 | DI10: -1536.142527 | DJ10: 0 | DK10: 0 | DL10: -7.568857579 | DM10: 0 | DN10: -929.4899299 | DO10: -1826.309698 | DP10: -55.40201721 | DQ10: 0 | DR10: 0 | DS10: 0 | DV10: 0 | DW10: 0 | DX10: 0 | DY10: 140 | DZ10: 0 | EA10: 0 | EB10: 0 | ED10: 0 | EE10: -83.4197843 | EG10: -83.4197843 | EI10: 0 | EJ10: 0 | EK10: 0 | EL10: 0
A11: 1191 | B11: PROJETADO | C11: Azul | D11: A3 | E11: Industrial | F11: Não se aplica | G11: Fonte incentivada | H11: Não se aplica | I11: Não se aplica | J11: LIVRE | K11: 2020-01-01 | L11: 0 | M11: 0 | N11: 4737.228 | O11: 4737.228 | P11: 0 | Q11: 0 | S11: 28.19719449 | V11: 133576.5393 | W11: 133576.5393 | X11: 139241.5376 | Y11: 0 | Z11: 63641.10778 | AA11: 0 | AB11: 0 | AC11: 0 | AD11: 0 | AE11: 0 | AF11: 0 | AG11: 0 | AH11: 0 | AI11: 208.0438145 | AJ11: 0 | AK11: 1150.275175 | AL11: 44089.85697 | AM11: 0 | AN11: 1692.890745 | AO11: 0 | AP11: 0 | AQ11: 0 | AR11: 0 | AS11: 0 | AT11: 0 | AU11: 0 | AV11: 4559.893108 | AW11: 473.2090276 | AX11: 0 | AY11: 0 | AZ11: 0 | BB11: 5325.084735 | BC11: 0 | BD11: 11326.74588 | BE11: 255.1925098 | BF11: 0 | BG11: 11212.42638 | BH11: 0 | BI11: 18113.89 | BJ11: 0 | BK11: 110228.48 | BL11: 1 | BU11: 0 | BV11: 22794.36477 | CI11: 139227.1897 | CJ11: 5650.620441 | CM11: 0 | CN11: 0 | CO11: 5664.998346 | CP11: 0 | CQ11: 31 | CR11: -4693.188525 | CS11: 0 | CT11: 0 | CU11: 0 | CV11: 0 | CW11: 0 | CX11: 0 | CY11: 0 | CZ11: 0 | DA11: 0 | DB11: 0 | DC11: 0 | DD11: 0 | DE11: -3.787136579 | DF11: -168.0924479 | DG11: -166.3959108 | DH11: 0 | DI11: -1536.142527 | DJ11: 0 | DK11: 0 | DL11: -7.568857579 | DM11: 0 | DN11: -929.4899299 | DO11: -1826.309698 | DP11: -55.40201721 | DQ11: 0 | DR11: 0 | DS11: 0 | DV11: 0 | DW11: 0 | DX11: 0 | DY11: 140 | DZ11: 0 | EA11: 0 | EB11: 0 | ED11: 0 | EE11: -83.4197843 | EG11: -83.4197843 | EI11: 0 | EJ11: 0 | EK11: 0 | EL11: 0
A12: 1105 | B12: Regular | C12: Azul | D12: A3 | E12: Industrial | F12: Não se aplica | G12: Fonte incentivada | H12: Não se aplica | I12: Ponta | J12: LIVRE | K12: 2019-09-01 | L12: 9539 | M12: 4769.499332 | N12: 0 | O12: 0 | P12: 0 | Q12: 0 | R12: 11.51 | U12: 109793.89 | W12: 109793.89 | X12: 115803.46 | Y12: 0 | Z12: 0 | AA12: 0 | AB12: 0 | AC12: 990.6834544 | AD12: 52992.96768 | AE12: 14123.8529 | AF12: 0 | AG12: 0 | AH12: 0 | AI12: 0 | AJ12: 0 | AK12: 0 | AL12: 0 | AM12: 0 | AN12: 0 | AO12: 12375.58484 | AP12: 29267.88776 | AQ12: 0 | AR12: 0 | AS12: 0 | AT12: 0 | AU12: 0 | AV12: 0 | AW12: 0 | AX12: 0 | AY12: 0 | AZ12: 0 | BB12: 0 | BC12: 3863.702024 | BD12: 0 | BE12: 0 | BF12: 0 | BG12: 0 | BH12: 0 | BI12: 0 | BJ12: 0 | BK12: 0 | BL12: 0 | BN12: 57901.73811 | BU12: 0 | BV12: 0 | CI12: 57901.73 | CJ12: 3004.762686 | CM12: 0 | CN12: 0 | CO12: 6009.57 | CP12: 0 | CQ12: 30 | CR12: 2220.625035 | CS12: 1.091393642e-11 | CT12: 34.98264272 | CU12: 0 | CV12: 0 | CW12: 0 | CX12: 0 | CY12: 0 | CZ12: 2185.642393 | DA12: 0 | DB12: 0 | DC12: 0 | DD12: 0 | DE12: 0 | DF12: 0 | DG12: 0 | DH12: 0 | DI12: 0 | DJ12: 0 | DK12: 0 | DL12: 0 | DM12: 0 | DN12: 0 | DO12: 0 | DP12: 0 | DQ12: 0 | DR12: 0 | DS12: 0 | DU12: 14123.8529 | DW12: 0 | DX12: 0 | DY12: 140 | DZ12: 0 | EA12: 0 | EB12: 0 | ED12: 0 | EE12: -83.4197843 | EG12: -83.4197843 | EI12: 0 | EJ12: 0 | EK12: 0 | EL12: 0
A13: 1126 | B13: Regular | C13: Azul | D13: A3 | E13: Industrial | F13: Não se aplica | G13: Fonte incentivada | H13: Não se aplica | I13: Ponta | J13: LIVRE | K13: 2019-10-01 | L13: 9612 | M13: 4805.999808 | N13: 0 | O13: 0 | P13: 0 | Q13: 0 | R13: 11.51 | U13: 110634.12 | W13: 110634.12 | X13: 116689.68 | Y13: 0 | Z13: 0 | AA13: 0 | AB13: 0 | AC13: 998.2649506 | AD13: 53398.51193 | AE13: 14231.93984 | AF13: 0 | AG13: 0 | AH13: 0 | AI13: 0 | AJ13: 0 | AK13: 0 | AL13: 0 | AM13: 0 | AN13: 0 | AO13: 12470.29263 | AP13: 29491.86887 | AQ13: 0 | AR13: 0 | AS13: 0 | AT13: 0 | AU13: 0 | AV13: 0 | AW13: 0 | AX13: 0 | AY13: 0 | AZ13: 0 | BB13: 0 | BC13: 3893.270139 | BD13: 0 | BE13: 0 | BF13: 0 | BG13: 0 | BH13: 0 | BI13: 0 | BJ13: 0 | BK13: 0 | BL13: 0 | BN13: 58344.84233 | BU13: 0 | BV13: 0 | CI13: 58344.84 | CJ13: 3027.752213 | CM13: 0 | CN13: 0 | CO13: 6055.56 | CP13: 0 | CQ13: 31 | CR13: 2237.619021 | CS13: 9.094947018e-12 | CT13: 35.25035767 | CU13: 0 | CV13: 0 | CW13: 0 | CX13: 0 | CY13: 0 | CZ13: 2202.368663 | DA13: 0 | DB13: 0 | DC13: 0 | DD13: 0 | DE13: 0 | DF13: 0 | DG13: 0 | DH13: 0 | DI13: 0 | DJ13: 0 | DK13: 0 | DL13: 0 | DM13: 0 | DN13: 0 | DO13: 0 | DP13: 0 | DQ13: 0 | DR13: 0 | DS13: 0 | DU13: 14231.93984 | DW13: 0 | DX13: 0 | DY13: 140 | DZ13: 0 | EA13: 0 | EB13: 0 | ED13: 0 | EE13: -83.4197843 | EG13: -83.4197843 | EI13: 0 | EJ13: 0 | EK13: 0 | EL13: 0
A14: 1147 | B14: Regular | C14: Azul | D14: A3 | E14: Industrial | F14: Não se aplica | G14: Fonte incentivada | H14: Não se aplica | I14: Ponta | J14: LIVRE | K14: 2019-11-01 | L14: 9630 | M14: 4814.999904 | N14: 0 | O14: 0 | P14: 0 | Q14: 0 | R14: 11.51 | U14: 110841.3 | W14: 110841.3 | X14: 116908.2 | Y14: 0 | Z14: 0 | AA14: 0 | AB14: 0 | AC14: 1000.134361 | AD14: 53498.50914 | AE14: 14258.59141 | AF14: 0 | AG14: 0 | AH14: 0 | AI14: 0 | AJ14: 0 | AK14: 0 | AL14: 0 | AM14: 0 | AN14: 0 | AO14: 12493.64524 | AP14: 29547.09709 | AQ14: 0 | AR14: 0 | AS14: 0 | AT14: 0 | AU14: 0 | AV14: 0 | AW14: 0 | AX14: 0 | AY14: 0 | AZ14: 0 | BB14: 0 | BC14: 3900.560907 | BD14: 0 | BE14: 0 | BF14: 0 | BG14: 0 | BH14: 0 | BI14: 0 | BJ14: 0 | BK14: 0 | BL14: 0 | BN14: 58454.10117 | BU14: 0 | BV14: 0 | CI14: 58454.1 | CJ14: 3033.421108 | CM14: 0 | CN14: 0 | CO14: 6066.9 | CP14: 0 | CQ14: 30 | CR14: 2241.809319 | CS14: 9.094947018e-12 | CT14: 35.31636958 | CU14: 0 | CV14: 0 | CW14: 0 | CX14: 0 | CY14: 0 | CZ14: 2206.492949 | DA14: 0 | DB14: 0 | DC14: 0 | DD14: 0 | DE14: 0 | DF14: 0 | DG14: 0 | DH14: 0 | DI14: 0 | DJ14: 0 | DK14: 0 | DL14: 0 | DM14: 0 | DN14: 0 | DO14: 0 | DP14: 0 | DQ14: 0 | DR14: 0 | DS14: 0 | DU14: 14258.59141 | DW14: 0 | DX14: 0 | DY14: 140 | DZ14: 0 | EA14: 0 | EB14: 0 | ED14: 0 | EE14: -83.4197843 | EG14: -83.4197843 | EI14: 0 | EJ14: 0 | EK14: 0 | EL14: 0
A15: 1168 | B15: Regular | C15: Azul | D15: A3 | E15: Industrial | F15: Não se aplica | G15: Fonte incentivada | H15: Não se aplica | I15: Ponta | J15: LIVRE | K15: 2019-12-01 | L15: 10500 | M15: 8253.956445 | N15: 0 | O15: 0 | P15: 0 | Q15: 0 | R15: 11.51 | U15: 120855 | W15: 120855 | X15: 127470 | Y15: 0 | Z15: 0 | AA15: 0 | AB15: 0 | AC15: 1090.489178 | AD15: 58331.70779 | AE15: 15546.75076 | AF15: 0 | AG15: 0 | AH15: 0 | AI15: 0 | AJ15: 0 | AK15: 0 | AL15: 0 | AM15: 0 | AN15: 0 | AO15: 13622.35463 | AP15: 32216.461 | AQ15: 0 | AR15: 0 | AS15: 0 | AT15: 0 | AU15: 0 | AV15: 0 | AW15: 0 | AX15: 0 | AY15: 0 | AZ15: 0 | BB15: 0 | BC15: 4252.94803 | BD15: 0 | BE15: 0 | BF15: 0 | BG15: 0 | BH15: 0 | BI15: 0 | BJ15: 0 | BK15: 0 | BL15: 0 | BN15: 27266.96876 | BU15: 0 | BV15: 0 | CI15: 100203.0744 | CJ15: 5200.005718 | CM15: 0 | CN15: 0 | CO15: 6615 | CP15: 0 | CR15: 2444.340378 | CS15: 1.091393642e-11 | CT15: 38.50694503 | CU15: 0 | CV15: 0 | CW15: 0 | CX15: 0 | CY15: 0 | CZ15: 2405.833433 | DA15: 0 | DB15: 0 | DC15: 0 | DD15: 0 | DE15: 0 | DF15: 0 | DG15: 0 | DH15: 0 | DI15: 0 | DJ15: 0 | DK15: 0 | DL15: 0 | DM15: 0 | DN15: 0 | DO15: 0 | DP15: 0 | DQ15: 0 | DR15: 0 | DS15: 0 | DU15: 15546.75076 | DW15: 0 | DX15: 0 | DY15: 140 | DZ15: 0 | EA15: 0 | EB15: 0 | ED15: 0 | EE15: -83.4197843 | EG15: -83.4197843 | EI15: 0 | EJ15: 0 | EK15: 0 | EL15: 0
A16: 1189 | B16: PROJETADO | C16: Azul | D16: A3 | E16: Industrial | F16: Não se aplica | G16: Fonte incentivada | H16: Não se aplica | I16: Ponta | J16: LIVRE | K16: 2020-01-01 | L16: 10500 | M16: 8253.956445 | N16: 0 | O16: 0 | P16: 0 | Q16: 0 | R16: 11.51 | U16: 120855 | W16: 120855 | X16: 127470 | Y16: 0 | Z16: 0 | AA16: 0 | AB16: 0 | AC16: 1090.489178 | AD16: 58331.70779 | AE16: 15546.75076 | AF16: 0 | AG16: 0 | AH16: 0 | AI16: 0 | AJ16: 0 | AK16: 0 | AL16: 0 | AM16: 0 | AN16: 0 | AO16: 13622.35463 | AP16: 32216.461 | AQ16: 0 | AR16: 0 | AS16: 0 | AT16: 0 | AU16: 0 | AV16: 0 | AW16: 0 | AX16: 0 | AY16: 0 | AZ16: 0 | BB16: 0 | BC16: 4252.94803 | BD16: 0 | BE16: 0 | BF16: 0 | BG16: 0 | BH16: 0 | BI16: 0 | BJ16: 0 | BK16: 0 | BL16: 0 | BN16: 27266.96876 | BU16: 0 | BV16: 0 | CI16: 100203.0744 | CJ16: 5200.005718 | CM16: 0 | CN16: 0 | CO16: 6615 | CP16: 0 | CQ16: 31 | CR16: 2444.340378 | CS16: 1.091393642e-11 | CT16: 38.50694503 | CU16: 0 | CV16: 0 | CW16: 0 | CX16: 0 | CY16: 0 | CZ16: 2405.833433 | DA16: 0 | DB16: 0 | DC16: 0 | DD16: 0 | DE16: 0 | DF16: 0 | DG16: 0 | DH16: 0 | DI16: 0 | DJ16: 0 | DK16: 0 | DL16: 0 | DM16: 0 | DN16: 0 | DO16: 0 | DP16: 0 | DQ16: 0 | DR16: 0 | DS16: 0 | DU16: 15546.75076 | DW16: 0 | DX16: 0 | DY16: 140 | DZ16: 0 | EA16: 0 | EB16: 0 | ED16: 0 | EE16: -83.4197843 | EG16: -83.4197843 | EI16: 0 | EJ16: 0 | EK16: 0 | EL16: 0
A17: 1007 | B17: Regular | C17: Distribuição | D17: A3 | E17: Não se aplica | F17: Não se aplica | G17: Não se aplica | H17: EPB | I17: Fora ponta | J17: DISTRIBUIÇÃO | K17: 2019-02-01 | L17: 18000 | M17: 18000 | N17: 0 | O17: 0 | P17: 0 | Q17: 0 | R17: 5.12 | U17: 92160 | W17: 92160 | X17: 97380 | Y17: 0 | Z17: 0 | AA17: 0 | AB17: 0 | AC17: 1333.849311 | AD17: 18368.13557 | AE17: 23820.10084 | AI17: 0 | AJ17: 0 | AK17: 0 | AL17: 0 | AM17: 0 | AN17: 0 | AO17: 15217.72396 | AP17: 33382.95142 | AQ17: 0 | AR17: 0 | AU17: 0 | AV17: 0 | AW17: 0 | AZ17: 0 | BB17: 0 | BC17: 4509.194746 | BD17: 0 | BE17: 0 | BG17: 0 | BH17: 0 | BI17: 0 | BJ17: 0 | BK17: 0 | BL17: 0 | BV17: 0 | CI17: 97380 | CJ17: 5219.97 | CO17: 5220 | CP17: 0 | CQ17: 29 | CR17: 797.4767346 | CS17: -3.637978807e-12 | CT17: 39.90120067 | CU17: 0 | CV17: 0 | CZ17: 757.5755339 | DA17: 0 | DB17: 0 | DE17: 0 | DF17: 0 | DG17: 0 | DH17: 0 | DI17: 0 | DK17: 0 | DL17: 0 | DN17: 0 | DO17: 0 | DP17: 0 | DQ17: 0 | DR17: 0 | DS17: 0 | DT17: C | DU17: 23820.10084 | DW17: 0 | DX17: 0 | DY17: 140 | ED17: 0 | EE17: -83.4197843 | EG17: -83.4197843 | EI17: 0 | EJ17: 0 | EK17: 0 | EL17: 0
A18: 1022 | B18: Regular | C18: Distribuição | D18: A3 | E18: Não se aplica | F18: Não se aplica | G18: Não se aplica | H18: EPB | I18: Fora ponta | J18: DISTRIBUIÇÃO | K18: 2019-03-01 | L18: 18000 | M18: 18000 | N18: 0 | O18: 0 | P18: 0 | Q18: 0 | R18: 5.12 | U18: 92160 | W18: 92160 | X18: 97380 | Y18: 0 | Z18: 0 | AA18: 0 | AB18: 0 | AC18: 1333.849311 | AD18: 18368.13557 | AE18: 23820.10084 | AI18: 0 | AJ18: 0 | AK18: 0 | AL18: 0 | AM18: 0 | AN18: 0 | AO18: 15217.72396 | AP18: 33382.95142 | AQ18: 0 | AR18: 0 | AU18: 0 | AV18: 0 | AW18: 0 | AZ18: 0 | BB18: 0 | BC18: 4509.194746 | BD18: 0 | BE18: 0 | BG18: 0 | BH18: 0 | BI18: 0 | BJ18: 0 | BK18: 0 | BL18: 0 | BV18: 0 | CI18: 97380 | CJ18: 5219.97 | CO18: 5220 | CP18: 0 | CQ18: 31 | CR18: 797.4767346 | CS18: -3.637978807e-12 | CT18: 39.90120067 | CU18: 0 | CV18: 0 | CZ18: 757.5755339 | DA18: 0 | DB18: 0 | DE18: 0 | DF18: 0 | DG18: 0 | DH18: 0 | DI18: 0 | DK18: 0 | DL18: 0 | DN18: 0 | DO18: 0 | DP18: 0 | DQ18: 0 | DR18: 0 | DS18: 0 | DT18: C | DU18: 23820.10084 | DW18: 0 | DX18: 0 | DY18: 140 | ED18: 0 | EE18: -83.4197843 | EG18: -83.4197843 | EI18: 0 | EJ18: 0 | EK18: 0 | EL18: 0
A19: 1037 | B19: Regular | C19: Distribuição | D19: A3 | E19: Não se aplica | F19: Não se aplica | G19: Não se aplica | H19: EPB | I19: Fora ponta | J19: DISTRIBUIÇÃO | K19: 2019-04-01 | L19: 18000 | M19: 18000 | N19: 0 | O19: 0 | P19: 0 | Q19: 0 | R19: 5.12 | U19: 92160 | W19: 92160 | X19: 97380 | Y19: 0 | Z19: 0 | AA19: 0 | AB19: 0 | AC19: 1333.849311 | AD19: 18368.13557 | AE19: 23820.10084 | AI19: 0 | AJ19: 0 | AK19: 0 | AL19: 0 | AM19: 0 | AN19: 0 | AO19: 15217.72396 | AP19: 33382.95142 | AQ19: 0 | AR19: 0 | AU19: 0 | AV19: 0 | AW19: 0 | AZ19: 0 | BB19: 0 | BC19: 4509.194746 | BD19: 0 | BE19: 0 | BG19: 0 | BH19: 0 | BI19: 0 | BJ19: 0 | BK19: 0 | BL19: 0 | BV19: 0 | CI19: 97380 | CJ19: 5219.97 | CO19: 5220 | CP19: 0 | CQ19: 30 | CR19: 797.4767346 | CS19: -3.637978807e-12 | CT19: 39.90120067 | CU19: 0 | CV19: 0 | CZ19: 757.5755339 | DA19: 0 | DB19: 0 | DE19: 0 | DF19: 0 | DG19: 0 | DH19: 0 | DI19: 0 | DK19: 0 | DL19: 0 | DN19: 0 | DO19: 0 | DP19: 0 | DQ19: 0 | DR19: 0 | DS19: 0 | DT19: C | DU19: 23820.10084 | DW19: 0 | DX19: 0 | DY19: 140 | ED19: 0 | EE19: -83.4197843 | EG19: -83.4197843 | EI19: 0 | EJ19: 0 | EK19: 0 | EL19: 0
A20: 1052 | B20: Regular | C20: Distribuição | D20: A3 | E20: Não se aplica | F20: Não se aplica | G20: Não se aplica | H20: EPB | I20: Fora ponta | J20: DISTRIBUIÇÃO | K20: 2019-05-01 | L20: 18000 | M20: 18000 | N20: 0 | O20: 0 | P20: 0 | Q20: 0 | R20: 5.12 | U20: 92160 | W20: 92160 | X20: 97380 | Y20: 0 | Z20: 0 | AA20: 0 | AB20: 0 | AC20: 1333.849311 | AD20: 18368.13557 | AE20: 23820.10084 | AI20: 0 | AJ20: 0 | AK20: 0 | AL20: 0 | AM20: 0 | AN20: 0 | AO20: 15217.72396 | AP20: 33382.95142 | AQ20: 0 | AR20: 0 | AU20: 0 | AV20: 0 | AW20: 0 | AZ20: 0 | BB20: 0 | BC20: 4509.194746 | BD20: 0 | BE20: 0 | BG20: 0 | BH20: 0 | BI20: 0 | BJ20: 0 | BK20: 0 | BL20: 0 | BV20: 0 | CI20: 97380 | CJ20: 5219.97 | CO20: 5220 | CP20: 0 | CQ20: 31 | CR20: 797.4767346 | CS20: -3.637978807e-12 | CT20: 39.90120067 | CU20: 0 | CV20: 0 | CZ20: 757.5755339 | DA20: 0 | DB20: 0 | DE20: 0 | DF20: 0 | DG20: 0 | DH20: 0 | DI20: 0 | DK20: 0 | DL20: 0 | DN20: 0 | DO20: 0 | DP20: 0 | DQ20: 0 | DR20: 0 | DS20: 0 | DT20: C | DU20: 23820.10084 | DW20: 0 | DX20: 0 | DY20: 140 | ED20: 0 | EE20: -83.4197843 | EG20: -83.4197843 | EI20: 0 | EJ20: 0 | EK20: 0 | EL20: 0
A21: 1067 | B21: Regular | C21: Distribuição | D21: A3 | E21: Não se aplica | F21: Não se aplica | G21: Não se aplica | H21: EPB | I21: Fora ponta | J21: DISTRIBUIÇÃO | K21: 2019-06-01 | L21: 18000 | M21: 18000 | N21: 0 | O21: 0 | P21: 0 | Q21: 0 | R21: 5.12 | U21: 92160 | W21: 92160 | X21: 97380 | Y21: 0 | Z21: 0 | AA21: 0 | AB21: 0 | AC21: 1333.849311 | AD21: 18368.13557 | AE21: 23820.10084 | AI21: 0 | AJ21: 0 | AK21: 0 | AL21: 0 | AM21: 0 | AN21: 0 | AO21: 15217.72396 | AP21: 33382.95142 | AQ21: 0 | AR21: 0 | AU21: 0 | AV21: 0 | AW21: 0 | AZ21: 0 | BB21: 0 | BC21: 4509.194746 | BD21: 0 | BE21: 0 | BG21: 0 | BH21: 0 | BI21: 0 | BJ21: 0 | BK21: 0 | BL21: 0 | BV21: 0 | CI21: 97380 | CJ21: 5219.97 | CO21: 5220 | CP21: 0 | CQ21: 30 | CR21: 797.4767346 | CS21: -3.637978807e-12 | CT21: 39.90120067 | CU21: 0 | CV21: 0 | CZ21: 757.5755339 | DA21: 0 | DB21: 0 | DE21: 0 | DF21: 0 | DG21: 0 | DH21: 0 | DI21: 0 | DK21: 0 | DL21: 0 | DN21: 0 | DO21: 0 | DP21: 0 | DQ21: 0 | DR21: 0 | DS21: 0 | DT21: C | DU21: 23820.10084 | DW21: 0 | DX21: 0 | DY21: 140 | ED21: 0 | EE21: -83.4197843 | EG21: -83.4197843 | EI21: 0 | EJ21: 0 | EK21: 0 | EL21: 0
A22: 1082 | B22: Regular | C22: Distribuição | D22: A3 | E22: Não se aplica | F22: Não se aplica | G22: Não se aplica | H22: EPB | I22: Fora ponta | J22: DISTRIBUIÇÃO | K22: 2019-07-01 | L22: 18000 | M22: 18000 | N22: 0 | O22: 0 | P22: 0 | Q22: 0 | R22: 5.12 | U22: 92160 | W22: 92160 | X22: 97380 | Y22: 0 | Z22: 0 | AA22: 0 | AB22: 0 | AC22: 1333.849311 | AD22: 18368.13557 | AE22: 23820.10084 | AI22: 0 | AJ22: 0 | AK22: 0 | AL22: 0 | AM22: 0 | AN22: 0 | AO22: 15217.72396 | AP22: 33382.95142 | AQ22: 0 | AR22: 0 | AU22: 0 | AV22: 0 | AW22: 0 | AZ22: 0 | BB22: 0 | BC22: 4509.194746 | BD22: 0 | BE22: 0 | BG22: 0 | BH22: 0 | BI22: 0 | BJ22: 0 | BK22: 0 | BL22: 0 | BV22: 0 | CI22: 97380 | CJ22: 5219.97 | CO22: 5220 | CP22: 0 | CQ22: 31 | CR22: 797.4767346 | CS22: -3.637978807e-12 | CT22: 39.90120067 | CU22: 0 | CV22: 0 | CZ22: 757.5755339 | DA22: 0 | DB22: 0 | DE22: 0 | DF22: 0 | DG22: 0 | DH22: 0 | DI22: 0 | DK22: 0 | DL22: 0 | DN22: 0 | DO22: 0 | DP22: 0 | DQ22: 0 | DR22: 0 | DS22: 0 | DT22: C | DU22: 23820.10084 | DW22: 0 | DX22: 0 | DY22: 140 | ED22: 0 | EE22: -83.4197843 | EG22: -83.4197843 | EI22: 0 | EJ22: 0 | EK22: 0 | EL22: 0
A23: 1097 | B23: Regular | C23: Distribuição | D23: A3 | E23: Não se aplica | F23: Não se aplica | G23: Não se aplica | H23: EPB | I23: Fora ponta | J23: DISTRIBUIÇÃO | K23: 2019-08-01 | L23: 18000 | M23: 18000 | N23: 0 | O23: 0 | P23: 0 | Q23: 0 | R23: 5.12 | U23: 92160 | W23: 92160 | X23: 97380 | Y23: 0 | Z23: 0 | AA23: 0 | AB23: 0 | AC23: 1333.849311 | AD23: 18368.13557 | AE23: 23820.10084 | AI23: 0 | AJ23: 0 | AK23: 0 | AL23: 0 | AM23: 0 | AN23: 0 | AO23: 15217.72396 | AP23: 33382.95142 | AQ23: 0 | AR23: 0 | AU23: 0 | AV23: 0 | AW23: 0 | AZ23: 0 | BB23: 0 | BC23: 4509.194746 | BD23: 0 | BE23: 0 | BG23: 0 | BH23: 0 | BI23: 0 | BJ23: 0 | BK23: 0 | BL23: 0 | BV23: 0 | CI23: 97380 | CJ23: 5219.97 | CO23: 5220 | CP23: 0 | CQ23: 31 | CR23: 797.4767346 | CS23: -3.637978807e-12 | CT23: 39.90120067 | CU23: 0 | CV23: 0 | CZ23: 757.5755339 | DA23: 0 | DB23: 0 | DE23: 0 | DF23: 0 | DG23: 0 | DH23: 0 | DI23: 0 | DK23: 0 | DL23: 0 | DN23: 0 | DO23: 0 | DP23: 0 | DQ23: 0 | DR23: 0 | DS23: 0 | DT23: C | DU23: 23820.10084 | DW23: 0 | DX23: 0 | DY23: 140 | ED23: 0 | EE23: -83.4197843 | EG23: -83.4197843 | EI23: 0 | EJ23: 0 | EK23: 0 | EL23: 0
A24: 1115 | B24: Regular | C24: Distribuição | D24: A3 | E24: Não se aplica | F24: Não se aplica | G24: Não se aplica | H24: EPB | I24: Fora ponta | J24: DISTRIBUIÇÃO | K24: 2019-09-01 | L24: 18141 | M24: 18141 | N24: 0 | O24: 0 | P24: 0 | Q24: 0 | R24: 5.12 | U24: 92881.92 | W24: 92881.92 | X24: 98142.81 | Y24: 0 | Z24: 0 | AA24: 0 | AB24: 0 | AC24: 1344.297798 | AD24: 18512.0193 | AE24: 24006.69163 | AI24: 0 | AJ24: 0 | AK24: 0 | AL24: 0 | AM24: 0 | AN24: 0 | AO24: 15336.92946 | AP24: 33644.4512 | AQ24: 0 | AR24: 0 | AU24: 0 | AV24: 0 | AW24: 0 | AZ24: 0 | BB24: 0 | BC24: 4544.516772 | BD24: 0 | BE24: 0 | BG24: 0 | BH24: 0 | BI24: 0 | BJ24: 0 | BK24: 0 | BL24: 0 | BV24: 0 | CI24: 98142.81 | CJ24: 5260.86 | CO24: 5260.89 | CP24: 0 | CQ24: 30 | CR24: 803.7236357 | CS24: -1.818989404e-12 | CT24: 40.21376007 | CU24: 0 | CV24: 0 | CZ24: 763.5098756 | DA24: 0 | DB24: 0 | DE24: 0 | DF24: 0 | DG24: 0 | DH24: 0 | DI24: 0 | DK24: 0 | DL24: 0 | DN24: 0 | DO24: 0 | DP24: 0 | DQ24: 0 | DR24: 0 | DS24: 0 | DT24: C | DU24: 24006.69163 | DW24: 0 | DX24: 0 | DY24: 140 | ED24: 0 | EE24: -83.4197843 | EG24: -83.4197843 | EI24: 0 | EJ24: 0 | EK24: 0 | EL24: 0
A25: 1136 | B25: Regular | C25: Distribuição | D25: A3 | E25: Não se aplica | F25: Não se aplica | G25: Não se aplica | H25: EPB | I25: Fora ponta | J25: DISTRIBUIÇÃO | K25: 2019-10-01 | L25: 18000 | M25: 18000 | N25: 0 | O25: 0 | P25: 0 | Q25: 0 | R25: 5.12 | U25: 92160 | W25: 92160 | X25: 97380 | Y25: 0 | Z25: 0 | AA25: 0 | AB25: 0 | AC25: 1333.849311 | AD25: 18368.13557 | AE25: 23820.10084 | AI25: 0 | AJ25: 0 | AK25: 0 | AL25: 0 | AM25: 0 | AN25: 0 | AO25: 15217.72396 | AP25: 33382.95142 | AQ25: 0 | AR25: 0 | AU25: 0 | AV25: 0 | AW25: 0 | AZ25: 0 | BB25: 0 | BC25: 4509.194746 | BD25: 0 | BE25: 0 | BG25: 0 | BH25: 0 | BI25: 0 | BJ25: 0 | BK25: 0 | BL25: 0 | BV25: 0 | CI25: 97380 | CJ25: 5219.97 | CO25: 5220 | CP25: 0 | CQ25: 31 | CR25: 797.4767346 | CS25: -3.637978807e-12 | CT25: 39.90120067 | CU25: 0 | CV25: 0 | CZ25: 757.5755339 | DA25: 0 | DB25: 0 | DE25: 0 | DF25: 0 | DG25: 0 | DH25: 0 | DI25: 0 | DK25: 0 | DL25: 0 | DN25: 0 | DO25: 0 | DP25: 0 | DQ25: 0 | DR25: 0 | DS25: 0 | DT25: C | DU25: 23820.10084 | DW25: 0 | DX25: 0 | DY25: 140 | ED25: 0 | EE25: -83.4197843 | EG25: -83.4197843 | EI25: 0 | EJ25: 0 | EK25: 0 | EL25: 0
A26: 1157 | B26: Regular | C26: Distribuição | D26: A3 | E26: Não se aplica | F26: Não se aplica | G26: Não se aplica | H26: EPB | I26: Fora ponta | J26: DISTRIBUIÇÃO | K26: 2019-11-01 | L26: 18000 | M26: 18000 | N26: 0 | O26: 0 | P26: 0 | Q26: 0 | R26: 5.12 | U26: 92160 | W26: 92160 | X26: 97380 | Y26: 0 | Z26: 0 | AA26: 0 | AB26: 0 | AC26: 1333.849311 | AD26: 18368.13557 | AE26: 23820.10084 | AI26: 0 | AJ26: 0 | AK26: 0 | AL26: 0 | AM26: 0 | AN26: 0 | AO26: 15217.72396 | AP26: 33382.95142 | AQ26: 0 | AR26: 0 | AU26: 0 | AV26: 0 | AW26: 0 | AZ26: 0 | BB26: 0 | BC26: 4509.194746 | BD26: 0 | BE26: 0 | BG26: 0 | BH26: 0 | BI26: 0 | BJ26: 0 | BK26: 0 | BL26: 0 | BV26: 0 | CI26: 97380 | CJ26: 5219.97 | CO26: 5220 | CP26: 0 | CQ26: 30 | CR26: 797.4767346 | CS26: -3.637978807e-12 | CT26: 39.90120067 | CU26: 0 | CV26: 0 | CZ26: 757.5755339 | DA26: 0 | DB26: 0 | DE26: 0 | DF26: 0 | DG26: 0 | DH26: 0 | DI26: 0 | DK26: 0 | DL26: 0 | DN26: 0 | DO26: 0 | DP26: 0 | DQ26: 0 | DR26: 0 | DS26: 0 | DT26: C | DU26: 23820.10084 | DW26: 0 | DX26: 0 | DY26: 140 | ED26: 0 | EE26: -83.4197843 | EG26: -83.4197843 | EI26: 0 | EJ26: 0 | EK26: 0 | EL26: 0
A27: 1178 | B27: Regular | C27: Distribuição | D27: A3 | E27: Não se aplica | F27: Não se aplica | G27: Não se aplica | H27: EPB | I27: Fora ponta | J27: DISTRIBUIÇÃO | K27: 2019-12-01 | L27: 18000 | M27: 18000 | N27: 0 | O27: 0 | P27: 0 | Q27: 0 | R27: 5.12 | U27: 92160 | W27: 92160 | X27: 97380 | Y27: 0 | Z27: 0 | AA27: 0 | AB27: 0 | AC27: 1333.849311 | AD27: 18368.13557 | AE27: 23820.10084 | AI27: 0 | AJ27: 0 | AK27: 0 | AL27: 0 | AM27: 0 | AN27: 0 | AO27: 15217.72396 | AP27: 33382.95142 | AQ27: 0 | AR27: 0 | AU27: 0 | AV27: 0 | AW27: 0 | AZ27: 0 | BB27: 0 | BC27: 4509.194746 | BD27: 0 | BE27: 0 | BG27: 0 | BH27: 0 | BI27: 0 | BJ27: 0 | BK27: 0 | BL27: 0 | BV27: 0 | CI27: 97380 | CJ27: 5219.97 | CO27: 5220 | CP27: 0 | CR27: 797.4767346 | CS27: -3.637978807e-12 | CT27: 39.90120067 | CU27: 0 | CV27: 0 | CZ27: 757.5755339 | DA27: 0 | DB27: 0 | DE27: 0 | DF27: 0 | DG27: 0 | DH27: 0 | DI27: 0 | DK27: 0 | DL27: 0 | DN27: 0 | DO27: 0 | DP27: 0 | DQ27: 0 | DR27: 0 | DS27: 0 | DT27: C | DU27: 23820.10084 | DW27: 0 | DX27: 0 | DY27: 140 | ED27: 0 | EE27: -83.4197843 | EG27: -83.4197843 | EI27: 0 | EJ27: 0 | EK27: 0 | EL27: 0
A28: 1199 | B28: PROJETADO | C28: Distribuição | D28: A3 | E28: Não se aplica | F28: Não se aplica | G28: Não se aplica | H28: EPB | I28: Fora ponta | J28: DISTRIBUIÇÃO | K28: 2020-01-01 | L28: 18000 | M28: 18000 | N28: 0 | O28: 0 | P28: 0 | Q28: 0 | R28: 5.12 | U28: 92160 | W28: 92160 | X28: 97380 | Y28: 0 | Z28: 0 | AA28: 0 | AB28: 0 | AC28: 1333.849311 | AD28: 18368.13557 | AE28: 23820.10084 | AI28: 0 | AJ28: 0 | AK28: 0 | AL28: 0 | AM28: 0 | AN28: 0 | AO28: 15217.72396 | AP28: 33382.95142 | AQ28: 0 | AR28: 0 | AU28: 0 | AV28: 0 | AW28: 0 | AZ28: 0 | BB28: 0 | BC28: 4509.194746 | BD28: 0 | BE28: 0 | BG28: 0 | BH28: 0 | BI28: 0 | BJ28: 0 | BK28: 0 | BL28: 0 | BV28: 0 | CI28: 97380 | CJ28: 5219.97 | CO28: 5220 | CP28: 0 | CQ28: 31 | CR28: 797.4767346 | CS28: -3.637978807e-12 | CT28: 39.90120067 | CU28: 0 | CV28: 0 | CZ28: 757.5755339 | DA28: 0 | DB28: 0 | DE28: 0 | DF28: 0 | DG28: 0 | DH28: 0 | DI28: 0 | DK28: 0 | DL28: 0 | DN28: 0 | DO28: 0 | DP28: 0 | DQ28: 0 | DR28: 0 | DS28: 0 | DT28: C | DU28: 23820.10084 | DW28: 0 | DX28: 0 | DY28: 140 | ED28: 0 | EE28: -83.4197843 | EG28: -83.4197843 | EI28: 0 | EJ28: 0 | EK28: 0 | EL28: 0
A29: 1008 | B29: Regular | C29: Distribuição | D29: A3 | E29: Não se aplica | F29: Não se aplica | G29: Não se aplica | H29: EPB | I29: Não se aplica | J29: DISTRIBUIÇÃO | K29: 2019-02-01 | L29: 0 | M29: 0 | N29: 2688.151 | O29: 2688.151 | P29: 0 | Q29: 0 | S29: 2.42 | V29: 6505.32542 | W29: 6505.32542 | X29: 7930.04545 | Y29: 0 | Z29: 0 | AA29: 0 | AB29: 0 | AC29: 0 | AD29: 0 | AE29: 0 | AI29: 0 | AJ29: 0 | AK29: 0 | AL29: 0 | AM29: 0 | AN29: 0 | AO29: 0 | AP29: 0 | AQ29: 0 | AR29: 0 | AU29: 0 | AV29: 0 | AW29: 0 | AZ29: 0 | BB29: 1520.203238 | BC29: 0 | BD29: 0 | BE29: 144.8095807 | BG29: 6362.517317 | BH29: 0 | BI29: 19279.34 | BJ29: 0 | BK29: 0 | BL29: 0 | BV29: 6507.326898 | CI29: 7930.0425 | CJ29: 1424.68708 | CO29: 1424.72003 | CP29: 0 | CQ29: 29 | CR29: -96.57076435 | CS29: 0 | CT29: 0 | CU29: 0 | CV29: 0 | CZ29: 0 | DA29: 0 | DB29: 0 | DE29: -2.149019423 | DF29: 0 | DG29: -94.42174493 | DH29: 0 | DI29: 0 | DK29: 0 | DL29: 0 | DN29: 0 | DO29: 0 | DP29: 0 | DQ29: 0 | DR29: 0 | DS29: 0 | DT29: C | DV29: 0 | DW29: 0 | DX29: 0 | DY29: 140 | ED29: 0 | EE29: -83.4197843 | EG29: -83.4197843 | EI29: 0 | EJ29: 0 | EK29: 0 | EL29: 0
A30: 1023 | B30: Regular | C30: Distribuição | D30: A3 | E30: Não se aplica | F30: Não se aplica | G30: Não se aplica | H30: EPB | I30: Não se aplica | J30: DISTRIBUIÇÃO | K30: 2019-03-01 | L30: 0 | M30: 0 | N30: 3226.9 | O30: 3226.9 | P30: 0 | Q30: 0 | S30: 2.42 | V30: 7809.098 | W30: 7809.098 | X30: 9519.355 | Y30: 0 | Z30: 0 | AA30: 0 | AB30: 0 | AC30: 0 | AD30: 0 | AE30: 0 | AI30: 0 | AJ30: 0 | AK30: 0 | AL30: 0 | AM30: 0 | AN30: 0 | AO30: 0 | AP30: 0 | AQ30: 0 | AR30: 0 | AU30: 0 | AV30: 0 | AW30: 0 | AZ30: 0 | BB30: 1824.876589 | BC30: 0 | BD30: 0 | BE30: 173.8317661 | BG30: 7637.668841 | BH30: 0 | BI30: 21066.32 | BJ30: 0 | BK30: 0 | BL30: 0 | BV30: 7811.500607 | CI30: 9519.355 | CJ30: 1710.227 | CO30: 1710.257 | CP30: 0 | CQ30: 31 | CR30: -115.9251097 | CS30: 0 | CT30: 0 | CU30: 0 | CV30: 0 | CZ30: 0 | DA30: 0 | DB30: 0 | DE30: -2.579717722 | DF30: 0 | DG30: -113.345392 | DH30: 0 | DI30: 0 | DK30: 0 | DL30: 0 | DN30: 0 | DO30: 0 | DP30: 0 | DQ30: 0 | DR30: 0 | DS30: 0 | DT30: C | DV30: 0 | DW30: 0 | DX30: 0 | DY30: 140 | ED30: 0 | EE30: -83.4197843 | EG30: -83.4197843 | EI30: 0 | EJ30: 0 | EK30: 0 | EL30: 0
A31: 1038 | B31: Regular | C31: Distribuição | D31: A3 | E31: Não se aplica | F31: Não se aplica | G31: Não se aplica | H31: EPB | I31: Não se aplica | J31: DISTRIBUIÇÃO | K31: 2019-04-01 | L31: 0 | M31: 0 | N31: 3213.709 | O31: 3213.709 | P31: 0 | Q31: 0 | S31: 2.42 | V31: 7777.17578 | W31: 7777.17578 | X31: 9480.44155 | Y31: 0 | Z31: 0 | AA31: 0 | AB31: 0 | AC31: 0 | AD31: 0 | AE31: 0 | AI31: 0 | AJ31: 0 | AK31: 0 | AL31: 0 | AM31: 0 | AN31: 0 | AO31: 0 | AP31: 0 | AQ31: 0 | AR31: 0 | AU31: 0 | AV31: 0 | AW31: 0 | AZ31: 0 | BB31: 1817.416814 | BC31: 0 | BD31: 0 | BE31: 173.1211724 | BG31: 7606.447393 | BH31: 0 | BI31: 21063.8 | BJ31: 0 | BK31: 0 | BL31: 0 | BV31: 7779.568565 | CI31: 9480.4445 | CJ31: 1703.23872 | CO31: 1703.26577 | CP31: 0 | CQ31: 30 | CR31: -115.4512282 | CS31: 0 | CT31: 0 | CU31: 0 | CV31: 0 | CZ31: 0 | DA31: 0 | DB31: 0 | DE31: -2.56917229 | DF31: 0 | DG31: -112.8820559 | DH31: 0 | DI31: 0 | DK31: 0 | DL31: 0 | DN31: 0 | DO31: 0 | DP31: 0 | DQ31: 0 | DR31: 0 | DS31: 0 | DT31: C | DV31: 0 | DW31: 0 | DX31: 0 | DY31: 140 | ED31: 0 | EE31: -83.4197843 | EG31: -83.4197843 | EI31: 0 | EJ31: 0 | EK31: 0 | EL31: 0
A32: 1053 | B32: Regular | C32: Distribuição | D32: A3 | E32: Não se aplica | F32: Não se aplica | G32: Não se aplica | H32: EPB | I32: Não se aplica | J32: DISTRIBUIÇÃO | K32: 2019-05-01 | L32: 0 | M32: 0 | N32: 3250.783 | O32: 3250.783 | P32: 0 | Q32: 0 | S32: 2.42 | V32: 7866.89486 | W32: 7866.89486 | X32: 9589.80985 | Y32: 0 | Z32: 0 | AA32: 0 | AB32: 0 | AC32: 0 | AD32: 0 | AE32: 0 | AI32: 0 | AJ32: 0 | AK32: 0 | AL32: 0 | AM32: 0 | AN32: 0 | AO32: 0 | AP32: 0 | AQ32: 0 | AR32: 0 | AU32: 0 | AV32: 0 | AW32: 0 | AZ32: 0 | BB32: 1838.382904 | BC32: 0 | BD32: 0 | BE32: 175.1183334 | BG32: 7694.196915 | BH32: 0 | BI32: 20578.97 | BJ32: 0 | BK32: 0 | BL32: 0 | BV32: 7869.315249 | CI32: 9589.801 | CJ32: 1722.87614 | CO32: 1722.91499 | CP32: 0 | CQ32: 31 | CR32: -116.783097 | CS32: 0 | CT32: 0 | CU32: 0 | CV32: 0 | CZ32: 0 | DA32: 0 | DB32: 0 | DE32: -2.598810783 | DF32: 0 | DG32: -114.1842862 | DH32: 0 | DI32: 0 | DK32: 0 | DL32: 0 | DN32: 0 | DO32: 0 | DP32: 0 | DQ32: 0 | DR32: 0 | DS32: 0 | DT32: C | DV32: 0 | DW32: 0 | DX32: 0 | DY32: 140 | ED32: 0 | EE32: -83.4197843 | EG32: -83.4197843 | EI32: 0 | EJ32: 0 | EK32: 0 | EL32: 0
A33: 1068 | B33: Regular | C33: Distribuição | D33: A3 | E33: Não se aplica | F33: Não se aplica | G33: Não se aplica | H33: EPB | I33: Não se aplica | J33: DISTRIBUIÇÃO | K33: 2019-06-01 | L33: 0 | M33: 0 | N33: 2915.534 | O33: 2915.534 | P33: 0 | Q33: 0 | S33: 2.42 | V33: 7055.59228 | W33: 7055.59228 | X33: 8600.8253 | Y33: 0 | Z33: 0 | AA33: 0 | AB33: 0 | AC33: 0 | AD33: 0 | AE33: 0 | AI33: 0 | AJ33: 0 | AK33: 0 | AL33: 0 | AM33: 0 | AN33: 0 | AO33: 0 | AP33: 0 | AQ33: 0 | AR33: 0 | AU33: 0 | AV33: 0 | AW33: 0 | AZ33: 0 | BB33: 1648.792879 | BC33: 0 | BD33: 0 | BE33: 157.0586087 | BG33: 6900.704449 | BH33: 0 | BI33: 21006.86 | BJ33: 0 | BK33: 0 | BL33: 0 | BV33: 7057.763057 | CI33: 8600.8135 | CJ33: 1545.19122 | CO33: 1545.23302 | CP33: 0 | CQ33: 30 | CR33: -104.7394089 | CS33: 0 | CT33: 0 | CU33: 0 | CV33: 0 | CZ33: 0 | DA33: 0 | DB33: 0 | DE33: -2.330798825 | DF33: 0 | DG33: -102.4086101 | DH33: 0 | DI33: 0 | DK33: 0 | DL33: 0 | DN33: 0 | DO33: 0 | DP33: 0 | DQ33: 0 | DR33: 0 | DS33: 0 | DT33: C | DV33: 0 | DW33: 0 | DX33: 0 | DY33: 140 | ED33: 0 | EE33: -83.4197843 | EG33: -83.4197843 | EI33: 0 | EJ33: 0 | EK33: 0 | EL33: 0
A34: 1083 | B34: Regular | C34: Distribuição | D34: A3 | E34: Não se aplica | F34: Não se aplica | G34: Não se aplica | H34: EPB | I34: Não se aplica | J34: DISTRIBUIÇÃO | K34: 2019-07-01 | L34: 0 | M34: 0 | N34: 2844.561 | O34: 2844.561 | P34: 0 | Q34: 0 | S34: 2.42 | V34: 6883.83762 | W34: 6883.83762 | X34: 8391.45495 | Y34: 0 | Z34: 0 | AA34: 0 | AB34: 0 | AC34: 0 | AD34: 0 | AE34: 0 | AI34: 0 | AJ34: 0 | AK34: 0 | AL34: 0 | AM34: 0 | AN34: 0 | AO34: 0 | AP34: 0 | AQ34: 0 | AR34: 0 | AU34: 0 | AV34: 0 | AW34: 0 | AZ34: 0 | BB34: 1608.656226 | BC34: 0 | BD34: 0 | BE34: 153.2353226 | BG34: 6732.720231 | BH34: 0 | BI34: 20993.3 | BJ34: 0 | BK34: 0 | BL34: 0 | BV34: 6885.955554 | CI34: 8391.452 | CJ34: 1507.58438 | CO34: 1507.61733 | CP34: 0 | CQ34: 31 | CR34: -102.1897319 | CS34: 0 | CT34: 0 | CU34: 0 | CV34: 0 | CZ34: 0 | DA34: 0 | DB34: 0 | DE34: -2.274060065 | DF34: 0 | DG34: -99.91567184 | DH34: 0 | DI34: 0 | DK34: 0 | DL34: 0 | DN34: 0 | DO34: 0 | DP34: 0 | DQ34: 0 | DR34: 0 | DS34: 0 | DT34: C | DV34: 0 | DW34: 0 | DX34: 0 | DY34: 140 | ED34: 0 | EE34: -83.4197843 | EG34: -83.4197843 | EI34: 0 | EJ34: 0 | EK34: 0 | EL34: 0
A35: 1098 | B35: Regular | C35: Distribuição | D35: A3 | E35: Não se aplica | F35: Não se aplica | G35: Não se aplica | H35: EPB | I35: Não se aplica | J35: DISTRIBUIÇÃO | K35: 2019-08-01 | L35: 0 | M35: 0 | N35: 2789.977 | O35: 2789.977 | P35: 0 | Q35: 0 | S35: 2.42 | V35: 6751.74434 | W35: 6751.74434 | X35: 8230.43215 | Y35: 0 | Z35: 0 | AA35: 0 | AB35: 0 | AC35: 0 | AD35: 0 | AE35: 0 | AI35: 0 | AJ35: 0 | AK35: 0 | AL35: 0 | AM35: 0 | AN35: 0 | AO35: 0 | AP35: 0 | AQ35: 0 | AR35: 0 | AU35: 0 | AV35: 0 | AW35: 0 | AZ35: 0 | BB35: 1577.78788 | BC35: 0 | BD35: 0 | BE35: 150.2949051 | BG35: 6603.526728 | BH35: 0 | BI35: 15885.18 | BJ35: 0 | BK35: 0 | BL35: 0 | BV35: 6753.821633 | CI35: 8230.441 | CJ35: 1478.66666 | CO35: 1478.68781 | CP35: 0 | CQ35: 31 | CR35: -100.2288232 | CS35: 0 | CT35: 0 | CU35: 0 | CV35: 0 | CZ35: 0 | DA35: 0 | DB35: 0 | DE35: -2.230423351 | DF35: 0 | DG35: -97.99839989 | DH35: 0 | DI35: 0 | DK35: 0 | DL35: 0 | DN35: 0 | DO35: 0 | DP35: 0 | DQ35: 0 | DR35: 0 | DS35: 0 | DT35: C | DV35: 0 | DW35: 0 | DX35: 0 | DY35: 140 | ED35: 0 | EE35: -83.4197843 | EG35: -83.4197843 | EI35: 0 | EJ35: 0 | EK35: 0 | EL35: 0
A36: 1116 | B36: Regular | C36: Distribuição | D36: A3 | E36: Não se aplica | F36: Não se aplica | G36: Não se aplica | H36: EPB | I36: Não se aplica | J36: DISTRIBUIÇÃO | K36: 2019-09-01 | L36: 0 | M36: 0 | N36: 3108.432 | O36: 3108.432 | P36: 0 | Q36: 0 | S36: 2.42 | V36: 7522.40544 | W36: 7522.40544 | X36: 9169.8744 | Y36: 0 | Z36: 0 | AA36: 0 | AB36: 0 | AC36: 0 | AD36: 0 | AE36: 0 | AI36: 0 | AJ36: 0 | AK36: 0 | AL36: 0 | AM36: 0 | AN36: 0 | AO36: 0 | AP36: 0 | AQ36: 0 | AR36: 0 | AU36: 0 | AV36: 0 | AW36: 0 | AZ36: 0 | BB36: 1757.880562 | BC36: 0 | BD36: 0 | BE36: 167.449944 | BG36: 7357.269897 | BH36: 0 | BI36: 12683.99 | BJ36: 0 | BK36: 0 | BL36: 0 | BV36: 7524.719841 | CI36: 9169.8685 | CJ36: 1647.43306 | CO36: 1647.46896 | CP36: 0 | CQ36: 30 | CR36: -111.6691935 | CS36: 0 | CT36: 0 | CU36: 0 | CV36: 0 | CZ36: 0 | DA36: 0 | DB36: 0 | DE36: -2.485009489 | DF36: 0 | DG36: -109.184184 | DH36: 0 | DI36: 0 | DK36: 0 | DL36: 0 | DN36: 0 | DO36: 0 | DP36: 0 | DQ36: 0 | DR36: 0 | DS36: 0 | DT36: C | DV36: 0 | DW36: 0 | DX36: 0 | DY36: 140 | ED36: 0 | EE36: -83.4197843 | EG36: -83.4197843 | EI36: 0 | EJ36: 0 | EK36: 0 | EL36: 0
A37: 1137 | B37: Regular | C37: Distribuição | D37: A3 | E37: Não se aplica | F37: Não se aplica | G37: Não se aplica | H37: EPB | I37: Não se aplica | J37: DISTRIBUIÇÃO | K37: 2019-10-01 | L37: 0 | M37: 0 | N37: 3374.57 | O37: 3374.57 | P37: 0 | Q37: 0 | S37: 2.42 | V37: 8166.4594 | W37: 8166.4594 | X37: 9954.9815 | Y37: 0 | Z37: 0 | AA37: 0 | AB37: 0 | AC37: 0 | AD37: 0 | AE37: 0 | AI37: 0 | AJ37: 0 | AK37: 0 | AL37: 0 | AM37: 0 | AN37: 0 | AO37: 0 | AP37: 0 | AQ37: 0 | AR37: 0 | AU37: 0 | AV37: 0 | AW37: 0 | AZ37: 0 | BB37: 1908.386932 | BC37: 0 | BD37: 0 | BE37: 181.7866879 | BG37: 7987.185267 | BH37: 0 | BI37: 21094.52 | BJ37: 0 | BK37: 0 | BL37: 0 | BV37: 8168.971955 | CI37: 9954.9815 | CJ37: 1788.4921 | CO37: 1788.5221 | CP37: 0 | CQ37: 31 | CR37: -121.2300962 | CS37: 0 | CT37: 0 | CU37: 0 | CV37: 0 | CZ37: 0 | DA37: 0 | DB37: 0 | DE37: -2.697771246 | DF37: 0 | DG37: -118.5323249 | DH37: 0 | DI37: 0 | DK37: 0 | DL37: 0 | DN37: 0 | DO37: 0 | DP37: 0 | DQ37: 0 | DR37: 0 | DS37: 0 | DT37: C | DV37: 0 | DW37: 0 | DX37: 0 | DY37: 140 | ED37: 0 | EE37: -83.4197843 | EG37: -83.4197843 | EI37: 0 | EJ37: 0 | EK37: 0 | EL37: 0
A38: 1158 | B38: Regular | C38: Distribuição | D38: A3 | E38: Não se aplica | F38: Não se aplica | G38: Não se aplica | H38: EPB | I38: Não se aplica | J38: DISTRIBUIÇÃO | K38: 2019-11-01 | L38: 0 | M38: 0 | N38: 3283.332 | O38: 3283.332 | P38: 0 | Q38: 0 | S38: 2.42 | V38: 7945.66344 | W38: 7945.66344 | X38: 9685.8294 | Y38: 0 | Z38: 0 | AA38: 0 | AB38: 0 | AC38: 0 | AD38: 0 | AE38: 0 | AI38: 0 | AJ38: 0 | AK38: 0 | AL38: 0 | AM38: 0 | AN38: 0 | AO38: 0 | AP38: 0 | AQ38: 0 | AR38: 0 | AU38: 0 | AV38: 0 | AW38: 0 | AZ38: 0 | BB38: 1856.790015 | BC38: 0 | BD38: 0 | BE38: 176.8717346 | BG38: 7771.236329 | BH38: 0 | BI38: 21077.09 | BJ38: 0 | BK38: 0 | BL38: 0 | BV38: 7948.108063 | CI38: 9685.8235 | CJ38: 1740.13006 | CO38: 1740.16596 | CP38: 0 | CQ38: 30 | CR38: -117.952407 | CS38: 0 | CT38: 0 | CU38: 0 | CV38: 0 | CZ38: 0 | DA38: 0 | DB38: 0 | DE38: -2.624831804 | DF38: 0 | DG38: -115.3275752 | DH38: 0 | DI38: 0 | DK38: 0 | DL38: 0 | DN38: 0 | DO38: 0 | DP38: 0 | DQ38: 0 | DR38: 0 | DS38: 0 | DT38: C | DV38: 0 | DW38: 0 | DX38: 0 | DY38: 140 | ED38: 0 | EE38: -83.4197843 | EG38: -83.4197843 | EI38: 0 | EJ38: 0 | EK38: 0 | EL38: 0
A39: 1179 | B39: Regular | C39: Distribuição | D39: A3 | E39: Não se aplica | F39: Não se aplica | G39: Não se aplica | H39: EPB | I39: Não se aplica | J39: DISTRIBUIÇÃO | K39: 2019-12-01 | L39: 0 | M39: 0 | N39: 3258.751 | O39: 3258.751 | P39: 0 | Q39: 0 | S39: 2.42 | V39: 7886.17742 | W39: 7886.17742 | X39: 9613.31545 | Y39: 0 | Z39: 0 | AA39: 0 | AB39: 0 | AC39: 0 | AD39: 0 | AE39: 0 | AI39: 0 | AJ39: 0 | AK39: 0 | AL39: 0 | AM39: 0 | AN39: 0 | AO39: 0 | AP39: 0 | AQ39: 0 | AR39: 0 | AU39: 0 | AV39: 0 | AW39: 0 | AZ39: 0 | BB39: 1842.888967 | BC39: 0 | BD39: 0 | BE39: 175.5475663 | BG39: 7713.056175 | BH39: 0 | BI39: 13577.88 | BJ39: 0 | BK39: 0 | BL39: 0 | BV39: 7888.603742 | CI39: 9613.3125 | CJ39: 1727.10508 | CO39: 1727.13803 | CP39: 0 | CR39: -117.0693443 | CS39: 0 | CT39: 0 | CU39: 0 | CV39: 0 | CZ39: 0 | DA39: 0 | DB39: 0 | DE39: -2.605180733 | DF39: 0 | DG39: -114.4641636 | DH39: 0 | DI39: 0 | DK39: 0 | DL39: 0 | DN39: 0 | DO39: 0 | DP39: 0 | DQ39: 0 | DR39: 0 | DS39: 0 | DT39: C | DV39: 0 | DW39: 0 | DX39: 0 | DY39: 140 | ED39: 0 | EE39: -83.4197843 | EG39: -83.4197843 | EI39: 0 | EJ39: 0 | EK39: 0 | EL39: 0
A40: 1200 | B40: PROJETADO | C40: Distribuição | D40: A3 | E40: Não se aplica | F40: Não se aplica | G40: Não se aplica | H40: EPB | I40: Não se aplica | J40: DISTRIBUIÇÃO | K40: 2020-01-01 | L40: 0 | M40: 0 | N40: 3258.751 | O40: 3258.751 | P40: 0 | Q40: 0 | S40: 2.42 | V40: 7886.17742 | W40: 7886.17742 | X40: 9613.31545 | Y40: 0 | Z40: 0 | AA40: 0 | AB40: 0 | AC40: 0 | AD40: 0 | AE40: 0 | AI40: 0 | AJ40: 0 | AK40: 0 | AL40: 0 | AM40: 0 | AN40: 0 | AO40: 0 | AP40: 0 | AQ40: 0 | AR40: 0 | AU40: 0 | AV40: 0 | AW40: 0 | AZ40: 0 | BB40: 1842.888967 | BC40: 0 | BD40: 0 | BE40: 175.5475663 | BG40: 7713.056175 | BH40: 0 | BI40: 13577.88 | BJ40: 0 | BK40: 0 | BL40: 0 | BV40: 7888.603742 | CI40: 9613.3125 | CJ40: 1727.10508 | CO40: 1727.13803 | CP40: 0 | CQ40: 31 | CR40: -117.0693443 | CS40: 0 | CT40: 0 | CU40: 0 | CV40: 0 | CZ40: 0 | DA40: 0 | DB40: 0 | DE40: -2.605180733 | DF40: 0 | DG40: -114.4641636 | DH40: 0 | DI40: 0 | DK40: 0 | DL40: 0 | DN40: 0 | DO40: 0 | DP40: 0 | DQ40: 0 | DR40: 0 | DS40: 0 | DT40: C | DV40: 0 | DW40: 0 | DX40: 0 | DY40: 140 | ED40: 0 | EE40: -83.4197843 | EG40: -83.4197843 | EI40: 0 | EJ40: 0 | EK40: 0 | EL40: 0
A41: 1006 | B41: Regular | C41: Distribuição | D41: A3 | E41: Não se aplica | F41: Não se aplica | G41: Não se aplica | H41: EPB | I41: Ponta | J41: DISTRIBUIÇÃO | K41: 2019-02-01 | L41: 18000 | M41: 18000 | N41: 0 | O41: 0 | P41: 0 | Q41: 0 | R41: 11.51 | U41: 207180 | W41: 207180 | X41: 218520 | Y41: 0 | Z41: 0 | AA41: 0 | AB41: 0 | AC41: 1869.41002 | AD41: 99997.21335 | AE41: 26651.57273 | AI41: 0 | AJ41: 0 | AK41: 0 | AL41: 0 | AM41: 0 | AN41: 0 | AO41: 23352.60793 | AP41: 55228.21885 | AQ41: 0 | AR41: 0 | AU41: 0 | AV41: 0 | AW41: 0 | AZ41: 0 | BB41: 0 | BC41: 7290.768051 | BD41: 0 | BE41: 0 | BG41: 0 | BH41: 0 | BI41: 0 | BJ41: 0 | BK41: 0 | BL41: 0 | BV41: 0 | CI41: 218520 | CJ41: 11339.97 | CO41: 11340 | CP41: 0 | CQ41: 29 | CR41: 4190.297792 | CS41: 1.818989404e-11 | CT41: 66.01190576 | CU41: 0 | CV41: 0 | CZ41: 4124.285886 | DA41: 0 | DB41: 0 | DE41: 0 | DF41: 0 | DG41: 0 | DH41: 0 | DI41: 0 | DK41: 0 | DL41: 0 | DN41: 0 | DO41: 0 | DP41: 0 | DQ41: 0 | DR41: 0 | DS41: 0 | DT41: C | DU41: 26651.57273 | DW41: 0 | DX41: 0 | DY41: 140 | ED41: 0 | EE41: -83.4197843 | EG41: -83.4197843 | EI41: 0 | EJ41: 0 | EK41: 0 | EL41: 0
A42: 1021 | B42: Regular | C42: Distribuição | D42: A3 | E42: Não se aplica | F42: Não se aplica | G42: Não se aplica | H42: EPB | I42: Ponta | J42: DISTRIBUIÇÃO | K42: 2019-03-01 | L42: 18000 | M42: 18000 | N42: 0 | O42: 0 | P42: 0 | Q42: 0 | R42: 11.51 | U42: 207180 | W42: 207180 | X42: 218520 | Y42: 0 | Z42: 0 | AA42: 0 | AB42: 0 | AC42: 1869.41002 | AD42: 99997.21335 | AE42: 26651.57273 | AI42: 0 | AJ42: 0 | AK42: 0 | AL42: 0 | AM42: 0 | AN42: 0 | AO42: 23352.60793 | AP42: 55228.21885 | AQ42: 0 | AR42: 0 | AU42: 0 | AV42: 0 | AW42: 0 | AZ42: 0 | BB42: 0 | BC42: 7290.768051 | BD42: 0 | BE42: 0 | BG42: 0 | BH42: 0 | BI42: 0 | BJ42: 0 | BK42: 0 | BL42: 0 | BV42: 0 | CI42: 218520 | CJ42: 11339.97 | CO42: 11340 | CP42: 0 | CQ42: 31 | CR42: 4190.297792 | CS42: 1.818989404e-11 | CT42: 66.01190576 | CU42: 0 | CV42: 0 | CZ42: 4124.285886 | DA42: 0 | DB42: 0 | DE42: 0 | DF42: 0 | DG42: 0 | DH42: 0 | DI42: 0 | DK42: 0 | DL42: 0 | DN42: 0 | DO42: 0 | DP42: 0 | DQ42: 0 | DR42: 0 | DS42: 0 | DT42: C | DU42: 26651.57273 | DW42: 0 | DX42: 0 | DY42: 140 | ED42: 0 | EE42: -83.4197843 | EG42: -83.4197843 | EI42: 0 | EJ42: 0 | EK42: 0 | EL42: 0
A43: 1036 | B43: Regular | C43: Distribuição | D43: A3 | E43: Não se aplica | F43: Não se aplica | G43: Não se aplica | H43: EPB | I43: Ponta | J43: DISTRIBUIÇÃO | K43: 2019-04-01 | L43: 18000 | M43: 18000 | N43: 0 | O43: 0 | P43: 0 | Q43: 0 | R43: 11.51 | U43: 207180 | W43: 207180 | X43: 218520 | Y43: 0 | Z43: 0 | AA43: 0 | AB43: 0 | AC43: 1869.41002 | AD43: 99997.21335 | AE43: 26651.57273 | AI43: 0 | AJ43: 0 | AK43: 0 | AL43: 0 | AM43: 0 | AN43: 0 | AO43: 23352.60793 | AP43: 55228.21885 | AQ43: 0 | AR43: 0 | AU43: 0 | AV43: 0 | AW43: 0 | AZ43: 0 | BB43: 0 | BC43: 7290.768051 | BD43: 0 | BE43: 0 | BG43: 0 | BH43: 0 | BI43: 0 | BJ43: 0 | BK43: 0 | BL43: 0 | BV43: 0 | CI43: 218520 | CJ43: 11339.97 | CO43: 11340 | CP43: 0 | CQ43: 30 | CR43: 4190.297792 | CS43: 1.818989404e-11 | CT43: 66.01190576 | CU43: 0 | CV43: 0 | CZ43: 4124.285886 | DA43: 0 | DB43: 0 | DE43: 0 | DF43: 0 | DG43: 0 | DH43: 0 | DI43: 0 | DK43: 0 | DL43: 0 | DN43: 0 | DO43: 0 | DP43: 0 | DQ43: 0 | DR43: 0 | DS43: 0 | DT43: C | DU43: 26651.57273 | DW43: 0 | DX43: 0 | DY43: 140 | ED43: 0 | EE43: -83.4197843 | EG43: -83.4197843 | EI43: 0 | EJ43: 0 | EK43: 0 | EL43: 0
A44: 1051 | B44: Regular | C44: Distribuição | D44: A3 | E44: Não se aplica | F44: Não se aplica | G44: Não se aplica | H44: EPB | I44: Ponta | J44: DISTRIBUIÇÃO | K44: 2019-05-01 | L44: 18000 | M44: 18000 | N44: 0 | O44: 0 | P44: 0 | Q44: 0 | R44: 11.51 | U44: 207180 | W44: 207180 | X44: 218520 | Y44: 0 | Z44: 0 | AA44: 0 | AB44: 0 | AC44: 1869.41002 | AD44: 99997.21335 | AE44: 26651.57273 | AI44: 0 | AJ44: 0 | AK44: 0 | AL44: 0 | AM44: 0 | AN44: 0 | AO44: 23352.60793 | AP44: 55228.21885 | AQ44: 0 | AR44: 0 | AU44: 0 | AV44: 0 | AW44: 0 | AZ44: 0 | BB44: 0 | BC44: 7290.768051 | BD44: 0 | BE44: 0 | BG44: 0 | BH44: 0 | BI44: 0 | BJ44: 0 | BK44: 0 | BL44: 0 | BV44: 0 | CI44: 218520 | CJ44: 11339.97 | CO44: 11340 | CP44: 0 | CQ44: 31 | CR44: 4190.297792 | CS44: 1.818989404e-11 | CT44: 66.01190576 | CU44: 0 | CV44: 0 | CZ44: 4124.285886 | DA44: 0 | DB44: 0 | DE44: 0 | DF44: 0 | DG44: 0 | DH44: 0 | DI44: 0 | DK44: 0 | DL44: 0 | DN44: 0 | DO44: 0 | DP44: 0 | DQ44: 0 | DR44: 0 | DS44: 0 | DT44: C | DU44: 26651.57273 | DW44: 0 | DX44: 0 | DY44: 140 | ED44: 0 | EE44: -83.4197843 | EG44: -83.4197843 | EI44: 0 | EJ44: 0 | EK44: 0 | EL44: 0
A45: 1066 | B45: Regular | C45: Distribuição | D45: A3 | E45: Não se aplica | F45: Não se aplica | G45: Não se aplica | H45: EPB | I45: Ponta | J45: DISTRIBUIÇÃO | K45: 2019-06-01 | L45: 18000 | M45: 18000 | N45: 0 | O45: 0 | P45: 0 | Q45: 0 | R45: 11.51 | U45: 207180 | W45: 207180 | X45: 218520 | Y45: 0 | Z45: 0 | AA45: 0 | AB45: 0 | AC45: 1869.41002 | AD45: 99997.21335 | AE45: 26651.57273 | AI45: 0 | AJ45: 0 | AK45: 0 | AL45: 0 | AM45: 0 | AN45: 0 | AO45: 23352.60793 | AP45: 55228.21885 | AQ45: 0 | AR45: 0 | AU45: 0 | AV45: 0 | AW45: 0 | AZ45: 0 | BB45: 0 | BC45: 7290.768051 | BD45: 0 | BE45: 0 | BG45: 0 | BH45: 0 | BI45: 0 | BJ45: 0 | BK45: 0 | BL45: 0 | BV45: 0 | CI45: 218520 | CJ45: 11339.97 | CO45: 11340 | CP45: 0 | CQ45: 30 | CR45: 4190.297792 | CS45: 1.818989404e-11 | CT45: 66.01190576 | CU45: 0 | CV45: 0 | CZ45: 4124.285886 | DA45: 0 | DB45: 0 | DE45: 0 | DF45: 0 | DG45: 0 | DH45: 0 | DI45: 0 | DK45: 0 | DL45: 0 | DN45: 0 | DO45: 0 | DP45: 0 | DQ45: 0 | DR45: 0 | DS45: 0 | DT45: C | DU45: 26651.57273 | DW45: 0 | DX45: 0 | DY45: 140 | ED45: 0 | EE45: -83.4197843 | EG45: -83.4197843 | EI45: 0 | EJ45: 0 | EK45: 0 | EL45: 0
A46: 1081 | B46: Regular | C46: Distribuição | D46: A3 | E46: Não se aplica | F46: Não se aplica | G46: Não se aplica | H46: EPB | I46: Ponta | J46: DISTRIBUIÇÃO | K46: 2019-07-01 | L46: 18000 | M46: 18000 | N46: 0 | O46: 0 | P46: 0 | Q46: 0 | R46: 11.51 | U46: 207180 | W46: 207180 | X46: 218520 | Y46: 0 | Z46: 0 | AA46: 0 | AB46: 0 | AC46: 1869.41002 | AD46: 99997.21335 | AE46: 26651.57273 | AI46: 0 | AJ46: 0 | AK46: 0 | AL46: 0 | AM46: 0 | AN46: 0 | AO46: 23352.60793 | AP46: 55228.21885 | AQ46: 0 | AR46: 0 | AU46: 0 | AV46: 0 | AW46: 0 | AZ46: 0 | BB46: 0 | BC46: 7290.768051 | BD46: 0 | BE46: 0 | BG46: 0 | BH46: 0 | BI46: 0 | BJ46: 0 | BK46: 0 | BL46: 0 | BV46: 0 | CI46: 218520 | CJ46: 11339.97 | CO46: 11340 | CP46: 0 | CQ46: 31 | CR46: 4190.297792 | CS46: 1.818989404e-11 | CT46: 66.01190576 | CU46: 0 | CV46: 0 | CZ46: 4124.285886 | DA46: 0 | DB46: 0 | DE46: 0 | DF46: 0 | DG46: 0 | DH46: 0 | DI46: 0 | DK46: 0 | DL46: 0 | DN46: 0 | DO46: 0 | DP46: 0 | DQ46: 0 | DR46: 0 | DS46: 0 | DT46: C | DU46: 26651.57273 | DW46: 0 | DX46: 0 | DY46: 140 | ED46: 0 | EE46: -83.4197843 | EG46: -83.4197843 | EI46: 0 | EJ46: 0 | EK46: 0 | EL46: 0
A47: 1096 | B47: Regular | C47: Distribuição | D47: A3 | E47: Não se aplica | F47: Não se aplica | G47: Não se aplica | H47: EPB | I47: Ponta | J47: DISTRIBUIÇÃO | K47: 2019-08-01 | L47: 18000 | M47: 18000 | N47: 0 | O47: 0 | P47: 0 | Q47: 0 | R47: 11.51 | U47: 207180 | W47: 207180 | X47: 218520 | Y47: 0 | Z47: 0 | AA47: 0 | AB47: 0 | AC47: 1869.41002 | AD47: 99997.21335 | AE47: 26651.57273 | AI47: 0 | AJ47: 0 | AK47: 0 | AL47: 0 | AM47: 0 | AN47: 0 | AO47: 23352.60793 | AP47: 55228.21885 | AQ47: 0 | AR47: 0 | AU47: 0 | AV47: 0 | AW47: 0 | AZ47: 0 | BB47: 0 | BC47: 7290.768051 | BD47: 0 | BE47: 0 | BG47: 0 | BH47: 0 | BI47: 0 | BJ47: 0 | BK47: 0 | BL47: 0 | BV47: 0 | CI47: 218520 | CJ47: 11339.97 | CO47: 11340 | CP47: 0 | CQ47: 31 | CR47: 4190.297792 | CS47: 1.818989404e-11 | CT47: 66.01190576 | CU47: 0 | CV47: 0 | CZ47: 4124.285886 | DA47: 0 | DB47: 0 | DE47: 0 | DF47: 0 | DG47: 0 | DH47: 0 | DI47: 0 | DK47: 0 | DL47: 0 | DN47: 0 | DO47: 0 | DP47: 0 | DQ47: 0 | DR47: 0 | DS47: 0 | DT47: C | DU47: 26651.57273 | DW47: 0 | DX47: 0 | DY47: 140 | ED47: 0 | EE47: -83.4197843 | EG47: -83.4197843 | EI47: 0 | EJ47: 0 | EK47: 0 | EL47: 0
A48: 1114 | B48: Regular | C48: Distribuição | D48: A3 | E48: Não se aplica | F48: Não se aplica | G48: Não se aplica | H48: EPB | I48: Ponta | J48: DISTRIBUIÇÃO | K48: 2019-09-01 | L48: 18000 | M48: 18000 | N48: 0 | O48: 0 | P48: 0 | Q48: 0 | R48: 11.51 | U48: 207180 | W48: 207180 | X48: 218520 | Y48: 0 | Z48: 0 | AA48: 0 | AB48: 0 | AC48: 1869.41002 | AD48: 99997.21335 | AE48: 26651.57273 | AI48: 0 | AJ48: 0 | AK48: 0 | AL48: 0 | AM48: 0 | AN48: 0 | AO48: 23352.60793 | AP48: 55228.21885 | AQ48: 0 | AR48: 0 | AU48: 0 | AV48: 0 | AW48: 0 | AZ48: 0 | BB48: 0 | BC48: 7290.768051 | BD48: 0 | BE48: 0 | BG48: 0 | BH48: 0 | BI48: 0 | BJ48: 0 | BK48: 0 | BL48: 0 | BV48: 0 | CI48: 218520 | CJ48: 11339.97 | CO48: 11340 | CP48: 0 | CQ48: 30 | CR48: 4190.297792 | CS48: 1.818989404e-11 | CT48: 66.01190576 | CU48: 0 | CV48: 0 | CZ48: 4124.285886 | DA48: 0 | DB48: 0 | DE48: 0 | DF48: 0 | DG48: 0 | DH48: 0 | DI48: 0 | DK48: 0 | DL48: 0 | DN48: 0 | DO48: 0 | DP48: 0 | DQ48: 0 | DR48: 0 | DS48: 0 | DT48: C | DU48: 26651.57273 | DW48: 0 | DX48: 0 | DY48: 140 | ED48: 0 | EE48: -83.4197843 | EG48: -83.4197843 | EI48: 0 | EJ48: 0 | EK48: 0 | EL48: 0
A49: 1135 | B49: Regular | C49: Distribuição | D49: A3 | E49: Não se aplica | F49: Não se aplica | G49: Não se aplica | H49: EPB | I49: Ponta | J49: DISTRIBUIÇÃO | K49: 2019-10-01 | L49: 18000 | M49: 18000 | N49: 0 | O49: 0 | P49: 0 | Q49: 0 | R49: 11.51 | U49: 207180 | W49: 207180 | X49: 218520 | Y49: 0 | Z49: 0 | AA49: 0 | AB49: 0 | AC49: 1869.41002 | AD49: 99997.21335 | AE49: 26651.57273 | AI49: 0 | AJ49: 0 | AK49: 0 | AL49: 0 | AM49: 0 | AN49: 0 | AO49: 23352.60793 | AP49: 55228.21885 | AQ49: 0 | AR49: 0 | AU49: 0 | AV49: 0 | AW49: 0 | AZ49: 0 | BB49: 0 | BC49: 7290.768051 | BD49: 0 | BE49: 0 | BG49: 0 | BH49: 0 | BI49: 0 | BJ49: 0 | BK49: 0 | BL49: 0 | BV49: 0 | CI49: 218520 | CJ49: 11339.97 | CO49: 11340 | CP49: 0 | CQ49: 31 | CR49: 4190.297792 | CS49: 1.818989404e-11 | CT49: 66.01190576 | CU49: 0 | CV49: 0 | CZ49: 4124.285886 | DA49: 0 | DB49: 0 | DE49: 0 | DF49: 0 | DG49: 0 | DH49: 0 | DI49: 0 | DK49: 0 | DL49: 0 | DN49: 0 | DO49: 0 | DP49: 0 | DQ49: 0 | DR49: 0 | DS49: 0 | DT49: C | DU49: 26651.57273 | DW49: 0 | DX49: 0 | DY49: 140 | ED49: 0 | EE49: -83.4197843 | EG49: -83.4197843 | EI49: 0 | EJ49: 0 | EK49: 0 | EL49: 0
A50: 1156 | B50: Regular | C50: Distribuição | D50: A3 | E50: Não se aplica | F50: Não se aplica | G50: Não se aplica | H50: EPB | I50: Ponta | J50: DISTRIBUIÇÃO | K50: 2019-11-01 | L50: 18000 | M50: 18000 | N50: 0 | O50: 0 | P50: 0 | Q50: 0 | R50: 11.51 | U50: 207180 | W50: 207180 | X50: 218520 | Y50: 0 | Z50: 0 | AA50: 0 | AB50: 0 | AC50: 1869.41002 | AD50: 99997.21335 | AE50: 26651.57273 | AI50: 0 | AJ50: 0 | AK50: 0 | AL50: 0 | AM50: 0 | AN50: 0 | AO50: 23352.60793 | AP50: 55228.21885 | AQ50: 0 | AR50: 0 | AU50: 0 | AV50: 0 | AW50: 0 | AZ50: 0 | BB50: 0 | BC50: 7290.768051 | BD50: 0 | BE50: 0 | BG50: 0 | BH50: 0 | BI50: 0 | BJ50: 0 | BK50: 0 | BL50: 0 | BV50: 0 | CI50: 218520 | CJ50: 11339.97 | CO50: 11340 | CP50: 0 | CQ50: 30 | CR50: 4190.297792 | CS50: 1.818989404e-11 | CT50: 66.01190576 | CU50: 0 | CV50: 0 | CZ50: 4124.285886 | DA50: 0 | DB50: 0 | DE50: 0 | DF50: 0 | DG50: 0 | DH50: 0 | DI50: 0 | DK50: 0 | DL50: 0 | DN50: 0 | DO50: 0 | DP50: 0 | DQ50: 0 | DR50: 0 | DS50: 0 | DT50: C | DU50: 26651.57273 | DW50: 0 | DX50: 0 | DY50: 140 | ED50: 0 | EE50: -83.4197843 | EG50: -83.4197843 | EI50: 0 | EJ50: 0 | EK50: 0 | EL50: 0
A51: 1177 | B51: Regular | C51: Distribuição | D51: A3 | E51: Não se aplica | F51: Não se aplica | G51: Não se aplica | H51: EPB | I51: Ponta | J51: DISTRIBUIÇÃO | K51: 2019-12-01 | L51: 18000 | M51: 18000 | N51: 0 | O51: 0 | P51: 0 | Q51: 0 | R51: 11.51 | U51: 207180 | W51: 207180 | X51: 218520 | Y51: 0 | Z51: 0 | AA51: 0 | AB51: 0 | AC51: 1869.41002 | AD51: 99997.21335 | AE51: 26651.57273 | AI51: 0 | AJ51: 0 | AK51: 0 | AL51: 0 | AM51: 0 | AN51: 0 | AO51: 23352.60793 | AP51: 55228.21885 | AQ51: 0 | AR51: 0 | AU51: 0 | AV51: 0 | AW51: 0 | AZ51: 0 | BB51: 0 | BC51: 7290.768051 | BD51: 0 | BE51: 0 | BG51: 0 | BH51: 0 | BI51: 0 | BJ51: 0 | BK51: 0 | BL51: 0 | BV51: 0 | CI51: 218520 | CJ51: 11339.97 | CO51: 11340 | CP51: 0 | CR51: 4190.297792 | CS51: 1.818989404e-11 | CT51: 66.01190576 | CU51: 0 | CV51: 0 | CZ51: 4124.285886 | DA51: 0 | DB51: 0 | DE51: 0 | DF51: 0 | DG51: 0 | DH51: 0 | DI51: 0 | DK51: 0 | DL51: 0 | DN51: 0 | DO51: 0 | DP51: 0 | DQ51: 0 | DR51: 0 | DS51: 0 | DT51: C | DU51: 26651.57273 | DW51: 0 | DX51: 0 | DY51: 140 | ED51: 0 | EE51: -83.4197843 | EG51: -83.4197843 | EI51: 0 | EJ51: 0 | EK51: 0 | EL51: 0
A52: 1198 | B52: PROJETADO | C52: Distribuição | D52: A3 | E52: Não se aplica | F52: Não se aplica | G52: Não se aplica | H52: EPB | I52: Ponta | J52: DISTRIBUIÇÃO | K52: 2020-01-01 | L52: 18000 | M52: 18000 | N52: 0 | O52: 0 | P52: 0 | Q52: 0 | R52: 11.51 | U52: 207180 | W52: 207180 | X52: 218520 | Y52: 0 | Z52: 0 | AA52: 0 | AB52: 0 | AC52: 1869.41002 | AD52: 99997.21335 | AE52: 26651.57273 | AI52: 0 | AJ52: 0 | AK52: 0 | AL52: 0 | AM52: 0 | AN52: 0 | AO52: 23352.60793 | AP52: 55228.21885 | AQ52: 0 | AR52: 0 | AU52: 0 | AV52: 0 | AW52: 0 | AZ52: 0 | BB52: 0 | BC52: 7290.768051 | BD52: 0 | BE52: 0 | BG52: 0 | BH52: 0 | BI52: 0 | BJ52: 0 | BK52: 0 | BL52: 0 | BV52: 0 | CI52: 218520 | CJ52: 11339.97 | CO52: 11340 | CP52: 0 | CQ52: 31 | CR52: 4190.297792 | CS52: 1.818989404e-11 | CT52: 66.01190576 | CU52: 0 | CV52: 0 | CZ52: 4124.285886 | DA52: 0 | DB52: 0 | DE52: 0 | DF52: 0 | DG52: 0 | DH52: 0 | DI52: 0 | DK52: 0 | DL52: 0 | DN52: 0 | DO52: 0 | DP52: 0 | DQ52: 0 | DR52: 0 | DS52: 0 | DT52: C | DU52: 26651.57273 | DW52: 0 | DX52: 0 | DY52: 140 | ED52: 0 | EE52: -83.4197843 | EG52: -83.4197843 | EI52: 0 | EJ52: 0 | EK52: 0 | EL52: 0
A53: 28 | B53: Regular | C53: Azul | D53: A4 | E53: Comercial | F53: Não se aplica | G53: Não se aplica | H53: Não se aplica | I53: Fora ponta | J53: CATIVO | K53: 2019-02-01 | L53: 2539 | M53: 2539 | N53: 909.354 | O53: 909.354 | P53: 909.354 | Q53: 909.354 | R53: 12.26 | S53: 32.74 | T53: 236.11 | U53: 31128.14 | V53: 244479.8229 | W53: 275607.9629 | X53: 285604.5587 | Y53: 0 | Z53: 12216.48946 | AA53: 0 | AB53: 0 | AC53: 226.1563214 | AD53: 4080.205318 | AE53: 18577.3995 | AF53: 170278.0504 | AG53: 10600.56775 | AH53: 0 | AI53: 39.93590237 | AJ53: 0 | AK53: 2531.786171 | AL53: 8463.449046 | AM53: 0 | AN53: 324.9657755 | AO53: 2580.669791 | AP53: 5661.620364 | AQ53: 0 | AR53: 0 | AS53: 1.679714548e-09 | AT53: 0 | AU53: 0 | AV53: 875.3129546 | AW53: 90.83677672 | AX53: 0 | AY53: -15553.96058 | AZ53: 0 | BA53: -12908.46805 | BB53: 42542.57387 | BC53: 764.7237652 | BD53: 2174.27189 | BE53: 140.8443498 | BF53: 3324.737208 | BG53: 6188.296455 | BH53: 0 | BI53: 0 | BJ53: 0 | BK53: 0 | BL53: 0 | BU53: 28194.25495 | BV53: 182106.2003 | CI53: 285603.4435 | CJ53: 9995.4506 | CM53: 1083.620422 | CN53: 27110.63453 | CO53: 2930.91526 | CP53: 7065.68058 | CQ53: 29 | CR53: -5816.341818 | CS53: 3.637978807e-12 | CT53: 6.767090405 | CU53: 0 | CV53: 0 | CW53: 0 | CX53: 0 | CY53: 0 | CZ53: 168.2840215 | DA53: 0 | DB53: 0 | DC53: -2526.97947 | DD53: -49.34013897 | DE53: -2.090174158 | DF53: -32.26687419 | DG53: -91.8362529 | DH53: 0 | DI53: -294.8765293 | DJ53: -968.3738711 | DK53: 0 | DL53: -1.452911051 | DM53: 382.8669607 | DN53: -2045.831991 | DO53: -350.5767569 | DP53: -10.63492109 | DQ53: 0 | DR53: 0 | DS53: 0 | DU53: 18577.3995 | DV53: 0 | DW53: 0 | DX53: 0 | DY53: 140 | DZ53: 0 | EA53: 0 | EB53: 0 | ED53: 0 | EE53: -83.4197843 | EG53: -83.4197843 | EI53: 0 | EJ53: 0 | EK53: 0 | EL53: 0
A54: 29 | B54: Sistema de Compensação | C54: Azul | D54: A4 | E54: Comercial | F54: Não se aplica | G54: Não se aplica | H54: Não se aplica | I54: Fora ponta | J54: CATIVO | K54: 2019-02-01 | L54: 260 | M54: 260 | N54: 94.36 | O54: 94.36 | P54: 94.36 | Q54: 94.36 | R54: 12.26 | S54: 32.74 | T54: 236.11 | U54: 3187.6 | V54: 25368.686 | W54: 28556.286 | X54: 29592.3116 | Y54: 0 | Z54: 1267.65588 | AA54: 0 | AB54: 0 | AC54: 23.15897738 | AD54: 417.8233094 | AE54: 1902.372536 | AF54: 17669.06709 | AG54: 1099.978196 | AH54: 0 | AI54: 4.143987652 | AJ54: 0 | AK54: 262.7132482 | AL54: 878.2180009 | AM54: 0 | AN54: 33.72038896 | AO54: 264.2670917 | AP54: 579.7641964 | AQ54: 0 | AR54: 0 | AS54: 1.742972096e-10 | AT54: 0 | AU54: 0 | AV54: 90.8276979 | AW54: 9.42576626 | AX54: 0 | AY54: -1613.971809 | AZ54: 0 | BA54: -1339.45971 | BB54: 4414.471449 | BC54: 78.30964118 | BD54: 225.615432 | BE54: 14.6148506 | BF54: 344.9945818 | BG54: 642.1345851 | BH54: 0 | BI54: 0 | BJ54: 0 | BK54: 0 | BL54: 0 | BU54: 2925.604217 | BV54: 18896.42654 | CI54: 29592.3116 | CJ54: 1035.9956 | CM54: 112.4429244 | CN54: 2813.161293 | CO54: 302.8484 | CP54: 733.1772 | CQ54: 29 | CR54: -603.7770247 | CS54: 3.97903932e-13 | CT54: 0.6929671152 | CU54: 0 | CV54: 0 | CW54: 0 | CX54: 0 | CY54: 0 | CZ54: 17.23270799 | DA54: 0 | DB54: 0 | DC54: -262.2144762 | DD54: -5.119827386 | DE54: -0.2168889492 | DF54: -3.348203503 | DG54: -9.529477875 | DH54: 0 | DI54: -30.59814914 | DJ54: -100.4842542 | DK54: 0 | DL54: -0.1507627248 | DM54: 39.72856161 | DN54: -212.2877412 | DO54: -36.37793728 | DP54: -1.103542904 | DQ54: 0 | DR54: 0 | DS54: 0 | DU54: 1902.372536 | DV54: 0 | DW54: 0 | DX54: 0 | DY54: 140 | DZ54: 0 | EA54: 0 | EB54: 0 | ED54: 0 | EE54: -83.4197843 | EG54: -83.4197843 | EI54: 0 | EJ54: 0 | EK54: 0 | EL54: 0
A55: 111 | B55: Regular | C55: Azul | D55: A4 | E55: Comercial | F55: Não se aplica | G55: Não se aplica | H55: Não se aplica | I55: Fora ponta | J55: CATIVO | K55: 2019-03-01 | L55: 3070 | M55: 3070 | N55: 991.358 | O55: 991.358 | P55: 991.358 | Q55: 991.358 | R55: 12.26 | S55: 32.74 | T55: 236.11 | U55: 37638.2 | V55: 266526.5983 | W55: 304164.7983 | X55: 315174.624 | Y55: 0 | Z55: 13318.15174 | AA55: 0 | AB55: 0 | AC55: 273.4540791 | AD55: 4933.529077 | AE55: 22462.62956 | AF55: 185633.4359 | AG55: 11556.50895 | AH55: 0 | AI55: 43.53725425 | AJ55: 0 | AK55: 2760.09835 | AL55: 9226.668513 | AM55: 0 | AN55: 354.2706375 | AO55: 3120.384505 | AP55: 6845.677242 | AQ55: 0 | AR55: 0 | AS55: 1.831188355e-09 | AT55: 0 | AU55: 0 | AV55: 954.2471909 | AW55: 99.02828304 | AX55: 0 | AY55: -16956.59034 | AZ55: 0 | BA55: -14072.53179 | BB55: 46378.99096 | BC55: 924.6561477 | BD55: 2370.344038 | BE55: 153.5454542 | BF55: 3624.556365 | BG55: 6746.346524 | BH55: 0 | BI55: 0 | BJ55: 0 | BK55: 0 | BL55: 0 | BU55: 30736.765 | BV55: 198528.2283 | CI55: 315175.1816 | CJ55: 11010.3533 | CM55: 1181.339473 | CN55: 29555.42553 | CO55: 3306.97402 | CP55: 7702.85166 | CQ55: 31 | CR55: -6320.025718 | CS55: 4.547473509e-12 | CT55: 8.182342475 | CU55: 0 | CV55: 0 | CW55: 0 | CX55: 0 | CY55: 0 | CZ55: 203.4785136 | DA55: 0 | DB55: 0 | DC55: -2754.858189 | DD55: -53.78954894 | DE55: -2.278662515 | DF55: -35.17664613 | DG55: -100.1178903 | DH55: 0 | DI55: -321.4679942 | DJ55: -1055.700183 | DK55: 0 | DL55: -1.583932104 | DM55: 417.3932533 | DN55: -2230.321647 | DO55: -382.1911737 | DP55: -11.59396022 | DQ55: 0 | DR55: 0 | DS55: 0 | DU55: 22462.62956 | DV55: 0 | DW55: 0 | DX55: 0 | DY55: 140 | DZ55: 0 | EA55: 0 | EB55: 0 | ED55: 0 | EE55: -83.4197843 | EG55: -83.4197843 | EI55: 0 | EJ55: 0 | EK55: 0 | EL55: 0
A56: 112 | B56: Refaturamento - Regular | C56: Azul | D56: A4 | E56: Comercial | F56: Não se aplica | G56: Não se aplica | H56: Não se aplica | I56: Fora ponta | J56: CATIVO | K56: 2019-03-01 | L56: -600 | M56: -600 | N56: -149.04 | O56: -149.04 | P56: -149.04 | Q56: -149.04 | R56: 12.26 | S56: 32.74 | T56: 236.11 | U56: -7356 | V56: -40069.404 | W56: -47425.404 | X56: -49131.8424 | Y56: 0 | Z56: -2002.240699 | AA56: 0 | AB56: 0 | AC56: -53.44379396 | AD56: -964.2076371 | AE56: -4390.090468 | AF56: -27907.98812 | AG56: -1737.396676 | AH56: 0 | AI56: -6.545357351 | AJ56: 0 | AK56: -414.9510653 | AL56: -1387.130255 | AM56: 0 | AN56: -53.26077544 | AO56: -609.8471346 | AP56: -1337.917376 | AQ56: 0 | AR56: 0 | AS56: -2.752994502e-10 | AT56: 0 | AU56: 0 | AV56: -143.4607895 | AW56: -14.88783598 | AX56: 0 | AY56: 2549.240764 | AZ56: 0 | BA56: 2115.653616 | BB56: -6972.581865 | BC56: -180.7145566 | BD56: -356.3557014 | BE56: -23.08390561 | BF56: -544.913019 | BG56: -1014.240553 | BH56: 0 | BI56: 0 | BJ56: 0 | BK56: 0 | BL56: 0 | BU56: -4620.941634 | BV56: -29846.5813 | CI56: -49131.8424 | CJ56: -1706.4684 | CM56: -177.6016686 | CN56: -4443.339965 | CO56: -548.3976 | CP56: -1158.0408 | CQ56: 31 | CR56: 940.6017982 | CS56: -7.958078641e-13 | CT56: -1.599154881 | CU56: 0 | CV56: 0 | CW56: 0 | CX56: 0 | CY56: 0 | CZ56: -39.76778768 | DA56: 0 | DB56: 0 | DC56: 414.1632635 | DD56: 8.086679458 | DE56: 0.3425723717 | DF56: 5.28842995 | DG56: 15.0516467 | DH56: 0 | DI56: 48.32925124 | DJ56: 158.7131543 | DK56: 0 | DL56: 0.2381271354 | DM56: -62.750581 | DN56: 335.3048427 | DO56: 57.45832739 | DP56: 1.743027071 | DQ56: 0 | DR56: 0 | DS56: 0 | DU56: -4390.090468 | DV56: 0 | DW56: 0 | DX56: 0 | DY56: 140 | DZ56: 0 | EA56: 0 | EB56: 0 | ED56: 0 | EE56: -83.4197843 | EG56: -83.4197843 | EI56: 0 | EJ56: 0 | EK56: 0 | EL56: 0
A57: 113 | B57: Sistema de Compensação | C57: Azul | D57: A4 | E57: Comercial | F57: Não se aplica | G57: Não se aplica | H57: Não se aplica | I57: Fora ponta | J57: CATIVO | K57: 2019-03-01 | L57: 268 | M57: 268 | N57: 92.96 | O57: 92.96 | P57: 92.96 | Q57: 92.96 | R57: 12.26 | S57: 32.74 | T57: 236.11 | U57: 3285.68 | V57: 24992.296 | W57: 28277.976 | X57: 29303.0176 | Y57: 0 | Z57: 1248.847929 | AA57: 0 | AB57: 0 | AC57: 23.8715613 | AD57: 430.6794112 | AE57: 1960.907075 | AF57: 17406.91476 | AG57: 1083.658045 | AH57: 0 | AI57: 4.082504156 | AJ57: 0 | AK57: 258.8154256 | AL57: 865.1880602 | AM57: 0 | AN57: 33.22008645 | AO57: 272.3983868 | AP57: 597.6030947 | AQ57: 0 | AR57: 0 | AS57: 1.717111976e-10 | AT57: 0 | AU57: 0 | AV57: 89.48010595 | AW57: 9.285918096 | AX57: 0 | AY57: -1590.02564 | AZ57: 0 | BA57: -1319.586421 | BB57: 4348.97484 | BC57: 80.7191686 | BD57: 222.268022 | BE57: 14.39801305 | BF57: 339.8759678 | BG57: 632.6073657 | BH57: 0 | BI57: 0 | BJ57: 0 | BK57: 0 | BL57: 0 | BU57: 2882.197627 | BV57: 18616.06413 | CI57: 29303.0176 | CJ57: 1025.0116 | CM57: 110.7746317 | CN57: 2771.422995 | CO57: 302.7424 | CP57: 722.2992 | CQ57: 31 | CR57: -594.0013898 | CS57: 3.97903932e-13 | CT57: 0.7142891802 | CU57: 0 | CV57: 0 | CW57: 0 | CX57: 0 | CY57: 0 | CZ57: 17.76294516 | DA57: 0 | DB57: 0 | DC57: -258.3240537 | DD57: -5.043865556 | DE57: -0.2136710123 | DF57: -3.298526893 | DG57: -9.388090963 | DH57: 0 | DI57: -30.14417066 | DJ57: -98.99338988 | DK57: 0 | DL57: -0.1485258891 | DM57: 39.13911708 | DN57: -209.1380715 | DO57: -35.83820528 | DP57: -1.087169864 | DQ57: 0 | DR57: 0 | DS57: 0 | DU57: 1960.907075 | DV57: 0 | DW57: 0 | DX57: 0 | DY57: 140 | DZ57: 0 | EA57: 0 | EB57: 0 | ED57: 0 | EE57: -83.4197843 | EG57: -83.4197843 | EI57: 0 | EJ57: 0 | EK57: 0 | EL57: 0
A58: 197 | B58: Regular | C58: Azul | D58: A4 | E58: Comercial | F58: Não se aplica | G58: Não se aplica | H58: Não se aplica | I58: Fora ponta | J58: CATIVO | K58: 2019-04-01 | L58: 2657 | M58: 2657 | N58: 967.567 | O58: 967.567 | P58: 967.567 | Q58: 967.567 | R58: 12.26 | S58: 32.74 | T58: 236.11 | U58: 32574.82 | V58: 260130.388 | W58: 292705.208 | X58: 303325.2653 | Y58: 0 | Z58: 12998.53748 | AA58: 0 | AB58: 0 | AC58: 236.6669343 | AD58: 4269.83282 | AE58: 19440.78395 | AF58: 181178.5316 | AG58: 11279.1713 | AH58: 0 | AI58: 42.49243006 | AJ58: 0 | AK58: 2693.860422 | AL58: 9005.243286 | AM58: 0 | AN58: 345.7687111 | AO58: 2700.606394 | AP58: 5924.744114 | AQ58: 0 | AR58: 0 | AS58: 1.787242775e-09 | AT58: 0 | AU58: 0 | AV58: 931.3467908 | AW58: 96.65176328 | AX58: 0 | AY58: -16549.65941 | AZ58: 0 | BA58: -13734.81362 | BB58: 45265.96966 | BC58: 800.2642946 | BD58: 2313.459588 | BE58: 149.8606099 | BF58: 3537.572833 | BG58: 6584.445041 | BH58: 0 | BI58: 0 | BJ58: 0 | BK58: 0 | BL58: 0 | BU58: 29999.132 | BV58: 193763.8696 | CI58: 303326.1017 | CJ58: 10620.86375 | CM58: 1152.989222 | CN58: 28846.14278 | CO58: 3102.06173 | CP58: 7517.99559 | CQ58: 30 | CR58: -6191.749974 | CS58: 3.637978807e-12 | CT58: 7.081590865 | CU58: 0 | CV58: 0 | CW58: 0 | CX58: 0 | CY58: 0 | CZ58: 176.1050198 | DA58: 0 | DB58: 0 | DC58: -2688.746017 | DD58: -52.49868614 | DE58: -2.223978274 | DF58: -34.33246311 | DG58: -97.71522169 | DH58: 0 | DI58: -313.7532786 | DJ58: -1030.365074 | DK58: 0 | DL58: -1.545920277 | DM58: 407.3764855 | DN58: -2176.797509 | DO58: -373.0191993 | DP58: -11.31572379 | DQ58: 0 | DR58: 0 | DS58: 0 | DU58: 19440.78395 | DV58: 0 | DW58: 0 | DX58: 0 | DY58: 140 | DZ58: 0 | EA58: 0 | EB58: 0 | ED58: 0 | EE58: -83.4197843 | EG58: -83.4197843 | EI58: 0 | EJ58: 0 | EK58: 0 | EL58: 0
A59: 198 | B59: Refaturamento - Regular | C59: Azul | D59: A4 | E59: Comercial | F59: Não se aplica | G59: Não se aplica | H59: Não se aplica | I59: Fora ponta | J59: CATIVO | K59: 2019-04-01 | L59: -200 | M59: -200 | N59: -51.12 | O59: -51.12 | P59: -51.12 | Q59: -51.12 | R59: 12.26 | S59: 32.74 | T59: 236.11 | U59: -2452 | V59: -13743.612 | W59: -16195.612 | X59: -16778.7672 | Y59: 0 | Z59: -686.7588872 | AA59: 0 | AB59: 0 | AC59: -17.81459799 | AD59: -321.4025457 | AE59: -1463.363489 | AF59: -9572.305105 | AG59: -595.9186667 | AH59: 0 | AI59: -2.245025951 | AJ59: 0 | AK59: -142.3262108 | AL59: -475.7789763 | AM59: 0 | AN59: -18.26818868 | AO59: -203.2823782 | AP59: -445.9724587 | AQ59: 0 | AR59: 0 | AS59: -9.442638148e-11 | AT59: 0 | AU59: 0 | AV59: -49.20635774 | AW59: -5.10645582 | AX59: 0 | AY59: 874.3772668 | AZ59: 0 | BA59: 725.6589699 | BB59: -2391.561896 | BC59: -60.23818552 | BD59: -122.2282841 | BE59: -7.917668107 | BF59: -186.9025331 | BG59: -347.8796099 | BH59: 0 | BI59: 0 | BJ59: 0 | BK59: 0 | BL59: 0 | BU59: -1584.960657 | BV59: -10237.2332 | CI59: -16778.7672 | CJ59: -583.1852 | CM59: -60.91651436 | CN59: -1524.044143 | CO59: -185.9528 | CP59: -397.2024 | CQ59: 30 | CR59: 323.0215534 | CS59: -2.842170943e-13 | CT59: -0.533051627 | CU59: 0 | CV59: 0 | CW59: 0 | CX59: 0 | CY59: 0 | CZ59: -13.25592923 | DA59: 0 | DB59: 0 | DC59: 142.0559986 | DD59: 2.773691988 | DE59: 0.1175006685 | DF59: 1.813905925 | DG59: 5.162642104 | DH59: 0 | DI59: 16.5766997 | DJ59: 54.43784521 | DK59: 0 | DL59: 0.08167645708 | DM59: -21.52314614 | DN59: 115.0079412 | DO59: 19.70792872 | DP59: 0.5978498649 | DQ59: 0 | DR59: 0 | DS59: 0 | DU59: -1463.363489 | DV59: 0 | DW59: 0 | DX59: 0 | DY59: 140 | DZ59: 0 | EA59: 0 | EB59: 0 | ED59: 0 | EE59: -83.4197843 | EG59: -83.4197843 | EI59: 0 | EJ59: 0 | EK59: 0 | EL59: 0
A60: 199 | B60: Sistema de Compensação | C60: Azul | D60: A4 | E60: Comercial | F60: Não se aplica | G60: Não se aplica | H60: Não se aplica | I60: Fora ponta | J60: CATIVO | K60: 2019-04-01 | L60: 254 | M60: 254 | N60: 99.12 | O60: 99.12 | P60: 99.12 | Q60: 99.12 | R60: 12.26 | S60: 32.74 | T60: 236.11 | U60: 3114.04 | V60: 26648.412 | W60: 29762.452 | X60: 30843.6672 | Y60: 0 | Z60: 1331.602913 | AA60: 0 | AB60: 0 | AC60: 22.62453944 | AD60: 408.181233 | AE60: 1858.471631 | AF60: 18560.38501 | AG60: 1155.466711 | AH60: 0 | AI60: 4.35303154 | AJ60: 0 | AK60: 275.9658453 | AL60: 922.5197991 | AM60: 0 | AN60: 35.42141748 | AO60: 258.1686203 | AP60: 566.3850226 | AQ60: 0 | AR60: 0 | AS60: 1.830896505e-10 | AT60: 0 | AU60: 0 | AV60: 95.40951056 | AW60: 9.901250018 | AX60: 0 | AY60: -1695.388785 | AZ60: 0 | BA60: -1407.028895 | BB60: 4637.15992 | BC60: 76.50249561 | BD60: 236.9966259 | BE60: 15.35209825 | BF60: 362.3978693 | BG60: 674.5271309 | BH60: 0 | BI60: 0 | BJ60: 0 | BK60: 0 | BL60: 0 | BU60: 3073.186626 | BV60: 19849.65874 | CI60: 30843.6672 | CJ60: 1081.1852 | CM60: 118.1151194 | CN60: 2955.071507 | CO60: 311.0528 | CP60: 770.1624 | CQ60: 30 | CR60: -635.5525514 | CS60: 3.97903932e-13 | CT60: 0.6769755663 | CU60: 0 | CV60: 0 | CW60: 0 | CX60: 0 | CY60: 0 | CZ60: 16.83503012 | DA60: 0 | DB60: 0 | DC60: -275.4419127 | DD60: -5.37809761 | DE60: -0.2278299348 | DF60: -3.517103977 | DG60: -10.01019338 | DH60: 0 | DI60: -32.14167595 | DJ60: -105.5531928 | DK60: 0 | DL60: -0.1583679661 | DM60: 41.73267303 | DN60: -222.9966184 | DO60: -38.21302611 | DP60: -1.15921124 | DQ60: 0 | DR60: 0 | DS60: 0 | DU60: 1858.471631 | DV60: 0 | DW60: 0 | DX60: 0 | DY60: 140 | DZ60: 0 | EA60: 0 | EB60: 0 | ED60: 0 | EE60: -83.4197843 | EG60: -83.4197843 | EI60: 0 | EJ60: 0 | EK60: 0 | EL60: 0
A61: 278 | B61: Regular | C61: Azul | D61: A4 | E61: Comercial | F61: Não se aplica | G61: Não se aplica | H61: Não se aplica | I61: Fora ponta | J61: CATIVO | K61: 2019-05-01 | L61: 2472 | M61: 2472 | N61: 889.851 | O61: 889.851 | P61: 889.851 | Q61: 889.851 | R61: 12.26 | S61: 32.74 | T61: 236.11 | U61: 30306.72 | V61: 239236.4414 | W61: 269543.1614 | X61: 279320.7173 | Y61: 0 | Z61: 11954.48127 | AA61: 0 | AB61: 0 | AC61: 220.1884311 | AD61: 3972.535465 | AE61: 18087.17273 | AF61: 166626.0812 | AG61: 10373.21638 | AH61: 0 | AI61: 39.07939335 | AJ61: 0 | AK61: 2477.486717 | AL61: 8281.932665 | AM61: 0 | AN61: 317.9962043 | AO61: 2512.570194 | AP61: 5512.21959 | AQ61: 0 | AR61: 0 | AS61: 1.643689554e-09 | AT61: 0 | AU61: 0 | AV61: 856.5400361 | AW61: 88.88859191 | AX61: 0 | AY61: -15220.37334 | AZ61: 0 | BA61: -12631.61894 | BB61: 41630.15932 | BC61: 744.543973 | BD61: 2127.640078 | BE61: 137.8236479 | BF61: 3253.431259 | BG61: 6055.575484 | BH61: 0 | BI61: 0 | BJ61: 0 | BK61: 0 | BL61: 0 | BU61: 27589.57014 | BV61: 178200.5516 | CI61: 279320.4385 | CJ61: 9777.24715 | CM61: 1060.379914 | CN61: 26529.19023 | CO61: 2863.41369 | CP61: 6914.14227 | CQ61: 31 | CR61: -5692.463164 | CS61: 3.637978807e-12 | CT61: 6.58851811 | CU61: 0 | CV61: 0 | CW61: 0 | CX61: 0 | CY61: 0 | CZ61: 163.8432852 | DA61: 0 | DB61: 0 | DC61: -2472.783106 | DD61: -48.28193641 | DE61: -2.045345998 | DF61: -31.57484353 | DG61: -89.86663222 | DH61: 0 | DI61: -288.5522849 | DJ61: -947.6050665 | DK61: 0 | DL61: -1.421750333 | DM61: 374.6555774 | DN61: -2001.954841 | DO61: -343.0579045 | DP61: -10.40683294 | DQ61: 0 | DR61: 0 | DS61: 0 | DU61: 18087.17273 | DV61: 0 | DW61: 0 | DX61: 0 | DY61: 140 | DZ61: 0 | EA61: 0 | EB61: 0 | ED61: 0 | EE61: -83.4197843 | EG61: -83.4197843 | EI61: 0 | EJ61: 0 | EK61: 0 | EL61: 0
A62: 279 | B62: Sistema de Compensação | C62: Azul | D62: A4 | E62: Comercial | F62: Não se aplica | G62: Não se aplica | H62: Não se aplica | I62: Fora ponta | J62: CATIVO | K62: 2019-05-01 | L62: 266 | M62: 266 | N62: 95.2 | O62: 95.2 | P62: 95.2 | Q62: 95.2 | R62: 12.26 | S62: 32.74 | T62: 236.11 | U62: 3261.16 | V62: 25594.52 | W62: 28855.68 | X62: 29902.292 | Y62: 0 | Z62: 1278.940651 | AA62: 0 | AB62: 0 | AC62: 23.69341532 | AD62: 427.4653858 | AE62: 1946.273441 | AF62: 17826.35849 | AG62: 1109.770287 | AH62: 0 | AI62: 4.18087775 | AJ62: 0 | AK62: 265.0519418 | AL62: 886.0359653 | AM62: 0 | AN62: 34.02057046 | AO62: 270.365563 | AP62: 593.1433701 | AQ62: 0 | AR62: 0 | AS62: 1.758488168e-10 | AT62: 0 | AU62: 0 | AV62: 91.63625308 | AW62: 9.509675159 | AX62: 0 | AY62: -1628.339511 | AZ62: 0 | BA62: -1351.383684 | BB62: 4453.769415 | BC62: 80.11678674 | BD62: 227.623878 | BE62: 14.74495312 | BF62: 348.0657502 | BG62: 647.8509167 | BH62: 0 | BI62: 0 | BJ62: 0 | BK62: 0 | BL62: 0 | BU62: 2951.648172 | BV62: 19064.64399 | CI62: 29902.292 | CJ62: 1046.582 | CM62: 113.4439 | CN62: 2838.204272 | CO62: 306.908 | CP62: 739.704 | CQ62: 31 | CR62: -608.8978007 | CS62: 3.410605132e-13 | CT62: 0.708958664 | CU62: 0 | CV62: 0 | CW62: 0 | CX62: 0 | CY62: 0 | CZ62: 17.63038587 | DA62: 0 | DB62: 0 | DC62: -264.5487297 | DD62: -5.165404485 | DE62: -0.2188197114 | DF62: -3.378009469 | DG62: -9.614310022 | DH62: 0 | DI62: -30.87053622 | DJ62: -101.3787728 | DK62: 0 | DL62: -0.1521048262 | DM62: 40.08222833 | DN62: -214.1775431 | DO62: -36.70177649 | DP62: -1.113366728 | DQ62: 0 | DR62: 0 | DS62: 0 | DU62: 1946.273441 | DV62: 0 | DW62: 0 | DX62: 0 | DY62: 140 | DZ62: 0 | EA62: 0 | EB62: 0 | ED62: 0 | EE62: -83.4197843 | EG62: -83.4197843 | EI62: 0 | EJ62: 0 | EK62: 0 | EL62: 0
A63: 354 | B63: Regular | C63: Azul | D63: A4 | E63: Comercial | F63: Não se aplica | G63: Não se aplica | H63: Não se aplica | I63: Fora ponta | J63: CATIVO | K63: 2019-06-01 | L63: 2441 | M63: 2441 | N63: 862.346 | O63: 862.346 | P63: 862.346 | Q63: 862.346 | R63: 12.26 | S63: 32.74 | T63: 236.11 | U63: 29926.66 | V63: 231841.7221 | W63: 261768.3821 | X63: 271260.5183 | Y63: 0 | Z63: 11584.97221 | AA63: 0 | AB63: 0 | AC63: 217.4271684 | AD63: 3922.71807 | AE63: 17860.35139 | AF63: 161475.7241 | AG63: 10052.5837 | AH63: 0 | AI63: 37.87146223 | AJ63: 0 | AK63: 2400.908423 | AL63: 8025.940867 | AM63: 0 | AN63: 308.1670468 | AO63: 2481.061426 | AP63: 5443.093859 | AQ63: 0 | AR63: 0 | AS63: 1.592883653e-09 | AT63: 0 | AU63: 0 | AV63: 830.064667 | AW63: 86.14107494 | AX63: 0 | AY63: -14749.91664 | AZ63: 0 | BA63: -12241.17977 | BB63: 40343.38487 | BC63: 735.2070543 | BD63: 2061.875427 | BE63: 133.5635646 | BF63: 3152.868775 | BG63: 5868.399649 | BH63: 0 | BI63: 0 | BJ63: 0 | BK63: 0 | BL63: 0 | BU63: 26736.78566 | BV63: 172692.4315 | CI63: 271261.6335 | CJ63: 9493.2214 | CM63: 1027.603922 | CN63: 25709.18173 | CO63: 2791.70774 | CP63: 6700.42842 | CQ63: 30 | CR63: -5513.380313 | CS63: 3.637978807e-12 | CT63: 6.505895108 | CU63: 0 | CV63: 0 | CW63: 0 | CX63: 0 | CY63: 0 | CZ63: 161.7886162 | DA63: 0 | DB63: 0 | DC63: -2396.350199 | DD63: -46.78955773 | DE63: -1.98212503 | DF63: -30.59887556 | DG63: -87.08888435 | DH63: 0 | DI63: -279.6332293 | DJ63: -918.3149074 | DK63: 0 | DL63: -1.3778045 | DM63: 363.0750974 | DN63: -1940.07508 | DO63: -332.4540982 | DP63: -10.08516118 | DQ63: 0 | DR63: 0 | DS63: 0 | DU63: 17860.35139 | DV63: 0 | DW63: 0 | DX63: 0 | DY63: 140 | DZ63: 0 | EA63: 0 | EB63: 0 | ED63: 0 | EE63: -83.4197843 | EG63: -83.4197843 | EI63: 0 | EJ63: 0 | EK63: 0 | EL63: 0
A64: 355 | B64: Sistema de Compensação | C64: Azul | D64: A4 | E64: Comercial | F64: Não se aplica | G64: Não se aplica | H64: Não se aplica | I64: Fora ponta | J64: CATIVO | K64: 2019-06-01 | L64: 240 | M64: 240 | N64: 92.96 | O64: 92.96 | P64: 92.96 | Q64: 92.96 | R64: 12.26 | S64: 32.74 | T64: 236.11 | U64: 2942.4 | V64: 24992.296 | W64: 27934.696 | X64: 28949.3776 | Y64: 0 | Z64: 1248.847929 | AA64: 0 | AB64: 0 | AC64: 21.37751758 | AD64: 385.6830549 | AE64: 1756.036187 | AF64: 17406.91476 | AG64: 1083.658045 | AH64: 0 | AI64: 4.082504156 | AJ64: 0 | AK64: 258.8154256 | AL64: 865.1880602 | AM64: 0 | AN64: 33.22008645 | AO64: 243.9388538 | AP64: 535.1669505 | AQ64: 0 | AR64: 0 | AS64: 1.717111976e-10 | AT64: 0 | AU64: 0 | AV64: 89.48010595 | AW64: 9.285918096 | AX64: 0 | AY64: -1590.02564 | AZ64: 0 | BA64: -1319.586421 | BB64: 4348.97484 | BC64: 72.28582262 | BD64: 222.268022 | BE64: 14.39801305 | BF64: 339.8759678 | BG64: 632.6073657 | BH64: 0 | BI64: 0 | BJ64: 0 | BK64: 0 | BL64: 0 | BU64: 2882.197627 | BV64: 18616.06413 | CI64: 28949.3776 | CJ64: 1014.6516 | CM64: 110.7746317 | CN64: 2771.422995 | CO64: 292.3824 | CP64: 722.2992 | CQ64: 30 | CR64: -595.9318471 | CS64: 3.410605132e-13 | CT64: 0.6396619525 | CU64: 0 | CV64: 0 | CW64: 0 | CX64: 0 | CY64: 0 | CZ64: 15.90711507 | DA64: 0 | DB64: 0 | DC64: -258.3240537 | DD64: -5.043865556 | DE64: -0.2136710123 | DF64: -3.298526893 | DG64: -9.388090963 | DH64: 0 | DI64: -30.14417066 | DJ64: -98.99338988 | DK64: 0 | DL64: -0.1485258891 | DM64: 39.13911708 | DN64: -209.1380715 | DO64: -35.83820528 | DP64: -1.087169864 | DQ64: 0 | DR64: 0 | DS64: 0 | DU64: 1756.036187 | DV64: 0 | DW64: 0 | DX64: 0 | DY64: 140 | DZ64: 0 | EA64: 0 | EB64: 0 | ED64: 0 | EE64: -83.4197843 | EG64: -83.4197843 | EI64: 0 | EJ64: 0 | EK64: 0 | EL64: 0
A65: 437 | B65: Regular | C65: Azul | D65: A4 | E65: Comercial | F65: Não se aplica | G65: Não se aplica | H65: Não se aplica | I65: Fora ponta | J65: CATIVO | K65: 2019-07-01 | L65: 2393 | M65: 2393 | N65: 793.723 | O65: 793.723 | P65: 793.723 | Q65: 793.723 | R65: 12.26 | S65: 32.74 | T65: 236.11 | U65: 29338.18 | V65: 213392.4286 | W65: 242730.6086 | X65: 251521.4996 | Y65: 0 | Z65: 10663.07363 | AA65: 0 | AB65: 0 | AC65: 213.1516649 | AD65: 3845.581459 | AE65: 17509.14415 | AF65: 148625.9531 | AG65: 9252.628167 | AH65: 0 | AI65: 34.85776082 | AJ65: 0 | AK65: 2209.851076 | AL65: 7387.259711 | AM65: 0 | AN65: 283.6440047 | AO65: 2432.273655 | AP65: 5336.060469 | AQ65: 0 | AR65: 0 | AS65: 1.46612658e-09 | AT65: 0 | AU65: 0 | AV65: 764.0105221 | AW65: 79.28621739 | AX65: 0 | AY65: -13576.16094 | AZ65: 0 | BA65: -11267.0621 | BB65: 37132.97501 | BC65: 720.7498897 | BD65: 1897.797346 | BE65: 122.9349625 | BF65: 2901.972599 | BG65: 5401.409382 | BH65: 0 | BI65: 0 | BJ65: 0 | BK65: 0 | BL65: 0 | BU65: 24609.1496 | BV65: 158950.0674 | CI65: 251520.6632 | CJ65: 8790.02465 | CM65: 945.8301746 | CN65: 23663.31943 | CO65: 2623.66337 | CP65: 6167.22771 | CQ65: 31 | CR65: -5064.558422 | CS65: 3.183231456e-12 | CT65: 6.377962718 | CU65: 0 | CV65: 0 | CW65: 0 | CX65: 0 | CY65: 0 | CZ65: 158.6071932 | DA65: 0 | DB65: 0 | DC65: -2205.655582 | DD65: -43.06618008 | DE65: -1.824393254 | DF65: -28.16390557 | DG65: -80.15860287 | DH65: 0 | DI65: -257.3808258 | DJ65: -845.2380636 | DK65: 0 | DL65: -1.268162804 | DM65: 334.1826315 | DN65: -1785.689517 | DO65: -305.9983628 | DP65: -9.282613229 | DQ65: 0 | DR65: 0 | DS65: 0 | DU65: 17509.14415 | DV65: 0 | DW65: 0 | DX65: 0 | DY65: 140 | DZ65: 0 | EA65: 0 | EB65: 0 | ED65: 0 | EE65: -83.4197843 | EG65: -83.4197843 | EI65: 0 | EJ65: 0 | EK65: 0 | EL65: 0
A66: 438 | B66: Sistema de Compensação | C66: Azul | D66: A4 | E66: Comercial | F66: Não se aplica | G66: Não se aplica | H66: Não se aplica | I66: Fora ponta | J66: CATIVO | K66: 2019-07-01 | L66: 235 | M66: 235 | N66: 93.52 | O66: 93.52 | P66: 93.52 | Q66: 93.52 | R66: 12.26 | S66: 32.74 | T66: 236.11 | U66: 2881.1 | V66: 25142.852 | W66: 28023.952 | X66: 29042.3612 | Y66: 0 | Z66: 1256.37111 | AA66: 0 | AB66: 0 | AC66: 20.93215264 | AD66: 377.6479912 | AE66: 1719.4521 | AF66: 17511.77569 | AG66: 1090.186105 | AH66: 0 | AI66: 4.107097554 | AJ66: 0 | AK66: 260.3745546 | AL66: 870.4000365 | AM66: 0 | AN66: 33.42020745 | AO66: 238.8567944 | AP66: 524.017639 | AQ66: 0 | AR66: 0 | AS66: 1.727456024e-10 | AT66: 0 | AU66: 0 | AV66: 90.01914273 | AW66: 9.341857362 | AX66: 0 | AY66: -1599.604108 | AZ66: 0 | BA66: -1327.535737 | BB66: 4375.173484 | BC66: 70.77986799 | BD66: 223.606986 | BE66: 14.48474807 | BF66: 341.9234134 | BG66: 636.4182535 | BH66: 0 | BI66: 0 | BJ66: 0 | BK66: 0 | BL66: 0 | BU66: 2899.560263 | BV66: 18728.20909 | CI66: 29042.3612 | CJ66: 1018.3792 | CM66: 111.4419488 | CN66: 2788.118314 | CO66: 291.7588 | CP66: 726.6504 | CQ66: 31 | CR66: -599.9662019 | CS66: 3.694822226e-13 | CT66: 0.6263356618 | CU66: 0 | CV66: 0 | CW66: 0 | CX66: 0 | CY66: 0 | CZ66: 15.57571684 | DA66: 0 | DB66: 0 | DC66: -259.8802227 | DD66: -5.074250288 | DE66: -0.2149581871 | DF66: -3.318397537 | DG66: -9.444645727 | DH66: 0 | DI66: -30.32576205 | DJ66: -99.5897356 | DK66: 0 | DL66: -0.1494206234 | DM66: 39.37489489 | DN66: -210.3979394 | DO66: -36.05409808 | DP66: -1.09371908 | DQ66: 0 | DR66: 0 | DS66: 0 | DU66: 1719.4521 | DV66: 0 | DW66: 0 | DX66: 0 | DY66: 140 | DZ66: 0 | EA66: 0 | EB66: 0 | ED66: 0 | EE66: -83.4197843 | EG66: -83.4197843 | EI66: 0 | EJ66: 0 | EK66: 0 | EL66: 0
A67: 520 | B67: Regular | C67: Azul | D67: A4 | E67: Comercial | F67: Não se aplica | G67: Não se aplica | H67: Não se aplica | I67: Fora ponta | J67: CATIVO | K67: 2019-08-01 | L67: 2391 | M67: 2391 | N67: 783.469 | O67: 783.469 | P67: 783.469 | Q67: 783.469 | R67: 12.26 | S67: 32.74 | T67: 236.11 | U67: 29313.66 | V67: 210635.6407 | W67: 239949.3007 | X67: 248637.3219 | Y67: 0 | Z67: 10525.31883 | AA67: 0 | AB67: 0 | AC67: 212.9735189 | AD67: 3842.367434 | AE67: 17494.51051 | AF67: 146705.8746 | AG67: 9133.094716 | AH67: 0 | AI67: 34.40743813 | AJ67: 0 | AK67: 2181.302309 | AL67: 7291.824703 | AM67: 0 | AN67: 279.9796462 | AO67: 2430.240831 | AP67: 5331.600744 | AQ67: 0 | AR67: 0 | AS67: 1.44718589e-09 | AT67: 0 | AU67: 0 | AV67: 754.1403736 | AW67: 78.26192948 | AX67: 0 | AY67: -13400.77236 | AZ67: 0 | BA67: -11121.50445 | BB67: 36653.25914 | BC67: 720.1475079 | BD67: 1873.279959 | BE67: 121.3467824 | BF67: 2864.482408 | BG67: 5331.629305 | BH67: 0 | BI67: 0 | BJ67: 0 | BK67: 0 | BL67: 0 | BU67: 24291.22733 | BV67: 156896.613 | CI67: 248637.6007 | CJ67: 8688.27005 | CM67: 933.6111226 | CN67: 23357.6162 | CO67: 2600.46711 | CP67: 6087.55413 | CQ67: 31 | CR67: -4997.136546 | CS67: 3.183231456e-12 | CT67: 6.372632201 | CU67: 0 | CV67: 0 | CW67: 0 | CX67: 0 | CY67: 0 | CZ67: 158.4746339 | DA67: 0 | DB67: 0 | DC67: -2177.161016 | DD67: -42.50981393 | DE67: -1.800824164 | DF67: -27.80005988 | DG67: -79.12304473 | DH67: 0 | DI67: -254.0557578 | DJ67: -834.3185475 | DK67: 0 | DL67: -1.25177958 | DM67: 329.8653713 | DN67: -1762.620436 | DO67: -302.0452114 | DP67: -9.162692405 | DQ67: 0 | DR67: 0 | DS67: 0 | DU67: 17494.51051 | DV67: 0 | DW67: 0 | DX67: 0 | DY67: 140 | DZ67: 0 | EA67: 0 | EB67: 0 | ED67: 0 | EE67: -83.4197843 | EG67: -83.4197843 | EI67: 0 | EJ67: 0 | EK67: 0 | EL67: 0
A68: 521 | B68: Sistema de Compensação | C68: Azul | D68: A4 | E68: Comercial | F68: Não se aplica | G68: Não se aplica | H68: Não se aplica | I68: Fora ponta | J68: CATIVO | K68: 2019-08-01 | L68: 225 | M68: 225 | N68: 83.72 | O68: 83.72 | P68: 83.72 | Q68: 83.72 | R68: 12.26 | S68: 32.74 | T68: 236.11 | U68: 2758.5 | V68: 22508.122 | W68: 25266.622 | X68: 26183.7232 | Y68: 0 | Z68: 1124.715455 | AA68: 0 | AB68: 0 | AC68: 20.04142274 | AD68: 361.5778639 | AE68: 1646.283925 | AF68: 15676.70938 | AG68: 975.9450465 | AH68: 0 | AI68: 3.67671308 | AJ68: 0 | AK68: 233.0897959 | AL68: 779.1904518 | AM68: 0 | AN68: 29.91808991 | AO68: 228.6926755 | AP68: 501.7190161 | AQ68: 0 | AR68: 0 | AS68: 1.546435183e-10 | AT68: 0 | AU68: 0 | AV68: 80.58599903 | AW68: 8.362920213 | AX68: 0 | AY68: -1431.980923 | AZ68: 0 | BA68: -1188.42271 | BB68: 3916.697221 | BC68: 67.76795871 | BD68: 200.1751162 | BE68: 12.96688525 | BF68: 306.0931156 | BG68: 569.7277179 | BH68: 0 | BI68: 0 | BJ68: 0 | BK68: 0 | BL68: 0 | BU68: 2595.714128 | BV68: 16765.67221 | CI68: 26183.7232 | CJ68: 917.0712 | CM68: 99.76390027 | CN68: 2495.950227 | CO68: 266.5968 | CP68: 650.5044 | CQ68: 31 | CR68: -536.0871213 | CS68: 3.126388037e-13 | CT68: 0.5996830804 | CU68: 0 | CV68: 0 | CW68: 0 | CX68: 0 | CY68: 0 | CZ68: 14.91292038 | DA68: 0 | DB68: 0 | DC68: -232.6472653 | DD68: -4.542517473 | DE68: -0.1924326285 | DF68: -2.970661268 | DG68: -8.454937343 | DH68: 0 | DI68: -27.14791273 | DJ68: -89.15368546 | DK68: 0 | DL68: -0.1337627736 | DM68: 35.24878315 | DN68: -188.3502511 | DO68: -32.27597403 | DP68: -0.979107799 | DQ68: 0 | DR68: 0 | DS68: 0 | DU68: 1646.283925 | DV68: 0 | DW68: 0 | DX68: 0 | DY68: 140 | DZ68: 0 | EA68: 0 | EB68: 0 | ED68: 0 | EE68: -83.4197843 | EG68: -83.4197843 | EI68: 0 | EJ68: 0 | EK68: 0 | EL68: 0
A69: 598 | B69: Regular | C69: Azul | D69: A4 | E69: Comercial | F69: Não se aplica | G69: Não se aplica | H69: Não se aplica | I69: Fora ponta | J69: CATIVO | K69: 2019-09-01 | L69: 2508 | M69: 2508 | N69: 832.273 | O69: 832.273 | P69: 832.273 | Q69: 832.273 | R69: 12.26 | S69: 32.74 | T69: 236.11 | U69: 30748.08 | V69: 223756.5961 | W69: 254504.6761 | X69: 263722.0751 | Y69: 0 | Z69: 11180.96399 | AA69: 0 | AB69: 0 | AC69: 223.3950588 | AD69: 4030.387923 | AE69: 18350.57815 | AF69: 155844.5048 | AG69: 9702.01519 | AH69: 0 | AI69: 36.55075281 | AJ69: 0 | AK69: 2317.180407 | AL69: 7746.048434 | AM69: 0 | AN69: 297.4201916 | AO69: 2549.161023 | AP69: 5592.494633 | AQ69: 0 | AR69: 0 | AS69: 1.537334268e-09 | AT69: 0 | AU69: 0 | AV69: 801.1174292 | AW69: 83.13703648 | AX69: 0 | AY69: -14235.53582 | AZ69: 0 | BA69: -11814.28732 | BB69: 38936.47093 | BC69: 755.3868464 | BD69: 1989.97067 | BE69: 128.9057392 | BF69: 3042.917291 | BG69: 5663.748172 | BH69: 0 | BI69: 0 | BJ69: 0 | BK69: 0 | BL69: 0 | BU69: 25804.38108 | BV69: 166670.0467 | CI69: 263721.2387 | CJ69: 9216.53265 | CM69: 991.7678042 | CN69: 24812.61328 | CO69: 2750.63787 | CP69: 6466.76121 | CQ69: 30 | CR69: -5310.62127 | CS69: 3.183231456e-12 | CT69: 6.684467403 | CU69: 0 | CV69: 0 | CW69: 0 | CX69: 0 | CY69: 0 | CZ69: 166.2293525 | DA69: 0 | DB69: 0 | DC69: -2312.781144 | DD69: -45.15784335 | DE69: -1.913001446 | DF69: -29.5317865 | DG69: -84.05179249 | DH69: 0 | DI69: -269.8814474 | DJ69: -886.2900772 | DK69: 0 | DL69: -1.329755672 | DM69: 350.4134078 | DN69: -1872.417924 | DO69: -320.8602692 | DP69: -9.733456584 | DQ69: 0 | DR69: 0 | DS69: 0 | DU69: 18350.57815 | DV69: 0 | DW69: 0 | DX69: 0 | DY69: 140 | DZ69: 0 | EA69: 0 | EB69: 0 | ED69: 0 | EE69: -83.4197843 | EG69: -83.4197843 | EI69: 0 | EJ69: 0 | EK69: 0 | EL69: 0
A70: 599 | B70: Sistema de Compensação | C70: Azul | D70: A4 | E70: Comercial | F70: Não se aplica | G70: Não se aplica | H70: Não se aplica | I70: Fora ponta | J70: CATIVO | K70: 2019-09-01 | L70: 229 | M70: 229 | N70: 86.52 | O70: 86.52 | P70: 86.52 | Q70: 86.52 | R70: 12.26 | S70: 32.74 | T70: 236.11 | U70: 2807.54 | V70: 23260.902 | W70: 26068.442 | X70: 27014.9112 | Y70: 0 | Z70: 1162.331356 | AA70: 0 | AB70: 0 | AC70: 20.3977147 | AD70: 368.0059148 | AE70: 1675.551195 | AF70: 16201.01404 | AG70: 1008.585349 | AH70: 0 | AI70: 3.799680073 | AJ70: 0 | AK70: 240.8854413 | AL70: 805.2503332 | AM70: 0 | AN70: 30.91869492 | AO70: 232.758323 | AP70: 510.6384653 | AQ70: 0 | AR70: 0 | AS70: 1.598155424e-10 | AT70: 0 | AU70: 0 | AV70: 83.28118294 | AW70: 8.642616541 | AX70: 0 | AY70: -1479.873261 | AZ70: 0 | BA70: -1228.169289 | BB70: 4047.690439 | BC70: 68.97272242 | BD70: 206.8699362 | BE70: 13.40056034 | BF70: 316.3303436 | BG70: 588.7821566 | BH70: 0 | BI70: 0 | BJ70: 0 | BK70: 0 | BL70: 0 | BU70: 2682.527309 | BV70: 17326.39704 | CI70: 27014.9112 | CJ70: 946.4392 | CM70: 103.1004856 | CN70: 2579.426824 | CO70: 274.2088 | CP70: 672.2604 | CQ70: 30 | CR70: -554.259493 | CS70: 3.126388037e-13 | CT70: 0.610344113 | CU70: 0 | CV70: 0 | CW70: 0 | CX70: 0 | CY70: 0 | CZ70: 15.17803896 | DA70: 0 | DB70: 0 | DC70: -240.4281103 | DD70: -4.694441135 | DE70: -0.1988685024 | DF70: -3.070014488 | DG70: -8.737711167 | DH70: 0 | DI70: -28.05586968 | DJ70: -92.13541408 | DK70: 0 | DL70: -0.138236445 | DM70: 36.42767222 | DN70: -194.6495906 | DO70: -33.35543804 | DP70: -1.011853879 | DQ70: 0 | DR70: 0 | DS70: 0 | DU70: 1675.551195 | DV70: 0 | DW70: 0 | DX70: 0 | DY70: 140 | DZ70: 0 | EA70: 0 | EB70: 0 | ED70: 0 | EE70: -83.4197843 | EG70: -83.4197843 | EI70: 0 | EJ70: 0 | EK70: 0 | EL70: 0
A71: 689 | B71: Regular | C71: Azul | D71: A4 | E71: Comercial | F71: Não se aplica | G71: Não se aplica | H71: Não se aplica | I71: Fora ponta | J71: CATIVO | K71: 2019-10-01 | L71: 2547 | M71: 2547 | N71: 827.337 | O71: 827.337 | P71: 827.337 | Q71: 827.337 | R71: 12.26 | S71: 32.74 | T71: 236.11 | U71: 31226.22 | V71: 222429.5524 | W71: 253655.7724 | X71: 262838.439 | Y71: 0 | Z71: 11114.65253 | AA71: 0 | AB71: 0 | AC71: 226.8689054 | AD71: 4093.06142 | AE71: 18635.93403 | AF71: 154920.2306 | AG71: 9644.475 | AH71: 0 | AI71: 36.33397957 | AJ71: 0 | AK71: 2303.437798 | AL71: 7700.108586 | AM71: 0 | AN71: 295.6562679 | AO71: 2588.801086 | AP71: 5679.459262 | AQ71: 0 | AR71: 0 | AS71: 1.528216729e-09 | AT71: 0 | AU71: 0 | AV71: 796.366205 | AW71: 82.64397181 | AX71: 0 | AY71: -14151.10847 | AZ71: 0 | BA71: -11744.21978 | BB71: 38705.5486 | BC71: 767.1332926 | BD71: 1978.168659 | BE71: 128.141232 | BF71: 3024.870521 | BG71: 5630.157919 | BH71: 0 | BI71: 0 | BJ71: 0 | BK71: 0 | BL71: 0 | BU71: 25651.34184 | BV71: 165681.5689 | CI71: 262839.2754 | CJ71: 9183.47295 | CM71: 985.885881 | CN71: 24665.45596 | CO71: 2754.25803 | CP71: 6428.40849 | CQ71: 31 | CR71: -5275.410964 | CS71: 3.183231456e-12 | CT71: 6.78841247 | CU71: 0 | CV71: 0 | CW71: 0 | CX71: 0 | CY71: 0 | CZ71: 168.8142587 | DA71: 0 | DB71: 0 | DC71: -2299.064626 | DD71: -44.89002364 | DE71: -1.90165592 | DF71: -29.35664097 | DG71: -83.55330263 | DH71: 0 | DI71: -268.280849 | DJ71: -881.0337156 | DK71: 0 | DL71: -1.321869229 | DM71: 348.3351948 | DN71: -1861.313088 | DO71: -318.9573283 | DP71: -9.675729922 | DQ71: 0 | DR71: 0 | DS71: 0 | DU71: 18635.93403 | DV71: 0 | DW71: 0 | DX71: 0 | DY71: 140 | DZ71: 0 | EA71: 0 | EB71: 0 | ED71: 0 | EE71: -83.4197843 | EG71: -83.4197843 | EI71: 0 | EJ71: 0 | EK71: 0 | EL71: 0
A72: 690 | B72: Sistema de Compensação | C72: Azul | D72: A4 | E72: Comercial | F72: Não se aplica | G72: Não se aplica | H72: Não se aplica | I72: Fora ponta | J72: CATIVO | K72: 2019-10-01 | L72: 240 | M72: 240 | N72: 81.48 | O72: 81.48 | P72: 81.48 | Q72: 81.48 | R72: 12.26 | S72: 32.74 | T72: 236.11 | U72: 2942.4 | V72: 21905.898 | W72: 24848.298 | X72: 25748.6388 | Y72: 0 | Z72: 1094.622733 | AA72: 0 | AB72: 0 | AC72: 21.37751758 | AD72: 385.6830549 | AE72: 1756.036187 | AF72: 15257.26565 | AG72: 949.8328045 | AH72: 0 | AI72: 3.578339486 | AJ72: 0 | AK72: 226.8532796 | AL72: 758.3425468 | AM72: 0 | AN72: 29.1176059 | AO72: 243.9388538 | AP72: 535.1669505 | AQ72: 0 | AR72: 0 | AS72: 1.505058991e-10 | AT72: 0 | AU72: 0 | AV72: 78.4298519 | AW72: 8.13916315 | AX72: 0 | AY72: -1393.667052 | AZ72: 0 | BA72: -1156.625447 | BB72: 3811.902646 | BC72: 72.28582262 | BD72: 194.8192603 | BE72: 12.61994517 | BF72: 297.9033333 | BG72: 554.4841669 | BH72: 0 | BI72: 0 | BJ72: 0 | BK72: 0 | BL72: 0 | BU72: 2526.263582 | BV72: 16317.09235 | CI72: 25748.6388 | CJ72: 900.3108 | CM72: 97.09463204 | CN72: 2429.16895 | CO72: 267.2412 | CP72: 633.0996 | CQ72: 31 | CR72: -520.2944267 | CS72: 3.410605132e-13 | CT72: 0.6396619525 | CU72: 0 | CV72: 0 | CW72: 0 | CX72: 0 | CY72: 0 | CZ72: 15.90711507 | DA72: 0 | DB72: 0 | DC72: -226.4225893 | DD72: -4.420978544 | DE72: -0.1872839294 | DF72: -2.891178693 | DG72: -8.228718284 | DH72: 0 | DI72: -26.42154718 | DJ72: -86.76830258 | DK72: 0 | DL72: -0.1301838365 | DM72: 34.3056719 | DN72: -183.3107795 | DO72: -31.41240282 | DP72: -0.9529109348 | DQ72: 0 | DR72: 0 | DS72: 0 | DU72: 1756.036187 | DV72: 0 | DW72: 0 | DX72: 0 | DY72: 140 | DZ72: 0 | EA72: 0 | EB72: 0 | ED72: 0 | EE72: -83.4197843 | EG72: -83.4197843 | EI72: 0 | EJ72: 0 | EK72: 0 | EL72: 0
A73: 774 | B73: Regular | C73: Azul | D73: A4 | E73: Comercial | F73: Não se aplica | G73: Não se aplica | H73: Não se aplica | I73: Fora ponta | J73: CATIVO | K73: 2019-11-01 | L73: 2871 | M73: 2871 | N73: 1015.022 | O73: 1015.022 | P73: 1015.022 | Q73: 1015.022 | R73: 12.26 | S73: 32.74 | T73: 236.11 | U73: 35198.46 | V73: 272888.6647 | W73: 308087.1247 | X73: 319259.0138 | Y73: 0 | Z73: 13636.05984 | AA73: 0 | AB73: 0 | AC73: 255.7285541 | AD73: 4613.733544 | AE73: 21006.58289 | AF73: 190064.5593 | AG73: 11832.36614 | AH73: 0 | AI73: 44.576501 | AJ73: 0 | AK73: 2825.98269 | AL73: 9446.911739 | AM73: 0 | AN73: 362.7271793 | AO73: 2918.118539 | AP73: 6401.934645 | AQ73: 0 | AR73: 0 | AS73: 1.874899346e-09 | AT73: 0 | AU73: 0 | AV73: 977.0253453 | AW73: 101.3921166 | AX73: 0 | AY73: -17361.34902 | AZ73: 0 | BA73: -14408.44716 | BB73: 47486.07079 | BC73: 864.7191531 | BD73: 2426.924831 | BE73: 157.2106283 | BF73: 3711.075566 | BG73: 6907.383752 | BH73: 0 | BI73: 0 | BJ73: 0 | BK73: 0 | BL73: 0 | BU73: 31470.46041 | BV73: 203267.1541 | CI73: 319258.4562 | CJ73: 11171.3015 | CM73: 1209.538385 | CN73: 30260.92202 | CO73: 3285.16818 | CP73: 7886.72094 | CQ73: 30 | CR73: -6489.658987 | CS73: 4.092726158e-12 | CT73: 7.651956106 | CU73: 0 | CV73: 0 | CW73: 0 | CX73: 0 | CY73: 0 | CZ73: 190.288864 | DA73: 0 | DB73: 0 | DC73: -2820.617445 | DD73: -55.07352091 | DE73: -2.333054843 | DF73: -36.01632277 | DG73: -102.5077331 | DH73: 0 | DI73: -329.1415275 | DJ73: -1080.900049 | DK73: 0 | DL73: -1.621741018 | DM73: 427.3565501 | DN73: -2283.560065 | DO73: -391.3141867 | DP73: -11.87071138 | DQ73: 0 | DR73: 0 | DS73: 0 | DU73: 21006.58289 | DV73: 0 | DW73: 0 | DX73: 0 | DY73: 140 | DZ73: 0 | EA73: 0 | EB73: 0 | ED73: 0 | EE73: -83.4197843 | EG73: -83.4197843 | EI73: 0 | EJ73: 0 | EK73: 0 | EL73: 0
A74: 775 | B74: Sistema de Compensação | C74: Azul | D74: A4 | E74: Comercial | F74: Não se aplica | G74: Não se aplica | H74: Não se aplica | I74: Fora ponta | J74: CATIVO | K74: 2019-11-01 | L74: 243 | M74: 243 | N74: 87.64 | O74: 87.64 | P74: 87.64 | Q74: 87.64 | R74: 12.26 | S74: 32.74 | T74: 236.11 | U74: 2979.18 | V74: 23562.014 | W74: 26541.194 | X74: 27503.9984 | Y74: 0 | Z74: 1177.377717 | AA74: 0 | AB74: 0 | AC74: 21.64473655 | AD74: 390.504093 | AE74: 1777.986639 | AF74: 16410.7359 | AG74: 1021.64147 | AH74: 0 | AI74: 3.84886687 | AJ74: 0 | AK74: 244.0036994 | AL74: 815.6742857 | AM74: 0 | AN74: 31.31893692 | AO74: 246.9880895 | AP74: 541.8565374 | AQ74: 0 | AR74: 0 | AS74: 1.61884352e-10 | AT74: 0 | AU74: 0 | AV74: 84.35925651 | AW74: 8.754495072 | AX74: 0 | AY74: -1499.030197 | AZ74: 0 | BA74: -1244.067921 | BB74: 4100.087726 | BC74: 73.18939541 | BD74: 209.5478641 | BE74: 13.57403038 | BF74: 320.4252347 | BG74: 596.4039321 | BH74: 0 | BI74: 0 | BJ74: 0 | BK74: 0 | BL74: 0 | BU74: 2717.252582 | BV74: 17550.68696 | CI74: 27503.9984 | CJ74: 962.7744 | CM74: 104.4351197 | CN74: 2612.817462 | CO74: 281.8416 | CP74: 680.9628 | CQ74: 30 | CR74: -560.6735249 | CS74: 3.694822226e-13 | CT74: 0.6476577269 | CU74: 0 | CV74: 0 | CW74: 0 | CX74: 0 | CY74: 0 | CZ74: 16.10595401 | DA74: 0 | DB74: 0 | DC74: -243.5404483 | DD74: -4.755210599 | DE74: -0.2014428519 | DF74: -3.109755776 | DG74: -8.850820697 | DH74: 0 | DI74: -28.41905246 | DJ74: -93.32810552 | DK74: 0 | DL74: -0.1400259135 | DM74: 36.89922785 | DN74: -197.1693264 | DO74: -33.78722365 | DP74: -1.024952311 | DQ74: 0 | DR74: 0 | DS74: 0 | DU74: 1777.986639 | DV74: 0 | DW74: 0 | DX74: 0 | DY74: 140 | DZ74: 0 | EA74: 0 | EB74: 0 | ED74: 0 | EE74: -83.4197843 | EG74: -83.4197843 | EI74: 0 | EJ74: 0 | EK74: 0 | EL74: 0
A75: 861 | B75: Regular | C75: Azul | D75: A4 | E75: Comercial | F75: Não se aplica | G75: Não se aplica | H75: Não se aplica | I75: Fora ponta | J75: CATIVO | K75: 2019-12-01 | L75: 2919 | M75: 2919 | N75: 994.725 | O75: 994.725 | P75: 994.725 | Q75: 994.725 | R75: 12.26 | S75: 32.74 | T75: 236.11 | U75: 35786.94 | V75: 267431.8163 | W75: 303218.7562 | X75: 314206.2473 | Y75: 0 | Z75: 13363.38486 | AA75: 0 | AB75: 0 | AC75: 260.0040576 | AD75: 4690.870155 | AE75: 21357.79012 | AF75: 186263.9123 | AG75: 11595.75892 | AH75: 0 | AI75: 43.68512206 | AJ75: 0 | AK75: 2769.472614 | AL75: 9258.005521 | AM75: 0 | AN75: 355.473865 | AO75: 2966.90631 | AP75: 6508.968035 | AQ75: 0 | AR75: 0 | AS75: 1.837407714e-09 | AT75: 0 | AU75: 0 | AV75: 957.4881496 | AW75: 99.36461788 | AX75: 0 | AY75: -17014.18088 | AZ75: 0 | BA75: -14120.32705 | BB75: 46536.51031 | BC75: 879.1763177 | BD75: 2378.394559 | BE75: 154.0669485 | BF75: 3636.866632 | BG75: 6769.259486 | BH75: 0 | BI75: 0 | BJ75: 0 | BK75: 0 | BL75: 0 | BU75: 30841.15785 | BV75: 199202.4999 | CI75: 314207.6413 | CJ75: 10988.85505 | CM75: 1185.351716 | CN75: 29655.80614 | CO75: 3258.47775 | CP75: 7729.01325 | CR75: -6352.6203 | CS75: 4.092726158e-12 | CT75: 7.779888497 | CU75: 0 | CV75: 0 | CW75: 0 | CX75: 0 | CY75: 0 | CZ75: 193.470287 | DA75: 0 | DB75: 0 | DC75: -2764.214655 | DD75: -53.97223714 | DE75: -2.286401653 | DF75: -35.29611837 | DG75: -100.4579258 | DH75: 0 | DI75: -322.5598124 | DJ75: -1059.285712 | DK75: 0 | DL75: -1.589311693 | DM75: 418.8108674 | DN75: -2237.896602 | DO75: -383.4892292 | DP75: -11.63333738 | DQ75: 0 | DR75: 0 | DS75: 0 | DU75: 21357.79012 | DV75: 0 | DW75: 0 | DX75: 0 | DY75: 140 | DZ75: 0 | EA75: 0 | EB75: 0 | ED75: 0 | EE75: -83.4197843 | EG75: -83.4197843 | EI75: 0 | EJ75: 0 | EK75: 0 | EL75: 0
A76: 862 | B76: Sistema de Compensação | C76: Azul | D76: A4 | E76: Comercial | F76: Não se aplica | G76: Não se aplica | H76: Não se aplica | I76: Fora ponta | J76: CATIVO | K76: 2019-12-01 | L76: 254 | M76: 254 | N76: 90.72 | O76: 90.72 | P76: 90.72 | Q76: 90.72 | R76: 12.26 | S76: 32.74 | T76: 236.11 | U76: 3114.04 | V76: 24390.072 | W76: 27504.112 | X76: 28501.6632 | Y76: 0 | Z76: 1218.755208 | AA76: 0 | AB76: 0 | AC76: 22.62453944 | AD76: 408.181233 | AE76: 1858.471631 | AF76: 16987.47103 | AG76: 1057.545803 | AH76: 0 | AI76: 3.984130562 | AJ76: 0 | AK76: 252.5789093 | AL76: 844.3401552 | AM76: 0 | AN76: 32.41960244 | AO76: 258.1686203 | AP76: 566.3850226 | AQ76: 0 | AR76: 0 | AS76: 1.675735784e-10 | AT76: 0 | AU76: 0 | AV76: 87.32395881 | AW76: 9.062161033 | AX76: 0 | AY76: -1551.711769 | AZ76: 0 | BA76: -1287.789158 | BB76: 4244.180266 | BC76: 76.50249561 | BD76: 216.9121661 | BE76: 14.05107298 | BF76: 331.6861855 | BG76: 617.3638147 | BH76: 0 | BI76: 0 | BJ76: 0 | BK76: 0 | BL76: 0 | BU76: 2812.747081 | BV76: 18167.48427 | CI76: 28501.6632 | CJ76: 997.5212 | CM76: 108.1053635 | CN76: 2704.641718 | CO76: 292.6568 | CP76: 704.8944 | CR76: -580.2080974 | CS76: 3.97903932e-13 | CT76: 0.6769755663 | CU76: 0 | CV76: 0 | CW76: 0 | CX76: 0 | CY76: 0 | CZ76: 16.83503012 | DA76: 0 | DB76: 0 | DC76: -252.0993778 | DD76: -4.922326627 | DE76: -0.2085223132 | DF76: -3.219044318 | DG76: -9.161871903 | DH76: 0 | DI76: -29.4178051 | DJ76: -96.60800699 | DK76: 0 | DL76: -0.144946952 | DM76: 38.19600582 | DN76: -204.0985999 | DO76: -34.97463407 | DP76: -1.060973 | DQ76: 0 | DR76: 0 | DS76: 0 | DU76: 1858.471631 | DV76: 0 | DW76: 0 | DX76: 0 | DY76: 140 | DZ76: 0 | EA76: 0 | EB76: 0 | ED76: 0 | EE76: -83.4197843 | EG76: -83.4197843 | EI76: 0 | EJ76: 0 | EK76: 0 | EL76: 0
A77: 947 | B77: PROJETADO | C77: Azul | D77: A4 | E77: Comercial | F77: Não se aplica | G77: Não se aplica | H77: Não se aplica | I77: Fora ponta | J77: CATIVO | K77: 2020-01-01 | L77: 2919 | M77: 2919 | N77: 994.725 | O77: 994.725 | P77: 994.725 | Q77: 994.725 | R77: 12.26 | S77: 32.74 | T77: 236.11 | U77: 35786.94 | V77: 267431.8163 | W77: 303218.7562 | X77: 314206.2473 | Y77: 0 | Z77: 13363.38486 | AA77: 0 | AB77: 0 | AC77: 260.0040576 | AD77: 4690.870155 | AE77: 21357.79012 | AF77: 186263.9123 | AG77: 11595.75892 | AH77: 0 | AI77: 43.68512206 | AJ77: 0 | AK77: 2769.472614 | AL77: 9258.005521 | AM77: 0 | AN77: 355.473865 | AO77: 2966.90631 | AP77: 6508.968035 | AQ77: 0 | AR77: 0 | AS77: 1.837407714e-09 | AT77: 0 | AU77: 0 | AV77: 957.4881496 | AW77: 99.36461788 | AX77: 0 | AY77: -17014.18088 | AZ77: 0 | BA77: -14120.32705 | BB77: 46536.51031 | BC77: 879.1763177 | BD77: 2378.394559 | BE77: 154.0669485 | BF77: 3636.866632 | BG77: 6769.259486 | BH77: 0 | BI77: 0 | BJ77: 0 | BK77: 0 | BL77: 0 | BU77: 30841.15785 | BV77: 199202.4999 | CI77: 314207.6413 | CJ77: 10988.85505 | CM77: 1185.351716 | CN77: 29655.80614 | CO77: 3258.47775 | CP77: 7729.01325 | CQ77: 31 | CR77: -6352.6203 | CS77: 4.092726158e-12 | CT77: 7.779888497 | CU77: 0 | CV77: 0 | CW77: 0 | CX77: 0 | CY77: 0 | CZ77: 193.470287 | DA77: 0 | DB77: 0 | DC77: -2764.214655 | DD77: -53.97223714 | DE77: -2.286401653 | DF77: -35.29611837 | DG77: -100.4579258 | DH77: 0 | DI77: -322.5598124 | DJ77: -1059.285712 | DK77: 0 | DL77: -1.589311693 | DM77: 418.8108674 | DN77: -2237.896602 | DO77: -383.4892292 | DP77: -11.63333738 | DQ77: 0 | DR77: 0 | DS77: 0 | DU77: 21357.79012 | DV77: 0 | DW77: 0 | DX77: 0 | DY77: 140 | DZ77: 0 | EA77: 0 | EB77: 0 | ED77: 0 | EE77: -83.4197843 | EG77: -83.4197843 | EI77: 0 | EJ77: 0 | EK77: 0 | EL77: 0
A78: 948 | B78: PROJETADO | C78: Azul | D78: A4 | E78: Comercial | F78: Não se aplica | G78: Não se aplica | H78: Não se aplica | I78: Fora ponta | J78: CATIVO | K78: 2020-01-01 | L78: 254 | M78: 254 | N78: 90.72 | O78: 90.72 | P78: 90.72 | Q78: 90.72 | R78: 12.26 | S78: 32.74 | T78: 236.11 | U78: 3114.04 | V78: 24390.072 | W78: 27504.112 | X78: 28501.6632 | Y78: 0 | Z78: 1218.755208 | AA78: 0 | AB78: 0 | AC78: 22.62453944 | AD78: 408.181233 | AE78: 1858.471631 | AF78: 16987.47103 | AG78: 1057.545803 | AH78: 0 | AI78: 3.984130562 | AJ78: 0 | AK78: 252.5789093 | AL78: 844.3401552 | AM78: 0 | AN78: 32.41960244 | AO78: 258.1686203 | AP78: 566.3850226 | AQ78: 0 | AR78: 0 | AS78: 1.675735784e-10 | AT78: 0 | AU78: 0 | AV78: 87.32395881 | AW78: 9.062161033 | AX78: 0 | AY78: -1551.711769 | AZ78: 0 | BA78: -1287.789158 | BB78: 4244.180266 | BC78: 76.50249561 | BD78: 216.9121661 | BE78: 14.05107298 | BF78: 331.6861855 | BG78: 617.3638147 | BH78: 0 | BI78: 0 | BJ78: 0 | BK78: 0 | BL78: 0 | BU78: 2812.747081 | BV78: 18167.48427 | CI78: 28501.6632 | CJ78: 997.5212 | CM78: 108.1053635 | CN78: 2704.641718 | CO78: 292.6568 | CP78: 704.8944 | CQ78: 31 | CR78: -580.2080974 | CS78: 3.97903932e-13 | CT78: 0.6769755663 | CU78: 0 | CV78: 0 | CW78: 0 | CX78: 0 | CY78: 0 | CZ78: 16.83503012 | DA78: 0 | DB78: 0 | DC78: -252.0993778 | DD78: -4.922326627 | DE78: -0.2085223132 | DF78: -3.219044318 | DG78: -9.161871903 | DH78: 0 | DI78: -29.4178051 | DJ78: -96.60800699 | DK78: 0 | DL78: -0.144946952 | DM78: 38.19600582 | DN78: -204.0985999 | DO78: -34.97463407 | DP78: -1.060973 | DQ78: 0 | DR78: 0 | DS78: 0 | DU78: 1858.471631 | DV78: 0 | DW78: 0 | DX78: 0 | DY78: 140 | DZ78: 0 | EA78: 0 | EB78: 0 | ED78: 0 | EE78: -83.4197843 | EG78: -83.4197843 | EI78: 0 | EJ78: 0 | EK78: 0 | EL78: 0
A79: 30 | B79: Regular | C79: Azul | D79: A4 | E79: Comercial | F79: Não se aplica | G79: Não se aplica | H79: Não se aplica | I79: Não se aplica | J79: CATIVO | K79: 2019-02-01 | L79: 0 | M79: 0 | N79: 0 | O79: 0 | P79: 0 | Q79: 0 | AA79: 0 | AZ79: 0 | BI79: 6329.22 | BJ79: 29154.12 | BK79: 153325.46 | BL79: 27 | CJ79: -0.03 | CO79: 0 | CP79: 0 | CQ79: 29 | DK79: 0 | DY79: 140 | ED79: 0 | EE79: -83.4197843 | EG79: -83.4197843 | EI79: 0 | EJ79: 0 | EK79: 0 | EL79: 0
A80: 31 | B80: Sistema de Compensação | C80: Azul | D80: A4 | E80: Comercial | F80: Não se aplica | G80: Não se aplica | H80: Não se aplica | I80: Não se aplica | J80: CATIVO | K80: 2019-02-01 | L80: 0 | M80: 0 | N80: 0 | O80: 0 | P80: 0 | Q80: 0 | AA80: 0 | AZ80: 0 | BI80: 704.24 | BJ80: 3243.93 | BK80: 17632.73 | BL80: 1 | CJ80: -0.03 | CO80: 0 | CP80: 0 | CQ80: 29 | DK80: 0 | DY80: 140 | ED80: 0 | EE80: -83.4197843 | EG80: -83.4197843 | EI80: 0 | EJ80: 0 | EK80: 0 | EL80: 0
A81: 114 | B81: Regular | C81: Azul | D81: A4 | E81: Comercial | F81: Não se aplica | G81: Não se aplica | H81: Não se aplica | I81: Não se aplica | J81: CATIVO | K81: 2019-03-01 | L81: 0 | M81: 0 | N81: 0 | O81: 0 | P81: 0 | Q81: 0 | AA81: 0 | AZ81: 0 | BI81: 7522.65 | BJ81: 34651.47 | BK81: 170855.68 | BL81: 30 | CJ81: -0.03 | CO81: 0 | CP81: 0 | CQ81: 31 | DK81: 0 | DY81: 140 | ED81: 0 | EE81: -83.4197843 | EG81: -83.4197843 | EI81: 0 | EJ81: 0 | EK81: 0 | EL81: 0
A82: 115 | B82: Refaturamento - Regular | C82: Azul | D82: A4 | E82: Comercial | F82: Não se aplica | G82: Não se aplica | H82: Não se aplica | I82: Não se aplica | J82: CATIVO | K82: 2019-03-01 | L82: 0 | M82: 0 | N82: 0 | O82: 0 | P82: 0 | Q82: 0 | AA82: 0 | AZ82: 0 | BI82: -991.33 | BJ82: -4566.16 | BK82: -25251.6 | BL82: -3 | CJ82: -0.03 | CO82: 0 | CP82: 0 | CQ82: 31 | DK82: 0 | DY82: 140 | ED82: 0 | EE82: -83.4197843 | EG82: -83.4197843 | EI82: 0 | EJ82: 0 | EK82: 0 | EL82: 0
A83: 116 | B83: Sistema de Compensação | C83: Azul | D83: A4 | E83: Comercial | F83: Não se aplica | G83: Não se aplica | H83: Não se aplica | I83: Não se aplica | J83: CATIVO | K83: 2019-03-01 | L83: 0 | M83: 0 | N83: 0 | O83: 0 | P83: 0 | Q83: 0 | AA83: 0 | AZ83: 0 | BI83: 782.33 | BJ83: 3603.64 | BK83: 18034.48 | BL83: 1 | CJ83: -0.03 | CO83: 0 | CP83: 0 | CQ83: 31 | DK83: 0 | DY83: 140 | ED83: 0 | EE83: -83.4197843 | EG83: -83.4197843 | EI83: 0 | EJ83: 0 | EK83: 0 | EL83: 0
A84: 200 | B84: Regular | C84: Azul | D84: A4 | E84: Comercial | F84: Não se aplica | G84: Não se aplica | H84: Não se aplica | I84: Não se aplica | J84: CATIVO | K84: 2019-04-01 | L84: 0 | M84: 0 | N84: 0 | O84: 0 | P84: 0 | Q84: 0 | AA84: 0 | AZ84: 0 | BI84: 7089.59 | BJ84: 32656.94 | BK84: 158132.42 | BL84: 28 | CJ84: -0.03 | CO84: 0 | CP84: 0 | CQ84: 30 | DK84: 0 | DY84: 140 | ED84: 0 | EE84: -83.4197843 | EG84: -83.4197843 | EI84: 0 | EJ84: 0 | EK84: 0 | EL84: 0
A85: 201 | B85: Refaturamento - Regular | C85: Azul | D85: A4 | E85: Comercial | F85: Não se aplica | G85: Não se aplica | H85: Não se aplica | I85: Não se aplica | J85: CATIVO | K85: 2019-04-01 | L85: 0 | M85: 0 | N85: 0 | O85: 0 | P85: 0 | Q85: 0 | AA85: 0 | AZ85: 0 | BI85: -346.27 | BJ85: -1594.9 | BK85: -8429.48 | BL85: -1 | CJ85: -0.03 | CO85: 0 | CP85: 0 | CQ85: 30 | DK85: 0 | DY85: 140 | ED85: 0 | EE85: -83.4197843 | EG85: -83.4197843 | EI85: 0 | EJ85: 0 | EK85: 0 | EL85: 0
A86: 202 | B86: Sistema de Compensação | C86: Azul | D86: A4 | E86: Comercial | F86: Não se aplica | G86: Não se aplica | H86: Não se aplica | I86: Não se aplica | J86: CATIVO | K86: 2019-04-01 | L86: 0 | M86: 0 | N86: 0 | O86: 0 | P86: 0 | Q86: 0 | AA86: 0 | AZ86: 0 | BI86: 790.82 | BJ86: 3642.76 | BK86: 18230.22 | BL86: 1 | CJ86: -0.03 | CO86: 0 | CP86: 0 | CQ86: 30 | DK86: 0 | DY86: 140 | ED86: 0 | EE86: -83.4197843 | EG86: -83.4197843 | EI86: 0 | EJ86: 0 | EK86: 0 | EL86: 0
A87: 280 | B87: Regular | C87: Azul | D87: A4 | E87: Comercial | F87: Não se aplica | G87: Não se aplica | H87: Não se aplica | I87: Não se aplica | J87: CATIVO | K87: 2019-05-01 | L87: 0 | M87: 0 | N87: 0 | O87: 0 | P87: 0 | Q87: 0 | AA87: 0 | AZ87: 0 | BI87: 6469.02 | BJ87: 29798.09 | BK87: 147950.81 | BL87: 27 | CJ87: -0.03 | CO87: 0 | CP87: 0 | CQ87: 31 | DK87: 0 | DY87: 140 | ED87: 0 | EE87: -83.4197843 | EG87: -83.4197843 | EI87: 0 | EJ87: 0 | EK87: 0 | EL87: 0
A88: 281 | B88: Sistema de Compensação | C88: Azul | D88: A4 | E88: Comercial | F88: Não se aplica | G88: Não se aplica | H88: Não se aplica | I88: Não se aplica | J88: CATIVO | K88: 2019-05-01 | L88: 0 | M88: 0 | N88: 0 | O88: 0 | P88: 0 | Q88: 0 | AA88: 0 | AZ88: 0 | BI88: 768.13 | BJ88: 3538.18 | BK88: 18104.42 | BL88: 1 | CJ88: -0.03 | CO88: 0 | CP88: 0 | CQ88: 31 | DK88: 0 | DY88: 140 | ED88: 0 | EE88: -83.4197843 | EG88: -83.4197843 | EI88: 0 | EJ88: 0 | EK88: 0 | EL88: 0
A89: 356 | B89: Regular | C89: Azul | D89: A4 | E89: Comercial | F89: Não se aplica | G89: Não se aplica | H89: Não se aplica | I89: Não se aplica | J89: CATIVO | K89: 2019-06-01 | L89: 0 | M89: 0 | N89: 0 | O89: 0 | P89: 0 | Q89: 0 | AA89: 0 | AZ89: 0 | BI89: 6318.07 | BJ89: 29103.16 | BK89: 139990.79 | BL89: 27 | CJ89: -0.03 | CO89: 0 | CP89: 0 | CQ89: 30 | DK89: 0 | DY89: 140 | ED89: 0 | EE89: -83.4197843 | EG89: -83.4197843 | EI89: 0 | EJ89: 0 | EK89: 0 | EL89: 0
A90: 357 | B90: Sistema de Compensação | C90: Azul | D90: A4 | E90: Comercial | F90: Não se aplica | G90: Não se aplica | H90: Não se aplica | I90: Não se aplica | J90: CATIVO | K90: 2019-06-01 | L90: 0 | M90: 0 | N90: 0 | O90: 0 | P90: 0 | Q90: 0 | AA90: 0 | AZ90: 0 | BI90: 738.82 | BJ90: 3403.21 | BK90: 17031.37 | BL90: 1 | CJ90: -0.03 | CO90: 0 | CP90: 0 | CQ90: 30 | DK90: 0 | DY90: 140 | ED90: 0 | EE90: -83.4197843 | EG90: -83.4197843 | EI90: 0 | EJ90: 0 | EK90: 0 | EL90: 0
A91: 439 | B91: Regular | C91: Azul | D91: A4 | E91: Comercial | F91: Não se aplica | G91: Não se aplica | H91: Não se aplica | I91: Não se aplica | J91: CATIVO | K91: 2019-07-01 | L91: 0 | M91: 0 | N91: 0 | O91: 0 | P91: 0 | Q91: 0 | AA91: 0 | AZ91: 0 | BI91: 6384.66 | BJ91: 27751.67 | BK91: 132534.24 | BL91: 27 | CJ91: -0.03 | CO91: 0 | CP91: 0 | CQ91: 31 | DK91: 0 | DY91: 140 | ED91: 0 | EE91: -83.4197843 | EG91: -83.4197843 | EI91: 0 | EJ91: 0 | EK91: 0 | EL91: 0
A92: 440 | B92: Refaturamento - Regular | C92: Azul | D92: A4 | E92: Comercial | F92: Não se aplica | G92: Não se aplica | H92: Não se aplica | I92: Não se aplica | J92: CATIVO | K92: 2019-07-01 | L92: 0 | M92: 0 | N92: 0 | O92: 0 | P92: 0 | Q92: 0 | AA92: 0 | AZ92: 0 | BI92: -2841.41 | BJ92: -11429.54 | BK92: -60725.27 | BL92: -2 | CJ92: -0.03 | CO92: 0 | CP92: 0 | CQ92: 31 | DK92: 0 | DY92: 140 | ED92: 0 | EE92: -83.4197843 | EG92: -83.4197843 | EI92: 0 | EJ92: 0 | EK92: 0 | EL92: 0
A93: 441 | B93: Sistema de Compensação | C93: Azul | D93: A4 | E93: Comercial | F93: Não se aplica | G93: Não se aplica | H93: Não se aplica | I93: Não se aplica | J93: CATIVO | K93: 2019-07-01 | L93: 0 | M93: 0 | N93: 0 | O93: 0 | P93: 0 | Q93: 0 | AA93: 0 | AZ93: 0 | BI93: 746.71 | BJ93: 3439.55 | BK93: 17213.27 | BL93: 1 | CJ93: -0.03 | CO93: 0 | CP93: 0 | CQ93: 31 | DK93: 0 | DY93: 140 | ED93: 0 | EE93: -83.4197843 | EG93: -83.4197843 | EI93: 0 | EJ93: 0 | EK93: 0 | EL93: 0
A94: 522 | B94: Regular | C94: Azul | D94: A4 | E94: Comercial | F94: Não se aplica | G94: Não se aplica | H94: Não se aplica | I94: Não se aplica | J94: CATIVO | K94: 2019-08-01 | L94: 0 | M94: 0 | N94: 0 | O94: 0 | P94: 0 | Q94: 0 | AA94: 0 | AZ94: 0 | BI94: 4742.83 | BJ94: 21845.1 | BK94: 135370.08 | BL94: 27 | CJ94: -0.03 | CO94: 0 | CP94: 0 | CQ94: 31 | DK94: 0 | DY94: 140 | ED94: 0 | EE94: -83.4197843 | EG94: -83.4197843 | EI94: 0 | EJ94: 0 | EK94: 0 | EL94: 0
A95: 523 | B95: Sistema de Compensação | C95: Azul | D95: A4 | E95: Comercial | F95: Não se aplica | G95: Não se aplica | H95: Não se aplica | I95: Não se aplica | J95: CATIVO | K95: 2019-08-01 | L95: 0 | M95: 0 | N95: 0 | O95: 0 | P95: 0 | Q95: 0 | AA95: 0 | AZ95: 0 | BI95: 512.24 | BJ95: 2359.31 | BK95: 15314.98 | BL95: 1 | CJ95: -0.03 | CO95: 0 | CP95: 0 | CQ95: 31 | DK95: 0 | DY95: 140 | ED95: 0 | EE95: -83.4197843 | EG95: -83.4197843 | EI95: 0 | EJ95: 0 | EK95: 0 | EL95: 0
A96: 600 | B96: Regular | C96: Azul | D96: A4 | E96: Comercial | F96: Não se aplica | G96: Não se aplica | H96: Não se aplica | I96: Não se aplica | J96: CATIVO | K96: 2019-09-01 | L96: 0 | M96: 0 | N96: 0 | O96: 0 | P96: 0 | Q96: 0 | AA96: 0 | AZ96: 0 | BI96: 4028.01 | BJ96: 18552.81 | BK96: 144185.82 | BL96: 28 | CJ96: -0.03 | CO96: 0 | CP96: 0 | CQ96: 30 | DK96: 0 | DY96: 140 | ED96: 0 | EE96: -83.4197843 | EG96: -83.4197843 | EI96: 0 | EJ96: 0 | EK96: 0 | EL96: 0
A97: 601 | B97: Sistema de Compensação | C97: Azul | D97: A4 | E97: Comercial | F97: Não se aplica | G97: Não se aplica | H97: Não se aplica | I97: Não se aplica | J97: CATIVO | K97: 2019-09-01 | L97: 0 | M97: 0 | N97: 0 | O97: 0 | P97: 0 | Q97: 0 | AA97: 0 | AZ97: 0 | BI97: 423.53 | BJ97: 1950.68 | BK97: 15841.23 | BL97: 1 | CJ97: -0.03 | CO97: 0 | CP97: 0 | CQ97: 30 | DK97: 0 | DY97: 140 | ED97: 0 | EE97: -83.4197843 | EG97: -83.4197843 | EI97: 0 | EJ97: 0 | EK97: 0 | EL97: 0
A98: 691 | B98: Regular | C98: Azul | D98: A4 | E98: Comercial | F98: Não se aplica | G98: Não se aplica | H98: Não se aplica | I98: Não se aplica | J98: CATIVO | K98: 2019-10-01 | L98: 0 | M98: 0 | N98: 0 | O98: 0 | P98: 0 | Q98: 0 | AA98: 0 | AZ98: 0 | BI98: 6403.91 | BJ98: 29498.52 | BK98: 141550.19 | BL98: 28 | CJ98: -0.03 | CO98: 0 | CP98: 0 | CQ98: 31 | DK98: 0 | DY98: 140 | ED98: 0 | EE98: -83.4197843 | EG98: -83.4197843 | EI98: 0 | EJ98: 0 | EK98: 0 | EL98: 0
A99: 692 | B99: Sistema de Compensação | C99: Azul | D99: A4 | E99: Comercial | F99: Não se aplica | G99: Não se aplica | H99: Não se aplica | I99: Não se aplica | J99: CATIVO | K99: 2019-10-01 | L99: 0 | M99: 0 | N99: 0 | O99: 0 | P99: 0 | Q99: 0 | AA99: 0 | AZ99: 0 | BI99: 672.59 | BJ99: 3098.12 | BK99: 15504.58 | BL99: 1 | CJ99: -0.03 | CO99: 0 | CP99: 0 | CQ99: 31 | DK99: 0 | DY99: 140 | ED99: 0 | EE99: -83.4197843 | EG99: -83.4197843 | EI99: 0 | EJ99: 0 | EK99: 0 | EL99: 0
A100: 776 | B100: Regular | C100: Azul | D100: A4 | E100: Comercial | F100: Não se aplica | G100: Não se aplica | H100: Não se aplica | I100: Não se aplica | J100: CATIVO | K100: 2019-11-01 | L100: 0 | M100: 0 | N100: 0 | O100: 0 | P100: 0 | Q100: 0 | AA100: 0 | AZ100: 0 | BI100: 8129.66 | BJ100: 37447.94 | BK100: 182332.14 | BL100: 29 | CJ100: -0.03 | CO100: 0 | CP100: 0 | CQ100: 30 | DK100: 0 | DY100: 140 | ED100: 0 | EE100: -83.4197843 | EG100: -83.4197843 | EI100: 0 | EJ100: 0 | EK100: 0 | EL100: 0
A101: 777 | B101: Sistema de Compensação | C101: Azul | D101: A4 | E101: Comercial | F101: Não se aplica | G101: Não se aplica | H101: Não se aplica | I101: Não se aplica | J101: CATIVO | K101: 2019-11-01 | L101: 0 | M101: 0 | N101: 0 | O101: 0 | P101: 0 | Q101: 0 | AA101: 0 | AZ101: 0 | BI101: 765.32 | BJ101: 3525.28 | BK101: 17642.28 | BL101: 1 | CJ101: -0.03 | CO101: 0 | CP101: 0 | CQ101: 30 | DK101: 0 | DY101: 140 | ED101: 0 | EE101: -83.4197843 | EG101: -83.4197843 | EI101: 0 | EJ101: 0 | EK101: 0 | EL101: 0
A102: 863 | B102: Regular | C102: Azul | D102: A4 | E102: Comercial | F102: Não se aplica | G102: Não se aplica | H102: Não se aplica | I102: Não se aplica | J102: CATIVO | K102: 2019-12-01 | L102: 0 | M102: 0 | N102: 0 | O102: 0 | P102: 0 | Q102: 0 | AA102: 0 | AZ102: 0 | BI102: 4944.16 | BJ102: 22772.18 | BK102: 167617.15 | BL102: 28 | CJ102: -0.03 | CO102: 0 | CP102: 0 | DK102: 0 | DY102: 140 | ED102: 0 | EE102: -83.4197843 | EG102: -83.4197843 | EI102: 0 | EJ102: 0 | EK102: 0 | EL102: 0
A103: 864 | B103: Sistema de Compensação | C103: Azul | D103: A4 | E103: Comercial | F103: Não se aplica | G103: Não se aplica | H103: Não se aplica | I103: Não se aplica | J103: CATIVO | K103: 2019-12-01 | L103: 0 | M103: 0 | N103: 0 | O103: 0 | P103: 0 | Q103: 0 | AA103: 0 | AZ103: 0 | BI103: 490.79 | BJ103: 2260.48 | BK103: 17177.5 | BL103: 1 | CJ103: -0.03 | CO103: 0 | CP103: 0 | DK103: 0 | DY103: 140 | ED103: 0 | EE103: -83.4197843 | EG103: -83.4197843 | EI103: 0 | EJ103: 0 | EK103: 0 | EL103: 0
A104: 949 | B104: PROJETADO | C104: Azul | D104: A4 | E104: Comercial | F104: Não se aplica | G104: Não se aplica | H104: Não se aplica | I104: Não se aplica | J104: CATIVO | K104: 2020-01-01 | L104: 0 | M104: 0 | N104: 0 | O104: 0 | P104: 0 | Q104: 0 | AA104: 0 | AZ104: 0 | BI104: 4944.16 | BJ104: 22772.18 | BK104: 167617.15 | BL104: 28 | CJ104: -0.03 | CO104: 0 | CP104: 0 | CQ104: 31 | DK104: 0 | DY104: 140 | ED104: 0 | EE104: -83.4197843 | EG104: -83.4197843 | EI104: 0 | EJ104: 0 | EK104: 0 | EL104: 0
A105: 950 | B105: PROJETADO | C105: Azul | D105: A4 | E105: Comercial | F105: Não se aplica | G105: Não se aplica | H105: Não se aplica | I105: Não se aplica | J105: CATIVO | K105: 2020-01-01 | L105: 0 | M105: 0 | N105: 0 | O105: 0 | P105: 0 | Q105: 0 | AA105: 0 | AZ105: 0 | BI105: 490.79 | BJ105: 2260.48 | BK105: 17177.5 | BL105: 1 | CJ105: -0.03 | CO105: 0 | CP105: 0 | CQ105: 31 | DK105: 0 | DY105: 140 | ED105: 0 | EE105: -83.4197843 | EG105: -83.4197843 | EI105: 0 | EJ105: 0 | EK105: 0 | EL105: 0
A106: 26 | B106: Regular | C106: Azul | D106: A4 | E106: Comercial | F106: Não se aplica | G106: Não se aplica | H106: Não se aplica | I106: Ponta | J106: CATIVO | K106: 2019-02-01 | L106: 2304 | M106: 2304 | N106: 105.409 | O106: 105.409 | P106: 105.409 | Q106: 105.409 | R106: 38 | S106: 32.74 | T106: 370.93 | U106: 87552 | V106: 42550.45103 | W106: 130102.451 | X106: 135782.5302 | Y106: 0 | Z106: 1416.090914 | AA106: 0 | AB106: 0 | AC106: 239.2844825 | AD106: 14187.78369 | AE106: 63062.79312 | AF106: 33949.37846 | AG106: 1228.779162 | AH106: 0 | AI106: 4.629224189 | AJ106: 0 | AK106: 293.4754216 | AL106: 981.052154 | AM106: 0 | AN106: 37.66884781 | AO106: 2990.315057 | AP106: 7072.023671 | AQ106: 0 | AR106: 0 | AS106: 1.947063859e-10 | AT106: 0 | AU106: 0 | AV106: 101.4630861 | AW106: 10.52946795 | AX106: 0 | AY106: -1802.958398 | AZ106: 0 | BA106: -1496.30255 | BB106: 8251.355754 | BC106: 933.5887738 | BD106: 252.0336697 | BE106: 16.32616349 | BF106: 385.3914145 | BG106: 717.3247613 | BH106: 0 | BI106: 0 | BJ106: 0 | BK106: 0 | BL106: 0 | BU106: 3268.175233 | BV106: 35320.45447 | CI106: 135782.9733 | CJ106: 5680.49227 | CM106: 125.6093283 | CN106: 3142.565904 | CO106: 1751.48571 | CP106: 3928.59343 | CQ106: 29 | CR106: -311.7876088 | CS106: 4.547473509e-12 | CT106: 8.452884591 | CU106: 0 | CV106: 0 | CW106: 0 | CX106: 0 | CY106: 0 | CZ106: 585.1610667 | DA106: 0 | DB106: 0 | DC106: -503.8193837 | DD106: -5.719329005 | DE106: -0.2422853672 | DF106: -3.740258405 | DG106: -10.64532358 | DH106: 0 | DI106: -34.18101211 | DJ106: -112.2503683 | DK106: 0 | DL106: -0.1684161515 | DM106: 44.38054208 | DN106: -237.1453849 | DO106: -40.63757939 | DP106: -1.232761276 | DQ106: 0 | DR106: 0 | DS106: 0 | DU106: 63062.79312 | DV106: 0 | DW106: 0 | DX106: 0 | DY106: 140 | DZ106: 0 | EA106: 0 | EB106: 0 | ED106: 0 | EE106: -83.4197843 | EG106: -83.4197843 | EI106: 0 | EJ106: 0 | EK106: 0 | EL106: 0
A107: 27 | B107: Sistema de Compensação | C107: Azul | D107: A4 | E107: Comercial | F107: Não se aplica | G107: Não se aplica | H107: Não se aplica | I107: Ponta | J107: CATIVO | K107: 2019-02-01 | L107: 252 | M107: 252 | N107: 12.6 | O107: 12.6 | P107: 12.6 | Q107: 12.6 | R107: 38 | S107: 32.74 | T107: 370.93 | U107: 9576 | V107: 5086.242 | W107: 14662.242 | X107: 15325.758 | Y107: 0 | Z107: 169.2715567 | AA107: 0 | AB107: 0 | AC107: 26.17174028 | AD107: 1551.788841 | AE107: 6897.492998 | AF107: 4058.11808 | AG107: 146.8813615 | AH107: 0 | AI107: 0.5533514669 | AJ107: 0 | AK107: 35.08040407 | AL107: 117.269466 | AM107: 0 | AN107: 4.502722561 | AO107: 327.0657094 | AP107: 773.502589 | AQ107: 0 | AR107: 0 | AS107: 2.327410811e-11 | AT107: 0 | AU107: 0 | AV107: 12.12832761 | AW107: 1.258633477 | AX107: 0 | AY107: -215.5155235 | AZ107: 0 | BA107: -178.8596053 | BB107: 986.3207363 | BC107: 102.1112721 | BD107: 30.12668973 | BE107: 1.951537914 | BF107: 46.06752576 | BG107: 85.74497427 | BH107: 0 | BI107: 0 | BJ107: 0 | BK107: 0 | BL107: 0 | BU107: 390.6593169 | BV107: 4222.008807 | CI107: 15325.758 | CJ107: 663.486 | CM107: 15.01463382 | CN107: 375.644683 | CO107: 193.914 | CP107: 469.602 | CQ107: 29 | CR107: -43.30009284 | CS107: 5.115907697e-13 | CT107: 0.9245342521 | CU107: 0 | CV107: 0 | CW107: 0 | CX107: 0 | CY107: 0 | CZ107: 64.00199167 | DA107: 0 | DB107: 0 | DC107: -60.22374024 | DD107: -0.6836564759 | DE107: -0.02896143239 | DF107: -0.4470894886 | DG107: -1.272482209 | DH107: 0 | DI107: -4.085806264 | DJ107: -13.41777875 | DK107: 0 | DL107: -0.02013152111 | DM107: 5.305000809 | DN107: -28.34702776 | DO107: -4.857588065 | DP107: -0.1473573611 | DQ107: 0 | DR107: 0 | DS107: 0 | DU107: 6897.492998 | DV107: 0 | DW107: 0 | DX107: 0 | DY107: 140 | DZ107: 0 | EA107: 0 | EB107: 0 | ED107: 0 | EE107: -83.4197843 | EG107: -83.4197843 | EI107: 0 | EJ107: 0 | EK107: 0 | EL107: 0
